Workbook

Sheet 0
A1: ЕДИННА ЕЛЕКТРОННА ОТЧЕТНА ФОРМА | C1: =IF(COUNTIFS(C19:D33,"Грешка")>0,"Грешно попълнен отчет","") -> Грешно попълнен отчет
A2: 2020-09-30
A3: ЕИК
A4: 000770111 | B4: ЕЕОФ държавни ЛЗБП версия 2.0 2020г
A5: Наименование на лечебното заведение
A6: =VLOOKUP(A4,номенклатури!$J$1:$K$67,2,0) -> СБПФЗПЛР "Цар Фердинанд 1" ЕООД - с. Искрец
A7: СПИСЪК НА КОНТРОЛИРАНИТЕ ДРУЖЕСТВАТА (КОНСОЛИДИРАНИ В ОТЧЕТА)
A8: ЕИК | B8: Наименование по търговски регистър | C8: Вид дружество | D8: % на собственост
A11: =A4 -> 000770111 | B11: =A6 -> СБПФЗПЛР "Цар Фердинанд 1" ЕООД - с. Искрец | C11: =VLOOKUP(A11,номенклатури!J:M,4,0) -> 0
F12: =IF(A12="","",CheckEIK(A12)) -> 
F13: =IF(A13="","",CheckEIK(A13)) -> 
F14: =IF(A14="","",CheckEIK(A14)) -> 
F15: =IF(A15="","",CheckEIK(A15)) -> 
F16: =IF(A16="","",CheckEIK(A16)) -> 
A18: =IF(MONTH(A2)=12,"СПИСЪК НА ПРИЛОЖЕНИТЕ ОТЧЕТНИ ФОРМИ КЪМ ГОДИШЕН ФИНАНСОВ ОТЧЕТ","СПИСЪК НА ПРИЛОЖЕНИТЕ ОТЧЕТНИ ФОРМИ КЪМ МЕЖДИНЕН ФИНАНСОВ ОТЧЕТ") -> СПИСЪК НА ПРИЛОЖЕНИТЕ ОТЧЕТНИ ФОРМИ КЪМ МЕЖДИНЕН ФИНАНСОВ ОТЧЕТ | C18: Инд. | D18: Конс.
B19: ='01'!D1 -> Т01 ОТЧЕТ ЗА ВСЕОБХВАТНИЯ ДОХОД НА СБПФЗПЛР "Цар Фердинанд 1" ЕООД - с. Искрец ОТ 01-01-2020 ДО 30-09-2020 | C19: =IF(COUNTBLANK('01'!I3:I122)=0,"✓","Грешка") -> ✓ | D19: =IF(COUNTBLANK('01'!J3:J122)=0,"✓","Грешка") -> ✓
B20: ='02'!D1 -> Т02 ОТЧЕТ ЗА ФИНАНСОВОТО СЪСТОЯНИЕ НА СБПФЗПЛР "Цар Фердинанд 1" ЕООД - с. Искрец КЪМ 30-09-2020 | C20: =IF(AND('02'!L1="OK",'02'!K1=0),"✓","Грешка") -> ✓ | D20: =IF(AND('02'!M1="OK",'02'!K1=0),"✓","Грешка") -> ✓
B21: ='03'!D1 -> Т03 ОТЧЕТ ЗА ПАРИЧНИЯ ПОТОК ПО ПРЕКИЯ МЕТОД НА СБПФЗПЛР "Цар Фердинанд 1" ЕООД - с. Искрец ОТ 01-01-2020 ДО 30-09-2020 | C21: =IF(AND('03'!K1=0,'03'!L1="OK"),"✓","Грешка") -> ✓ | D21: =IF(AND('03'!K1=0,'03'!M1="OK"),"✓","Грешка") -> ✓
B22: ='04'!D1 -> Т04 РЕКАПИТУЛАЦИЯ ПО Т12 НА СБПФЗПЛР "Цар Фердинанд 1" ЕООД - с. Искрец КЪМ 30-09-2020 | C22: =IF('04'!L1="OK","✓","Грешка") -> ✓
B23: ='05'!D1 -> Т05 ИКОНОМИЧЕСКИ ПОКАЗАТЕЛИ ЗА ДЕЙНОСТТА НА СБПФЗПЛР "Цар Фердинанд 1" ЕООД - с. Искрец КЪМ 30-09-2020 | C23: =C20 -> ✓ | D23: =D20 -> ✓
B24: ='06'!D1 -> Т06 СПРАВКА ЗА ПЕРСОНАЛ НА СБПФЗПЛР "Цар Фердинанд 1" ЕООД - с. Искрец ОТ 01-01-2020 ДО 30-09-2020 | C24: =IF('06'!K1=0,"✓","Грешка") -> ✓ | D24: =IF('06'!K4=0,"✓","Грешка") -> ✓
B25: ='07'!D1 -> Т07 НАТУРАЛНИ ПОКАЗАТЕЛИ ЗА ДЕЙНОСТТА НА СТАЦИОНАРА НА СБПФЗПЛР "Цар Фердинанд 1" ЕООД - с. Искрец ОТ 01-01-2020 ДО 30-09-2020 | C25: =C32 -> ✓
B26: ='08'!D1 -> Т08 РАЗХОДИ НА ЛЕГЛОДЕН ПО ВИДОВЕ НА СБПФЗПЛР "Цар Фердинанд 1" ЕООД - с. Искрец ОТ 01-01-2020 ДО 30-09-2020 | C26: =C25 -> ✓
B27: ='09'!D1 -> T09 СПРАВКА ЗА ДВИЖЕНИЕТО НА НЕТЕКУЩИТЕ АКТИВИ В ЛЕВА НА СБПФЗПЛР "ЦАР ФЕРДИНАНД 1" ЕООД - С. ИСКРЕЦ ЗА ПЕРИОДА ОТ 01-01-2020 ДО 30-09-2020 | C27: =IF('09'!X6=0,"✓","Грешка") -> ✓ | D27: =IF('09'!X24=0,"✓","Грешка") -> ✓
B28: ='10'!D1 -> Т10 ОТЧЕТ ЗА СОБСТВЕНИЯ КАПИТАЛ В ЛЕВА НА СБПФЗПЛР "Цар Фердинанд 1" ЕООД - с. Искрец ЗА ПЕРИОДА ОТ 01-01-2020 ДО 30-09-2020 | C28: =IF('10'!V4=0,"✓","Грешка") -> ✓ | D28: =IF('10'!V21=0,"✓","Грешка") -> ✓
B29: ='11'!D1 -> Т11 СПРАВКА ЗА НАЧИСЛЕНИТЕ ВЪЗНАГРАЖДЕНИЯ ПО ДОГОВОРИ ЗА УПРАВЛЕНИЕ И КОНТРОЛ НА СБПФЗПЛР "Цар Фердинанд 1" ЕООД - с. Искрец ЗА ПЕРИОДА ОТ 01-01-2020 ДО 30-09-2020 | C29: =IF('11'!P5="OK","✓","Грешка") -> Грешка
B30: ='12'!D1 -> Т12 СПРАВКА НА СБПФЗПЛР "Цар Фердинанд 1" ЕООД - с. Искрец , ПО ОБОРОТИ И САЛДА КЪМ КРАЙНАТА ДАТА НА ОТЧЕТА, ЗА ДОГОВОРИТЕ ПО КОНТРАГЕНТИ ЗА ПЕРИОДА ОТ 01-01-2020 ДО 30-09-2020 | C30: ='12'!Y7 -> ✓
B31: ='13'!D1 -> Т13 ОТЧЕТ ЗА РАЗМЕРА НА НЕТНАТА ЕКСПОЗИЦИЯ НА СБПФЗПЛР "Цар Фердинанд 1" ЕООД - с. Искрец КЪМ 30-09-2020 | C31: =IF('13'!V5="OK","✓","Грешка") -> ✓ | D31: =IF('13'!W5="OK","✓","Грешка") -> ✓
B32: ='14'!E1 -> Т14 ДЕЙНОСТ С НАТУРАЛНИ И СТОЙНОСТНИ ПОКАЗАТЕЛИ ПО БОЛНИЧНИ ЗВЕНА НА СБПФЗПЛР "Цар Фердинанд 1" ЕООД - с. Искрец ОТ 01-01-2020 ДО 30-09-2020 | C32: =IF(AND(COUNTIFS('14'!BA8:BY8,"OK")=14,'14'!CA9=0),"✓","Грешка") -> ✓
B33: ='15'!D1 -> Т15 ДЕЙНОСТ ПО КП, АПР И КПР С МАПИРАНИ КЪМ НЕЯ ДОПЪЛНИТЕЛНО ЗАПЛАТЕНИ МЕДИЦИНСКИ ИЗДЕЛИЯ И ЛЕКАРСТВЕНИ ПРОДУКТИ ПО ДОГОВОРА С НЗОК ОТ 01-01-2020 ДО 30-09-2020 | C33: =IF(COUNTIFS('14'!BK8:BO8,"OK")=5,"✓","Грешка") -> ✓
B34: ='16'!G1 -> Т16 РЕКАПИТУЛАЦИЯ ПО ДОГОВОРИТЕ ЗА ЗАКУПУВАНЕ НА НЕТЕКУЩИ АКТИВИ С МЗ, НЕПРИКЛЮЧИЛИ С ВДИГАНЕ НА КАПИТАЛА НА СБПФЗПЛР "Цар Фердинанд 1" ЕООД - с. Искрец КЪМ 30-09-2020
B35: ='17'!D1 -> Т17 ПОЯСНЕНИЯ ПО ПОЛЕТА 'ДРУГИ' ОТ ОТЧЕТ ЗА СБПФЗПЛР "Цар Фердинанд 1" ЕООД - с. Искрец КЪМ 30-09-2020
A38: Електронен подпис

Sheet 01
A1: ='0'!$A$4 -> 000770111 | B1: ='0'!$A$2 -> 2020-09-30 | C1: Т01 | D1: ="Т01 ОТЧЕТ ЗА ВСЕОБХВАТНИЯ ДОХОД НА "&'0'!A6&" ОТ "&TEXT(DATE(YEAR(B3),1,1),"DD-MM-YYYY")&" ДО "&TEXT(B3,"DD-MM-YYYY") -> Т01 ОТЧЕТ ЗА ВСЕОБХВАТНИЯ ДОХОД НА СБПФЗПЛР "Цар Фердинанд 1" ЕООД - с. Искрец ОТ 01-01-2020 ДО 30-09-2020 | H1: Код | I1: Индивидуален (лева) | J1: Консолидиран (лева) | K1: =COUNTBLANK(I4:J122) -> 0 | L1: Свързаност с други отчети. Коментар.
A2: ='0'!$A$4 -> 000770111 | B2: ='0'!$A$2 -> 2020-09-30 | C2: Т01 | D2: 00 | E2: 00 | F2: 01 | G2: ОБЩО ПРИХОДИ | H2: =D2&E2&F2 -> 000001 | I2: =I3+I51+I48 -> 2,250,446.40 | J2: =J3+J51+J48 -> 0
A3: ='0'!$A$4 -> 000770111 | B3: ='0'!$A$2 -> 2020-09-30 | C3: Т01 | D3: 01 | E3: 00 | F3: 00 | G3: Приходи от дейност и финансиране | H3: 010000 | I3: =+I4+SUM(I13:I20,I21,I29,I113) -> 2,250,448.40 | J3: =+J4+SUM(J13:J20,J21,J29,J113) -> 0
A4: ='0'!$A$4 -> 000770111 | B4: ='0'!$A$2 -> 2020-09-30 | C4: Т01 | D4: 01 | E4: 01 | F4: 00 | G4: Приходи от РЗОК | H4: 010100 | I4: =SUM(I6:I12) -> 955,948.40 | J4: =SUM(J6:J12) -> 0 | L4: Дейността по договор с РЗОК над договорените параметри се признава в приход и се обезценява (едновременно), тя се посочева в Т15 по видове и звена, ведно с признатата дейност
A5: ='0'!$A$4 -> 000770111 | B5: ='0'!$A$2 -> 2020-09-30 | C5: Т01 | D5: 01 | E5: 01 | G5: -(от тях над договорените обеми) | H5: 0101 | I5: 0 | J5: 0
A6: ='0'!$A$4 -> 000770111 | B6: ='0'!$A$2 -> 2020-09-30 | C6: Т01 | D6: 01 | E6: 01 | F6: 01 | G6: клинични пътеки (КП) | H6: 010101 | I6: ='15'!F6 -> 955,470 | J6: 0 | L6: Приходите на този ред следва да се посочат по видове дейности и звена в Т15. Макетът ги извлича автоматично.
A7: ='0'!$A$4 -> 000770111 | B7: ='0'!$A$2 -> 2020-09-30 | C7: Т01 | D7: 01 | E7: 01 | F7: 02 | G7: клинични процедури (КПр) | H7: 010102 | I7: ='15'!F7 -> 0 | J7: 0
A8: ='0'!$A$4 -> 000770111 | B8: ='0'!$A$2 -> 2020-09-30 | C8: Т01 | D8: 01 | E8: 01 | F8: 03 | G8: амбулаторни процедури (АПр) | H8: 010103 | I8: ='15'!F8 -> 0 | J8: 0
A9: ='0'!$A$4 -> 000770111 | B9: ='0'!$A$2 -> 2020-09-30 | C9: Т01 | D9: 01 | E9: 01 | F9: 04 | G9: медицински изделия (МИ) | H9: 010104 | I9: ='15'!J6+'15'!J7+'15'!J8 -> 0 | J9: 0
A10: ='0'!$A$4 -> 000770111 | B10: ='0'!$A$2 -> 2020-09-30 | C10: Т01 | D10: 01 | E10: 01 | F10: 05 | G10: лекарствени продукти (ЛП) | H10: 010105 | I10: ='15'!K6+'15'!K7+'15'!K8 -> 0 | J10: 0
A11: ='0'!$A$4 -> 000770111 | B11: ='0'!$A$2 -> 2020-09-30 | C11: Т01 | D11: 01 | E11: 01 | F11: 06 | G11: извънболнична помощ | H11: 010106 | I11: ='14'!BP9 -> 0 | J11: 0 | L11: Попълва се по отделения в Т14, кол. 65. Посочват се всички дейности извън т.1-т.5
A12: ='0'!$A$4 -> 000770111 | B12: ='0'!$A$2 -> 2020-09-30 | C12: Т01 | D12: 01 | E12: 01 | F12: 07 | G12: заплащане за работа при неблагоприятни условия | H12: 010107 | I12: 478.00 | J12: 0 | L12: Попълва се заплатената сума от НЗОК за работа при неблагоприятни условия, свързани с обявената епидемична обстановка
A13: ='0'!$A$4 -> 000770111 | B13: ='0'!$A$2 -> 2020-09-30 | C13: Т01 | D13: 01 | E13: 02 | F13: 00 | G13: Медицински, потребителски и др. такси | H13: 010200 | I13: ='14'!BQ9 -> 1,205 | J13: 0 | L13: Попълва се в Т14, кол. 66 по звена
A14: ='0'!$A$4 -> 000770111 | B14: ='0'!$A$2 -> 2020-09-30 | C14: Т01 | D14: 01 | E14: 03 | F14: 00 | G14: Медицински услуги по ценоразпис (на граждани) | H14: 010300 | I14: ='14'!BR9 -> 0 | J14: 0 | L14: Попълва се в Т14, кол. 67 по звена
A15: ='0'!$A$4 -> 000770111 | B15: ='0'!$A$2 -> 2020-09-30 | C15: Т01 | D15: 01 | E15: 04 | F15: 00 | G15: Медицински услуги по договор с контрагенти | H15: 010400 | I15: ='14'!BS9 -> 0 | J15: 0 | L15: Попълва се в Т14, кол. 68 по звена
A16: ='0'!$A$4 -> 000770111 | B16: ='0'!$A$2 -> 2020-09-30 | C16: Т01 | D16: 01 | E16: 05 | F16: 00 | G16: Доплащане от пациенти за медицински изделия и лекарства | H16: 010500 | I16: ='14'!BT9 -> 0 | J16: 0 | L16: Попълва се в Т14, кол. 69 по звена
A17: ='0'!$A$4 -> 000770111 | B17: ='0'!$A$2 -> 2020-09-30 | C17: Т01 | D17: 01 | E17: 06 | F17: 00 | G17: Клинични изпитвания | H17: =D17&E17&F17 -> 010600 | I17: ='14'!BU9 -> 0 | J17: 0 | L17: Попълва се в Т14, кол. 70 по звена
A18: ='0'!$A$4 -> 000770111 | B18: ='0'!$A$2 -> 2020-09-30 | C18: Т01 | D18: 01 | E18: 07 | F18: 00 | G18: Практическо обучение | H18: =D18&E18&F18 -> 010700 | I18: ='14'!BV9 -> 0 | J18: 0 | L18: Попълва се в Т14, кол. 71 по звена
A19: ='0'!$A$4 -> 000770111 | B19: ='0'!$A$2 -> 2020-09-30 | C19: Т01 | D19: 01 | E19: 08 | F19: 00 | G19: Избор на лекар/екип | H19: =D19&E19&F19 -> 010800 | I19: ='14'!BW9 -> 0 | J19: 0 | L19: Попълва се в Т14, кол. 72 по звена
A20: ='0'!$A$4 -> 000770111 | B20: ='0'!$A$2 -> 2020-09-30 | C20: Т01 | D20: 01 | E20: 09 | F20: 00 | G20: Финансиране за дейности за лечение на лица до 18-годишна възраст | H20: =D20&E20&F20 -> 010900 | I20: 0 | J20: 0
A21: ='0'!$A$4 -> 000770111 | B21: ='0'!$A$2 -> 2020-09-30 | C21: Т01 | D21: 02 | E21: 00 | F21: 00 | G21: Други доходи от дейността | H21: 020000 | I21: =SUM(I22:I28) -> 156,739.00 | J21: =SUM(J22:J28) -> 0 | L21: Общата стойност следва да съвпада със сумата по кол.73 в Т14
A22: ='0'!$A$4 -> 000770111 | B22: ='0'!$A$2 -> 2020-09-30 | C22: Т01 | D22: 02 | E22: 01 | F22: 00 | G22: Заплащане за разглеждане на документация, вкл. за клинични изпитвания | H22: 020100 | I22: 0 | J22: 0
A23: ='0'!$A$4 -> 000770111 | B23: ='0'!$A$2 -> 2020-09-30 | C23: Т01 | D23: 02 | E23: 02 | F23: 00 | G23: Приходи от наеми | H23: 020200 | I23: 11,041.00 | J23: 0
A24: ='0'!$A$4 -> 000770111 | B24: ='0'!$A$2 -> 2020-09-30 | C24: Т01 | D24: 02 | E24: 03 | F24: 00 | G24: Продажба на материали | H24: 020300 | I24: 0 | J24: 0
A25: ='0'!$A$4 -> 000770111 | B25: ='0'!$A$2 -> 2020-09-30 | C25: Т01 | D25: 02 | E25: 04 | F25: 00 | G25: Продажба на ДА | H25: 020400 | I25: 125,280.00 | J25: 0
A26: ='0'!$A$4 -> 000770111 | B26: ='0'!$A$2 -> 2020-09-30 | C26: Т01 | D26: 02 | E26: 05 | F26: 00 | G26: Подобрени битови условия | H26: 020500 | I26: 4,616.00 | J26: 0
A27: ='0'!$A$4 -> 000770111 | B27: ='0'!$A$2 -> 2020-09-30 | C27: Т01 | D27: 02 | E27: 06 | F27: 00 | G27: Дарение | H27: 020600 | I27: 14,992.00 | J27: 0 | L27: Дарения от трети лица (не са приход от финансиране)
A28: ='0'!$A$4 -> 000770111 | B28: ='0'!$A$2 -> 2020-09-30 | C28: Т01 | D28: 02 | E28: 07 | F28: 00 | G28: Други | H28: 020700 | I28: 810.00 | J28: 0
A29: ='0'!$A$4 -> 000770111 | B29: ='0'!$A$2 -> 2020-09-30 | C29: Т01 | D29: 03 | E29: 00 | F29: 00 | G29: Приходи от финансиране | H29: 030000 | I29: =I30+I38+I42+I45 -> 1,136,556.00 | J29: =J30+J38+J42+J45 -> 0 | L29: Следва да е еднаква със стойността в Т14, кол. 74.
A30: ='0'!$A$4 -> 000770111 | B30: ='0'!$A$2 -> 2020-09-30 | C30: Т01 | D30: 03 | E30: 01 | F30: 00 | G30: Финансиране от МЗ | H30: 030100 | I30: =SUM(I31:I37) -> 1,136,556.00 | J30: =SUM(J31:J37) -> 0 | L30: Амортизационните отчисления на активите, закупени със средства на МЗ (с които е увеличен или предстои да бъде увеличен капитала) не се посочват като приход от финансиране.
A31: ='0'!$A$4 -> 000770111 | B31: ='0'!$A$2 -> 2020-09-30 | C31: Т01 | D31: 03 | E31: 01 | F31: 01 | G31: медицински дейности, извън обхвата на здравното осигуряване | H31: 030101 | I31: 1,136,556.00 | J31: 0
A32: ='0'!$A$4 -> 000770111 | B32: ='0'!$A$2 -> 2020-09-30 | C32: Т01 | D32: 03 | E32: 01 | F32: 02 | G32: дейност по договор за трансплантации | H32: 030102 | I32: 0 | J32: 0
A33: ='0'!$A$4 -> 000770111 | B33: ='0'!$A$2 -> 2020-09-30 | C33: Т01 | D33: 03 | E33: 01 | F33: 03 | G33: дейност по договор по национални програми | H33: 030103 | I33: 0 | J33: 0
A34: ='0'!$A$4 -> 000770111 | B34: ='0'!$A$2 -> 2020-09-30 | C34: Т01 | D34: 03 | E34: 01 | F34: 04 | G34: централна доставка медикаменти | H34: 030104 | I34: 0 | J34: 0
A35: ='0'!$A$4 -> 000770111 | B35: ='0'!$A$2 -> 2020-09-30 | C35: Т01 | D35: 03 | E35: 01 | F35: 05 | G35: централна доставка консумативи | H35: 030105 | I35: 0 | J35: 0
A36: ='0'!$A$4 -> 000770111 | B36: ='0'!$A$2 -> 2020-09-30 | C36: Т01 | D36: 03 | E36: 01 | F36: 06 | G36: финансиране на ДА | H36: 030106 | I36: 0 | J36: 0
A37: ='0'!$A$4 -> 000770111 | B37: ='0'!$A$2 -> 2020-09-30 | C37: Т01 | D37: 03 | E37: 01 | F37: 07 | G37: други | H37: 030107 | I37: 0 | J37: 0
A38: ='0'!$A$4 -> 000770111 | B38: ='0'!$A$2 -> 2020-09-30 | C38: Т01 | D38: 03 | E38: 02 | F38: 00 | G38: Финансиране от ОП, фондове и проекти | H38: 030200 | I38: =SUM(I39:I41) -> 0 | J38: =SUM(J39:J41) -> 0
A39: ='0'!$A$4 -> 000770111 | B39: ='0'!$A$2 -> 2020-09-30 | C39: Т01 | D39: 03 | E39: 02 | F39: 01 | G39: текуща дейност | H39: 030201 | I39: 0 | J39: 0
A40: ='0'!$A$4 -> 000770111 | B40: ='0'!$A$2 -> 2020-09-30 | C40: Т01 | D40: 03 | E40: 02 | F40: 02 | G40: дълготрайни активи | H40: 030202 | I40: 0 | J40: 0
A41: ='0'!$A$4 -> 000770111 | B41: ='0'!$A$2 -> 2020-09-30 | C41: Т01 | D41: 03 | E41: 02 | F41: 03 | G41: за подкрепа на работещи в условия на заплаха от COVID-19 | H41: =D41&E41&F41 -> 030203 | I41: 0 | J41: 0
A42: ='0'!$A$4 -> 000770111 | B42: ='0'!$A$2 -> 2020-09-30 | C42: Т01 | D42: 03 | E42: 03 | F42: 00 | G42: Финансиране от общини | H42: 030300 | I42: =SUM(I43:I44) -> 0 | J42: =SUM(J43:J44) -> 0
A43: ='0'!$A$4 -> 000770111 | B43: ='0'!$A$2 -> 2020-09-30 | C43: Т01 | D43: 03 | E43: 03 | F43: 01 | G43: текуща дейност | H43: 030301 | I43: 0 | J43: 0
A44: ='0'!$A$4 -> 000770111 | B44: ='0'!$A$2 -> 2020-09-30 | C44: Т01 | D44: 03 | E44: 03 | F44: 02 | G44: дълготрайни активи | H44: 030302 | I44: 0 | J44: 0
A45: ='0'!$A$4 -> 000770111 | B45: ='0'!$A$2 -> 2020-09-30 | C45: Т01 | D45: 03 | E45: 04 | F45: 00 | G45: Друго правителствено финансиране (ФЛД, БЧК, РЗЦТХ) | H45: 030400 | I45: =SUM(I46:I47) -> 0 | J45: =SUM(J46:J47) -> 0
A46: ='0'!$A$4 -> 000770111 | B46: ='0'!$A$2 -> 2020-09-30 | C46: Т01 | D46: 03 | E46: 04 | F46: 01 | G46: текуща дейност | H46: 030401 | I46: 0 | J46: 0
A47: ='0'!$A$4 -> 000770111 | B47: ='0'!$A$2 -> 2020-09-30 | C47: Т01 | D47: 03 | E47: 04 | F47: 02 | G47: дълготрайни активи | H47: 030402 | I47: 0 | J47: 0
A48: ='0'!$A$4 -> 000770111 | B48: ='0'!$A$2 -> 2020-09-30 | C48: Т01 | D48: 04 | E48: 00 | F48: 00 | G48: Балансова стойност на продадените активи | H48: =D48&E48&F48 -> 040000 | I48: =SUM(I49:I50) -> (2.00) | J48: =SUM(J49:J50) -> 0
A49: ='0'!$A$4 -> 000770111 | B49: ='0'!$A$2 -> 2020-09-30 | C49: Т01 | D49: 04 | E49: 01 | F49: 00 | G49: Стоково-материални запаси | H49: =D49&E49&F49 -> 040100 | I49: 0 | J49: 0
A50: ='0'!$A$4 -> 000770111 | B50: ='0'!$A$2 -> 2020-09-30 | C50: Т01 | D50: 04 | E50: 02 | F50: 00 | G50: Дълготрайни активи | H50: =D50&E50&F50 -> 040200 | I50: (2.00) | J50: 0
A51: ='0'!$A$4 -> 000770111 | B51: ='0'!$A$2 -> 2020-09-30 | C51: Т01 | D51: 05 | E51: 00 | F51: 00 | G51: Изменение на нал. от незавършено производство и готова продукция | H51: =D51&E51&F51 -> 050000 | I51: =-'14'!BZ9 -> 0 | J51: 0 | L51: На този ред се отчита изменението на незавършените дейности към края на годината. Данните на този ред се попълват в Т14, кол. 74 на ниво болнично звено. Завършилите медицински дейности през годината, независимо от периода на тяхното започване, се отразяват като приходи от медицинска дейност.
A52: ='0'!$A$4 -> 000770111 | B52: ='0'!$A$2 -> 2020-09-30 | C52: Т01 | D52: 00 | E52: 00 | F52: 02 | G52: ОБЩО РАЗХОДИ | H52: 000002 | I52: =I53+I77+I93+I100+I101+I114 -> (1,885,532.00) | J52: =J53+J77+J93+J100+J101+J114 -> 0
A53: ='0'!$A$4 -> 000770111 | B53: ='0'!$A$2 -> 2020-09-30 | C53: Т01 | D53: 06 | E53: 00 | F53: 00 | G53: Разходи за материали | H53: 060000 | I53: =I54+I60+SUM(I66:I76) -> (293,560.00) | J53: =J54+J60+SUM(J66:J76) -> 0 | L53: Следва да е еднаква със стойността в Т14, кол. 50.
A54: ='0'!$A$4 -> 000770111 | B54: ='0'!$A$2 -> 2020-09-30 | C54: Т01 | D54: 06 | E54: 01 | F54: 00 | G54: Лекарствени продукти | H54: 060100 | I54: =SUM(I55:I59) -> (52,766.00) | J54: =SUM(J55:J59) -> 0 | L54: Лекарствените продукти се отчитат разделно, според източника на финансиране. Аналогичната сума в частта на НЗОК, пациент, дарения и централна доставка е елемент на прихода. Не се допуска непосочване в отчета за доходите (като приход и разход) на средствата, заплатени от НЗОК, пациенти, дарители и други. Всички медикаменти и консумативи са част от оказаната медицинска услуга, независимо от източника им на финансиране. Стойността на ред 060100 следва да съответства на сбора на кол. 50 в Т14.
A55: ='0'!$A$4 -> 000770111 | B55: ='0'!$A$2 -> 2020-09-30 | C55: Т01 | D55: 06 | E55: 01 | F55: 01 | G55: заплащани от болницата (извън т.2-т.4) | H55: 060101 | I55: (52,367.00) | J55: 0
A56: ='0'!$A$4 -> 000770111 | B56: ='0'!$A$2 -> 2020-09-30 | C56: Т01 | D56: 06 | E56: 01 | F56: 02 | G56: заплащани от НЗОК на лечебното заведение | H56: 060102 | I56: 0 | J56: 0
A57: ='0'!$A$4 -> 000770111 | B57: ='0'!$A$2 -> 2020-09-30 | C57: Т01 | D57: 06 | E57: 01 | F57: 05 | G57: заплащани от НЗОК директно на доставчци | H57: 060105 | I57: 0 | J57: 0
A58: ='0'!$A$4 -> 000770111 | B58: ='0'!$A$2 -> 2020-09-30 | C58: Т01 | D58: 06 | E58: 01 | F58: 03 | G58: заплащани от пациента | H58: 060103 | I58: 0 | J58: 0
A59: ='0'!$A$4 -> 000770111 | B59: ='0'!$A$2 -> 2020-09-30 | C59: Т01 | D59: 06 | E59: 01 | F59: 04 | G59: дарения и централна доставка | H59: 060104 | I59: (399.00) | J59: 0
A60: ='0'!$A$4 -> 000770111 | B60: ='0'!$A$2 -> 2020-09-30 | C60: Т01 | D60: 06 | E60: 02 | F60: 00 | G60: Медицински изделия | H60: 060200 | I60: =SUM(I61:I65) -> (6,273.00) | J60: =SUM(J61:J65) -> 0 | L60: Аналогично на лекарствените продукти
A61: ='0'!$A$4 -> 000770111 | B61: ='0'!$A$2 -> 2020-09-30 | C61: Т01 | D61: 06 | E61: 02 | F61: 01 | G61: заплащани от болницата (извън т.2-т.4) | H61: 060201 | I61: (6,273.00) | J61: 0
A62: ='0'!$A$4 -> 000770111 | B62: ='0'!$A$2 -> 2020-09-30 | C62: Т01 | D62: 06 | E62: 02 | F62: 02 | G62: заплащани от НЗОК на лечебното заведение | H62: 060202 | I62: 0 | J62: 0
A63: ='0'!$A$4 -> 000770111 | B63: ='0'!$A$2 -> 2020-09-30 | C63: Т01 | D63: 06 | E63: 02 | F63: 05 | G63: заплащани от НЗОК директно на доставчци | H63: =D63&E63&F63 -> 060205 | I63: 0 | J63: 0
A64: ='0'!$A$4 -> 000770111 | B64: ='0'!$A$2 -> 2020-09-30 | C64: Т01 | D64: 06 | E64: 02 | F64: 03 | G64: заплащани от пациента | H64: 060203 | I64: 0 | J64: 0
A65: ='0'!$A$4 -> 000770111 | B65: ='0'!$A$2 -> 2020-09-30 | C65: Т01 | D65: 06 | E65: 02 | F65: 04 | G65: дарения, централна доставка, ФЛД | H65: 060204 | I65: 0 | J65: 0
A66: ='0'!$A$4 -> 000770111 | B66: ='0'!$A$2 -> 2020-09-30 | C66: Т01 | D66: 06 | E66: 03 | F66: 00 | G66: Кръвни и биопродукти | H66: 060300 | I66: 0 | J66: 0
A67: ='0'!$A$4 -> 000770111 | B67: ='0'!$A$2 -> 2020-09-30 | C67: Т01 | D67: 06 | E67: 04 | F67: 00 | G67: Медицински газове | H67: 060400 | I67: 0 | J67: 0
A68: ='0'!$A$4 -> 000770111 | B68: ='0'!$A$2 -> 2020-09-30 | C68: Т01 | D68: 06 | E68: 05 | F68: 00 | G68: Храна на болни | H68: 060500 | I68: (64,744.00) | J68: 0
A69: ='0'!$A$4 -> 000770111 | B69: ='0'!$A$2 -> 2020-09-30 | C69: Т01 | D69: 06 | E69: 06 | F69: 00 | G69: Храна на персонал (Наредба 11) | H69: 060600 | I69: (4,025.00) | J69: 0 | L69: Всички форми, обезпечаващи храненето на персонала, вкл ваучери. Изключват се социалните разходи по ЗКПО, вкл. когато са под формата на ваучери за храна.
A70: ='0'!$A$4 -> 000770111 | B70: ='0'!$A$2 -> 2020-09-30 | C70: Т01 | D70: 06 | E70: 07 | F70: 00 | G70: Вода, горива, ел. енергия, топлинна енергия | H70: 060700 | I70: (104,706.00) | J70: 0
A71: ='0'!$A$4 -> 000770111 | B71: ='0'!$A$2 -> 2020-09-30 | C71: Т01 | D71: 06 | E71: 08 | F71: 00 | G71: Резервни части и доокомплектовка на апаратура | H71: 060800 | I71: (2,641.00) | J71: 0
A72: ='0'!$A$4 -> 000770111 | B72: ='0'!$A$2 -> 2020-09-30 | C72: Т01 | D72: 06 | E72: 09 | F72: 00 | G72: Медицински принадлежности | H72: =D72&E72&F72 -> 060900 | I72: (11,289.00) | J72: 0
A73: ='0'!$A$4 -> 000770111 | B73: ='0'!$A$2 -> 2020-09-30 | C73: Т01 | D73: 06 | E73: 10 | F73: 00 | G73: Хигиенни материали | H73: 061000 | I73: (21,094.00) | J73: 0
A74: ='0'!$A$4 -> 000770111 | B74: ='0'!$A$2 -> 2020-09-30 | C74: Т01 | D74: 06 | E74: 11 | F74: 00 | G74: Канцеларски материали | H74: 061100 | I74: (4,227.00) | J74: 0
A75: ='0'!$A$4 -> 000770111 | B75: ='0'!$A$2 -> 2020-09-30 | C75: Т01 | D75: 06 | E75: 12 | F75: 00 | G75: Работно облекло и постелен инвентар | H75: 061200 | I75: (138.00) | J75: 0
A76: ='0'!$A$4 -> 000770111 | B76: ='0'!$A$2 -> 2020-09-30 | C76: Т01 | D76: 06 | E76: 13 | F76: 00 | G76: Други материали | H76: 061300 | I76: (21,657.00) | J76: 0
A77: ='0'!$A$4 -> 000770111 | B77: ='0'!$A$2 -> 2020-09-30 | C77: Т01 | D77: 07 | E77: 00 | F77: 00 | G77: Разходи за външни услуги | H77: 070000 | I77: =SUM(I78:I92) -> (380,330.00) | J77: =SUM(J78:J92) -> 0 | L77: Следва да е еднаква със стойността в Т14, кол. 55
A78: ='0'!$A$4 -> 000770111 | B78: ='0'!$A$2 -> 2020-09-30 | C78: Т01 | D78: 07 | E78: 01 | F78: 00 | G78: Текущ ремонт на сграден фонд | H78: 070100 | I78: (187,108.00) | J78: 0
A79: ='0'!$A$4 -> 000770111 | B79: ='0'!$A$2 -> 2020-09-30 | C79: Т01 | D79: 07 | E79: 02 | F79: 00 | G79: Текущ ремонт на апаратура и оборудване | H79: 070200 | I79: 0 | J79: 0
A80: ='0'!$A$4 -> 000770111 | B80: ='0'!$A$2 -> 2020-09-30 | C80: Т01 | D80: 07 | E80: 03 | F80: 00 | G80: Поддръжка на оборудване и софтуер | H80: 070300 | I80: (28,678.00) | J80: 0
A81: ='0'!$A$4 -> 000770111 | B81: ='0'!$A$2 -> 2020-09-30 | C81: Т01 | D81: 07 | E81: 04 | F81: 00 | G81: Наети активи | H81: 070400 | I81: 0 | J81: 0
A82: ='0'!$A$4 -> 000770111 | B82: ='0'!$A$2 -> 2020-09-30 | C82: Т01 | D82: 07 | E82: 05 | F82: 00 | G82: Медицински услуги | H82: 070500 | I82: 0 | J82: 0
A83: ='0'!$A$4 -> 000770111 | B83: ='0'!$A$2 -> 2020-09-30 | C83: Т01 | D83: 07 | E83: 06 | F83: 00 | G83: Транспорт | H83: 070600 | I83: (929.00) | J83: 0
A84: ='0'!$A$4 -> 000770111 | B84: ='0'!$A$2 -> 2020-09-30 | C84: Т01 | D84: 07 | E84: 07 | F84: 00 | G84: Застраховки | H84: 070700 | I84: (2,363.00) | J84: 0
A85: ='0'!$A$4 -> 000770111 | B85: ='0'!$A$2 -> 2020-09-30 | C85: Т01 | D85: 07 | E85: 08 | F85: 00 | G85: Телефон, интернет, пощенски и куриерски услуги | H85: 070800 | I85: (12,606.00) | J85: 0
A86: ='0'!$A$4 -> 000770111 | B86: ='0'!$A$2 -> 2020-09-30 | C86: Т01 | D86: 07 | E86: 09 | F86: 00 | G86: Събиране, транспортиране и обезвреждане на отпадъци | H86: 070900 | I86: (610.00) | J86: 0
A87: ='0'!$A$4 -> 000770111 | B87: ='0'!$A$2 -> 2020-09-30 | C87: Т01 | D87: 07 | E87: 10 | F87: 00 | G87: Почистване, пране, стерилизация | H87: 071000 | I87: 0 | J87: 0
A88: ='0'!$A$4 -> 000770111 | B88: ='0'!$A$2 -> 2020-09-30 | C88: Т01 | D88: 07 | E88: 11 | F88: 00 | G88: Юридически услуги | H88: 071100 | I88: (12,840.00) | J88: 0
A89: ='0'!$A$4 -> 000770111 | B89: ='0'!$A$2 -> 2020-09-30 | C89: Т01 | D89: 07 | E89: 12 | F89: 00 | G89: Консултантски услуги | H89: 071200 | I89: 0 | J89: 0
A90: ='0'!$A$4 -> 000770111 | B90: ='0'!$A$2 -> 2020-09-30 | C90: Т01 | D90: 07 | E90: 13 | F90: 00 | G90: Други | H90: 071300 | I90: (135,196.00) | J90: 0
A91: ='0'!$A$4 -> 000770111 | B91: ='0'!$A$2 -> 2020-09-30 | C91: Т01 | D91: 07 | E91: 14 | F91: 00 | G91: Храна на болни | H91: 071400 | I91: 0 | J91: 0
A92: ='0'!$A$4 -> 000770111 | B92: ='0'!$A$2 -> 2020-09-30 | C92: Т01 | D92: 07 | E92: 15 | F92: 00 | G92: Храна на персонал (Наредба 11) | H92: 071500 | I92: 0 | J92: 0
A93: ='0'!$A$4 -> 000770111 | B93: ='0'!$A$2 -> 2020-09-30 | C93: Т01 | D93: 08 | E93: 00 | F93: 00 | G93: Разходи за персонал | H93: 080000 | I93: =SUM(I96:I99)+I94 -> (1,113,616.00) | J93: =SUM(J96:J99)+J94 -> 0 | L93: Следва да е еднаква със стойността в Т14, кол. 56.
A94: ='0'!$A$4 -> 000770111 | B94: ='0'!$A$2 -> 2020-09-30 | C94: Т01 | D94: 08 | E94: 01 | F94: 00 | G94: Възнаграждения по трудови договори | H94: 080100 | I94: =-'06'!I5 -> (831,874.00) | J94: =-'06'!J5 -> 0 | L94: Връзка с Т06, ред 010100. Данните се попълват в Т06
A95: ='0'!$A$4 -> 000770111 | B95: ='0'!$A$2 -> 2020-09-30 | C95: Т01 | D95: 08 | E95: 01 | F95: 1 | G95: в т.ч. допълнителни възнаграждения за подкрепа на работещи с COVID-19 | H95: 08011 | I95: =-'06'!I7 -> 0 | J95: =-'06'!J7 -> 0 | L95: Връзка с Т06, ред 01012. Данните се попълват в Т06: допълнителни възнаграждения изплатени по Оперативна програма „Развитие на човешките ресурси” 2014-2020 г. за подкрепа на работещи в системата на здравеопазването в условия на заплаха за общественото здраве от COVID-19
A96: ='0'!$A$4 -> 000770111 | B96: ='0'!$A$2 -> 2020-09-30 | C96: Т01 | D96: 08 | E96: 02 | F96: 00 | G96: Възнаграждения по извънтрудови правоотношения | H96: 080200 | I96: =-'06'!I60 -> (32,938.00) | J96: =-'06'!J60 -> 0 | L96: Връзка с Т06, ред 020100. Данните се попълват в Т06. Не се допуска отчитане на разходи на ред външни услуги, когато са базиране на извънтрудови правоотношения.
A97: ='0'!$A$4 -> 000770111 | B97: ='0'!$A$2 -> 2020-09-30 | C97: Т01 | D97: 08 | E97: 03 | F97: 00 | G97: Възнаграждения по ДУК | H97: 080300 | I97: =-SUMIFS('11'!M6:M102,'11'!E6:E102,'0'!A4) -> (79,229.00) | J97: =IF(COUNTBLANK('0'!A12:A16)=5,0,-'11'!M5) -> 0 | L97: Връзка с Т11. Данните се попълват в Т11, като се избира, съответният ЕИК на дружеството майка, или дъщерното такова. Стойностите автоматично се отразяват по индивидуалния или консолидиран отчет.
A98: ='0'!$A$4 -> 000770111 | B98: ='0'!$A$2 -> 2020-09-30 | C98: Т01 | D98: 08 | E98: 04 | F98: 00 | G98: Компенсируеми отпуски | H98: 080400 | I98: 0 | J98: 0
A99: ='0'!$A$4 -> 000770111 | B99: ='0'!$A$2 -> 2020-09-30 | C99: Т01 | D99: 08 | E99: 05 | F99: 00 | G99: Разходи за осигурителни вноски | H99: 080500 | I99: (169,575.00) | J99: 0 | L99: Включват се осигуровките по компенсируеми отпуски
A100: ='0'!$A$4 -> 000770111 | B100: ='0'!$A$2 -> 2020-09-30 | C100: Т01 | D100: 09 | E100: 00 | F100: 00 | G100: Разходи за амортизация | H100: 090000 | I100: =-'14'!BI9 -> (77,758.00) | J100: 0
A101: ='0'!$A$4 -> 000770111 | B101: ='0'!$A$2 -> 2020-09-30 | C101: Т01 | D101: 10 | E101: 00 | F101: 00 | G101: Други разходи | H101: 100000 | I101: =SUM(I102:I109)+I111+I112 -> (17,077.00) | J101: =SUM(J102:J109)+J111+J112 -> 0
A102: ='0'!$A$4 -> 000770111 | B102: ='0'!$A$2 -> 2020-09-30 | C102: Т01 | D102: 10 | E102: 01 | F102: 00 | G102: Непризнат данъчен кредит | H102: 100100 | I102: 0 | J102: 0
A103: ='0'!$A$4 -> 000770111 | B103: ='0'!$A$2 -> 2020-09-30 | C103: Т01 | D103: 10 | E103: 02 | F103: 00 | G103: Данъци и такси по ЗМДТ | H103: 100200 | I103: (13,149.00) | J103: 0
A104: ='0'!$A$4 -> 000770111 | B104: ='0'!$A$2 -> 2020-09-30 | C104: Т01 | D104: 10 | E104: 03 | F104: 00 | G104: Данъци на разходите по ЗКПО | H104: 100300 | I104: 0 | J104: 0
A105: ='0'!$A$4 -> 000770111 | B105: ='0'!$A$2 -> 2020-09-30 | C105: Т01 | D105: 10 | E105: 04 | F105: 00 | G105: Глоби и неустойки | H105: 100400 | I105: (10.00) | J105: 0
A106: ='0'!$A$4 -> 000770111 | B106: ='0'!$A$2 -> 2020-09-30 | C106: Т01 | D106: 10 | E106: 05 | F106: 00 | G106: Брак и липси | H106: 100500 | I106: 0 | J106: 0
A107: ='0'!$A$4 -> 000770111 | B107: ='0'!$A$2 -> 2020-09-30 | C107: Т01 | D107: 10 | E107: 06 | F107: 00 | G107: Командировки | H107: 100600 | I107: (842.00) | J107: 0
A108: ='0'!$A$4 -> 000770111 | B108: ='0'!$A$2 -> 2020-09-30 | C108: Т01 | D108: 10 | E108: 07 | F108: 00 | G108: Социални разходи | H108: 100700 | I108: 0 | J108: 0
A109: ='0'!$A$4 -> 000770111 | B109: ='0'!$A$2 -> 2020-09-30 | C109: Т01 | D109: 10 | E109: 08 | F109: 00 | G109: Обезценка на активи | H109: 100800 | I109: (66.00) | J109: 0
A110: ='0'!$A$4 -> 000770111 | B110: ='0'!$A$2 -> 2020-09-30 | C110: Т01 | D110: 10 | E110: 08 | F110: 1 | G110: от нея над договор с НЗОК | H110: 10081 | I110: =-I5 -> 0 | J110: 0
A111: ='0'!$A$4 -> 000770111 | B111: ='0'!$A$2 -> 2020-09-30 | C111: Т01 | D111: 10 | E111: 09 | F111: 00 | G111: Представителни разходи | H111: 100900 | I111: (2,970.00) | J111: 0
A112: ='0'!$A$4 -> 000770111 | B112: ='0'!$A$2 -> 2020-09-30 | C112: Т01 | D112: 10 | E112: 10 | F112: 00 | G112: Други | H112: 101000 | I112: (40.00) | J112: 0
A113: ='0'!$A$4 -> 000770111 | B113: ='0'!$A$2 -> 2020-09-30 | C113: Т01 | D113: 11 | E113: 00 | F113: 00 | G113: Финансови приходи | H113: 110000 | I113: 0 | J113: 0
A114: ='0'!$A$4 -> 000770111 | B114: ='0'!$A$2 -> 2020-09-30 | C114: Т01 | D114: 12 | E114: 00 | F114: 00 | G114: Финансови разходи | H114: 120000 | I114: (3,191.00) | J114: 0
A115: ='0'!$A$4 -> 000770111 | B115: ='0'!$A$2 -> 2020-09-30 | C115: Т01 | D115: 13 | E115: 00 | F115: 00 | G115: Печалба/(загуба) преди данъци върху печалбата | H115: 130000 | I115: =I2+I52 -> 364,914.40 | J115: =J2+J52 -> 0
A116: ='0'!$A$4 -> 000770111 | B116: ='0'!$A$2 -> 2020-09-30 | C116: Т01 | D116: 14 | E116: 00 | F116: 00 | G116: Икономия от/(разходи за) данъци върху печалбата | H116: 140000 | I116: 0 | J116: 0
A117: ='0'!$A$4 -> 000770111 | B117: ='0'!$A$2 -> 2020-09-30 | C117: Т01 | D117: 15 | E117: 00 | F117: 00 | G117: Печалба/(загуба) за периода | H117: 150000 | I117: =+I115+I116 -> 364,914.40 | J117: =+J115+J116 -> 0
A118: ='0'!$A$4 -> 000770111 | B118: ='0'!$A$2 -> 2020-09-30 | C118: Т01 | D118: 16 | E118: 00 | F118: 00 | G118: Друг всеобхватен доход (нето от данъци) | H118: 160000 | I118: =SUM(I119:I120) -> 0 | J118: =SUM(J119:J120) -> 0
A119: ='0'!$A$4 -> 000770111 | B119: ='0'!$A$2 -> 2020-09-30 | C119: Т01 | D119: 16 | E119: 01 | F119: 00 | G119: Промени в преоценъчния резерв на нетекущи активи (нето от данъци) | H119: 160100 | I119: ='10'!N14 -> 0 | J119: ='10'!N31 -> 0 | L119: Посочва се диференцирано по елементи в Т10
A120: ='0'!$A$4 -> 000770111 | B120: ='0'!$A$2 -> 2020-09-30 | C120: Т01 | D120: 16 | E120: 02 | F120: 00 | G120: Актюерски печалби и загуби по планове за дефинирани доходи (нето от данъци) | H120: 160200 | I120: ='10'!R15 -> 0 | J120: ='10'!R32 -> 0 | L120: Под диференцирани доходи се разбират разчетите за обезщетения за пенсиониране по КТ. Посочва се в Т10 ред 010500
A121: ='0'!$A$4 -> 000770111 | B121: ='0'!$A$2 -> 2020-09-30 | C121: Т01 | D121: 16 | E121: 00 | F121: 1 | G121: данък върху доходите по т.1 и т.2 | H121: 16001 | I121: 0 | J121: 0 | L121: Оповостява се данъкът по т.1 и т.2
A122: ='0'!$A$4 -> 000770111 | B122: ='0'!$A$2 -> 2020-09-30 | C122: Т01 | D122: 17 | E122: 00 | F122: 00 | G122: Общо всеобхватен доход за периода | H122: 170000 | I122: =+I117+I118 -> 364,914.40 | J122: =+J117+J118 -> 0

Sheet 02
A1: ='0'!$A$4 -> 000770111 | B1: ='0'!$A$2 -> 2020-09-30 | C1: Т02 | D1: ="Т02 ОТЧЕТ ЗА ФИНАНСОВОТО СЪСТОЯНИЕ НА "&'0'!A6&" КЪМ "&TEXT(B1,"DD-MM-YYYY") -> Т02 ОТЧЕТ ЗА ФИНАНСОВОТО СЪСТОЯНИЕ НА СБПФЗПЛР "Цар Фердинанд 1" ЕООД - с. Искрец КЪМ 30-09-2020 | H1: Код | I1: Индивидуален (лева) | J1: Консолидиран (лева) | K1: =COUNTBLANK(I4:J125) -> 0 | L1: =IF(ROUND(I4-I43,2)=0,"OK","Неравнен баланс") -> OK | M1: =IF(ROUND(J4-J43,2)=0,"OK","Неравнен баланс") -> OK
A4: ='0'!$A$4 -> 000770111 | B4: ='0'!$A$2 -> 2020-09-30 | C4: Т02 | D4: 00 | E4: 00 | F4: 01 | G4: АКТИВИ | H4: =D4&E4&F4 -> 000001 | I4: =I5+I18 -> 2,011,267.40 | J4: =J5+J18 -> 0
A5: ='0'!$A$4 -> 000770111 | B5: ='0'!$A$2 -> 2020-09-30 | C5: Т02 | D5: 01 | E5: 00 | F5: 00 | G5: Нетекущи активи | H5: 010000 | I5: =I6+I15+I16+I17 -> 355,307.00 | J5: =J6+J15+J16+J17 -> 0 | L5: Данните за всеки от показателите се извличат от попълнената справка Т09 и Т09а
A6: ='0'!$A$4 -> 000770111 | B6: ='0'!$A$2 -> 2020-09-30 | C6: Т02 | D6: 01 | E6: 01 | F6: 00 | G6: Имоти, машини и оборудване | H6: 010100 | I6: =SUM(I7:I14) -> 354,672.00 | J6: =SUM(J7:J14) -> 0
A7: ='0'!$A$4 -> 000770111 | B7: ='0'!$A$2 -> 2020-09-30 | C7: Т02 | D7: 01 | E7: 01 | F7: 01 | G7: земи | H7: 010101 | I7: ='09'!W8 -> 456.00 | J7: ='09'!W26 -> 0
A8: ='0'!$A$4 -> 000770111 | B8: ='0'!$A$2 -> 2020-09-30 | C8: Т02 | D8: 01 | E8: 01 | F8: 02 | G8: сгради | H8: 010102 | I8: ='09'!W9 -> 685.00 | J8: ='09'!W27 -> 0
A9: ='0'!$A$4 -> 000770111 | B9: ='0'!$A$2 -> 2020-09-30 | C9: Т02 | D9: 01 | E9: 01 | F9: 03 | G9: съоръжения | H9: 010103 | I9: ='09'!W10 -> 0 | J9: ='09'!W28 -> 0
A10: ='0'!$A$4 -> 000770111 | B10: ='0'!$A$2 -> 2020-09-30 | C10: Т02 | D10: 01 | E10: 01 | F10: 04 | G10: машини и оборудване | H10: 010104 | I10: ='09'!W11 -> 137,539.00 | J10: ='09'!W29 -> 0
A11: ='0'!$A$4 -> 000770111 | B11: ='0'!$A$2 -> 2020-09-30 | C11: Т02 | D11: 01 | E11: 01 | F11: 05 | G11: транспортни средства | H11: 010105 | I11: ='09'!W12 -> 0 | J11: ='09'!W30 -> 0
A12: ='0'!$A$4 -> 000770111 | B12: ='0'!$A$2 -> 2020-09-30 | C12: Т02 | D12: 01 | E12: 01 | F12: 06 | G12: компютърни системи | H12: 010106 | I12: ='09'!W13 -> 14,832.00 | J12: ='09'!W31 -> 0
A13: ='0'!$A$4 -> 000770111 | B13: ='0'!$A$2 -> 2020-09-30 | C13: Т02 | D13: 01 | E13: 01 | F13: 07 | G13: други ДМА | H13: 010107 | I13: ='09'!W14 -> 201,160.00 | J13: ='09'!W32 -> 0
A14: ='0'!$A$4 -> 000770111 | B14: ='0'!$A$2 -> 2020-09-30 | C14: Т02 | D14: 01 | E14: 01 | F14: 08 | G14: ДМА в процес на изграждане, вкл. предоставени аванси | H14: 010108 | I14: ='09'!W15 -> 0 | J14: ='09'!W33 -> 0
A15: ='0'!$A$4 -> 000770111 | B15: ='0'!$A$2 -> 2020-09-30 | C15: Т02 | D15: 01 | E15: 02 | F15: 00 | G15: Нематериални активи | H15: 010200 | I15: ='09'!W16 -> 635.00 | J15: ='09'!W34 -> 0
A16: ='0'!$A$4 -> 000770111 | B16: ='0'!$A$2 -> 2020-09-30 | C16: Т02 | D16: 01 | E16: 03 | F16: 00 | G16: Инвестиции в дъщерни предприятия | H16: 010300 | I16: ='09'!W17 -> 0 | J16: ='09'!W35 -> 0
A17: ='0'!$A$4 -> 000770111 | B17: ='0'!$A$2 -> 2020-09-30 | C17: Т02 | D17: 01 | E17: 04 | F17: 00 | G17: Активи по отсрочени данъци | H17: 010400 | I17: ='09'!W18 -> 0 | J17: ='09'!W36 -> 0
A18: ='0'!$A$4 -> 000770111 | B18: ='0'!$A$2 -> 2020-09-30 | C18: Т02 | D18: 02 | E18: 00 | F18: 00 | G18: Текущи активи | H18: 020000 | I18: =I19+I27+I37+I42 -> 1,655,960.40 | J18: =J19+J27+J37+J42 -> 0
A19: ='0'!$A$4 -> 000770111 | B19: ='0'!$A$2 -> 2020-09-30 | C19: Т02 | D19: 02 | E19: 01 | F19: 00 | G19: Материални запаси | H19: 020100 | I19: =SUM(I20:I26) -> 46,689.00 | J19: =SUM(J20:J26) -> 0
A20: ='0'!$A$4 -> 000770111 | B20: ='0'!$A$2 -> 2020-09-30 | C20: Т02 | D20: 02 | E20: 01 | F20: 01 | G20: лекарствени продукти | H20: 020101 | I20: 8,489.00 | J20: 0
A21: ='0'!$A$4 -> 000770111 | B21: ='0'!$A$2 -> 2020-09-30 | C21: Т02 | D21: 02 | E21: 01 | F21: 02 | G21: медицински изделия | H21: 020102 | I21: 29,342.00 | J21: 0
A22: ='0'!$A$4 -> 000770111 | B22: ='0'!$A$2 -> 2020-09-30 | C22: Т02 | D22: 02 | E22: 01 | F22: 03 | G22: кръвни биопродукти | H22: 020103 | I22: 0 | J22: 0
A23: ='0'!$A$4 -> 000770111 | B23: ='0'!$A$2 -> 2020-09-30 | C23: Т02 | D23: 02 | E23: 01 | F23: 04 | G23: медицински газове | H23: 020104 | I23: 0 | J23: 0
A24: ='0'!$A$4 -> 000770111 | B24: ='0'!$A$2 -> 2020-09-30 | C24: Т02 | D24: 02 | E24: 01 | F24: 05 | G24: хранителни продукти | H24: 020105 | I24: 1,432.00 | J24: 0
A25: ='0'!$A$4 -> 000770111 | B25: ='0'!$A$2 -> 2020-09-30 | C25: Т02 | D25: 02 | E25: 01 | F25: 06 | G25: горива | H25: 020106 | I25: 308.00 | J25: 0
A26: ='0'!$A$4 -> 000770111 | B26: ='0'!$A$2 -> 2020-09-30 | C26: Т02 | D26: 02 | E26: 01 | F26: 07 | G26: други материали | H26: 020107 | I26: 7,118.00 | J26: 0
A27: ='0'!$A$4 -> 000770111 | B27: ='0'!$A$2 -> 2020-09-30 | C27: Т02 | D27: 02 | E27: 02 | F27: 00 | G27: Търговски и други вземания | H27: 020200 | I27: =SUM(I30:I36)+I28 -> 169,118.40 | J27: =SUM(J30:J36)+J28 -> 0
A28: ='0'!$A$4 -> 000770111 | B28: ='0'!$A$2 -> 2020-09-30 | C28: Т02 | D28: 02 | E28: 02 | F28: 01 | G28: от РЗОК | H28: 020201 | I28: 116,692.00 | J28: 0
A29: ='0'!$A$4 -> 000770111 | B29: ='0'!$A$2 -> 2020-09-30 | C29: Т02 | D29: 02 | E29: 02 | F29: 1 | G29: -(от тях над договорените обеми, когато са признати в отчета) | H29: 02021 | I29: 0 | J29: 0 | L29: Попълва се, когато в отчета са налице необезценени вземания за над лимитна дейност
A30: ='0'!$A$4 -> 000770111 | B30: ='0'!$A$2 -> 2020-09-30 | C30: Т02 | D30: 02 | E30: 02 | F30: 02 | G30: от МЗ | H30: 020202 | I30: 0 | J30: 0
A31: ='0'!$A$4 -> 000770111 | B31: ='0'!$A$2 -> 2020-09-30 | C31: Т02 | D31: 02 | E31: 02 | F31: 03 | G31: от търговски клиенти | H31: 020203 | I31: 5,351.00 | J31: 0
A32: ='0'!$A$4 -> 000770111 | B32: ='0'!$A$2 -> 2020-09-30 | C32: Т02 | D32: 02 | E32: 02 | F32: 04 | G32: авансови плащания към доставчици | H32: 020204 | I32: 34,914.40 | J32: 0
A33: ='0'!$A$4 -> 000770111 | B33: ='0'!$A$2 -> 2020-09-30 | C33: Т02 | D33: 02 | E33: 02 | F33: 05 | G33: от свързани предприятия (МСС24) | H33: 020205 | I33: 0 | J33: 0
A34: ='0'!$A$4 -> 000770111 | B34: ='0'!$A$2 -> 2020-09-30 | C34: Т02 | D34: 02 | E34: 02 | F34: 06 | G34: по оперативни програми | H34: 020206 | I34: 0 | J34: 0
A35: ='0'!$A$4 -> 000770111 | B35: ='0'!$A$2 -> 2020-09-30 | C35: Т02 | D35: 02 | E35: 02 | F35: 07 | G35: съдебни и присъдени вземания | H35: 020207 | I35: 11,217.00 | J35: 0
A36: ='0'!$A$4 -> 000770111 | B36: ='0'!$A$2 -> 2020-09-30 | C36: Т02 | D36: 02 | E36: 02 | F36: 08 | G36: други вземания | H36: 020208 | I36: 944.00 | J36: 0
A37: ='0'!$A$4 -> 000770111 | B37: ='0'!$A$2 -> 2020-09-30 | C37: Т02 | D37: 02 | E37: 03 | F37: 00 | G37: Парични средства | H37: 020300 | I37: =I38+I39+I41 -> 1,440,153.00 | J37: =J38+J39+J41 -> 0
A38: ='0'!$A$4 -> 000770111 | B38: ='0'!$A$2 -> 2020-09-30 | C38: Т02 | D38: 02 | E38: 03 | F38: 01 | G38: в каса | H38: 020301 | I38: 8,545.00 | J38: 0
A39: ='0'!$A$4 -> 000770111 | B39: ='0'!$A$2 -> 2020-09-30 | C39: Т02 | D39: 02 | E39: 03 | F39: 02 | G39: в разплащателна сметка | H39: 020302 | I39: 1,431,608.00 | J39: 0
A40: ='0'!$A$4 -> 000770111 | B40: ='0'!$A$2 -> 2020-09-30 | C40: Т02 | D40: 02 | E40: 03 | F40: 2 | G40: -(от тях блокирани парични средства вкл. по издадени гаранции) | H40: 02032 | I40: 0 | J40: 0
A41: ='0'!$A$4 -> 000770111 | B41: ='0'!$A$2 -> 2020-09-30 | C41: Т02 | D41: 02 | E41: 03 | F41: 03 | G41: парични еквиваленти (ваучери) | H41: 020303 | I41: 0 | J41: 0
A42: ='0'!$A$4 -> 000770111 | B42: ='0'!$A$2 -> 2020-09-30 | C42: Т02 | D42: 02 | E42: 04 | F42: 00 | G42: Текущи данъци за възстановяване | H42: 020400 | I42: 0 | J42: 0
A43: ='0'!$A$4 -> 000770111 | B43: ='0'!$A$2 -> 2020-09-30 | C43: Т02 | D43: 00 | E43: 00 | F43: 02 | G43: СОБСТВЕН КАПИТАЛ И ПАСИВИ | H43: 000002 | I43: =I44+I57 -> 2,011,267.40 | J43: =J44+J57 -> 0
A44: ='0'!$A$4 -> 000770111 | B44: ='0'!$A$2 -> 2020-09-30 | C44: Т02 | D44: 00 | E44: 00 | F44: 03 | G44: СОБСТВЕН КАПИТАЛ | H44: 000003 | I44: =I45+I48+I49+I50+I54+I55+I56 -> 1,862,011.40 | J44: =J45+J48+J49+J50+J54+J55+J56 -> 0 | L44: Пренасят се салдата от Т10 и Т10а
A45: ='0'!$A$4 -> 000770111 | B45: ='0'!$A$2 -> 2020-09-30 | C45: Т02 | D45: 03 | E45: 00 | F45: 00 | G45: Основен капитал | H45: 030000 | I45: =SUM(I46:I47) -> 952,325.00 | J45: =SUM(J46:J47) -> 0
A46: ='0'!$A$4 -> 000770111 | B46: ='0'!$A$2 -> 2020-09-30 | C46: Т02 | D46: 03 | E46: 01 | F46: 00 | G46: Регистриран | H46: 030100 | I46: ='10'!J17 -> 952,325.00 | J46: ='10'!J34 -> 0
A47: ='0'!$A$4 -> 000770111 | B47: ='0'!$A$2 -> 2020-09-30 | C47: Т02 | D47: 03 | E47: 02 | F47: 00 | G47: Нерегистриран | H47: 030200 | I47: ='10'!K17 -> 0 | J47: ='10'!K34 -> 0
A48: ='0'!$A$4 -> 000770111 | B48: ='0'!$A$2 -> 2020-09-30 | C48: Т02 | D48: 04 | E48: 00 | F48: 00 | G48: Законови резерви | H48: 040000 | I48: ='10'!L17 -> 0 | J48: ='10'!L34 -> 0
A49: ='0'!$A$4 -> 000770111 | B49: ='0'!$A$2 -> 2020-09-30 | C49: Т02 | D49: 05 | E49: 00 | F49: 00 | G49: Други резерви | H49: 050000 | I49: ='10'!M17 -> 504,772.00 | J49: ='10'!M34 -> 0
A50: ='0'!$A$4 -> 000770111 | B50: ='0'!$A$2 -> 2020-09-30 | C50: Т02 | D50: 06 | E50: 00 | F50: 00 | G50: Резерви от преоценка на нетекущи активи | H50: 060000 | I50: =SUM(I51:I53) -> 40,000.00 | J50: =SUM(J51:J53) -> 0
A51: ='0'!$A$4 -> 000770111 | B51: ='0'!$A$2 -> 2020-09-30 | C51: Т02 | D51: 06 | E51: 01 | F51: 00 | G51: Земя | H51: 060100 | I51: ='10'!O17 -> 0 | J51: ='10'!O34 -> 0
A52: ='0'!$A$4 -> 000770111 | B52: ='0'!$A$2 -> 2020-09-30 | C52: Т02 | D52: 06 | E52: 02 | F52: 00 | G52: Сгради | H52: 060200 | I52: ='10'!P17 -> 0 | J52: ='10'!P34 -> 0
A53: ='0'!$A$4 -> 000770111 | B53: ='0'!$A$2 -> 2020-09-30 | C53: Т02 | D53: 06 | E53: 03 | F53: 00 | G53: Машини и оборудване | H53: 060300 | I53: ='10'!Q17 -> 40,000.00 | J53: ='10'!Q34 -> 0
A54: ='0'!$A$4 -> 000770111 | B54: ='0'!$A$2 -> 2020-09-30 | C54: Т02 | D54: 07 | E54: 00 | F54: 00 | G54: Резерв по планове с дефиниран доход | H54: =D54&E54&F54 -> 070000 | I54: ='10'!R17 -> 0 | J54: ='10'!R34 -> 0
A55: ='0'!$A$4 -> 000770111 | B55: ='0'!$A$2 -> 2020-09-30 | C55: Т02 | D55: 08 | E55: 00 | F55: 00 | G55: Натрупана печалба (загуба) | H55: 080000 | I55: ='10'!S17 -> 0 | J55: ='10'!S34 -> 0
A56: ='0'!$A$4 -> 000770111 | B56: ='0'!$A$2 -> 2020-09-30 | C56: Т02 | D56: 09 | E56: 00 | F56: 00 | G56: Текуща печалба (загуба) | H56: 090000 | I56: ='10'!T17 -> 364,914.40 | J56: ='10'!T34 -> 0
A57: ='0'!$A$4 -> 000770111 | B57: ='0'!$A$2 -> 2020-09-30 | C57: Т02 | D57: 00 | E57: 00 | F57: 04 | G57: ПАСИВИ | H57: 000004 | I57: =I58+I74 -> 149,256.00 | J57: =J58+J74 -> 0
A58: ='0'!$A$4 -> 000770111 | B58: ='0'!$A$2 -> 2020-09-30 | C58: Т02 | D58: 10 | E58: 00 | F58: 00 | G58: Нетекущи задължения | H58: 100000 | I58: =I59+I60+I63+I64+I65+I66+I69 -> 5,840.00 | J58: =J59+J60+J63+J64+J65+J66+J69 -> 0
A59: ='0'!$A$4 -> 000770111 | B59: ='0'!$A$2 -> 2020-09-30 | C59: Т02 | D59: 10 | E59: 01 | F59: 00 | G59: Пасиви по отсрочени данъци | H59: 100100 | I59: 0 | J59: 0
A60: ='0'!$A$4 -> 000770111 | B60: ='0'!$A$2 -> 2020-09-30 | C60: Т02 | D60: 10 | E60: 02 | F60: 00 | G60: Нетекущи задължения по търговски заеми и финансов лизинг | H60: 100200 | I60: 0 | J60: 0
A61: ='0'!$A$4 -> 000770111 | B61: ='0'!$A$2 -> 2020-09-30 | C61: Т02 | D61: 10 | E61: 02 | F61: 1 | G61: -(от тях произтичащи от изпълнение на ОП) | H61: 10021 | I61: 0 | J61: 0
A62: ='0'!$A$4 -> 000770111 | B62: ='0'!$A$2 -> 2020-09-30 | C62: Т02 | D62: 10 | E62: 02 | F62: 2 | G62: -(от тях финансов лизинг) | H62: 10022 | I62: 0 | J62: 0
A63: ='0'!$A$4 -> 000770111 | B63: ='0'!$A$2 -> 2020-09-30 | C63: Т02 | D63: 10 | E63: 03 | F63: 00 | G63: Нетекущи търговски гаранции | H63: 100300 | I63: 5,840.00 | J63: 0
A64: ='0'!$A$4 -> 000770111 | B64: ='0'!$A$2 -> 2020-09-30 | C64: Т02 | D64: 10 | E64: 04 | F64: 00 | G64: Дългосрочни банкови заеми | H64: 100400 | I64: 0 | J64: 0
A65: ='0'!$A$4 -> 000770111 | B65: ='0'!$A$2 -> 2020-09-30 | C65: Т02 | D65: 10 | E65: 05 | F65: 00 | G65: Дългосрочни провизии | H65: 100500 | I65: 0 | J65: 0
A66: ='0'!$A$4 -> 000770111 | B66: ='0'!$A$2 -> 2020-09-30 | C66: Т02 | D66: 10 | E66: 06 | F66: 00 | G66: Задължения по договори с МЗ за закупуване на нетекущи активи преди увеличаване на капитала | H66: 100600 | I66: ='16'!J7-'16'!K7 -> 0 | J66: =SUM(J67:J68) -> 0 | L66: Отчетът е свързан с Т16 в който подробно са описани етапите на усвояване на средствата по съответните договори за закупуване на ДА срещу увеличение на собствения капитал
A67: ='0'!$A$4 -> 000770111 | B67: ='0'!$A$2 -> 2020-09-30 | C67: Т02 | D67: 10 | E67: 06 | F67: 01 | G67: Усвоени | H67: 100601 | I67: =MIN('16'!J8-'16'!K8,'16'!O8)+MIN('16'!J9-'16'!K9,'16'!O9)+MIN('16'!J10-'16'!K10,'16'!O10)+MIN('16'!J11-'16'!K11,'16'!O11)+MIN('16'!J12-'16'!K12,'16'!O12)+MIN('16'!J13-'16'!K13,'16'!O13)+MIN('16'!J14-'16'!K14,'16'!O14)+MIN('16'!J15-'16'!K15,'16'!O15)+MIN('16'!J16-'16'!K16,'16'!O16)+MIN('16'!J17-'16'!K17,'16'!O17)+MIN('16'!J18-'16'!K18,'16'!O18)+MIN('16'!J19-'16'!K19,'16'!O19)+MIN('16'!J20-'16'!K20,'16'!O20)+MIN('16'!J21-'16'!K21,'16'!O21) -> 0 | J67: 0
A68: ='0'!$A$4 -> 000770111 | B68: ='0'!$A$2 -> 2020-09-30 | C68: Т02 | D68: 10 | E68: 06 | F68: 02 | G68: Неусвоени | H68: =D68&E68&F68 -> 100602 | I68: =I66-I67 -> 0 | J68: 0
A69: ='0'!$A$4 -> 000770111 | B69: ='0'!$A$2 -> 2020-09-30 | C69: Т02 | D69: 10 | E69: 07 | F69: 00 | G69: Нетекуща част на финансиранията | H69: 100700 | I69: =SUM(I70:I73) -> 0 | J69: =SUM(J70:J73) -> 0
A70: ='0'!$A$4 -> 000770111 | B70: ='0'!$A$2 -> 2020-09-30 | C70: Т02 | D70: 10 | E70: 07 | F70: 01 | G70: Правителство | H70: 100701 | I70: 0 | J70: 0
A71: ='0'!$A$4 -> 000770111 | B71: ='0'!$A$2 -> 2020-09-30 | C71: Т02 | D71: 10 | E71: 07 | F71: 02 | G71: Програми | H71: 100702 | I71: 0 | J71: 0
A72: ='0'!$A$4 -> 000770111 | B72: ='0'!$A$2 -> 2020-09-30 | C72: Т02 | D72: 10 | E72: 07 | F72: 03 | G72: Общини | H72: 100703 | I72: 0 | J72: 0
A73: ='0'!$A$4 -> 000770111 | B73: ='0'!$A$2 -> 2020-09-30 | C73: Т02 | D73: 10 | E73: 07 | F73: 04 | G73: Дарители | H73: 100704 | I73: 0 | J73: 0
A74: ='0'!$A$4 -> 000770111 | B74: ='0'!$A$2 -> 2020-09-30 | C74: Т02 | D74: 11 | E74: 00 | F74: 00 | G74: Текущи задължения | H74: 110000 | I74: =I75+I92+I96+I100+I107+I112+I116+I121+I122 -> 143,416.00 | J74: =J75+J92+J96+J100+J107+J112+J116+J121+J122 -> 0
A75: ='0'!$A$4 -> 000770111 | B75: ='0'!$A$2 -> 2020-09-30 | C75: Т02 | D75: 11 | E75: 01 | F75: 00 | G75: Търговски и други задължения | H75: 110100 | I75: =I76+I80+I84+I88 -> 4,525.00 | J75: =J76+J80+J84+J88 -> 0
A76: ='0'!$A$4 -> 000770111 | B76: ='0'!$A$2 -> 2020-09-30 | C76: Т02 | D76: 11 | E76: 01 | F76: 01 | G76: задължения към доставчици | H76: 110101 | I76: =SUM(I77:I79) -> 4,525.00 | J76: =SUM(J77:J79) -> 0
A77: ='0'!$A$4 -> 000770111 | B77: ='0'!$A$2 -> 2020-09-30 | C77: Т02 | D77: 11 | E77: 01 | F77: 11 | G77: просрочени нето от лихви, такси и разноски | H77: 110111 | I77: 0 | J77: 0
A78: ='0'!$A$4 -> 000770111 | B78: ='0'!$A$2 -> 2020-09-30 | C78: Т02 | D78: 11 | E78: 01 | F78: 12 | G78: лихви, такси и разноски по просрочия | H78: 110112 | I78: 0 | J78: 0
A79: ='0'!$A$4 -> 000770111 | B79: ='0'!$A$2 -> 2020-09-30 | C79: Т02 | D79: 11 | E79: 01 | F79: 13 | G79: текущи без забава | H79: 110113 | I79: 4,525.00 | J79: 0
A80: ='0'!$A$4 -> 000770111 | B80: ='0'!$A$2 -> 2020-09-30 | C80: Т02 | D80: 11 | E80: 01 | F80: 02 | G80: задължения за гаранции | H80: 110102 | I80: =SUM(I81:I83) -> 0 | J80: =SUM(J81:J83) -> 0
A81: ='0'!$A$4 -> 000770111 | B81: ='0'!$A$2 -> 2020-09-30 | C81: Т02 | D81: 11 | E81: 01 | F81: 21 | G81: просрочени нето от лихви, такси и разноски | H81: 110121 | I81: 0 | J81: 0
A82: ='0'!$A$4 -> 000770111 | B82: ='0'!$A$2 -> 2020-09-30 | C82: Т02 | D82: 11 | E82: 01 | F82: 22 | G82: лихви, такси и разноски по просрочия | H82: 110122 | I82: 0 | J82: 0
A83: ='0'!$A$4 -> 000770111 | B83: ='0'!$A$2 -> 2020-09-30 | C83: Т02 | D83: 11 | E83: 01 | F83: 23 | G83: текущи без забава | H83: 110123 | I83: 0 | J83: 0
A84: ='0'!$A$4 -> 000770111 | B84: ='0'!$A$2 -> 2020-09-30 | C84: Т02 | D84: 11 | E84: 01 | F84: 03 | G84: задължения към свързани лица (МСС 24) | H84: 110103 | I84: =SUM(I85:I87) -> 0 | J84: =SUM(J85:J87) -> 0
A85: ='0'!$A$4 -> 000770111 | B85: ='0'!$A$2 -> 2020-09-30 | C85: Т02 | D85: 11 | E85: 01 | F85: 31 | G85: просрочени нето от лихви, такси и разноски | H85: 110131 | I85: 0 | J85: 0
A86: ='0'!$A$4 -> 000770111 | B86: ='0'!$A$2 -> 2020-09-30 | C86: Т02 | D86: 11 | E86: 01 | F86: 32 | G86: лихви, такси и разноски по просрочия | H86: 110132 | I86: 0 | J86: 0
A87: ='0'!$A$4 -> 000770111 | B87: ='0'!$A$2 -> 2020-09-30 | C87: Т02 | D87: 11 | E87: 01 | F87: 33 | G87: текущи без забава | H87: 110133 | I87: 0 | J87: 0
A88: ='0'!$A$4 -> 000770111 | B88: ='0'!$A$2 -> 2020-09-30 | C88: Т02 | D88: 11 | E88: 01 | F88: 04 | G88: получени аванси | H88: 110104 | I88: =SUM(I89:I91) -> 0 | J88: =SUM(J89:J91) -> 0
A89: ='0'!$A$4 -> 000770111 | B89: ='0'!$A$2 -> 2020-09-30 | C89: Т02 | D89: 11 | E89: 01 | F89: 41 | G89: просрочени нето от лихви, такси и разноски | H89: 110141 | I89: 0 | J89: 0
A90: ='0'!$A$4 -> 000770111 | B90: ='0'!$A$2 -> 2020-09-30 | C90: Т02 | D90: 11 | E90: 01 | F90: 42 | G90: лихви, такси и разноски по просрочия | H90: 110142 | I90: 0 | J90: 0
A91: ='0'!$A$4 -> 000770111 | B91: ='0'!$A$2 -> 2020-09-30 | C91: Т02 | D91: 11 | E91: 01 | F91: 43 | G91: текущи без забава | H91: 110143 | I91: 0 | J91: 0
A92: ='0'!$A$4 -> 000770111 | B92: ='0'!$A$2 -> 2020-09-30 | C92: Т02 | D92: 11 | E92: 02 | F92: 00 | G92: Текуща част по търговски заеми | H92: 110200 | I92: =SUM(I93:I95) -> 0 | J92: =SUM(J93:J95) -> 0
A93: ='0'!$A$4 -> 000770111 | B93: ='0'!$A$2 -> 2020-09-30 | C93: Т02 | D93: 11 | E93: 02 | F93: 01 | G93: просрочени главници (нето от лихви, такси и разноски) | H93: 110201 | I93: 0 | J93: 0
A94: ='0'!$A$4 -> 000770111 | B94: ='0'!$A$2 -> 2020-09-30 | C94: Т02 | D94: 11 | E94: 02 | F94: 02 | G94: лихви, такси и разноски по просрочия | H94: 110202 | I94: 0 | J94: 0
A95: ='0'!$A$4 -> 000770111 | B95: ='0'!$A$2 -> 2020-09-30 | C95: Т02 | D95: 11 | E95: 02 | F95: 03 | G95: текущи главници (без забава) | H95: 110203 | I95: 0 | J95: 0
A96: ='0'!$A$4 -> 000770111 | B96: ='0'!$A$2 -> 2020-09-30 | C96: Т02 | D96: 11 | E96: 03 | F96: 00 | G96: Текуща част по банкови заеми | H96: 110300 | I96: =SUM(I97:I99) -> 0 | J96: =SUM(J97:J99) -> 0
A97: ='0'!$A$4 -> 000770111 | B97: ='0'!$A$2 -> 2020-09-30 | C97: Т02 | D97: 11 | E97: 03 | F97: 01 | G97: просрочени главници (нето от лихви, такси и разноски) | H97: 110301 | I97: 0 | J97: 0
A98: ='0'!$A$4 -> 000770111 | B98: ='0'!$A$2 -> 2020-09-30 | C98: Т02 | D98: 11 | E98: 03 | F98: 02 | G98: лихви, такси и разноски по просрочия | H98: 110302 | I98: 0 | J98: 0
A99: ='0'!$A$4 -> 000770111 | B99: ='0'!$A$2 -> 2020-09-30 | C99: Т02 | D99: 11 | E99: 03 | F99: 03 | G99: текущи главници (без забава) | H99: 110303 | I99: 0 | J99: 0
A100: ='0'!$A$4 -> 000770111 | B100: ='0'!$A$2 -> 2020-09-30 | C100: Т02 | D100: 11 | E100: 04 | F100: 00 | G100: Задължения към персонала | H100: 110400 | I100: =I101+I105+I106 -> 81,812.00 | J100: =J101+J105+J106 -> 0
A101: ='0'!$A$4 -> 000770111 | B101: ='0'!$A$2 -> 2020-09-30 | C101: Т02 | D101: 11 | E101: 04 | F101: 01 | G101: за възнаграждения (трудови, извънтрудови и ДУК) | H101: 110401 | I101: =SUM(I102:I104) -> 81,812.00 | J101: =SUM(J102:J104) -> 0
A102: ='0'!$A$4 -> 000770111 | B102: ='0'!$A$2 -> 2020-09-30 | C102: Т02 | D102: 11 | E102: 04 | F102: 11 | G102: просрочени нето от лихви, такси и разноски | H102: 110411 | I102: 0 | J102: 0
A103: ='0'!$A$4 -> 000770111 | B103: ='0'!$A$2 -> 2020-09-30 | C103: Т02 | D103: 11 | E103: 04 | F103: 12 | G103: лихви, такси и разноски по просрочия | H103: 110412 | I103: 0 | J103: 0
A104: ='0'!$A$4 -> 000770111 | B104: ='0'!$A$2 -> 2020-09-30 | C104: Т02 | D104: 11 | E104: 04 | F104: 13 | G104: текущи без забава | H104: 110413 | I104: 81,812.00 | J104: 0
A105: ='0'!$A$4 -> 000770111 | B105: ='0'!$A$2 -> 2020-09-30 | C105: Т02 | D105: 11 | E105: 04 | F105: 02 | G105: за компенсируеми отпуски | H105: 110402 | I105: 0 | J105: 0
A106: ='0'!$A$4 -> 000770111 | B106: ='0'!$A$2 -> 2020-09-30 | C106: Т02 | D106: 11 | E106: 04 | F106: 03 | G106: за бъдещи плащания по актюерска оценка | H106: 110403 | I106: 0 | J106: 0
A107: ='0'!$A$4 -> 000770111 | B107: ='0'!$A$2 -> 2020-09-30 | C107: Т02 | D107: 11 | E107: 05 | F107: 00 | G107: Задължения към осигурителни предприятия | H107: 110500 | I107: =SUM(I108:I111) -> 35,340.00 | J107: =SUM(J108:J111) -> 0
A108: ='0'!$A$4 -> 000770111 | B108: ='0'!$A$2 -> 2020-09-30 | C108: Т02 | D108: 11 | E108: 05 | F108: 01 | G108: просрочени нето от лихви, такси и разноски | H108: 110501 | I108: 0 | J108: 0
A109: ='0'!$A$4 -> 000770111 | B109: ='0'!$A$2 -> 2020-09-30 | C109: Т02 | D109: 11 | E109: 05 | F109: 02 | G109: лихви, такси и разноски по просрочия | H109: 110502 | I109: 0 | J109: 0
A110: ='0'!$A$4 -> 000770111 | B110: ='0'!$A$2 -> 2020-09-30 | C110: Т02 | D110: 11 | E110: 05 | F110: 03 | G110: текущи без забава | H110: 110503 | I110: 35,340.00 | J110: 0
A111: ='0'!$A$4 -> 000770111 | B111: ='0'!$A$2 -> 2020-09-30 | C111: Т02 | D111: 11 | E111: 05 | F111: 04 | G111: осигуровки върху компенсируеми отпуски | H111: 110504 | I111: 0 | J111: 0
A112: ='0'!$A$4 -> 000770111 | B112: ='0'!$A$2 -> 2020-09-30 | C112: Т02 | D112: 11 | E112: 06 | F112: 00 | G112: Данъчни задължения | H112: 110600 | I112: =SUM(I113:I115) -> 8,749.00 | J112: =SUM(J113:J115) -> 0
A113: ='0'!$A$4 -> 000770111 | B113: ='0'!$A$2 -> 2020-09-30 | C113: Т02 | D113: 11 | E113: 06 | F113: 01 | G113: просрочени главници (нето от лихви, такси и разноски) | H113: =D113&E113&F113 -> 110601 | I113: 0 | J113: 0
A114: ='0'!$A$4 -> 000770111 | B114: ='0'!$A$2 -> 2020-09-30 | C114: Т02 | D114: 11 | E114: 06 | F114: 02 | G114: лихви, такси и разноски по просрочия | H114: =D114&E114&F114 -> 110602 | I114: 0 | J114: 0
A115: ='0'!$A$4 -> 000770111 | B115: ='0'!$A$2 -> 2020-09-30 | C115: Т02 | D115: 11 | E115: 06 | F115: 03 | G115: текущи главници (без забава) | H115: =D115&E115&F115 -> 110603 | I115: 8,749.00 | J115: 0
A116: ='0'!$A$4 -> 000770111 | B116: ='0'!$A$2 -> 2020-09-30 | C116: Т02 | D116: 11 | E116: 07 | F116: 00 | G116: Текуща част на финансиранията | H116: 110700 | I116: =SUM(I117:I120) -> 0 | J116: =SUM(J117:J120) -> 0
A117: ='0'!$A$4 -> 000770111 | B117: ='0'!$A$2 -> 2020-09-30 | C117: Т02 | D117: 11 | E117: 07 | F117: 01 | G117: Правителство | H117: 110701 | I117: 0 | J117: 0
A118: ='0'!$A$4 -> 000770111 | B118: ='0'!$A$2 -> 2020-09-30 | C118: Т02 | D118: 11 | E118: 07 | F118: 02 | G118: Програми | H118: 110702 | I118: 0 | J118: 0
A119: ='0'!$A$4 -> 000770111 | B119: ='0'!$A$2 -> 2020-09-30 | C119: Т02 | D119: 11 | E119: 07 | F119: 03 | G119: Общини | H119: 110703 | I119: 0 | J119: 0
A120: ='0'!$A$4 -> 000770111 | B120: ='0'!$A$2 -> 2020-09-30 | C120: Т02 | D120: 11 | E120: 07 | F120: 04 | G120: Дарители | H120: 110704 | I120: 0 | J120: 0
A121: ='0'!$A$4 -> 000770111 | B121: ='0'!$A$2 -> 2020-09-30 | C121: Т02 | D121: 11 | E121: 08 | F121: 00 | G121: Провизии | H121: 110800 | I121: 12,990.00 | J121: 0
A122: ='0'!$A$4 -> 000770111 | B122: ='0'!$A$2 -> 2020-09-30 | C122: Т02 | D122: 11 | E122: 09 | F122: 00 | G122: Други | H122: 110900 | I122: =SUM(I123:I125) -> 0 | J122: =SUM(J123:J125) -> 0
A123: ='0'!$A$4 -> 000770111 | B123: ='0'!$A$2 -> 2020-09-30 | C123: Т02 | D123: 11 | E123: 09 | F123: 01 | G123: просрочени нето от лихви, такси и разноски | H123: 110901 | I123: 0 | J123: 0
A124: ='0'!$A$4 -> 000770111 | B124: ='0'!$A$2 -> 2020-09-30 | C124: Т02 | D124: 11 | E124: 09 | F124: 02 | G124: лихви, такси и разноски по просрочия | H124: 110902 | I124: 0 | J124: 0
A125: ='0'!$A$4 -> 000770111 | B125: ='0'!$A$2 -> 2020-09-30 | C125: Т02 | D125: 11 | E125: 09 | F125: 03 | G125: текущи без забава | H125: 110903 | I125: 0 | J125: 0
A126: ='0'!$A$4 -> 000770111 | B126: ='0'!$A$2 -> 2020-09-30 | C126: Т02 | D126: 12 | E126: 00 | F126: 00 | G126: Общ финансов резултат | H126: =D126&E126&F126 -> 120000 | I126: =SUM(I55:I56) -> 364,914.40 | J126: =SUM(J55:J56) -> 0

Sheet 03
A1: ='0'!$A$4 -> 000770111 | B1: ='0'!$A$2 -> 2020-09-30 | C1: Т03 | D1: ="Т03 ОТЧЕТ ЗА ПАРИЧНИЯ ПОТОК ПО ПРЕКИЯ МЕТОД НА "&'0'!$A$6&" ОТ "&TEXT(DATE(YEAR(B1),1,1),"DD-MM-YYYY")&" ДО "&TEXT(B1,"DD-MM-YYYY") -> Т03 ОТЧЕТ ЗА ПАРИЧНИЯ ПОТОК ПО ПРЕКИЯ МЕТОД НА СБПФЗПЛР "Цар Фердинанд 1" ЕООД - с. Искрец ОТ 01-01-2020 ДО 30-09-2020 | I1: Индивидуален (лева) | J1: Консолидиран (лева) | K1: =COUNTBLANK(I4:J40) -> 0 | L1: =IF(ROUND(I40-'02'!I37,2)=0,"OK","Неравнен поток с баланса") -> OK | M1: =IF(ROUND(J40-'02'!J37,2)=0,"OK","Неравнен поток с баланса") -> OK
A4: ='0'!$A$4 -> 000770111 | B4: ='0'!$A$2 -> 2020-09-30 | C4: Т03 | D4: 01 | E4: 00 | F4: 00 | G4: Нетен паричен поток от оперативна дейност | H4: =D4&E4&F4 -> 010000 | I4: =I6++I9+SUM(I14:I20) -> 179,997 | J4: =J6++J9+SUM(J14:J20) -> 0
A5: ='0'!$A$4 -> 000770111 | B5: ='0'!$A$2 -> 2020-09-30 | C5: Т03 | D5: 01 | E5: 00 | F5: 1 | G5: -(от тего нетен паричен поток свързани предприятия МСС24) | H5: 01001 | I5: 0 | J5: 0
A6: ='0'!$A$4 -> 000770111 | B6: ='0'!$A$2 -> 2020-09-30 | C6: Т03 | D6: 01 | E6: 01 | F6: 00 | G6: Постъпления от клиенти | H6: 010100 | I6: =SUM(I7:I8) -> 951,925 | J6: =SUM(J7:J8) -> 0
A7: ='0'!$A$4 -> 000770111 | B7: ='0'!$A$2 -> 2020-09-30 | C7: Т03 | D7: 01 | E7: 01 | F7: 01 | G7: РЗОК | H7: 010101 | I7: 894,596.00 | J7: 0
A8: ='0'!$A$4 -> 000770111 | B8: ='0'!$A$2 -> 2020-09-30 | C8: Т03 | D8: 01 | E8: 01 | F8: 02 | G8: от други клиенти и дебитори | H8: 010102 | I8: 57,329.00 | J8: 0
A9: ='0'!$A$4 -> 000770111 | B9: ='0'!$A$2 -> 2020-09-30 | C9: Т03 | D9: 01 | E9: 02 | F9: 00 | G9: Постъпления от дарения/финансирания | H9: 010200 | I9: =SUM(I10:I13) -> 1,136,556 | J9: =SUM(J10:J13) -> 0 | L9: Финансиране на текуща дейност (изкл. закупуване на нетекущи активи)
A10: ='0'!$A$4 -> 000770111 | B10: ='0'!$A$2 -> 2020-09-30 | C10: Т03 | D10: 01 | E10: 02 | F10: 01 | G10: Правителство | H10: 010201 | I10: 1,136,556 | J10: 0
A11: ='0'!$A$4 -> 000770111 | B11: ='0'!$A$2 -> 2020-09-30 | C11: Т03 | D11: 01 | E11: 02 | F11: 02 | G11: Програми | H11: 010202 | I11: 0 | J11: 0
A12: ='0'!$A$4 -> 000770111 | B12: ='0'!$A$2 -> 2020-09-30 | C12: Т03 | D12: 01 | E12: 02 | F12: 03 | G12: Общини | H12: 010203 | I12: 0 | J12: 0
A13: ='0'!$A$4 -> 000770111 | B13: ='0'!$A$2 -> 2020-09-30 | C13: Т03 | D13: 01 | E13: 02 | F13: 04 | G13: Дарители | H13: 010204 | I13: 0 | J13: 0
A14: ='0'!$A$4 -> 000770111 | B14: ='0'!$A$2 -> 2020-09-30 | C14: Т03 | D14: 01 | E14: 03 | F14: 00 | G14: Плащания на доставчици и други кредитори | H14: 010300 | I14: (760,769.00) | J14: 0 | L14: Вкл. ДДС
A15: ='0'!$A$4 -> 000770111 | B15: ='0'!$A$2 -> 2020-09-30 | C15: Т03 | D15: 01 | E15: 04 | F15: 00 | G15: Плащания , свързани с възнаграждения | H15: 010400 | I15: (1,011,884.00) | J15: 0
A16: ='0'!$A$4 -> 000770111 | B16: ='0'!$A$2 -> 2020-09-30 | C16: Т03 | D16: 01 | E16: 05 | F16: 00 | G16: Платени/възстановени данъци (без корпоративен данък върху печалбата) | H16: 010500 | I16: (2,364.00) | J16: 0 | L16: МДТ, данък на разходите
A17: ='0'!$A$4 -> 000770111 | B17: ='0'!$A$2 -> 2020-09-30 | C17: Т03 | D17: 01 | E17: 06 | F17: 00 | G17: Платени корпоративни данъци върху печалбата | H17: 010600 | I17: (11,222.00) | J17: 0
A18: ='0'!$A$4 -> 000770111 | B18: ='0'!$A$2 -> 2020-09-30 | C18: Т03 | D18: 01 | E18: 07 | F18: 00 | G18: Плащания на застрахователи | H18: 010700 | I18: (1,419) | J18: 0
A19: ='0'!$A$4 -> 000770111 | B19: ='0'!$A$2 -> 2020-09-30 | C19: Т03 | D19: 01 | E19: 08 | F19: 00 | G19: Плащания на банкови такси | H19: 010800 | I19: 0 | J19: 0
A20: ='0'!$A$4 -> 000770111 | B20: ='0'!$A$2 -> 2020-09-30 | C20: Т03 | D20: 01 | E20: 09 | F20: 00 | G20: Други постъпления/плащания от оперативна дейност | H20: 010900 | I20: (120,826.00) | J20: 0
A21: ='0'!$A$4 -> 000770111 | B21: ='0'!$A$2 -> 2020-09-30 | C21: Т03 | D21: 02 | E21: 00 | F21: 00 | G21: Нетен поток от инвестиционна дейност | H21: 020000 | I21: =SUM(I22:I25) -> 65,453 | J21: =SUM(J22:J25) -> 0
A22: ='0'!$A$4 -> 000770111 | B22: ='0'!$A$2 -> 2020-09-30 | C22: Т03 | D22: 02 | E22: 01 | F22: 00 | G22: Покупка на ДА | H22: 020100 | I22: (36,525.00) | J22: 0
A23: ='0'!$A$4 -> 000770111 | B23: ='0'!$A$2 -> 2020-09-30 | C23: Т03 | D23: 02 | E23: 02 | F23: 00 | G23: Продажба на ДА | H23: 020200 | I23: 101,978 | J23: 0
A24: ='0'!$A$4 -> 000770111 | B24: ='0'!$A$2 -> 2020-09-30 | C24: Т03 | D24: 02 | E24: 03 | F24: 00 | G24: Постъпления от дивиденти | H24: 020300 | I24: 0 | J24: 0
A25: ='0'!$A$4 -> 000770111 | B25: ='0'!$A$2 -> 2020-09-30 | C25: Т03 | D25: 02 | E25: 04 | F25: 00 | G25: Други постъпления/плащания от инвестиционна дейност | H25: 020400 | I25: =SUM(I26:I30) -> 0 | J25: =SUM(J26:J30) -> 0 | L25: Тук се включват и средставата, получени по договор с МЗ или по програми за закупуване на нетекущи активи срещу бъдещо увеличение на капитала.
A26: ='0'!$A$4 -> 000770111 | B26: ='0'!$A$2 -> 2020-09-30 | C26: Т03 | D26: 02 | E26: 04 | F26: 01 | G26: Правителство | H26: 020401 | I26: 0 | J26: 0
A27: ='0'!$A$4 -> 000770111 | B27: ='0'!$A$2 -> 2020-09-30 | C27: Т03 | D27: 02 | E27: 04 | F27: 02 | G27: Програми | H27: 020402 | I27: 0 | J27: 0
A28: ='0'!$A$4 -> 000770111 | B28: ='0'!$A$2 -> 2020-09-30 | C28: Т03 | D28: 02 | E28: 04 | F28: 03 | G28: Общини | H28: 020403 | I28: 0 | J28: 0
A29: ='0'!$A$4 -> 000770111 | B29: ='0'!$A$2 -> 2020-09-30 | C29: Т03 | D29: 02 | E29: 04 | F29: 04 | G29: Дарители | H29: 020404 | I29: 0 | J29: 0
A30: ='0'!$A$4 -> 000770111 | B30: ='0'!$A$2 -> 2020-09-30 | C30: Т03 | D30: 02 | E30: 04 | F30: 05 | G30: Други | H30: 020405 | I30: 0 | J30: 0
A31: ='0'!$A$4 -> 000770111 | B31: ='0'!$A$2 -> 2020-09-30 | C31: Т03 | D31: 03 | E31: 00 | F31: 00 | G31: Нетен паричен поток от финансова дейност | H31: 030000 | I31: =SUM(I32:I37) -> (3,184) | J31: =SUM(J32:J37) -> 0
A32: ='0'!$A$4 -> 000770111 | B32: ='0'!$A$2 -> 2020-09-30 | C32: Т03 | D32: 03 | E32: 01 | F32: 00 | G32: Постъпления/плащания от емитиране на дялов капитал | H32: 030100 | I32: 0 | J32: 0 | L32: Случаите извън горния.
A33: ='0'!$A$4 -> 000770111 | B33: ='0'!$A$2 -> 2020-09-30 | C33: Т03 | D33: 03 | E33: 02 | F33: 00 | G33: Платени задължения по лизингови договори | H33: 030200 | I33: 0 | J33: 0
A34: ='0'!$A$4 -> 000770111 | B34: ='0'!$A$2 -> 2020-09-30 | C34: Т03 | D34: 03 | E34: 03 | F34: 00 | G34: Постъпления по банкови заеми | H34: 030300 | I34: 0 | J34: 0
A35: ='0'!$A$4 -> 000770111 | B35: ='0'!$A$2 -> 2020-09-30 | C35: Т03 | D35: 03 | E35: 04 | F35: 00 | G35: Плащания по банкови заеми | H35: 030400 | I35: 0 | J35: 0
A36: ='0'!$A$4 -> 000770111 | B36: ='0'!$A$2 -> 2020-09-30 | C36: Т03 | D36: 03 | E36: 05 | F36: 00 | G36: Други постъпления/плащания от финансова дейност | H36: 030500 | I36: (3,184.00) | J36: 0
A37: ='0'!$A$4 -> 000770111 | B37: ='0'!$A$2 -> 2020-09-30 | C37: Т03 | D37: 03 | E37: 06 | F37: 00 | G37: Ефект от промяната на валутните курсове | H37: 030600 | I37: 0 | J37: 0
A38: ='0'!$A$4 -> 000770111 | B38: ='0'!$A$2 -> 2020-09-30 | C38: Т03 | D38: 04 | E38: 00 | F38: 00 | G38: Изменения на паричните средства през периода | H38: 040000 | I38: =+I4+I21+I31 -> 242,266 | J38: =+J4+J21+J31 -> 0
A39: ='0'!$A$4 -> 000770111 | B39: ='0'!$A$2 -> 2020-09-30 | C39: Т03 | D39: 05 | E39: 00 | F39: 00 | G39: Парични средства в началото на периода | H39: 050000 | I39: 1,197,887 | J39: 0
A40: ='0'!$A$4 -> 000770111 | B40: ='0'!$A$2 -> 2020-09-30 | C40: Т03 | D40: 06 | E40: 00 | F40: 00 | G40: Парични средства в края на периода | H40: 060000 | I40: =SUM(I38:I39) -> 1,440,153 | J40: =SUM(J38:J39) -> 0 | L40: Стойността следва да съответства на ред 020300 от Т02

Sheet 04
A1: ='0'!$A$4 -> 000770111 | B1: ='0'!$A$2 -> 2020-09-30 | C1: Т04 | D1: ="Т04 РЕКАПИТУЛАЦИЯ ПО Т12 НА "&'0'!$A$6&" КЪМ "&TEXT(B1,"DD-MM-YYYY") -> Т04 РЕКАПИТУЛАЦИЯ ПО Т12 НА СБПФЗПЛР "Цар Фердинанд 1" ЕООД - с. Искрец КЪМ 30-09-2020 | I1: Задължения (лева) | J1: От тях проср. (лева) | L1: =IF(ROUND(I12-'02'!I74,0)=0,"OK","Неравнение с баланса на текущите задължения, проверете за некоректни номенклатури в Т12!") -> OK
A2: ='0'!$A$4 -> 000770111 | B2: ='0'!$A$2 -> 2020-09-30 | C2: Т04 | D2: 00 | E2: 00 | F2: 01 | G2: ОБЩО ЗАДЪЛЖЕНИЯ | H2: =D2&E2&F2 -> 000001 | I2: =I4+I12 -> 149,256 | J2: =J4+J12 -> 0
A3: ='0'!$A$4 -> 000770111 | B3: ='0'!$A$2 -> 2020-09-30 | C3: Т04 | D3: 00 | E3: 00 | F3: 02 | G3: Общо задължения, без задължения по договори с Министерство на здравеопазването за закупуване на нетекущи активи преди увеличаване на капитала и без нетекуща част на финансиранията | H3: 000002 | I3: =SUM(I5:I9,I12) -> 149,256 | J3: =SUM(J5:J9,J12) -> 0
A4: ='0'!$A$4 -> 000770111 | B4: ='0'!$A$2 -> 2020-09-30 | C4: Т04 | D4: 01 | E4: 00 | F4: 00 | G4: Нетекущи задължения | H4: 010000 | I4: =SUM(I5:I11) -> 5,840 | J4: =SUM(J5:J11) -> 0
A5: ='0'!$A$4 -> 000770111 | B5: ='0'!$A$2 -> 2020-09-30 | C5: Т04 | D5: 01 | E5: 01 | F5: 00 | G5: Пасиви по отсрочени данъци | H5: 010100 | I5: ='02'!I59 -> 0
A6: ='0'!$A$4 -> 000770111 | B6: ='0'!$A$2 -> 2020-09-30 | C6: Т04 | D6: 01 | E6: 02 | F6: 00 | G6: Нетекущи задължения по търговски заеми и финансов лизинг | H6: 010200 | I6: ='02'!I60 -> 0
A7: ='0'!$A$4 -> 000770111 | B7: ='0'!$A$2 -> 2020-09-30 | C7: Т04 | D7: 01 | E7: 03 | F7: 00 | G7: Нетекущи търговски гаранции | H7: 010300 | I7: ='02'!I63 -> 5,840
A8: ='0'!$A$4 -> 000770111 | B8: ='0'!$A$2 -> 2020-09-30 | C8: Т04 | D8: 01 | E8: 04 | F8: 00 | G8: Дългосрочни банкови заеми | H8: 010400 | I8: ='02'!I64 -> 0
A9: ='0'!$A$4 -> 000770111 | B9: ='0'!$A$2 -> 2020-09-30 | C9: Т04 | D9: 01 | E9: 05 | F9: 00 | G9: Дългосрочни провизии | H9: 010500 | I9: ='02'!I65 -> 0
A10: ='0'!$A$4 -> 000770111 | B10: ='0'!$A$2 -> 2020-09-30 | C10: Т04 | D10: 01 | E10: 06 | F10: 00 | G10: Задължения по договори за предоставяне на субсидия за закупуване на нетекущи активи преди увеличаване на капитала | H10: 010600 | I10: ='02'!I66 -> 0
A11: ='0'!$A$4 -> 000770111 | B11: ='0'!$A$2 -> 2020-09-30 | C11: Т04 | D11: 01 | E11: 07 | F11: 00 | G11: Нетекуща част на финансиранията | H11: 010700 | I11: ='02'!I69 -> 0
A12: ='0'!$A$4 -> 000770111 | B12: ='0'!$A$2 -> 2020-09-30 | C12: Т04 | D12: 02 | E12: 00 | F12: 00 | G12: Текущи задължения | H12: 020000 | I12: =I13+I48+I49+I50+I51+I52 -> 143,416 | J12: =J13+J48+J49+J50 -> 0
A13: ='0'!$A$4 -> 000770111 | B13: ='0'!$A$2 -> 2020-09-30 | C13: Т04 | D13: 02 | E13: 01 | F13: 00 | G13: Общо търговси и други задължения | H13: =D13&E13&F13 -> 020100 | I13: =SUM(I14:I47) -> 4,525 | J13: =SUM(J14:J47) -> 0
A14: ='0'!$A$4 -> 000770111 | B14: ='0'!$A$2 -> 2020-09-30 | C14: Т04 | D14: 02 | E14: 01 | F14: 01 | G14: Лекарствени продукти | H14: 020101 | I14: =SUMIFS('12'!$T:$T,'12'!$F:$F,'04'!$G14) -> 0 | J14: =SUMIFS('12'!$V:$V,'12'!$F:$F,'04'!$G14) -> 0
A15: ='0'!$A$4 -> 000770111 | B15: ='0'!$A$2 -> 2020-09-30 | C15: Т04 | D15: 02 | E15: 01 | F15: 02 | G15: Медицински изделия | H15: 020102 | I15: =SUMIFS('12'!$T:$T,'12'!$F:$F,'04'!$G15) -> 0 | J15: =SUMIFS('12'!$V:$V,'12'!$F:$F,'04'!$G15) -> 0
A16: ='0'!$A$4 -> 000770111 | B16: ='0'!$A$2 -> 2020-09-30 | C16: Т04 | D16: 02 | E16: 01 | F16: 03 | G16: Кръвни и биопродукти | H16: 020103 | I16: =SUMIFS('12'!$T:$T,'12'!$F:$F,'04'!$G16) -> 0 | J16: =SUMIFS('12'!$V:$V,'12'!$F:$F,'04'!$G16) -> 0
A17: ='0'!$A$4 -> 000770111 | B17: ='0'!$A$2 -> 2020-09-30 | C17: Т04 | D17: 02 | E17: 01 | F17: 04 | G17: Медицински газове | H17: 020104 | I17: =SUMIFS('12'!$T:$T,'12'!$F:$F,'04'!$G17) -> 0 | J17: =SUMIFS('12'!$V:$V,'12'!$F:$F,'04'!$G17) -> 0
A18: ='0'!$A$4 -> 000770111 | B18: ='0'!$A$2 -> 2020-09-30 | C18: Т04 | D18: 02 | E18: 01 | F18: 05 | G18: Храна на болни | H18: 020105 | I18: =SUMIFS('12'!$T:$T,'12'!$F:$F,'04'!$G18) -> 0 | J18: =SUMIFS('12'!$V:$V,'12'!$F:$F,'04'!$G18) -> 0
A19: ='0'!$A$4 -> 000770111 | B19: ='0'!$A$2 -> 2020-09-30 | C19: Т04 | D19: 02 | E19: 01 | F19: 06 | G19: Храна на персонал (Наредба 11) | H19: 020106 | I19: =SUMIFS('12'!$T:$T,'12'!$F:$F,'04'!$G19) -> 0 | J19: =SUMIFS('12'!$V:$V,'12'!$F:$F,'04'!$G19) -> 0
A20: ='0'!$A$4 -> 000770111 | B20: ='0'!$A$2 -> 2020-09-30 | C20: Т04 | D20: 02 | E20: 01 | F20: 07 | G20: Вода, горива, ел. енергия, топлинна енергия | H20: 020107 | I20: =SUMIFS('12'!$T:$T,'12'!$F:$F,'04'!$G20) -> 25 | J20: =SUMIFS('12'!$V:$V,'12'!$F:$F,'04'!$G20) -> 0
A21: ='0'!$A$4 -> 000770111 | B21: ='0'!$A$2 -> 2020-09-30 | C21: Т04 | D21: 02 | E21: 01 | F21: 08 | G21: Резервни части и доокомплектовка на апаратура | H21: 020108 | I21: =SUMIFS('12'!$T:$T,'12'!$F:$F,'04'!$G21) -> 0 | J21: =SUMIFS('12'!$V:$V,'12'!$F:$F,'04'!$G21) -> 0
A22: ='0'!$A$4 -> 000770111 | B22: ='0'!$A$2 -> 2020-09-30 | C22: Т04 | D22: 02 | E22: 01 | F22: 09 | G22: Медицински принадлежности | H22: 020109 | I22: =SUMIFS('12'!$T:$T,'12'!$F:$F,'04'!$G22) -> 0 | J22: =SUMIFS('12'!$V:$V,'12'!$F:$F,'04'!$G22) -> 0
A23: ='0'!$A$4 -> 000770111 | B23: ='0'!$A$2 -> 2020-09-30 | C23: Т04 | D23: 02 | E23: 01 | F23: 10 | G23: Хигиенни материали | H23: 020110 | I23: =SUMIFS('12'!$T:$T,'12'!$F:$F,'04'!$G23) -> 0 | J23: =SUMIFS('12'!$V:$V,'12'!$F:$F,'04'!$G23) -> 0
A24: ='0'!$A$4 -> 000770111 | B24: ='0'!$A$2 -> 2020-09-30 | C24: Т04 | D24: 02 | E24: 01 | F24: 11 | G24: Канцеларски материали | H24: 020111 | I24: =SUMIFS('12'!$T:$T,'12'!$F:$F,'04'!$G24) -> 0 | J24: =SUMIFS('12'!$V:$V,'12'!$F:$F,'04'!$G24) -> 0
A25: ='0'!$A$4 -> 000770111 | B25: ='0'!$A$2 -> 2020-09-30 | C25: Т04 | D25: 02 | E25: 01 | F25: 12 | G25: Работно облекло и постелен инвентар | H25: 020112 | I25: =SUMIFS('12'!$T:$T,'12'!$F:$F,'04'!$G25) -> 0 | J25: =SUMIFS('12'!$V:$V,'12'!$F:$F,'04'!$G25) -> 0
A26: ='0'!$A$4 -> 000770111 | B26: ='0'!$A$2 -> 2020-09-30 | C26: Т04 | D26: 02 | E26: 01 | F26: 13 | G26: Други материали | H26: 020113 | I26: =SUMIFS('12'!$T:$T,'12'!$F:$F,'04'!$G26) -> 0 | J26: =SUMIFS('12'!$V:$V,'12'!$F:$F,'04'!$G26) -> 0
A27: ='0'!$A$4 -> 000770111 | B27: ='0'!$A$2 -> 2020-09-30 | C27: Т04 | D27: 02 | E27: 01 | F27: 14 | G27: Текущ ремонт на сграден фонд | H27: 020114 | I27: =SUMIFS('12'!$T:$T,'12'!$F:$F,'04'!$G27) -> 0 | J27: =SUMIFS('12'!$V:$V,'12'!$F:$F,'04'!$G27) -> 0
A28: ='0'!$A$4 -> 000770111 | B28: ='0'!$A$2 -> 2020-09-30 | C28: Т04 | D28: 02 | E28: 01 | F28: 15 | G28: Текущ ремонт на апаратура и оборудване | H28: 020115 | I28: =SUMIFS('12'!$T:$T,'12'!$F:$F,'04'!$G28) -> 0 | J28: =SUMIFS('12'!$V:$V,'12'!$F:$F,'04'!$G28) -> 0
A29: ='0'!$A$4 -> 000770111 | B29: ='0'!$A$2 -> 2020-09-30 | C29: Т04 | D29: 02 | E29: 01 | F29: 16 | G29: Поддръжка на оборудване и софтуер | H29: 020116 | I29: =SUMIFS('12'!$T:$T,'12'!$F:$F,'04'!$G29) -> 0 | J29: =SUMIFS('12'!$V:$V,'12'!$F:$F,'04'!$G29) -> 0
A30: ='0'!$A$4 -> 000770111 | B30: ='0'!$A$2 -> 2020-09-30 | C30: Т04 | D30: 02 | E30: 01 | F30: 17 | G30: Наети активи | H30: 020117 | I30: =SUMIFS('12'!$T:$T,'12'!$F:$F,'04'!$G30) -> 0 | J30: =SUMIFS('12'!$V:$V,'12'!$F:$F,'04'!$G30) -> 0
A31: ='0'!$A$4 -> 000770111 | B31: ='0'!$A$2 -> 2020-09-30 | C31: Т04 | D31: 02 | E31: 01 | F31: 18 | G31: Медицински услуги | H31: 020118 | I31: =SUMIFS('12'!$T:$T,'12'!$F:$F,'04'!$G31) -> 0 | J31: =SUMIFS('12'!$V:$V,'12'!$F:$F,'04'!$G31) -> 0
A32: ='0'!$A$4 -> 000770111 | B32: ='0'!$A$2 -> 2020-09-30 | C32: Т04 | D32: 02 | E32: 01 | F32: 19 | G32: Транспорт | H32: 020119 | I32: =SUMIFS('12'!$T:$T,'12'!$F:$F,'04'!$G32) -> 0 | J32: =SUMIFS('12'!$V:$V,'12'!$F:$F,'04'!$G32) -> 0
A33: ='0'!$A$4 -> 000770111 | B33: ='0'!$A$2 -> 2020-09-30 | C33: Т04 | D33: 02 | E33: 01 | F33: 20 | G33: Застраховки | H33: 020120 | I33: =SUMIFS('12'!$T:$T,'12'!$F:$F,'04'!$G33) -> 0 | J33: =SUMIFS('12'!$V:$V,'12'!$F:$F,'04'!$G33) -> 0
A34: ='0'!$A$4 -> 000770111 | B34: ='0'!$A$2 -> 2020-09-30 | C34: Т04 | D34: 02 | E34: 01 | F34: 21 | G34: Телефон, интернет, пощенски и куриерски услуги | H34: 020121 | I34: =SUMIFS('12'!$T:$T,'12'!$F:$F,'04'!$G34) -> 0 | J34: =SUMIFS('12'!$V:$V,'12'!$F:$F,'04'!$G34) -> 0
A35: ='0'!$A$4 -> 000770111 | B35: ='0'!$A$2 -> 2020-09-30 | C35: Т04 | D35: 02 | E35: 01 | F35: 22 | G35: Събиране, транспортиране и обезвреждане на отпадъци | H35: 020122 | I35: =SUMIFS('12'!$T:$T,'12'!$F:$F,'04'!$G35) -> 0 | J35: =SUMIFS('12'!$V:$V,'12'!$F:$F,'04'!$G35) -> 0
A36: ='0'!$A$4 -> 000770111 | B36: ='0'!$A$2 -> 2020-09-30 | C36: Т04 | D36: 02 | E36: 01 | F36: 23 | G36: Почистване, пране, стерилизация | H36: 020123 | I36: =SUMIFS('12'!$T:$T,'12'!$F:$F,'04'!$G36) -> 0 | J36: =SUMIFS('12'!$V:$V,'12'!$F:$F,'04'!$G36) -> 0
A37: ='0'!$A$4 -> 000770111 | B37: ='0'!$A$2 -> 2020-09-30 | C37: Т04 | D37: 02 | E37: 01 | F37: 24 | G37: Юридически услуги | H37: 020124 | I37: =SUMIFS('12'!$T:$T,'12'!$F:$F,'04'!$G37) -> 0 | J37: =SUMIFS('12'!$V:$V,'12'!$F:$F,'04'!$G37) -> 0
A38: ='0'!$A$4 -> 000770111 | B38: ='0'!$A$2 -> 2020-09-30 | C38: Т04 | D38: 02 | E38: 01 | F38: 25 | G38: Консултантски услуги | H38: 020125 | I38: =SUMIFS('12'!$T:$T,'12'!$F:$F,'04'!$G38) -> 0 | J38: =SUMIFS('12'!$V:$V,'12'!$F:$F,'04'!$G38) -> 0
A39: ='0'!$A$4 -> 000770111 | B39: ='0'!$A$2 -> 2020-09-30 | C39: Т04 | D39: 02 | E39: 01 | F39: 26 | G39: Други външни услуги | H39: 020126 | I39: =SUMIFS('12'!$T:$T,'12'!$F:$F,'04'!$G39) -> 0 | J39: =SUMIFS('12'!$V:$V,'12'!$F:$F,'04'!$G39) -> 0
A40: ='0'!$A$4 -> 000770111 | B40: ='0'!$A$2 -> 2020-09-30 | C40: Т04 | D40: 02 | E40: 01 | F40: 27 | G40: Социални разходи | H40: 020127 | I40: =SUMIFS('12'!$T:$T,'12'!$F:$F,'04'!$G40) -> 0 | J40: =SUMIFS('12'!$V:$V,'12'!$F:$F,'04'!$G40) -> 0
A41: ='0'!$A$4 -> 000770111 | B41: ='0'!$A$2 -> 2020-09-30 | C41: Т04 | D41: 02 | E41: 01 | F41: 28 | G41: Представителни разходи | H41: 020128 | I41: =SUMIFS('12'!$T:$T,'12'!$F:$F,'04'!$G41) -> 0 | J41: =SUMIFS('12'!$V:$V,'12'!$F:$F,'04'!$G41) -> 0
A42: ='0'!$A$4 -> 000770111 | B42: ='0'!$A$2 -> 2020-09-30 | C42: Т04 | D42: 02 | E42: 01 | F42: 29 | G42: Други (други) | H42: 020129 | I42: =SUMIFS('12'!$T:$T,'12'!$F:$F,'04'!$G42) -> 0 | J42: =SUMIFS('12'!$V:$V,'12'!$F:$F,'04'!$G42) -> 0
A43: ='0'!$A$4 -> 000770111 | B43: ='0'!$A$2 -> 2020-09-30 | C43: Т04 | D43: 02 | E43: 01 | F43: 30 | G43: Придобиване на имоти, машини и оборудване | H43: 020130 | I43: =SUMIFS('12'!$T:$T,'12'!$F:$F,'04'!$G43) -> 4,500 | J43: =SUMIFS('12'!$V:$V,'12'!$F:$F,'04'!$G43) -> 0
A44: ='0'!$A$4 -> 000770111 | B44: ='0'!$A$2 -> 2020-09-30 | C44: Т04 | D44: 02 | E44: 01 | F44: 31 | G44: Придобиване на нематериални активи | H44: 020131 | I44: =SUMIFS('12'!$T:$T,'12'!$F:$F,'04'!$G44) -> 0 | J44: =SUMIFS('12'!$V:$V,'12'!$F:$F,'04'!$G44) -> 0
A45: ='0'!$A$4 -> 000770111 | B45: ='0'!$A$2 -> 2020-09-30 | C45: Т04 | D45: 02 | E45: 01 | F45: 32 | G45: Основен ремонт на имоти, машини и оборудване | H45: 020132 | I45: =SUMIFS('12'!$T:$T,'12'!$F:$F,'04'!$G45) -> 0 | J45: =SUMIFS('12'!$V:$V,'12'!$F:$F,'04'!$G45) -> 0
A46: ='0'!$A$4 -> 000770111 | B46: ='0'!$A$2 -> 2020-09-30 | C46: Т04 | D46: 02 | E46: 01 | F46: 33 | G46: Гаранции | H46: 020133 | I46: =SUMIFS('12'!$T:$T,'12'!$F:$F,'04'!$G46) -> 0 | J46: =SUMIFS('12'!$V:$V,'12'!$F:$F,'04'!$G46) -> 0
A47: ='0'!$A$4 -> 000770111 | B47: ='0'!$A$2 -> 2020-09-30 | C47: Т04 | D47: 02 | E47: 01 | F47: 34 | G47: Банкови заеми | H47: 020134 | I47: =SUMIFS('12'!$T:$T,'12'!$F:$F,'04'!$G47) -> 0 | J47: =SUMIFS('12'!$V:$V,'12'!$F:$F,'04'!$G47) -> 0
A48: ='0'!$A$4 -> 000770111 | B48: ='0'!$A$2 -> 2020-09-30 | C48: Т04 | D48: 02 | E48: 02 | F48: 00 | G48: Задължения към персонала | H48: 020200 | I48: ='02'!I100 -> 81,812 | J48: ='02'!I102 -> 0
A49: ='0'!$A$4 -> 000770111 | B49: ='0'!$A$2 -> 2020-09-30 | C49: Т04 | D49: 02 | E49: 03 | F49: 00 | G49: Задължения към осигурителни предприятия | H49: =D49&E49&F49 -> 020300 | I49: ='02'!I107 -> 35,340 | J49: ='02'!I108 -> 0
A50: ='0'!$A$4 -> 000770111 | B50: ='0'!$A$2 -> 2020-09-30 | C50: Т04 | D50: 02 | E50: 04 | F50: 00 | G50: Данъчни задължения | H50: =D50&E50&F50 -> 020400 | I50: ='02'!I112 -> 8,749 | J50: ='02'!I113 -> 0
A51: ='0'!$A$4 -> 000770111 | B51: ='0'!$A$2 -> 2020-09-30 | C51: Т04 | D51: 02 | E51: 05 | F51: 00 | G51: Текуща част на финансиранията | H51: =D51&E51&F51 -> 020500 | I51: ='02'!I116 -> 0
A52: ='0'!$A$4 -> 000770111 | B52: ='0'!$A$2 -> 2020-09-30 | C52: Т04 | D52: 02 | E52: 06 | F52: 00 | G52: Провизии | H52: =D52&E52&F52 -> 020600 | I52: ='02'!I121 -> 12,990

Sheet 05
A1: ='0'!$A$4 -> 000770111 | B1: ='0'!$A$2 -> 2020-09-30 | C1: Т05 | D1: ="Т05 ИКОНОМИЧЕСКИ ПОКАЗАТЕЛИ ЗА ДЕЙНОСТТА НА "&'0'!$A$6&" КЪМ "&TEXT(B1,"DD-MM-YYYY") -> Т05 ИКОНОМИЧЕСКИ ПОКАЗАТЕЛИ ЗА ДЕЙНОСТТА НА СБПФЗПЛР "Цар Фердинанд 1" ЕООД - с. Искрец КЪМ 30-09-2020 | I1: Индивидуален | J1: Консолидиран
A4: ='0'!$A$4 -> 000770111 | B4: ='0'!$A$2 -> 2020-09-30 | C4: Т05 | D4: 01 | E4: 00 | F4: 00 | G4: Общо просрочия в лева | H4: =D4&E4&F4 -> 010000 | I4: =+I16+I5 -> 0 | J4: =+J16+J5 -> 0
A5: ='0'!$A$4 -> 000770111 | B5: ='0'!$A$2 -> 2020-09-30 | C5: Т05 | D5: 01 | E5: 01 | F5: 00 | G5: Просрочени текущи задължения, нето от лихви, такси и разноски | H5: 010100 | I5: =SUM(I6:I15) -> 0 | J5: =SUM(J6:J15) -> 0
A6: ='0'!$A$4 -> 000770111 | B6: ='0'!$A$2 -> 2020-09-30 | C6: Т05 | D6: 01 | E6: 01 | F6: 01 | G6: Задължения към доставчици | H6: 010101 | I6: ='02'!I77 -> 0 | J6: ='02'!J77 -> 0 | L6: Попълва се в Т02, ред 110101
A7: ='0'!$A$4 -> 000770111 | B7: ='0'!$A$2 -> 2020-09-30 | C7: Т05 | D7: 01 | E7: 01 | F7: 02 | G7: Задължения за гаранции | H7: 010102 | I7: ='02'!I81 -> 0 | J7: ='02'!J81 -> 0 | L7: Попълва се в Т02, ред 110121
A8: ='0'!$A$4 -> 000770111 | B8: ='0'!$A$2 -> 2020-09-30 | C8: Т05 | D8: 01 | E8: 01 | F8: 03 | G8: Задължения към свързани лица (МСС 24) | H8: 010103 | I8: ='02'!I85 -> 0 | J8: ='02'!J85 -> 0 | L8: Попълва се в Т02, ред 110131
A9: ='0'!$A$4 -> 000770111 | B9: ='0'!$A$2 -> 2020-09-30 | C9: Т05 | D9: 01 | E9: 01 | F9: 04 | G9: Получени аванси | H9: 010104 | I9: ='02'!I89 -> 0 | J9: ='02'!J89 -> 0 | L9: Попълва се в Т02, ред 110141
A10: ='0'!$A$4 -> 000770111 | B10: ='0'!$A$2 -> 2020-09-30 | C10: Т05 | D10: 01 | E10: 01 | F10: 05 | G10: Текуща част по търговски заеми | H10: 010105 | I10: ='02'!I93 -> 0 | J10: ='02'!J93 -> 0 | L10: Попълва се в Т02, ред 110201
A11: ='0'!$A$4 -> 000770111 | B11: ='0'!$A$2 -> 2020-09-30 | C11: Т05 | D11: 01 | E11: 01 | F11: 06 | G11: Текуща част по банкови заеми | H11: 010106 | I11: ='02'!I97 -> 0 | J11: ='02'!J97 -> 0 | L11: Попълва се в Т02, ред 110301
A12: ='0'!$A$4 -> 000770111 | B12: ='0'!$A$2 -> 2020-09-30 | C12: Т05 | D12: 01 | E12: 01 | F12: 07 | G12: Задължения към персонала | H12: 010107 | I12: ='02'!I102 -> 0 | J12: ='02'!J102 -> 0 | L12: Попълва се в Т02, ред 110411
A13: ='0'!$A$4 -> 000770111 | B13: ='0'!$A$2 -> 2020-09-30 | C13: Т05 | D13: 01 | E13: 01 | F13: 08 | G13: Задължения към осигурителни предприятия | H13: 010108 | I13: ='02'!I108 -> 0 | J13: ='02'!J108 -> 0 | L13: Попълва се в Т02, ред 110501
A14: ='0'!$A$4 -> 000770111 | B14: ='0'!$A$2 -> 2020-09-30 | C14: Т05 | D14: 01 | E14: 01 | F14: 09 | G14: Данъчни задължения | H14: 010109 | I14: ='02'!I113 -> 0 | J14: ='02'!J113 -> 0 | L14: Попълва се в Т02, ред 110601
A15: ='0'!$A$4 -> 000770111 | B15: ='0'!$A$2 -> 2020-09-30 | C15: Т05 | D15: 01 | E15: 01 | F15: 10 | G15: Други | H15: 010110 | I15: ='02'!I123 -> 0 | J15: ='02'!J123 -> 0 | L15: Попълва се в Т02, ред 110901
A16: ='0'!$A$4 -> 000770111 | B16: ='0'!$A$2 -> 2020-09-30 | C16: Т05 | D16: 01 | E16: 02 | F16: 00 | G16: Лихви, такси и разноски по просрочия | H16: 010200 | I16: ='02'!I78+'02'!I82+'02'!I86+'02'!I90+'02'!I94+'02'!I98+'02'!I103+'02'!I109+'02'!I114+'02'!I124 -> 0 | J16: ='02'!J78+'02'!J82+'02'!J86+'02'!J90+'02'!J94+'02'!J98+'02'!J103+'02'!J109+'02'!J114+'02'!J124 -> 0
A17: ='0'!$A$4 -> 000770111 | B17: ='0'!$A$2 -> 2020-09-30 | C17: Т05 | D17: 02 | E17: 00 | F17: 00 | G17: Оборотен капитал в лева (текущи активи - текущи задължения) | H17: 020000 | I17: =+I18-I19 -> 1,512,544 | J17: =+J18-J19 -> 0
A18: ='0'!$A$4 -> 000770111 | B18: ='0'!$A$2 -> 2020-09-30 | C18: Т05 | D18: 02 | E18: 01 | F18: 00 | G18: Текущи активи в лева | H18: 020100 | I18: ='02'!I18 -> 1,655,960 | J18: ='02'!J18 -> 0
A19: ='0'!$A$4 -> 000770111 | B19: ='0'!$A$2 -> 2020-09-30 | C19: Т05 | D19: 02 | E19: 02 | F19: 00 | G19: Текущи задължения в лева | H19: 020200 | I19: ='02'!I74 -> 143,416 | J19: ='02'!J74 -> 0
A20: ='0'!$A$4 -> 000770111 | B20: ='0'!$A$2 -> 2020-09-30 | C20: Т05 | D20: 03 | E20: 00 | F20: 00 | G20: Показатели за ликвидност | H20: 030000
A21: ='0'!$A$4 -> 000770111 | B21: ='0'!$A$2 -> 2020-09-30 | C21: Т05 | D21: 03 | E21: 01 | F21: 00 | G21: Обща (текущи активи / текущи задължения) | H21: 030100 | I21: =IF(I19=0,"",I18/I19) -> 11.55 | J21: =IF(J19=0,"",J18/J19) -> 
A22: ='0'!$A$4 -> 000770111 | B22: ='0'!$A$2 -> 2020-09-30 | C22: Т05 | D22: 03 | E22: 02 | F22: 00 | G22: Бърза (текущи активи - материални запаси / текущи задължения) | H22: 030200 | I22: =IF(I19=0,"",(I18-'02'!I19)/I19) -> 11.22 | J22: =IF(J19=0,"",(J18-'02'!J19)/J19) -> 
A23: ='0'!$A$4 -> 000770111 | B23: ='0'!$A$2 -> 2020-09-30 | C23: Т05 | D23: 03 | E23: 03 | F23: 00 | G23: Незабавна (текущи активи - материални запаси - краткосрочни вземания / текущи задължения) | H23: 030300 | I23: =IF(I19=0,"",(I18-'02'!I19-'02'!I27)/I19) -> 10.04 | J23: =IF(J19=0,"",(J18-'02'!J19-'02'!J27)/J19) -> 
A24: ='0'!$A$4 -> 000770111 | B24: ='0'!$A$2 -> 2020-09-30 | C24: Т05 | D24: 04 | E24: 00 | F24: 00 | G24: Показатели за финансова автономност | H24: 040000
A25: ='0'!$A$4 -> 000770111 | B25: ='0'!$A$2 -> 2020-09-30 | C25: Т05 | D25: 04 | E25: 01 | F25: 00 | G25: Коефициент на покритие на собствения капитал (активи /собствен капитал) | H25: 040100 | I25: =IF('02'!I44=0,"",'02'!I4/'02'!I44) -> 1.08 | J25: =IF('02'!J44=0,"",'02'!J4/'02'!J44) -> 
A26: ='0'!$A$4 -> 000770111 | B26: ='0'!$A$2 -> 2020-09-30 | C26: Т05 | D26: 04 | E26: 02 | F26: 00 | G26: Коефициент на задлъжнялост (пасиви /собствен капитал) | H26: 040200 | I26: =IF('02'!I44=0,"",'02'!I57/'02'!I44) -> 0.08 | J26: =IF('02'!J44=0,"",'02'!J57/'02'!J44) -> 
A27: ='0'!$A$4 -> 000770111 | B27: ='0'!$A$2 -> 2020-09-30 | C27: Т05 | D27: 04 | E27: 03 | F27: 00 | G27: Коефициент на финансова автономност (собствен капитал /пасиви) | H27: 040300 | I27: =IF('02'!I57=0,"",'02'!I44/'02'!I57) -> 12.48 | J27: =IF('02'!J57=0,"",'02'!J44/'02'!J57) -> 
A28: ='0'!$A$4 -> 000770111 | B28: ='0'!$A$2 -> 2020-09-30 | C28: Т05 | D28: 05 | E28: 00 | F28: 00 | G28: Показатели за обращаемост в дни | H28: 050000
A29: ='0'!$A$4 -> 000770111 | B29: ='0'!$A$2 -> 2020-09-30 | C29: Т05 | D29: 05 | E29: 01 | F29: 00 | G29: Коефициент на обръщаемост на запасите - съотношение между годишния размер на продажбите и средната наличност на материалните запаси (краткотрайните материални активи). | H29: 050100 | I29: =IF('02'!I19=0,"",('01'!I4+'01'!I13+'01'!I14+'01'!I15+'01'!I16+'01'!I17+'01'!I18+'01'!I19)/MONTH($B29)*(365/12)/'02'!I19) -> 69.28 | J29: =IF('02'!J19=0,"",('01'!J4+'01'!J13+'01'!J14+'01'!J15+'01'!J16+'01'!J17+'01'!J18+'01'!J19)/MONTH($B29)*(365/12)/'02'!J19) -> 
A30: ='0'!$A$4 -> 000770111 | B30: ='0'!$A$2 -> 2020-09-30 | C30: Т05 | D30: 05 | E30: 02 | F30: 00 | G30: Среден срок за събиране на вземанията (средна продължителност или възраст на вземанията) | H30: 050200 | I30: =IF(('01'!I4+'01'!I13+'01'!I14+'01'!I15+'01'!I16+'01'!I17+'01'!I18+'01'!I19)=0,"",'02'!I27/(('01'!I4+'01'!I13+'01'!I14+'01'!I15+'01'!I16+'01'!I17+'01'!I18+'01'!I19)/MONTH($B30)*(365/12))) -> 0.05 | J30: =IF(('01'!J4+'01'!J13+'01'!J14+'01'!J15+'01'!J16+'01'!J17+'01'!J18+'01'!J19)=0,"",'02'!J27/(('01'!J4+'01'!J13+'01'!J14+'01'!J15+'01'!J16+'01'!J17+'01'!J18+'01'!J19)/MONTH($B30)*(365/12))) -> 
A31: ='0'!$A$4 -> 000770111 | B31: ='0'!$A$2 -> 2020-09-30 | C31: Т05 | D31: 05 | E31: 03 | F31: 00 | G31: Среден срок на плащане – средният размер на задълженията към доставчици, разделен на среднодневните разходи за покупка на суровини, материали, стоки и услуги | H31: 050300 | I31: =IF(('01'!I53+'01'!I77)=0,"",-'02'!I75/(('01'!I77+'01'!I53)/MONTH($B31))*(365/12)) -> 1.84 | J31: =IF(('01'!J53+'01'!J77)=0,"",-'02'!J75/(('01'!J77+'01'!J53)/MONTH($B31))*(365/12)) -> 
A32: ='0'!$A$4 -> 000770111 | B32: ='0'!$A$2 -> 2020-09-30 | C32: Т05 | D32: 05 | E32: 04 | F32: 00 | G32: Обръщаемост на дълготрайните активи - продажби към балансова стойност | H32: 050400 | I32: =IF('02'!I18=0,"",('01'!I4+'01'!I13+'01'!I14+'01'!I15+'01'!I16+'01'!I17+'01'!I18+'01'!I19)/MONTH($B32)*(365/12)/'02'!I18) -> 1.95 | J32: =IF('02'!J18=0,"",('01'!J4+'01'!J13+'01'!J14+'01'!J15+'01'!J16+'01'!J17+'01'!J18+'01'!J19)/MONTH($B32)*(365/12)/'02'!J18) -> 
A33: ='0'!$A$4 -> 000770111 | B33: ='0'!$A$2 -> 2020-09-30 | C33: Т05 | D33: 05 | E33: 05 | F33: 00 | G33: Обръщаемост на всички активи - продажби към балансова стойност | H33: 050500 | I33: =IF('02'!I4=0,"",('01'!I4+'01'!I13+'01'!I14+'01'!I15+'01'!I16+'01'!I17+'01'!I18+'01'!I19)/MONTH($B33)*(365/12)/'02'!I4) -> 1.61 | J33: =IF('02'!J4=0,"",('01'!J4+'01'!J13+'01'!J14+'01'!J15+'01'!J16+'01'!J17+'01'!J18+'01'!J19)/MONTH($B33)*(365/12)/'02'!J4) -> 
A34: ='0'!$A$4 -> 000770111 | B34: ='0'!$A$2 -> 2020-09-30 | C34: Т05 | D34: 06 | E34: 00 | F34: 00 | G34: Коефициенти за ефективност | H34: 060000
A35: ='0'!$A$4 -> 000770111 | B35: ='0'!$A$2 -> 2020-09-30 | C35: Т05 | D35: 06 | E35: 01 | F35: 00 | G35: Коефициент на ефективност на оперативните разходи | H35: 060100 | I35: =IF(('01'!I48+'01'!I51+'01'!I52)=0,"",-'01'!I3/('01'!I48+'01'!I51+'01'!I52)) -> 1.19 | J35: =IF(('01'!J48+'01'!J51+'01'!J52)=0,"",-'01'!J3/('01'!J48+'01'!J51+'01'!J52)) -> 
A36: ='0'!$A$4 -> 000770111 | B36: ='0'!$A$2 -> 2020-09-30 | C36: Т05 | D36: 06 | E36: 02 | F36: 00 | G36: Коефициент на ефективност на приходите от оперативна дейност | H36: 060200 | I36: =IF(('01'!I3)=0,"",'01'!I117/('01'!I3)) -> 0.16 | J36: =IF(('01'!J3)=0,"",'01'!J117/('01'!J3)) -> 
A37: ='0'!$A$4 -> 000770111 | B37: ='0'!$A$2 -> 2020-09-30 | C37: Т05 | D37: 06 | E37: 03 | F37: 00 | G37: Коефициент на възвръщаемост на активите | H37: 060300 | I37: =IF('02'!I4=0,"",'02'!I56/'02'!I4) -> 0.18 | J37: =IF('02'!J4=0,"",'02'!J56/'02'!J4) -> 
A38: ='0'!$A$4 -> 000770111 | B38: ='0'!$A$2 -> 2020-09-30 | C38: Т05 | D38: 07 | E38: 00 | F38: 00 | G38: Печалба/(загуба) за периода | H38: 070000 | I38: ='01'!I117 -> 364,914 | J38: ='01'!J117 -> 0

Sheet 06
A1: ='0'!$A$4 -> 000770111 | B1: ='0'!$A$2 -> 2020-09-30 | C1: Т06 | D1: ="Т06 СПРАВКА ЗА ПЕРСОНАЛ НА "&'0'!A6&" ОТ "&TEXT(DATE(YEAR(B1),1,1),"DD-MM-YYYY")&" ДО "&TEXT(B1,"DD-MM-YYYY") -> Т06 СПРАВКА ЗА ПЕРСОНАЛ НА СБПФЗПЛР "Цар Фердинанд 1" ЕООД - с. Искрец ОТ 01-01-2020 ДО 30-09-2020 | H1: Код | I1: Индивидуален (лева) | J1: Консолидиран (лева) | K1: =COUNTBLANK(I$5:I$29)+COUNTBLANK(I$41:I$58)+COUNTBLANK(I$60:I$69)+COUNTBLANK(I$76:I$77) -> 0 | L1: Разходите се посочват с положителен знак, пренасят се в Т01 с отрицателен, автоматично
A4: ='0'!$A$4 -> 000770111 | B4: ='0'!$A$2 -> 2020-09-30 | C4: Т06 | D4: 01 | E4: 00 | F4: 00 | G4: Трудови правоотношения | H4: =D4&E4&F4 -> 010000 | K4: =COUNTBLANK(J$5:J$29)+COUNTBLANK(J$41:J$58)+COUNTBLANK(J$60:J$69)+COUNTBLANK(J$76:J$77) -> 0
A5: ='0'!$A$4 -> 000770111 | B5: ='0'!$A$2 -> 2020-09-30 | C5: Т06 | D5: 01 | E5: 01 | F5: 00 | G5: Възнаграждения | H5: 010100 | I5: =SUM(I12:I17)+I8 -> 831,874 | J5: =SUM(J12:J17)+J8 -> 0 | L5: Стойността се пренася на ред 080100 от Т01
A6: ='0'!$A$4 -> 000770111 | B6: ='0'!$A$2 -> 2020-09-30 | C6: Т06 | D6: 01 | E6: 01 | F6: 1 | G6: от тях с характер на ДМС | H6: 01011 | I6: ='14'!BH9 -> 0 | J6: 0 | L6: Попълва се в Т14, кол. 56 по звена
A7: ='0'!$A$4 -> 000770111 | B7: ='0'!$A$2 -> 2020-09-30 | C7: Т06 | D7: 01 | E7: 01 | F7: 2 | G7: в т.ч. за работещи в условия на заплаха от COVID-19 | H7: 01012 | I7: 0 | J7: 0 | L7: Изплатени допълнителни възнаграждения, финансирани по Оперативна програма „Развитие на човешките ресурси” 2014-2020 г. за подкрепа на работещи в системата на здравеопазването в условия на заплаха за общественото здраве от COVID-19
A8: ='0'!$A$4 -> 000770111 | B8: ='0'!$A$2 -> 2020-09-30 | C8: Т06 | D8: 01 | E8: 01 | F8: 01 | G8: лекари | H8: 010101 | I8: =SUM(I9:I11) -> 222,727 | J8: =SUM(J9:J11) -> 0
A9: ='0'!$A$4 -> 000770111 | B9: ='0'!$A$2 -> 2020-09-30 | C9: Т06 | D9: 01 | E9: 01 | F9: 10 | G9: със специалност | H9: 010110 | I9: ='14'!AW9 -> 187,869 | J9: 0 | L9: Попълва се в Т14, кол. 46 по звена
A10: ='0'!$A$4 -> 000770111 | B10: ='0'!$A$2 -> 2020-09-30 | C10: Т06 | D10: 01 | E10: 01 | F10: 20 | G10: без специалност | H10: 010120 | I10: ='14'!AX9 -> 34,858 | J10: 0 | L10: Попълва се в Т14, кол. 47 по звена
A11: ='0'!$A$4 -> 000770111 | B11: ='0'!$A$2 -> 2020-09-30 | C11: Т06 | D11: 01 | E11: 01 | F11: 30 | G11: специализанти | H11: 010130 | I11: ='14'!AY9 -> 0 | J11: 0 | L11: Попълва се в Т14, кол. 48 по звена
A12: ='0'!$A$4 -> 000770111 | B12: ='0'!$A$2 -> 2020-09-30 | C12: Т06 | D12: 01 | E12: 01 | F12: 02 | G12: лекари по дентална медицина | H12: 010102 | I12: 0 | J12: 0
A13: ='0'!$A$4 -> 000770111 | B13: ='0'!$A$2 -> 2020-09-30 | C13: Т06 | D13: 01 | E13: 01 | F13: 03 | G13: фармацевти | H13: 010103 | I13: 21,153.00 | J13: 0
A14: ='0'!$A$4 -> 000770111 | B14: ='0'!$A$2 -> 2020-09-30 | C14: Т06 | D14: 01 | E14: 01 | F14: 04 | G14: специалисти по здравни грижи | H14: 010104 | I14: ='14'!AZ9 -> 283,307 | J14: 0 | L14: Попълва се в Т14, кол. 49 по звена
A15: ='0'!$A$4 -> 000770111 | B15: ='0'!$A$2 -> 2020-09-30 | C15: Т06 | D15: 01 | E15: 01 | F15: 05 | G15: санитари и болногледачи | H15: 010105 | I15: 65,829.00 | J15: 0
A16: ='0'!$A$4 -> 000770111 | B16: ='0'!$A$2 -> 2020-09-30 | C16: Т06 | D16: 01 | E16: 01 | F16: 06 | G16: висш немедицински персонал | H16: 010106 | I16: 55,666.00 | J16: 0 | L16: Персоналът със съответното образование, назначен на длъжност, изискваща го
A17: ='0'!$A$4 -> 000770111 | B17: ='0'!$A$2 -> 2020-09-30 | C17: Т06 | D17: 01 | E17: 01 | F17: 07 | G17: друг персонал | H17: 010107 | I17: 183,192.00 | J17: 0 | L17: Останалият персонал, извън изброените по-горе
A18: ='0'!$A$4 -> 000770111 | B18: ='0'!$A$2 -> 2020-09-30 | C18: Т06 | D18: 01 | E18: 02 | F18: 00 | G18: Средносписъчен брой на персонала по трудови правоотношения | H18: 010200 | I18: =SUM(I24:I29)+I20 -> 66 | J18: =SUM(J24:J29)+J20 -> 0
A19: ='0'!$A$4 -> 000770111 | B19: ='0'!$A$2 -> 2020-09-30 | C19: Т06 | D19: 01 | E19: 02 | F19: 1 | G19: в т.ч. бр. лица, работещи в условия на заплаха от COVID-19 | H19: =D19&E19&F19 -> 01021 | I19: 0 | J19: 0 | L19: Численост на персонала, подлежащ на стимулиране съгласно критериите на Оперативна програма „Развитие на човешките ресурси” 2014-2020 г., за подкрепа на работещи в системата на здравеопазването в условия на заплаха за общественото здраве от COVID-19
A20: ='0'!$A$4 -> 000770111 | B20: ='0'!$A$2 -> 2020-09-30 | C20: Т06 | D20: 01 | E20: 02 | F20: 01 | G20: лекари | H20: 010201 | I20: =SUM(I21:I23) -> 11 | J20: =SUM(J21:J23) -> 0
A21: ='0'!$A$4 -> 000770111 | B21: ='0'!$A$2 -> 2020-09-30 | C21: Т06 | D21: 01 | E21: 02 | F21: 10 | G21: със специалност | H21: 010210 | I21: ='14'!$AK$9 -> 9 | J21: 0 | L21: Попълва се в Т14, кол. 34 по звена
A22: ='0'!$A$4 -> 000770111 | B22: ='0'!$A$2 -> 2020-09-30 | C22: Т06 | D22: 01 | E22: 02 | F22: 20 | G22: без специалност | H22: 010220 | I22: ='14'!$AL$9 -> 2 | J22: 0 | L22: Попълва се в Т14, кол. 35 по звена
A23: ='0'!$A$4 -> 000770111 | B23: ='0'!$A$2 -> 2020-09-30 | C23: Т06 | D23: 01 | E23: 02 | F23: 30 | G23: специализанти | H23: 010230 | I23: ='14'!$AM$9 -> 0 | J23: 0 | L23: Попълва се в Т14, кол. 36 по звена
A24: ='0'!$A$4 -> 000770111 | B24: ='0'!$A$2 -> 2020-09-30 | C24: Т06 | D24: 01 | E24: 02 | F24: 02 | G24: лекари по дентална медицина | H24: 010202 | I24: 0 | J24: 0
A25: ='0'!$A$4 -> 000770111 | B25: ='0'!$A$2 -> 2020-09-30 | C25: Т06 | D25: 01 | E25: 02 | F25: 03 | G25: фармацевти | H25: 010203 | I25: 1.00 | J25: 0
A26: ='0'!$A$4 -> 000770111 | B26: ='0'!$A$2 -> 2020-09-30 | C26: Т06 | D26: 01 | E26: 02 | F26: 04 | G26: специалисти по здравни грижи | H26: 010204 | I26: ='14'!$AN$9 -> 21 | J26: 0 | L26: Попълва се в Т14, кол. 37 по звена
A27: ='0'!$A$4 -> 000770111 | B27: ='0'!$A$2 -> 2020-09-30 | C27: Т06 | D27: 01 | E27: 02 | F27: 05 | G27: санитари и болногледачи | H27: 010205 | I27: 9.00 | J27: 0
A28: ='0'!$A$4 -> 000770111 | B28: ='0'!$A$2 -> 2020-09-30 | C28: Т06 | D28: 01 | E28: 02 | F28: 06 | G28: висш немедицински персонал | H28: 010206 | I28: 3.00 | J28: 0
A29: ='0'!$A$4 -> 000770111 | B29: ='0'!$A$2 -> 2020-09-30 | C29: Т06 | D29: 01 | E29: 02 | F29: 07 | G29: друг персонал | H29: 010207 | I29: 21.00 | J29: 0
A30: ='0'!$A$4 -> 000770111 | B30: ='0'!$A$2 -> 2020-09-30 | C30: Т06 | D30: 01 | E30: 03 | F30: 00 | G30: Средномесечно възнаграждение на персонала по трудови правоотношения | H30: 010300 | I30: =IF(I18=0,"",I5/I18/MONTH($B30)) -> 1,400 | J30: =IF(J18=0,"",J5/J18/MONTH($B30)) -> 
A31: ='0'!$A$4 -> 000770111 | B31: ='0'!$A$2 -> 2020-09-30 | C31: Т06 | D31: 01 | E31: 03 | F31: 01 | G31: лекари | H31: 010301 | I31: =IF(I20=0,"",I8/I20/MONTH($B31)) -> 2,250
A32: ='0'!$A$4 -> 000770111 | B32: ='0'!$A$2 -> 2020-09-30 | C32: Т06 | D32: 01 | E32: 03 | F32: 10 | G32: със специалност | H32: 010310 | I32: 2,319
A33: ='0'!$A$4 -> 000770111 | B33: ='0'!$A$2 -> 2020-09-30 | C33: Т06 | D33: 01 | E33: 03 | F33: 20 | G33: без специалност | H33: 010320 | I33: 1,937
A34: ='0'!$A$4 -> 000770111 | B34: ='0'!$A$2 -> 2020-09-30 | C34: Т06 | D34: 01 | E34: 03 | F34: 30 | G34: специализанти | H34: 010330
A35: ='0'!$A$4 -> 000770111 | B35: ='0'!$A$2 -> 2020-09-30 | C35: Т06 | D35: 01 | E35: 03 | F35: 02 | G35: лекари по дентална медицина | H35: 010302
A36: ='0'!$A$4 -> 000770111 | B36: ='0'!$A$2 -> 2020-09-30 | C36: Т06 | D36: 01 | E36: 03 | F36: 03 | G36: фармацевти | H36: 010303 | I36: 2,350
A37: ='0'!$A$4 -> 000770111 | B37: ='0'!$A$2 -> 2020-09-30 | C37: Т06 | D37: 01 | E37: 03 | F37: 04 | G37: специалисти по здравни грижи | H37: 010304 | I37: 1,499
A38: ='0'!$A$4 -> 000770111 | B38: ='0'!$A$2 -> 2020-09-30 | C38: Т06 | D38: 01 | E38: 03 | F38: 05 | G38: санитари и болногледачи | H38: 010305 | I38: 813
A39: ='0'!$A$4 -> 000770111 | B39: ='0'!$A$2 -> 2020-09-30 | C39: Т06 | D39: 01 | E39: 03 | F39: 06 | G39: висш немедицински персонал | H39: 010306 | I39: 2,062
A40: ='0'!$A$4 -> 000770111 | B40: ='0'!$A$2 -> 2020-09-30 | C40: Т06 | D40: 01 | E40: 03 | F40: 07 | G40: друг персонал | H40: 010307 | I40: 969
A41: ='0'!$A$4 -> 000770111 | B41: ='0'!$A$2 -> 2020-09-30 | C41: Т06 | D41: 01 | E41: 04 | F41: 00 | G41: Заети щатни бройки медицински персонал към края на периода | H41: 010400 | I41: =I42+I46 -> 32 | J41: =J42+J46 -> 0
A42: ='0'!$A$4 -> 000770111 | B42: ='0'!$A$2 -> 2020-09-30 | C42: Т06 | D42: 01 | E42: 04 | F42: 01 | G42: лекари | H42: 010401 | I42: =SUM(I43:I45) -> 11 | J42: 0
A43: ='0'!$A$4 -> 000770111 | B43: ='0'!$A$2 -> 2020-09-30 | C43: Т06 | D43: 01 | E43: 04 | F43: 10 | G43: със специалност | H43: 010410 | I43: ='14'!AG9 -> 9 | J43: 0 | L43: Попълва се в Т14, кол. 30 по звена
A44: ='0'!$A$4 -> 000770111 | B44: ='0'!$A$2 -> 2020-09-30 | C44: Т06 | D44: 01 | E44: 04 | F44: 20 | G44: без специалност | H44: 010420 | I44: ='14'!AH9 -> 2 | J44: 0 | L44: Попълва се в Т14, кол. 31 по звена
A45: ='0'!$A$4 -> 000770111 | B45: ='0'!$A$2 -> 2020-09-30 | C45: Т06 | D45: 01 | E45: 04 | F45: 30 | G45: специализанти | H45: 010430 | I45: ='14'!AI9 -> 0 | J45: 0 | L45: Попълва се в Т14, кол. 32 по звена
A46: ='0'!$A$4 -> 000770111 | B46: ='0'!$A$2 -> 2020-09-30 | C46: Т06 | D46: 01 | E46: 04 | F46: 02 | G46: специалисти по здравни грижи | H46: 010402 | I46: ='14'!AJ9 -> 21 | J46: 0 | L46: Попълва се в Т14, кол. 33 по звена
A47: ='0'!$A$4 -> 000770111 | B47: ='0'!$A$2 -> 2020-09-30 | C47: Т06 | D47: 01 | E47: 05 | F47: 00 | G47: Реално отработени часове от медицинския персонал преди преобразуването на нощния в дневен | H47: 010500 | I47: =I48+I52 -> 34,441 | J47: =J48+J52 -> 0
A48: ='0'!$A$4 -> 000770111 | B48: ='0'!$A$2 -> 2020-09-30 | C48: Т06 | D48: 01 | E48: 05 | F48: 01 | G48: лекари | H48: 010501 | I48: =SUM(I49:I51) -> 11,241 | J48: =SUM(J49:J51) -> 0
A49: ='0'!$A$4 -> 000770111 | B49: ='0'!$A$2 -> 2020-09-30 | C49: Т06 | D49: 01 | E49: 05 | F49: 10 | G49: със специалност | H49: 010510 | I49: ='14'!AO9 -> 9,123 | J49: 0 | L49: Попълва се в Т14, кол. 38 по звена
A50: ='0'!$A$4 -> 000770111 | B50: ='0'!$A$2 -> 2020-09-30 | C50: Т06 | D50: 01 | E50: 05 | F50: 20 | G50: без специалност | H50: 010520 | I50: ='14'!AP9 -> 2,118 | J50: 0 | L50: Попълва се в Т14, кол. 39 по звена
A51: ='0'!$A$4 -> 000770111 | B51: ='0'!$A$2 -> 2020-09-30 | C51: Т06 | D51: 01 | E51: 05 | F51: 30 | G51: специализанти | H51: 010530 | I51: ='14'!AQ9 -> 0 | J51: 0 | L51: Попълва се в Т14, кол. 40 по звена
A52: ='0'!$A$4 -> 000770111 | B52: ='0'!$A$2 -> 2020-09-30 | C52: Т06 | D52: 01 | E52: 05 | F52: 02 | G52: специалисти по здравни грижи | H52: 010502 | I52: ='14'!AR9 -> 23,200 | J52: 0 | L52: Попълва се в Т14, кол. 41 по звена
A53: ='0'!$A$4 -> 000770111 | B53: ='0'!$A$2 -> 2020-09-30 | C53: Т06 | D53: 01 | E53: 06 | F53: 00 | G53: От тях часове извънреден труд (текущ и изравнителен) | H53: 010600 | I53: =I54+I58 -> 0 | J53: =J54+J58 -> 0
A54: ='0'!$A$4 -> 000770111 | B54: ='0'!$A$2 -> 2020-09-30 | C54: Т06 | D54: 01 | E54: 06 | F54: 01 | G54: лекари | H54: 010601 | I54: =SUM(I55:I57) -> 0 | J54: =SUM(J55:J57) -> 0
A55: ='0'!$A$4 -> 000770111 | B55: ='0'!$A$2 -> 2020-09-30 | C55: Т06 | D55: 01 | E55: 06 | F55: 10 | G55: със специалност | H55: 010610 | I55: ='14'!$AS$9 -> 0 | J55: 0 | L55: Попълва се в Т14, кол. 42 по звена
A56: ='0'!$A$4 -> 000770111 | B56: ='0'!$A$2 -> 2020-09-30 | C56: Т06 | D56: 01 | E56: 06 | F56: 20 | G56: без специалност | H56: 010620 | I56: ='14'!$AT$9 -> 0 | J56: 0 | L56: Попълва се в Т14, кол. 43 по звена
A57: ='0'!$A$4 -> 000770111 | B57: ='0'!$A$2 -> 2020-09-30 | C57: Т06 | D57: 01 | E57: 06 | F57: 30 | G57: специализанти | H57: 010630 | I57: ='14'!$AU$9 -> 0 | J57: 0 | L57: Попълва се в Т14, кол. 44 по звена
A58: ='0'!$A$4 -> 000770111 | B58: ='0'!$A$2 -> 2020-09-30 | C58: Т06 | D58: 01 | E58: 06 | F58: 02 | G58: специалисти по здравни грижи | H58: 010602 | I58: ='14'!$AV$9 -> 0 | J58: 0 | L58: Попълва се в Т14, кол. 45 по звена
A59: ='0'!$A$4 -> 000770111 | B59: ='0'!$A$2 -> 2020-09-30 | C59: Т06 | D59: 02 | E59: 00 | F59: 00 | G59: Извънтрудови правоотношения | H59: 020000
A60: ='0'!$A$4 -> 000770111 | B60: ='0'!$A$2 -> 2020-09-30 | C60: Т06 | D60: 02 | E60: 01 | F60: 00 | G60: Възнаграждения | H60: 020100 | I60: =SUM(I62:I64)+I61 -> 32,938 | J60: =SUM(J62:J64)+J61 -> 0 | L60: Стойността се пренася на ред 080200 от Т01
A61: ='0'!$A$4 -> 000770111 | B61: ='0'!$A$2 -> 2020-09-30 | C61: Т06 | D61: 02 | E61: 01 | F61: 01 | G61: лекари | H61: 020101 | I61: 2,431.00 | J61: 0
A62: ='0'!$A$4 -> 000770111 | B62: ='0'!$A$2 -> 2020-09-30 | C62: Т06 | D62: 02 | E62: 01 | F62: 02 | G62: специалисти по здравни грижи | H62: 020102 | I62: 0 | J62: 0
A63: ='0'!$A$4 -> 000770111 | B63: ='0'!$A$2 -> 2020-09-30 | C63: Т06 | D63: 02 | E63: 01 | F63: 04 | G63: санитари и болногледачи | H63: 020104 | I63: 0 | J63: 0
A64: ='0'!$A$4 -> 000770111 | B64: ='0'!$A$2 -> 2020-09-30 | C64: Т06 | D64: 02 | E64: 01 | F64: 03 | G64: други | H64: 020103 | I64: 30,507.00 | J64: 0
A65: ='0'!$A$4 -> 000770111 | B65: ='0'!$A$2 -> 2020-09-30 | C65: Т06 | D65: 02 | E65: 02 | F65: 00 | G65: Средномесечен брой (физически лица) | H65: 020200 | I65: =SUM(I66:I69) -> 2 | J65: =SUM(J66:J69) -> 0
A66: ='0'!$A$4 -> 000770111 | B66: ='0'!$A$2 -> 2020-09-30 | C66: Т06 | D66: 02 | E66: 02 | F66: 01 | G66: лекари | H66: 020201 | I66: 1.00 | J66: 0
A67: ='0'!$A$4 -> 000770111 | B67: ='0'!$A$2 -> 2020-09-30 | C67: Т06 | D67: 02 | E67: 02 | F67: 02 | G67: специалисти по здравни грижи | H67: 020202 | I67: 0 | J67: 0
A68: ='0'!$A$4 -> 000770111 | B68: ='0'!$A$2 -> 2020-09-30 | C68: Т06 | D68: 02 | E68: 02 | F68: 04 | G68: санитари и болногледачи | H68: 020204 | I68: 0 | J68: 0
A69: ='0'!$A$4 -> 000770111 | B69: ='0'!$A$2 -> 2020-09-30 | C69: Т06 | D69: 02 | E69: 02 | F69: 03 | G69: други | H69: 020203 | I69: 1.00 | J69: 0
A70: ='0'!$A$4 -> 000770111 | B70: ='0'!$A$2 -> 2020-09-30 | C70: Т06 | D70: 02 | E70: 03 | F70: 00 | G70: Средномесечно възнаграждение | H70: 020300 | I70: =IF(I59=0,"",I48/I59/MONTH($B70)) ->  | J70: =IF(J65=0,"",J60/J65/MONTH($B70)) -> 
A71: ='0'!$A$4 -> 000770111 | B71: ='0'!$A$2 -> 2020-09-30 | C71: Т06 | D71: 02 | E71: 03 | F71: 01 | G71: лекари | H71: 020301 | I71: =IF(I66=0,"",I61/I66/MONTH($B71)) -> 270 | J71: =IF(J66=0,"",J61/J66/MONTH($B71)) -> 
A72: ='0'!$A$4 -> 000770111 | B72: ='0'!$A$2 -> 2020-09-30 | C72: Т06 | D72: 02 | E72: 03 | F72: 02 | G72: специалисти по здравни грижи | H72: =D72&E72&F72 -> 020302 | I72: =IF(I67=0,"",I62/I67/MONTH($B72)) ->  | J72: =IF(J67=0,"",-J62/J67/MONTH($B72)) -> 
A73: ='0'!$A$4 -> 000770111 | B73: ='0'!$A$2 -> 2020-09-30 | C73: Т06 | D73: 02 | E73: 03 | F73: 04 | G73: санитари и болногледачи | H73: 020304 | I73: =IF(I68=0,"",I63/I68/MONTH($B73)) -> 
A74: ='0'!$A$4 -> 000770111 | B74: ='0'!$A$2 -> 2020-09-30 | C74: Т06 | D74: 02 | E74: 03 | F74: 03 | G74: други | H74: 020303 | I74: =IF(I69=0,"",I64/I69/MONTH($B74)) -> 3,390 | J74: =IF(J69=0,"",J64/J69/MONTH($B74)) -> 
A75: ='0'!$A$4 -> 000770111 | B75: ='0'!$A$2 -> 2020-09-30 | C75: Т06 | D75: 03 | E75: 00 | F75: 00 | G75: Договори за управление и контрол | H75: 030000
A76: ='0'!$A$4 -> 000770111 | B76: ='0'!$A$2 -> 2020-09-30 | C76: Т06 | D76: 03 | E76: 01 | F76: 00 | G76: Възнаграждения | H76: 030100 | I76: =-'01'!I97 -> 79,229 | J76: =-'01'!J97 -> 0 | L76: Попълва се в Т11, диференцирано по ЕИК на дружеството което се управлява/контролира
A77: ='0'!$A$4 -> 000770111 | B77: ='0'!$A$2 -> 2020-09-30 | C77: Т06 | D77: 03 | E77: 02 | F77: 00 | G77: Средномесечен брой | H77: 030200 | I77: 2.00 | J77: 0
A78: ='0'!$A$4 -> 000770111 | B78: ='0'!$A$2 -> 2020-09-30 | C78: Т06 | D78: 03 | E78: 03 | F78: 00 | G78: Средномесечно възнаграждение | H78: 030300 | I78: =IF(I77=0,"",I76/I77/MONTH($B78)) -> 4,402 | J78: =IF(J77=0,"",J76/J77/MONTH($B78)) -> 
A79: ='0'!$A$4 -> 000770111 | B79: ='0'!$A$2 -> 2020-09-30 | C79: Т06 | D79: 04 | E79: 00 | F79: 00 | G79: Общо разходи за персонал | H79: 040000 | I79: =-'01'!I93 -> 1,113,616 | J79: =-'01'!J93 -> 0
A80: ='0'!$A$4 -> 000770111 | B80: ='0'!$A$2 -> 2020-09-30 | C80: Т06 | D80: 04 | E80: 01 | F80: 00 | G80: в т. ч.: разходи за медицински персонал | H80: 040100 | I80: 0 | J80: 0
A81: ='0'!$A$4 -> 000770111 | B81: ='0'!$A$2 -> 2020-09-30 | C81: Т06 | D81: 04 | E81: 02 | F81: 00 | G81: Дял на разходите за персонал в приходите от медицински дейности (КП/АПр/КПр) в % | H81: 040200 | I81: =IF(SUM('01'!I6:I8)=0,"",(I79/SUM('01'!I6:I8))) -> 117% | J81: =IF(SUM('01'!J6:J8)=0,"",(J79/SUM('01'!J6:J8))) -> 
A82: ='0'!$A$4 -> 000770111 | B82: ='0'!$A$2 -> 2020-09-30 | C82: Т06 | D82: 04 | E82: 03 | F82: 00 | G82: Дял на разходите за медицински персонал в общите разходи за персонал % | H82: 040300 | I82: =IF(I79=0,"",(I80/I79)) -> 0% | J82: =IF(J79=0,"",(J80/J79)) -> 
A83: ='0'!$A$4 -> 000770111 | B83: ='0'!$A$2 -> 2020-09-30 | C83: Т06 | D83: 04 | E83: 04 | F83: 00 | G83: Средно месечен брой болни на един лекар | H83: 040400 | I83: =IF(I20=0,"",'07'!I10/I20/MONTH($B83)) -> 23 | J83: =IF(J20=0,"",'07'!I10/J20/MONTH($B83)) -> 
A84: ='0'!$A$4 -> 000770111 | B84: ='0'!$A$2 -> 2020-09-30 | C84: Т06 | D84: 04 | E84: 05 | F84: 00 | G84: Средно месечен брой болни на един специалист по здравни грижи | H84: 040500 | I84: =IF(I26=0,"",'07'!I10/I26/MONTH($B84)) -> 12 | J84: =IF(J26=0,"",'07'!I10/J26/MONTH($B84)) -> 

Sheet 07
A1: ='0'!$A$4 -> 000770111 | B1: ='0'!$A$2 -> 2020-09-30 | C1: Т07 | D1: ="Т07 НАТУРАЛНИ ПОКАЗАТЕЛИ ЗА ДЕЙНОСТТА НА СТАЦИОНАРА НА "&'0'!$A$6&" ОТ "&TEXT(DATE(YEAR(B1),1,1),"DD-MM-YYYY")&" ДО "&TEXT(B1,"DD-MM-YYYY") -> Т07 НАТУРАЛНИ ПОКАЗАТЕЛИ ЗА ДЕЙНОСТТА НА СТАЦИОНАРА НА СБПФЗПЛР "Цар Фердинанд 1" ЕООД - с. Искрец ОТ 01-01-2020 ДО 30-09-2020 | H1: Код | I1: Стойност
D4: 01 | E4: 00 | F4: 00 | G4: Дейност на отделенията с легла в стационара
A5: ='0'!$A$4 -> 000770111 | B5: ='0'!$A$2 -> 2020-09-30 | C5: Т07 | D5: 01 | E5: 01 | F5: 00 | G5: Брой легла към края на периода | H5: =D5&E5&F5 -> 010100 | I5: ='14'!O9 -> 170 | K5: Попълва се в Т14, кол. 12 по звена
A6: ='0'!$A$4 -> 000770111 | B6: ='0'!$A$2 -> 2020-09-30 | C6: Т07 | D6: 01 | E6: 01 | F6: 1 | G6: от тях интензивни | H6: 01011 | I6: ='14'!P9 -> 0 | K6: Попълва се в Т14, кол. 13 по звена
A7: ='0'!$A$4 -> 000770111 | B7: ='0'!$A$2 -> 2020-09-30 | C7: Т07 | D7: 01 | E7: 02 | F7: 00 | G7: Средномесечен брой легла | H7: 010200 | I7: ='14'!Q9 -> 170 | K7: Попълва се в Т14, кол. 14 по звена
A8: ='0'!$A$4 -> 000770111 | B8: ='0'!$A$2 -> 2020-09-30 | C8: Т07 | D8: 01 | E8: 02 | F8: 1 | G8: от тях интензивни | H8: 01021 | I8: ='14'!R9 -> 0 | K8: Попълва се в Т14, кол. 15 по звена
A9: ='0'!$A$4 -> 000770111 | B9: ='0'!$A$2 -> 2020-09-30 | C9: Т07 | D9: 01 | E9: 03 | F9: 00 | G9: Брой проведени леглодни | H9: 010300 | I9: ='14'!S9 -> 43,321 | K9: Попълва се в Т14, кол. 16 по звена
A10: ='0'!$A$4 -> 000770111 | B10: ='0'!$A$2 -> 2020-09-30 | C10: Т07 | D10: 01 | E10: 04 | F10: 00 | G10: Брой преминали болни | H10: 010400 | I10: ='14'!T9 -> 2,326 | K10: Попълва се в Т14, кол. 17 по звена
A11: ='0'!$A$4 -> 000770111 | B11: ='0'!$A$2 -> 2020-09-30 | C11: Т07 | D11: 01 | E11: 04 | F11: 1 | G11: от тях с коронавирус | H11: =D11&E11&F11 -> 01041 | I11: ='14'!U9 -> 0 | K11: Попълва се в Т14, кол. 18 по звена
A12: ='0'!$A$4 -> 000770111 | B12: ='0'!$A$2 -> 2020-09-30 | C12: Т07 | D12: 01 | E12: 05 | F12: 00 | G12: Брой изписани болни | H12: 010500 | I12: ='14'!V9 -> 2,172 | K12: Попълва се в Т14, кол. 19 по звена
A13: ='0'!$A$4 -> 000770111 | B13: ='0'!$A$2 -> 2020-09-30 | C13: Т07 | D13: 01 | E13: 06 | F13: 00 | G13: Брой умрели болни | H13: 010600 | I13: ='14'!X9 -> 2 | K13: Попълва се в Т14, кол. 21 по звена
A14: ='0'!$A$4 -> 000770111 | B14: ='0'!$A$2 -> 2020-09-30 | C14: Т07 | D14: 01 | E14: 07 | F14: 00 | G14: Средна продължителност на престоя в дни | H14: 010700 | I14: =IF(I10=0,"-",I9/I10) -> 19
A15: ='0'!$A$4 -> 000770111 | B15: ='0'!$A$2 -> 2020-09-30 | C15: Т07 | D15: 01 | E15: 08 | F15: 00 | G15: Използваемост на едно легло в дни | H15: 010800 | I15: =IF(I16="-","-",(B15-DATE(YEAR(B15),1,1))*I16) -> 255
A16: ='0'!$A$4 -> 000770111 | B16: ='0'!$A$2 -> 2020-09-30 | C16: Т07 | D16: 01 | E16: 09 | F16: 00 | G16: Използваемост на едно легло в % | H16: 010900 | I16: =IF(I7=0,"-",I9/((B16-DATE(YEAR(B16),1,1))*I7)) -> 93.34%
A17: ='0'!$A$4 -> 000770111 | B17: ='0'!$A$2 -> 2020-09-30 | C17: Т07 | D17: 01 | E17: 10 | F17: 00 | G17: Оборот на едно легло | H17: 011000 | I17: =IF(I7=0,"-",I10/I7) -> 14
A18: ='0'!$A$4 -> 000770111 | B18: ='0'!$A$2 -> 2020-09-30 | C18: Т07 | D18: 01 | E18: 13 | F18: 00 | G18: Леталитет (%) | H18: =D18&E18&F18 -> 011300 | I18: =IF(I10=0,"-",I13/I10) -> 0.09%
A19: ='0'!$A$4 -> 000770111 | B19: ='0'!$A$2 -> 2020-09-30 | C19: Т07 | D19: 01 | E19: 14 | F19: 01 | G19: Среден разход на преминал болен | H19: =D19&E19&F19 -> 011401 | I19: =IF(OR(I14="-",'08'!I4=0),"-",I14*'08'!I4) -> 809

Sheet 08
A1: ='0'!$A$4 -> 000770111 | B1: ='0'!$A$2 -> 2020-09-30 | C1: Т08 | D1: ="Т08 РАЗХОДИ НА ЛЕГЛОДЕН ПО ВИДОВЕ НА "&'0'!$A$6&" ОТ "&TEXT(DATE(YEAR(B1),1,1),"DD-MM-YYYY")&" ДО "&TEXT(B1,"DD-MM-YYYY") -> Т08 РАЗХОДИ НА ЛЕГЛОДЕН ПО ВИДОВЕ НА СБПФЗПЛР "Цар Фердинанд 1" ЕООД - с. Искрец ОТ 01-01-2020 ДО 30-09-2020 | H1: Код | I1: Лева
A4: ='0'!$A$4 -> 000770111 | B4: ='0'!$A$2 -> 2020-09-30 | C4: Т08 | D4: 00 | E4: 00 | F4: 00 | G4: Всичко разходи за оперативната дейност на леглоден | H4: =D4&E4&F4 -> 000000 | I4: =IF('07'!$I$9=0,"",-('01'!I53+'01'!I77+'01'!I93+'01'!I100+'01'!I101)/'07'!$I$9) -> 43 | K4: Показателят разделя всички разходи на болницата по видове от Т01 на проведените леглодни. Не нетира разходите за медикаменти за домашно лечение и разходите на звена като диализа, които не генерират леглоден. Съпоставими показатели между болници ще се извършват по профила на звената на база данните в Т14.
A5: ='0'!$A$4 -> 000770111 | B5: ='0'!$A$2 -> 2020-09-30 | C5: Т08 | D5: 01 | E5: 00 | F5: 00 | G5: Разходи за материали | H5: 010000 | I5: =IF('07'!$I$9=0,"",-'01'!I53/'07'!$I$9) -> 7
A6: ='0'!$A$4 -> 000770111 | B6: ='0'!$A$2 -> 2020-09-30 | C6: Т08 | D6: 01 | E6: 01 | F6: 00 | G6: Лекарствени продукти | H6: 010100 | I6: =IF('07'!$I$9=0,"",-'01'!I54/'07'!$I$9) -> 1
A7: ='0'!$A$4 -> 000770111 | B7: ='0'!$A$2 -> 2020-09-30 | C7: Т08 | D7: 01 | E7: 02 | F7: 00 | G7: Медицински изделия | H7: 010200 | I7: =IF('07'!$I$9=0,"",-'01'!I60/'07'!$I$9) -> 0
A8: ='0'!$A$4 -> 000770111 | B8: ='0'!$A$2 -> 2020-09-30 | C8: Т08 | D8: 01 | E8: 03 | F8: 00 | G8: Кръвни и биопродукти | H8: 010300 | I8: =IF('07'!$I$9=0,"",-'01'!I66/'07'!$I$9) -> 0
A9: ='0'!$A$4 -> 000770111 | B9: ='0'!$A$2 -> 2020-09-30 | C9: Т08 | D9: 01 | E9: 04 | F9: 00 | G9: Медицински газове | H9: 010400 | I9: =IF('07'!$I$9=0,"",-'01'!I67/'07'!$I$9) -> 0
A10: ='0'!$A$4 -> 000770111 | B10: ='0'!$A$2 -> 2020-09-30 | C10: Т08 | D10: 01 | E10: 05 | F10: 00 | G10: Храна на болни | H10: 010500 | I10: =IF('07'!$I$9=0,"",-'01'!I68/'07'!$I$9) -> 1
A11: ='0'!$A$4 -> 000770111 | B11: ='0'!$A$2 -> 2020-09-30 | C11: Т08 | D11: 01 | E11: 06 | F11: 00 | G11: Храна на персонал (Наредба 11) | H11: 010600 | I11: =IF('07'!$I$9=0,"",-'01'!I69/'07'!$I$9) -> 0
A12: ='0'!$A$4 -> 000770111 | B12: ='0'!$A$2 -> 2020-09-30 | C12: Т08 | D12: 01 | E12: 07 | F12: 00 | G12: Вода, горива, ел. енергия, топлинна енергия | H12: 010700 | I12: =IF('07'!$I$9=0,"",-'01'!I70/'07'!$I$9) -> 2
A13: ='0'!$A$4 -> 000770111 | B13: ='0'!$A$2 -> 2020-09-30 | C13: Т08 | D13: 01 | E13: 08 | F13: 00 | G13: Резервни части и доокомплектовка на апаратура | H13: 010800 | I13: =IF('07'!$I$9=0,"",-'01'!I71/'07'!$I$9) -> 0
A14: ='0'!$A$4 -> 000770111 | B14: ='0'!$A$2 -> 2020-09-30 | C14: Т08 | D14: 01 | E14: 09 | F14: 00 | G14: Медицински принадлежности | H14: 010900 | I14: =IF('07'!$I$9=0,"",-'01'!I72/'07'!$I$9) -> 0
A15: ='0'!$A$4 -> 000770111 | B15: ='0'!$A$2 -> 2020-09-30 | C15: Т08 | D15: 01 | E15: 10 | F15: 00 | G15: Хигиенни материали | H15: 011000 | I15: =IF('07'!$I$9=0,"",-'01'!I73/'07'!$I$9) -> 0
A16: ='0'!$A$4 -> 000770111 | B16: ='0'!$A$2 -> 2020-09-30 | C16: Т08 | D16: 01 | E16: 11 | F16: 00 | G16: Канцеларски материали | H16: 011100 | I16: =IF('07'!$I$9=0,"",-'01'!I74/'07'!$I$9) -> 0
A17: ='0'!$A$4 -> 000770111 | B17: ='0'!$A$2 -> 2020-09-30 | C17: Т08 | D17: 01 | E17: 12 | F17: 00 | G17: Работно облекло и постелен инвентар | H17: 011200 | I17: =IF('07'!$I$9=0,"",-'01'!I75/'07'!$I$9) -> 0
A18: ='0'!$A$4 -> 000770111 | B18: ='0'!$A$2 -> 2020-09-30 | C18: Т08 | D18: 01 | E18: 13 | F18: 00 | G18: Други материали | H18: 011300 | I18: =IF('07'!$I$9=0,"",-'01'!I76/'07'!$I$9) -> 0
A19: ='0'!$A$4 -> 000770111 | B19: ='0'!$A$2 -> 2020-09-30 | C19: Т08 | D19: 02 | E19: 00 | F19: 00 | G19: Разходи за външни услуги | H19: 020000 | I19: =IF('07'!$I$9=0,"",-'01'!I77/'07'!$I$9) -> 9
A20: ='0'!$A$4 -> 000770111 | B20: ='0'!$A$2 -> 2020-09-30 | C20: Т08 | D20: 02 | E20: 01 | F20: 00 | G20: Текущ ремонт на сграден фонд | H20: 020100 | I20: =IF('07'!$I$9=0,"",-'01'!I78/'07'!$I$9) -> 4
A21: ='0'!$A$4 -> 000770111 | B21: ='0'!$A$2 -> 2020-09-30 | C21: Т08 | D21: 02 | E21: 02 | F21: 00 | G21: Текущ ремонт на апаратура и оборудване | H21: 020200 | I21: =IF('07'!$I$9=0,"",-'01'!I79/'07'!$I$9) -> 0
A22: ='0'!$A$4 -> 000770111 | B22: ='0'!$A$2 -> 2020-09-30 | C22: Т08 | D22: 02 | E22: 03 | F22: 00 | G22: Поддръжка на оборудване и софтуер | H22: 020300 | I22: =IF('07'!$I$9=0,"",-'01'!I80/'07'!$I$9) -> 1
A23: ='0'!$A$4 -> 000770111 | B23: ='0'!$A$2 -> 2020-09-30 | C23: Т08 | D23: 02 | E23: 04 | F23: 00 | G23: Наети активи | H23: 020400 | I23: =IF('07'!$I$9=0,"",-'01'!I81/'07'!$I$9) -> 0
A24: ='0'!$A$4 -> 000770111 | B24: ='0'!$A$2 -> 2020-09-30 | C24: Т08 | D24: 02 | E24: 05 | F24: 00 | G24: Медицински услуги | H24: 020500 | I24: =IF('07'!$I$9=0,"",-'01'!I82/'07'!$I$9) -> 0
A25: ='0'!$A$4 -> 000770111 | B25: ='0'!$A$2 -> 2020-09-30 | C25: Т08 | D25: 02 | E25: 06 | F25: 00 | G25: Транспорт | H25: 020600 | I25: =IF('07'!$I$9=0,"",-'01'!I83/'07'!$I$9) -> 0
A26: ='0'!$A$4 -> 000770111 | B26: ='0'!$A$2 -> 2020-09-30 | C26: Т08 | D26: 02 | E26: 07 | F26: 00 | G26: Застраховки | H26: 020700 | I26: =IF('07'!$I$9=0,"",-'01'!I84/'07'!$I$9) -> 0
A27: ='0'!$A$4 -> 000770111 | B27: ='0'!$A$2 -> 2020-09-30 | C27: Т08 | D27: 02 | E27: 08 | F27: 00 | G27: Телефон, интернет, пощенски и куриерски услуги | H27: 020800 | I27: =IF('07'!$I$9=0,"",-'01'!I85/'07'!$I$9) -> 0
A28: ='0'!$A$4 -> 000770111 | B28: ='0'!$A$2 -> 2020-09-30 | C28: Т08 | D28: 02 | E28: 09 | F28: 00 | G28: Събиране, транспортиране и обезвреждане на отпадъци | H28: 020900 | I28: =IF('07'!$I$9=0,"",-'01'!I86/'07'!$I$9) -> 0
A29: ='0'!$A$4 -> 000770111 | B29: ='0'!$A$2 -> 2020-09-30 | C29: Т08 | D29: 02 | E29: 10 | F29: 00 | G29: Почистване, пране, стерилизация | H29: 021000 | I29: =IF('07'!$I$9=0,"",-'01'!I87/'07'!$I$9) -> 0
A30: ='0'!$A$4 -> 000770111 | B30: ='0'!$A$2 -> 2020-09-30 | C30: Т08 | D30: 02 | E30: 11 | F30: 00 | G30: Юридически услуги | H30: 021100 | I30: =IF('07'!$I$9=0,"",-'01'!I88/'07'!$I$9) -> 0
A31: ='0'!$A$4 -> 000770111 | B31: ='0'!$A$2 -> 2020-09-30 | C31: Т08 | D31: 02 | E31: 12 | F31: 00 | G31: Консултантски услуги | H31: 021200 | I31: =IF('07'!$I$9=0,"",-'01'!I89/'07'!$I$9) -> 0
A32: ='0'!$A$4 -> 000770111 | B32: ='0'!$A$2 -> 2020-09-30 | C32: Т08 | D32: 02 | E32: 13 | F32: 00 | G32: Други | H32: 021300 | I32: =IF('07'!$I$9=0,"",-'01'!I90/'07'!$I$9) -> 3
A33: ='0'!$A$4 -> 000770111 | B33: ='0'!$A$2 -> 2020-09-30 | C33: Т08 | D33: 02 | E33: 14 | F33: 00 | G33: Храна на болни | H33: =D33&E33&F33 -> 021400 | I33: =IF('07'!$I$9=0,"",-'01'!I91/'07'!$I$9) -> 0
A34: ='0'!$A$4 -> 000770111 | B34: ='0'!$A$2 -> 2020-09-30 | C34: Т08 | D34: 02 | E34: 15 | F34: 00 | G34: Храна на персонал (Наредба 11) | H34: =D34&E34&F34 -> 021500 | I34: =IF('07'!$I$9=0,"",-'01'!I92/'07'!$I$9) -> 0
A35: ='0'!$A$4 -> 000770111 | B35: ='0'!$A$2 -> 2020-09-30 | C35: Т08 | D35: 03 | E35: 00 | F35: 00 | G35: Разходи за персонал | H35: 030000 | I35: =IF('07'!$I$9=0,"",-'01'!I93/'07'!$I$9) -> 26
A36: ='0'!$A$4 -> 000770111 | B36: ='0'!$A$2 -> 2020-09-30 | C36: Т08 | D36: 03 | E36: 01 | F36: 00 | G36: лекари (възнаграждения ТД) | H36: 030100 | I36: =IF('07'!$I$9=0,"",'06'!I8/'07'!$I$9) -> 5
A37: ='0'!$A$4 -> 000770111 | B37: ='0'!$A$2 -> 2020-09-30 | C37: Т08 | D37: 03 | E37: 02 | F37: 00 | G37: специалисти по здравни грижи (възнаграждения ТД) | H37: 030200 | I37: =IF('07'!$I$9=0,"",'06'!I14/'07'!$I$9) -> 7
A38: ='0'!$A$4 -> 000770111 | B38: ='0'!$A$2 -> 2020-09-30 | C38: Т08 | D38: 04 | E38: 00 | F38: 00 | G38: Разходи за амортизация | H38: 040000 | I38: =IF('07'!$I$9=0,"",-'01'!I100/'07'!$I$9) -> 2
A39: ='0'!$A$4 -> 000770111 | B39: ='0'!$A$2 -> 2020-09-30 | C39: Т08 | D39: 05 | E39: 00 | F39: 00 | G39: Други разходи | H39: 050000 | I39: =IF('07'!$I$9=0,"",-'01'!I101/'07'!$I$9) -> 0

Sheet 09
D1: ="T09 СПРАВКА ЗА ДВИЖЕНИЕТО НА НЕТЕКУЩИТЕ АКТИВИ В ЛЕВА НА "&UPPER('0'!A6)&" ЗА ПЕРИОДА ОТ "&TEXT(DATE(YEAR(B6),1,1),"DD-MM-YYYY")&" ДО "&TEXT(B6,"DD-MM-YYYY") -> T09 СПРАВКА ЗА ДВИЖЕНИЕТО НА НЕТЕКУЩИТЕ АКТИВИ В ЛЕВА НА СБПФЗПЛР "ЦАР ФЕРДИНАНД 1" ЕООД - С. ИСКРЕЦ ЗА ПЕРИОДА ОТ 01-01-2020 ДО 30-09-2020 | W1: Индивидуален
G4: ПОКАЗАТЕЛИ | H4: Код | I4: Отчетна стойност | M4: Последваща оценка | P4: Амортизация | T4: Последваща оценка | V4: Преоценена амортизация в края на периода | W4: Балансова стойност в края на периода
I5: В началото на периода | J5: На постъпили през периода | K5: На излезлите през периода | L5: В края на периода | M5: Увеличение | N5: Намаление | O5: Преоценена стойност | P5: В началото на периода | Q5: Начислена през периода | R5: Отписана през периода | S5: В края на периода | T5: Увеличение | U5: Намаление
A6: ='0'!$A$4 -> 000770111 | B6: ='0'!$A$2 -> 2020-09-30 | C6: Т09 | D6: 01 | E6: 00 | F6: 00 | G6: Нетекущи активи | H6: =D6&E6&F6 -> 010000 | I6: =I7+I16+I17+I18 -> 2,112,279 | J6: =J7+J16+J17+J18 -> 41,906 | K6: =K7+K16+K17+K18 -> 8,419 | L6: =L7+L16+L17+L18 -> 2,145,766 | M6: 0 | N6: 0 | O6: 2,145,766 | P6: 1,721,118 | Q6: 77,758 | R6: 8,417 | S6: 1,790,459 | T6: 0 | U6: 0 | V6: 1,790,459 | W6: =W7+W16+W17+W18 -> 355,307 | X6: =COUNTBLANK(I6:W18) -> 0
A7: ='0'!$A$4 -> 000770111 | B7: ='0'!$A$2 -> 2020-09-30 | C7: Т09 | D7: 01 | E7: 01 | F7: 00 | G7: Имоти, машини и оборудване | H7: 010100 | I7: =SUM(I8:I15) -> 2,108,962 | J7: =SUM(J8:J15) -> 41,906 | K7: =SUM(K8:K15) -> 8,419 | L7: =SUM(L8:L15) -> 2,142,449 | M7: 0 | N7: 0 | O7: 2,142,449 | P7: 1,718,817 | Q7: 77,377 | R7: 8,417 | S7: 1,787,777 | T7: 0 | U7: 0 | V7: 1,787,777 | W7: =SUM(W8:W15) -> 354,672
A8: ='0'!$A$4 -> 000770111 | B8: ='0'!$A$2 -> 2020-09-30 | C8: Т09 | D8: 01 | E8: 01 | F8: 01 | G8: земи | H8: 010101 | I8: 458 | J8: 0 | K8: 2 | L8: =I8+J8-K8 -> 456 | M8: 0 | N8: 0 | O8: =L8+M8-N8 -> 456 | P8: 0 | Q8: 0 | R8: 0 | S8: =P8+Q8-R8 -> 0 | T8: 0 | U8: 0 | V8: =S8+T8-U8 -> 0 | W8: =O8-V8 -> 456
A9: ='0'!$A$4 -> 000770111 | B9: ='0'!$A$2 -> 2020-09-30 | C9: Т09 | D9: 02 | E9: 01 | F9: 02 | G9: сгради | H9: 020102 | I9: 185,327 | J9: 0 | K9: 8,417 | L9: 176,910 | M9: 0 | N9: 0 | O9: =L9+M9-N9 -> 176,910 | P9: 184,574.00 | Q9: 68.00 | R9: 8,417 | S9: =P9+Q9-R9 -> 176,225 | T9: 0 | U9: 0 | V9: =S9+T9-U9 -> 176,225 | W9: =O9-V9 -> 685
A10: ='0'!$A$4 -> 000770111 | B10: ='0'!$A$2 -> 2020-09-30 | C10: Т09 | D10: 03 | E10: 01 | F10: 03 | G10: съоръжения | H10: 030103 | I10: 0 | J10: 0 | K10: 0 | L10: 0 | M10: 0 | N10: 0 | O10: 0 | P10: 0 | Q10: 0 | R10: 0 | S10: 0 | T10: 0 | U10: 0 | V10: =S10+T10-U10 -> 0 | W10: =O10-V10 -> 0
A11: ='0'!$A$4 -> 000770111 | B11: ='0'!$A$2 -> 2020-09-30 | C11: Т09 | D11: 04 | E11: 01 | F11: 04 | G11: машини и оборудване | H11: 040104 | I11: 1,157,512 | J11: 36,154.00 | K11: 0 | L11: 1,193,666 | M11: 0 | N11: 0 | O11: 1,193,666 | P11: 1,028,710.00 | Q11: 27,417.00 | R11: 0 | S11: 1,056,127 | T11: 0 | U11: 0 | V11: 1,056,127 | W11: 137,539
A12: ='0'!$A$4 -> 000770111 | B12: ='0'!$A$2 -> 2020-09-30 | C12: Т09 | D12: 05 | E12: 01 | F12: 05 | G12: транспортни средства | H12: 050105 | I12: 70,085 | J12: 0 | K12: 0 | L12: 70,085 | M12: 0 | N12: 0 | O12: 70,085 | P12: 67,554.00 | Q12: 2,531.00 | R12: 0 | S12: 70,085 | T12: 0 | U12: 0 | V12: 70,085 | W12: 0
A13: ='0'!$A$4 -> 000770111 | B13: ='0'!$A$2 -> 2020-09-30 | C13: Т09 | D13: 06 | E13: 01 | F13: 06 | G13: компютърни системи | H13: 060106 | I13: 63,501 | J13: 2,760.00 | K13: 0 | L13: 66,261 | M13: 0 | N13: 0 | O13: 66,261 | P13: 39,839.00 | Q13: 11,590.00 | R13: 0 | S13: 51,429 | T13: 0 | U13: 0 | V13: 51,429 | W13: 14,832
A14: ='0'!$A$4 -> 000770111 | B14: ='0'!$A$2 -> 2020-09-30 | C14: Т09 | D14: 07 | E14: 01 | F14: 07 | G14: други ДМА | H14: 070107 | I14: 632,079 | J14: 2,992.00 | K14: 0 | L14: 635,071 | M14: 0 | N14: 0 | O14: 635,071 | P14: 398,140.00 | Q14: 35,771.00 | R14: 0 | S14: 433,911 | T14: 0 | U14: 0 | V14: 433,911 | W14: 201,160
A15: ='0'!$A$4 -> 000770111 | B15: ='0'!$A$2 -> 2020-09-30 | C15: Т09 | D15: 08 | E15: 01 | F15: 08 | G15: ДМА в процес на изграждане, вкл. предоставени аванси | H15: 080108 | I15: 0 | J15: 0 | K15: 0 | L15: 0 | M15: 0 | N15: 0 | O15: 0 | P15: 0 | Q15: 0 | R15: 0 | S15: 0 | T15: 0 | U15: 0 | V15: 0 | W15: 0
A16: ='0'!$A$4 -> 000770111 | B16: ='0'!$A$2 -> 2020-09-30 | C16: Т09 | D16: 09 | E16: 02 | F16: 00 | G16: Нематериални активи | H16: 090200 | I16: 3,317 | J16: 0 | K16: 0 | L16: 3,317 | M16: 0 | N16: 0 | O16: 3,317 | P16: 2,301.00 | Q16: 381.00 | R16: 0 | S16: 2,682 | T16: 0 | U16: 0 | V16: 2,682 | W16: 635
A17: ='0'!$A$4 -> 000770111 | B17: ='0'!$A$2 -> 2020-09-30 | C17: Т09 | D17: 10 | E17: 03 | F17: 00 | G17: Инвестиции в дъщерни предприятия | H17: 100300 | I17: 0 | J17: 0 | K17: 0 | L17: 0 | M17: 0 | N17: 0 | O17: 0 | P17: 0 | Q17: 0 | R17: 0 | S17: 0 | T17: 0 | U17: 0 | V17: 0 | W17: 0
A18: ='0'!$A$4 -> 000770111 | B18: ='0'!$A$2 -> 2020-09-30 | C18: Т09 | D18: 10 | E18: 04 | F18: 00 | G18: Активи по отсрочени данъци | H18: 100400 | I18: 0 | J18: 0 | K18: 0 | L18: 0 | M18: 0 | N18: 0 | O18: =L18+M18-N18 -> 0 | P18: 0 | Q18: 0 | R18: 0 | S18: =P18+Q18-R18 -> 0 | T18: 0 | U18: 0 | V18: =S18+T18-U18 -> 0 | W18: =O18-V18 -> 0
A19: ='0'!$A$4 -> 000770111 | B19: ='0'!$A$2 -> 2020-09-30 | C19: Т09а | D19: ="T09а СПРАВКА ЗА ДВИЖЕНИЕТО НА НЕТЕКУЩИТЕ АКТИВИ В ЛЕВА НА "&UPPER('0'!A6)&" ЗА ПЕРИОДА ОТ "&TEXT(DATE(YEAR(B6),1,1),"DD-MM-YYYY")&" ДО "&TEXT(B6,"DD-MM-YYYY") -> T09а СПРАВКА ЗА ДВИЖЕНИЕТО НА НЕТЕКУЩИТЕ АКТИВИ В ЛЕВА НА СБПФЗПЛР "ЦАР ФЕРДИНАНД 1" ЕООД - С. ИСКРЕЦ ЗА ПЕРИОДА ОТ 01-01-2020 ДО 30-09-2020 | W19: Консолидиран
A22: ='0'!$A$4 -> 000770111 | B22: ='0'!$A$2 -> 2020-09-30 | C22: Т09а | G22: ПОКАЗАТЕЛИ | H22: Код | I22: Отчетна стойност | M22: Последваща оценка | P22: Амортизация | T22: Последваща оценка | V22: Преоценена амортизация в края на периода | W22: Балансова стойност в края на периода
A23: ='0'!$A$4 -> 000770111 | B23: ='0'!$A$2 -> 2020-09-30 | C23: Т09а | I23: В началото на периода | J23: На постъпили през периода | K23: На излезлите през периода | L23: В края на периода | M23: Увеличение | N23: Намаление | O23: Преоценена стойност | P23: В началото на периода | Q23: Начислена през периода | R23: Отписана през периода | S23: В края на периода | T23: Увеличение | U23: Намаление
A24: ='0'!$A$4 -> 000770111 | B24: ='0'!$A$2 -> 2020-09-30 | C24: Т09а | D24: 01 | E24: 00 | F24: 00 | G24: Нетекущи активи | H24: =D24&E24&F24 -> 010000 | I24: =I25+I34+I35+I36 -> 0 | J24: =J25+J34+J35+J36 -> 0 | K24: 0 | L24: 0 | M24: 0 | N24: 0 | O24: 0 | P24: 0 | Q24: 0 | R24: 0 | S24: 0 | T24: 0 | U24: 0 | V24: 0 | W24: 0 | X24: =COUNTBLANK(I24:W36) -> 0
A25: ='0'!$A$4 -> 000770111 | B25: ='0'!$A$2 -> 2020-09-30 | C25: Т09а | D25: 01 | E25: 01 | F25: 00 | G25: Имоти, машини и оборудване | H25: 010100 | I25: =SUM(I26:I33) -> 0 | J25: =SUM(J26:J33) -> 0 | K25: 0 | L25: 0 | M25: 0 | N25: 0 | O25: 0 | P25: 0 | Q25: 0 | R25: 0 | S25: 0 | T25: 0 | U25: 0 | V25: 0 | W25: 0
A26: ='0'!$A$4 -> 000770111 | B26: ='0'!$A$2 -> 2020-09-30 | C26: Т09а | D26: 01 | E26: 01 | F26: 01 | G26: земи | H26: 010101 | I26: 0 | J26: 0 | K26: 0 | L26: =I26+J26-K26 -> 0 | M26: 0 | N26: 0 | O26: =L26+M26-N26 -> 0 | P26: 0 | Q26: 0 | R26: 0 | S26: =P26+Q26-R26 -> 0 | T26: 0 | U26: 0 | V26: =S26+T26-U26 -> 0 | W26: =O26-V26 -> 0
A27: ='0'!$A$4 -> 000770111 | B27: ='0'!$A$2 -> 2020-09-30 | C27: Т09а | D27: 02 | E27: 01 | F27: 02 | G27: сгради | H27: 020102 | I27: 0 | J27: 0 | K27: 0 | L27: =I27+J27-K27 -> 0 | M27: 0 | N27: 0 | O27: =L27+M27-N27 -> 0 | P27: 0 | Q27: 0 | R27: 0 | S27: =P27+Q27-R27 -> 0 | T27: 0 | U27: 0 | V27: =S27+T27-U27 -> 0 | W27: =O27-V27 -> 0
A28: ='0'!$A$4 -> 000770111 | B28: ='0'!$A$2 -> 2020-09-30 | C28: Т09а | D28: 03 | E28: 01 | F28: 03 | G28: съоръжения | H28: 030103 | I28: 0 | J28: 0 | K28: 0 | L28: 0 | M28: 0 | N28: 0 | O28: 0 | P28: 0 | Q28: 0 | R28: 0 | S28: 0 | T28: 0 | U28: 0 | V28: 0 | W28: 0
A29: ='0'!$A$4 -> 000770111 | B29: ='0'!$A$2 -> 2020-09-30 | C29: Т09а | D29: 04 | E29: 01 | F29: 04 | G29: машини и оборудване | H29: 040104 | I29: 0 | J29: 0 | K29: 0 | L29: 0 | M29: 0 | N29: 0 | O29: 0 | P29: 0 | Q29: 0 | R29: 0 | S29: 0 | T29: 0 | U29: 0 | V29: 0 | W29: 0
A30: ='0'!$A$4 -> 000770111 | B30: ='0'!$A$2 -> 2020-09-30 | C30: Т09а | D30: 05 | E30: 01 | F30: 05 | G30: транспортни средства | H30: 050105 | I30: 0 | J30: 0 | K30: 0 | L30: 0 | M30: 0 | N30: 0 | O30: 0 | P30: 0 | Q30: 0 | R30: 0 | S30: 0 | T30: 0 | U30: 0 | V30: 0 | W30: 0
A31: ='0'!$A$4 -> 000770111 | B31: ='0'!$A$2 -> 2020-09-30 | C31: Т09а | D31: 06 | E31: 01 | F31: 06 | G31: компютърни системи | H31: 060106 | I31: 0 | J31: 0 | K31: 0 | L31: 0 | M31: 0 | N31: 0 | O31: 0 | P31: 0 | Q31: 0 | R31: 0 | S31: 0 | T31: 0 | U31: 0 | V31: 0 | W31: 0
A32: ='0'!$A$4 -> 000770111 | B32: ='0'!$A$2 -> 2020-09-30 | C32: Т09а | D32: 07 | E32: 01 | F32: 07 | G32: други ДМА | H32: 070107 | I32: 0 | J32: 0 | K32: 0 | L32: 0 | M32: 0 | N32: 0 | O32: 0 | P32: 0 | Q32: 0 | R32: 0 | S32: 0 | T32: 0 | U32: 0 | V32: 0 | W32: 0
A33: ='0'!$A$4 -> 000770111 | B33: ='0'!$A$2 -> 2020-09-30 | C33: Т09а | D33: 08 | E33: 01 | F33: 08 | G33: ДМА в процес на изграждане, вкл. предоставени аванси | H33: 080108 | I33: 0 | J33: 0 | K33: 0 | L33: 0 | M33: 0 | N33: 0 | O33: 0 | P33: 0 | Q33: 0 | R33: 0 | S33: 0 | T33: 0 | U33: 0 | V33: 0 | W33: 0
A34: ='0'!$A$4 -> 000770111 | B34: ='0'!$A$2 -> 2020-09-30 | C34: Т09а | D34: 09 | E34: 02 | F34: 00 | G34: Нематериални активи | H34: 090200 | I34: 0 | J34: 0 | K34: 0 | L34: 0 | M34: 0 | N34: 0 | O34: 0 | P34: 0 | Q34: 0 | R34: 0 | S34: 0 | T34: 0 | U34: 0 | V34: 0 | W34: 0
A35: ='0'!$A$4 -> 000770111 | B35: ='0'!$A$2 -> 2020-09-30 | C35: Т09а | D35: 10 | E35: 03 | F35: 00 | G35: Инвестиции в дъщерни предприятия | H35: 100300 | I35: 0 | J35: 0 | K35: 0 | L35: 0 | M35: 0 | N35: 0 | O35: 0 | P35: 0 | Q35: 0 | R35: 0 | S35: 0 | T35: 0 | U35: 0 | V35: 0 | W35: 0
A36: ='0'!$A$4 -> 000770111 | B36: ='0'!$A$2 -> 2020-09-30 | C36: Т09а | D36: 10 | E36: 04 | F36: 00 | G36: Активи по отсрочени данъци | H36: 100400 | I36: 0 | J36: 0 | K36: 0 | L36: 0 | M36: 0 | N36: 0 | O36: 0 | P36: 0 | Q36: 0 | R36: 0 | S36: 0 | T36: 0 | U36: 0 | V36: 0 | W36: 0

Sheet 10
A1: ='0'!$A$4 -> 000770111 | B1: ='0'!$A$2 -> 2020-09-30 | C1: Т10 | D1: ="Т10 ОТЧЕТ ЗА СОБСТВЕНИЯ КАПИТАЛ В ЛЕВА НА "&'0'!$A$6&" ЗА ПЕРИОДА ОТ "&TEXT(DATE(YEAR(B1),1,1),"DD-MM-YYYY")&" ДО "&TEXT(B1,"DD-MM-YYYY") -> Т10 ОТЧЕТ ЗА СОБСТВЕНИЯ КАПИТАЛ В ЛЕВА НА СБПФЗПЛР "Цар Фердинанд 1" ЕООД - с. Искрец ЗА ПЕРИОДА ОТ 01-01-2020 ДО 30-09-2020 | T1: Индивидуален
A4: ='0'!$A$4 -> 000770111 | B4: ='0'!$A$2 -> 2020-09-30 | C4: Т10 | D4: Показатели | H4: Код | I4: Основен капитал | J4: Регистриран | K4: Нерегистриран | L4: Законови резерви | M4: Други резерви | N4: Резерви от преоценка на нетекущи активи | O4: Земя | P4: Сгради | Q4: Машини и оборудване | R4: Резерви по планове с дефиниран доход | S4: Натрупана печалба (загуба) | T4: Текуща печалба (загуба) | U4: Общ финансов резултат | V4: =COUNTBLANK(I5:T17)-62 -> 0 | W4: Средствата, отпуснати от МЗ за закупуване на ДА, с които все още не е увеличен капитала не се отчитат като нерегистриран капитал. Те се отчитат на ред 100600. На този ред се отнасят средствата с които е взето решение за увеличение на капитала, но няма вписване в Търговския регистър.
A5: ='0'!$A$4 -> 000770111 | B5: ='0'!$A$2 -> 2020-09-30 | C5: Т10 | D5: 01 | E5: 00 | F5: 00 | G5: Салдо към 31.12 предходна година | H5: =D5&E5&F5 -> 010000 | I5: =SUM(J5:K5) -> 907,325 | J5: 907,325 | K5: 0 | L5: 0 | M5: 338,141 | N5: =SUM(O5:Q5) -> 40,000 | O5: 0 | P5: 0 | Q5: 40,000.00 | R5: 0 | S5: 166,667
A6: ='0'!$A$4 -> 000770111 | B6: ='0'!$A$2 -> 2020-09-30 | C6: Т10 | D6: 01 | E6: 01 | F6: 00 | G6: Промени в счетоводната политика | H6: 010100 | I6: =SUM(J6:K6) -> 0 | J6: 0 | K6: 0 | L6: 0 | M6: 0 | N6: =SUM(O6:Q6) -> 0 | O6: 0 | P6: 0 | Q6: 0 | R6: 0 | S6: 0
A7: ='0'!$A$4 -> 000770111 | B7: ='0'!$A$2 -> 2020-09-30 | C7: Т10 | D7: 01 | E7: 02 | F7: 00 | G7: Грешки | H7: 010200 | I7: =SUM(J7:K7) -> 0 | J7: 0 | K7: 0 | L7: 0 | M7: 0 | N7: =SUM(O7:Q7) -> 0 | O7: 0 | P7: 0 | Q7: 0 | R7: 0 | S7: (36)
A8: ='0'!$A$4 -> 000770111 | B8: ='0'!$A$2 -> 2020-09-30 | C8: Т10 | D8: 02 | E8: 00 | F8: 00 | G8: Салдо към 31.12 предходна година (след промени и грешки) | H8: 020000 | I8: 907,325 | J8: =SUM(J5:J7) -> 907,325 | K8: =SUM(K5:K7) -> 0 | L8: 0 | M8: 338,141 | N8: 40,000 | O8: 0 | P8: 0 | Q8: 40,000 | R8: 0 | S8: 166,631
A9: ='0'!$A$4 -> 000770111 | B9: ='0'!$A$2 -> 2020-09-30 | C9: Т10 | D9: 03 | E9: 00 | F9: 00 | G9: Разпределение на печалба и резерви | H9: 030000 | I9: =SUM(J9:K9) -> 0 | J9: 0 | K9: 0 | L9: 0 | M9: 166,631 | N9: =SUM(N6:N8) -> 40,000 | O9: 0 | P9: 0 | Q9: 0 | R9: 0 | S9: (166,631.00)
A10: ='0'!$A$4 -> 000770111 | B10: ='0'!$A$2 -> 2020-09-30 | C10: Т10 | D10: 04 | E10: 00 | F10: 00 | G10: Текущи увеличения/намаления на капитал и резерви | H10: 040000 | I10: =SUM(I11:I15) -> 45,000 | J10: =SUM(J11:J15) -> 45,000 | K10: =SUM(K11:K15) -> 0 | L10: 0 | M10: 0 | N10: 0 | O10: 0 | P10: 0 | Q10: 0 | R10: 0 | S10: =SUM(S11:S15) -> 0
A11: ='0'!$A$4 -> 000770111 | B11: ='0'!$A$2 -> 2020-09-30 | C11: Т10 | D11: 01 | E11: 01 | F11: 00 | G11: Изменение на основния капитал | H11: 010100 | I11: 45,000 | J11: 45,000 | K11: 0
A12: ='0'!$A$4 -> 000770111 | B12: ='0'!$A$2 -> 2020-09-30 | C12: Т10 | D12: 01 | E12: 02 | F12: 00 | G12: Изменение на законовите резерви | H12: 010200 | I12: 0 | L12: 0
A13: ='0'!$A$4 -> 000770111 | B13: ='0'!$A$2 -> 2020-09-30 | C13: Т10 | D13: 01 | E13: 03 | F13: 00 | G13: Изменение на други резерви | H13: =D13&E13&F13 -> 010300 | I13: =SUM(J13:K13) -> 0 | M13: 0
A14: ='0'!$A$4 -> 000770111 | B14: ='0'!$A$2 -> 2020-09-30 | C14: Т10 | D14: 01 | E14: 04 | F14: 00 | G14: Изменение в резерва от преоценка на нетекущи активи | H14: 010400 | I14: =SUM(J14:K14) -> 0 | N14: =SUM(O14:Q14) -> 0 | O14: 0 | P14: 0 | Q14: 0 | W14: Пренася се автоматично в Т01 ред 160100
A15: ='0'!$A$4 -> 000770111 | B15: ='0'!$A$2 -> 2020-09-30 | C15: Т10 | D15: 01 | E15: 05 | F15: 00 | G15: Изменение на резервите за дефинирани доходи | H15: 010500 | I15: =SUM(J15:K15) -> 0 | R15: 0 | W15: Пренася се автоматично в Т01 ред 160200
A16: ='0'!$A$4 -> 000770111 | B16: ='0'!$A$2 -> 2020-09-30 | C16: Т10 | D16: 05 | E16: 00 | F16: 00 | G16: Общ всеобхватен доход за периада | H16: 050000 | I16: =SUM(J16:K16) -> 0 | T16: ='01'!I117 -> 364,914 | W16: Пренася се автоматично от Т01 ред 150000
A17: ='0'!$A$4 -> 000770111 | B17: ='0'!$A$2 -> 2020-09-30 | C17: Т10 | D17: 06 | E17: 00 | F17: 00 | G17: Крайно сълдо към датата на отчета | H17: 060000 | I17: =SUM(J17:K17) -> 952,325 | J17: =J8+J9+J10+J16 -> 952,325 | K17: =K8+K9+K10+K16 -> 0 | L17: 0 | M17: 504,772 | N17: 80,000 | O17: 0 | P17: 0 | Q17: 40,000 | R17: 0 | S17: 0 | T17: 364,914 | U17: ='02'!I126 -> 364,914
A18: ='0'!$A$4 -> 000770111 | B18: ='0'!$A$2 -> 2020-09-30 | C18: Т10а | D18: ="Т10а ОТЧЕТ ЗА СОБСТВЕНИЯ КАПИТАЛ В ЛЕВА НА "&'0'!$A$6&" ЗА ПЕРИОДА ОТ "&TEXT(DATE(YEAR(B18),1,1),"DD-MM-YYYY")&" ДО "&TEXT(B18,"DD-MM-YYYY") -> Т10а ОТЧЕТ ЗА СОБСТВЕНИЯ КАПИТАЛ В ЛЕВА НА СБПФЗПЛР "Цар Фердинанд 1" ЕООД - с. Искрец ЗА ПЕРИОДА ОТ 01-01-2020 ДО 30-09-2020 | T18: Консолидиран
A21: ='0'!$A$4 -> 000770111 | B21: ='0'!$A$2 -> 2020-09-30 | C21: Т10а | D21: Показатели | H21: Код | I21: Основен капитал | J21: Регистриран | K21: Нерегистриран | L21: Законови резерви | M21: Други резерви | N21: Резерви от преоценка на нетекущи активи | O21: Земя | P21: Сгради | Q21: Машини и оборудване | R21: Резерви по планове с дефиниран доход | S21: Натрупана печалба (загуба) | T21: Текуща печалба (загуба) | U21: Общ финансов резултат | V21: =COUNTBLANK(I22:T34)-62 -> 0
A22: ='0'!$A$4 -> 000770111 | B22: ='0'!$A$2 -> 2020-09-30 | C22: Т10а | D22: 01 | E22: 00 | F22: 00 | G22: Салдо към 31.12 предходна година | H22: =D22&E22&F22 -> 010000 | I22: =SUM(J22:K22) -> 0 | J22: 0 | K22: 0 | L22: 0 | M22: 0 | N22: =SUM(O22:Q22) -> 0 | O22: 0 | P22: 0 | Q22: 0 | R22: 0 | S22: 0
A23: ='0'!$A$4 -> 000770111 | B23: ='0'!$A$2 -> 2020-09-30 | C23: Т10а | D23: 01 | E23: 01 | F23: 00 | G23: Промени в счетоводната политика | H23: 010100 | I23: =SUM(J23:K23) -> 0 | J23: 0 | K23: 0 | L23: 0 | M23: 0 | N23: =SUM(O23:Q23) -> 0 | O23: 0 | P23: 0 | Q23: 0 | R23: 0 | S23: 0
A24: ='0'!$A$4 -> 000770111 | B24: ='0'!$A$2 -> 2020-09-30 | C24: Т10а | D24: 01 | E24: 02 | F24: 00 | G24: Грешки | H24: 010200 | I24: =SUM(J24:K24) -> 0 | J24: 0 | K24: 0 | L24: 0 | M24: 0 | N24: =SUM(O24:Q24) -> 0 | O24: 0 | P24: 0 | Q24: 0 | R24: 0 | S24: 0
A25: ='0'!$A$4 -> 000770111 | B25: ='0'!$A$2 -> 2020-09-30 | C25: Т10а | D25: 02 | E25: 00 | F25: 00 | G25: Салдо към 31.12 предходна година (след промени и грешки) | H25: 020000 | I25: =SUM(J25:K25) -> 0 | J25: =SUM(J22:J24) -> 0 | K25: 0 | L25: 0 | M25: 0 | N25: 0 | O25: 0 | P25: 0 | Q25: 0 | R25: 0 | S25: 0
A26: ='0'!$A$4 -> 000770111 | B26: ='0'!$A$2 -> 2020-09-30 | C26: Т10а | D26: 03 | E26: 00 | F26: 00 | G26: Разпределение на печалба и резерви | H26: 030000 | I26: =SUM(J26:K26) -> 0 | J26: 0 | K26: 0 | L26: 0 | M26: 0 | N26: =SUM(N23:N25) -> 0 | O26: 0 | P26: 0 | Q26: 0 | R26: 0 | S26: 0
A27: ='0'!$A$4 -> 000770111 | B27: ='0'!$A$2 -> 2020-09-30 | C27: Т10а | D27: 04 | E27: 00 | F27: 00 | G27: Текущи увеличения/намаления на капитал и резерви | H27: 040000 | I27: =SUM(I28:I32) -> 0 | J27: 0 | K27: 0 | L27: 0 | M27: 0 | N27: 0 | O27: 0 | P27: 0 | Q27: 0 | R27: 0 | S27: 0
A28: ='0'!$A$4 -> 000770111 | B28: ='0'!$A$2 -> 2020-09-30 | C28: Т10а | D28: 01 | E28: 01 | F28: 00 | G28: Изменение на основния капитал | H28: 010100 | I28: =SUM(J28:K28) -> 0 | J28: 0 | K28: 0
A29: ='0'!$A$4 -> 000770111 | B29: ='0'!$A$2 -> 2020-09-30 | C29: Т10а | D29: 01 | E29: 02 | F29: 00 | G29: Изменение на законовите резерви | H29: 010200 | I29: 0 | L29: 0
A30: ='0'!$A$4 -> 000770111 | B30: ='0'!$A$2 -> 2020-09-30 | C30: Т10а | D30: 01 | E30: 03 | F30: 00 | G30: Изменение на други резерви | H30: 010300 | I30: 0 | M30: 0
A31: ='0'!$A$4 -> 000770111 | B31: ='0'!$A$2 -> 2020-09-30 | C31: Т10а | D31: 01 | E31: 04 | F31: 00 | G31: Изменение в резерва от преоценка на нетекущи активи | H31: 010400 | I31: 0 | N31: =SUM(O31:Q31) -> 0 | O31: 0 | P31: 0 | Q31: 0
A32: ='0'!$A$4 -> 000770111 | B32: ='0'!$A$2 -> 2020-09-30 | C32: Т10а | D32: 01 | E32: 05 | F32: 00 | G32: Изменение на резервите за дефинирани доходи | H32: 010500 | I32: 0 | R32: 0
A33: ='0'!$A$4 -> 000770111 | B33: ='0'!$A$2 -> 2020-09-30 | C33: Т10а | D33: 05 | E33: 00 | F33: 00 | G33: Общ всеобхватен доход за периада | H33: 050000 | I33: 0 | T33: ='01'!J117 -> 0
A34: ='0'!$A$4 -> 000770111 | B34: ='0'!$A$2 -> 2020-09-30 | C34: Т10а | D34: 06 | E34: 00 | F34: 00 | G34: Крайно сълдо към датата на отчета | H34: 060000 | I34: 0 | J34: =J25+J26+J27+J33 -> 0 | K34: 0 | L34: 0 | M34: 0 | N34: 0 | O34: 0 | P34: 0 | Q34: 0 | R34: 0 | S34: 0 | T34: 0 | U34: ='02'!J126 -> 0

Sheet 11
A1: EIK | B1: data | D1: ="Т11 СПРАВКА ЗА НАЧИСЛЕНИТЕ ВЪЗНАГРАЖДЕНИЯ ПО ДОГОВОРИ ЗА УПРАВЛЕНИЕ И КОНТРОЛ НА "&'0'!$A$6&" ЗА ПЕРИОДА ОТ "&TEXT(DATE(YEAR(B4),1,1),"DD-MM-YYYY")&" ДО "&TEXT(B4,"DD-MM-YYYY") -> Т11 СПРАВКА ЗА НАЧИСЛЕНИТЕ ВЪЗНАГРАЖДЕНИЯ ПО ДОГОВОРИ ЗА УПРАВЛЕНИЕ И КОНТРОЛ НА СБПФЗПЛР "Цар Фердинанд 1" ЕООД - с. Искрец ЗА ПЕРИОДА ОТ 01-01-2020 ДО 30-09-2020 | P1: Контрола ЕГН | R1: Попълва се ЕИК на управляваното/контролирано дружество, като се избира от падащото меню. Разходите се пренасят автоматично на ред 080300 в Т01 на ниво индивидуален и консолидиран отчет. ЕГН се проверява за коректност. Разходите се попълват с положителен знак и следва да включват само начислените суми по ДВК. В случай че, за определен месец начислените възнаграждения надвишават допустимия размер следва да поясните причината за това в колона пояснения.
A4: ='0'!$A$4 -> 000770111 | B4: ='0'!$A$2 -> 2020-09-30 | D4: Месец | E4: ЕИК | F4: Дружество | G4: Брой отработени дни вкл. платен откуск дни | H4: ЕГН | I4: Три имена | J4: Длъжност | K4: % от средната работна заплата (СРЗ) в договора за управление | L4: Отчетен размер на СРЗ в ЛЗ (лева) | M4: Начислена сума (лева) | N4: от нея за обезщетения | O4: Пояснение
A5: ='0'!$A$4 -> 000770111 | B5: ='0'!$A$2 -> 2020-09-30 | C5: Т11 | D5: Общо | M5: =SUM(M6:M102) -> 79,229.00 | P5: =IF(COUNTBLANK(P6:P102)=97,"OK","Грешни ЕГН: " & (97 -COUNTBLANK(P6:P102))) -> Грешни ЕГН: 7
A6: ='0'!$A$4 -> 000770111 | B6: ='0'!$A$2 -> 2020-09-30 | C6: Т11 | D6: 1 | E6: 000770111 | F6: =IF(E6="","",VLOOKUP(E6,'0'!$A$11:$B$16,2,0)) -> СБПФЗПЛР "Цар Фердинанд 1" ЕООД - с. Искрец | G6: 22 | H6: 6103177355 | I6: Людмила Йовчева Тодорова | J6: Управител | K6: 400% | L6: 1458.39 | M6: 5,834.00 | N6: 0.00 | P6: =IF(H6="","",CheckEGN(H6)) -> 
A7: ='0'!$A$4 -> 000770111 | B7: ='0'!$A$2 -> 2020-09-30 | C7: Т11 | D7: 1 | E7: 000770111 | F7: =IF(E7="","",VLOOKUP(E7,'0'!$A$11:$B$16,2,0)) -> СБПФЗПЛР "Цар Фердинанд 1" ЕООД - с. Искрец | G7: 22 | H7: 5212236920 | I7: Иван Георгиев Арнаудов | J7: Контрольор | K7: 200% | L7: 1458.39 | M7: 2,440.00 | N7: 0.00 | P7: =IF(H7="","",CheckEGN(H7)) -> 
A8: ='0'!$A$4 -> 000770111 | B8: ='0'!$A$2 -> 2020-09-30 | C8: Т11 | D8: 2 | E8: 000770111 | F8: =IF(E8="","",VLOOKUP(E8,'0'!$A$11:$B$16,2,0)) -> СБПФЗПЛР "Цар Фердинанд 1" ЕООД - с. Искрец | G8: 20 | H8: 6103177355 | I8: Людмила Йовчева Тодорова | J8: Управител | K8: 400% | L8: 1398.91 | M8: 5,596.00 | N8: 0.00 | P8: =IF(H8="","",CheckEGN(H8)) -> 
A9: ='0'!$A$4 -> 000770111 | B9: ='0'!$A$2 -> 2020-09-30 | C9: Т11 | D9: 2 | E9: 000770111 | F9: =IF(E9="","",VLOOKUP(E9,'0'!$A$11:$B$16,2,0)) -> СБПФЗПЛР "Цар Фердинанд 1" ЕООД - с. Искрец | G9: 20 | H9: 5212236920 | I9: Иван Георгиев Арнаудов | J9: Контрольор | K9: 200% | L9: 1398.91 | M9: 2,440.00 | N9: 0.00 | P9: =IF(H9="","",CheckEGN(H9)) -> 
A10: ='0'!$A$4 -> 000770111 | B10: ='0'!$A$2 -> 2020-09-30 | C10: Т11 | D10: 3 | E10: 000770111 | F10: =IF(E10="","",VLOOKUP(E10,'0'!$A$11:$B$16,2,0)) -> СБПФЗПЛР "Цар Фердинанд 1" ЕООД - с. Искрец | G10: 21 | H10: 6103177355 | I10: Людмила Йовчева Тодорова | J10: Управител | K10: 400% | L10: 1365.33 | M10: 5,461.00 | N10: 0.00 | P10: =IF(H10="","",CheckEGN(H10)) -> 
A11: ='0'!$A$4 -> 000770111 | B11: ='0'!$A$2 -> 2020-09-30 | C11: Т11 | D11: 3 | E11: 000770111 | F11: =IF(E11="","",VLOOKUP(E11,'0'!$A$11:$B$16,2,0)) -> СБПФЗПЛР "Цар Фердинанд 1" ЕООД - с. Искрец | G11: 21 | H11: 5212236920 | I11: Иван Георгиев Арнаудов | J11: Контрольор | K11: 200% | L11: 1365.33 | M11: 2,440.00 | N11: 0.00
A12: ='0'!$A$4 -> 000770111 | B12: ='0'!$A$2 -> 2020-09-30 | C12: Т11 | D12: 4 | E12: 000770111 | F12: =IF(E12="","",VLOOKUP(E12,'0'!$A$11:$B$16,2,0)) -> СБПФЗПЛР "Цар Фердинанд 1" ЕООД - с. Искрец | G12: 20 | H12: 6103177355 | I12: Людмила Йовчева Тодорова | J12: Управител | K12: 400% | L12: 1449.83 | M12: 5,799.00 | N12: 0.00
A13: ='0'!$A$4 -> 000770111 | B13: ='0'!$A$2 -> 2020-09-30 | C13: Т11 | D13: 4 | E13: 000770111 | F13: =IF(E13="","",VLOOKUP(E13,'0'!$A$11:$B$16,2,0)) -> СБПФЗПЛР "Цар Фердинанд 1" ЕООД - с. Искрец | G13: 20 | H13: 5212236920 | I13: Иван Георгиев Арнаудов | J13: Контрольор | K13: 200% | L13: 1449.83 | M13: 2,440.00 | N13: 0.00
A14: ='0'!$A$4 -> 000770111 | B14: ='0'!$A$2 -> 2020-09-30 | C14: Т11 | D14: 5 | E14: 000770111 | F14: =IF(E14="","",VLOOKUP(E14,'0'!$A$11:$B$16,2,0)) -> СБПФЗПЛР "Цар Фердинанд 1" ЕООД - с. Искрец | G14: 18 | H14: 6103177355 | I14: Людмила Йовчева Тодорова | J14: Управител | K14: 400% | L14: 1450.65 | M14: 5,803.00 | N14: 0.00
A15: ='0'!$A$4 -> 000770111 | B15: ='0'!$A$2 -> 2020-09-30 | C15: Т11 | D15: 5 | E15: 000770111 | F15: =IF(E15="","",VLOOKUP(E15,'0'!$A$11:$B$16,2,0)) -> СБПФЗПЛР "Цар Фердинанд 1" ЕООД - с. Искрец | G15: 18 | H15: 5212236920 | I15: Иван Георгиев Арнаудов | J15: Контрольор | K15: 200% | L15: 1450.65 | M15: 2,440.00 | N15: 0.00
A16: ='0'!$A$4 -> 000770111 | B16: ='0'!$A$2 -> 2020-09-30 | C16: Т11 | D16: 6 | E16: 000770111 | F16: =IF(E16="","",VLOOKUP(E16,'0'!$A$11:$B$16,2,0)) -> СБПФЗПЛР "Цар Фердинанд 1" ЕООД - с. Искрец | G16: 22 | H16: 6103177355 | I16: Людмила Йовчева Тодорова | J16: Управител | K16: 400% | L16: 1443.67 | M16: 11,014.00 | N16: 0.00
A17: ='0'!$A$4 -> 000770111 | B17: ='0'!$A$2 -> 2020-09-30 | C17: Т11 | D17: 6 | E17: 000770111 | F17: =IF(E17="","",VLOOKUP(E17,'0'!$A$11:$B$16,2,0)) -> СБПФЗПЛР "Цар Фердинанд 1" ЕООД - с. Искрец | G17: 22 | H17: 5212236920 | I17: Иван Георгиев Арнаудов | J17: Контрольор | K17: 200% | L17: 1443.67 | M17: 2,440.00 | N17: 0.00 | P17: =IF(H18="","",CheckEGN(H18)) -> 
A18: ='0'!$A$4 -> 000770111 | B18: ='0'!$A$2 -> 2020-09-30 | C18: Т11 | D18: 7 | E18: 000770111 | F18: =IF(E18="","",VLOOKUP(E18,'0'!$A$11:$B$16,2,0)) -> СБПФЗПЛР "Цар Фердинанд 1" ЕООД - с. Искрец | G18: 23 | H18: 6103177355 | I18: Людмила Йовчева Тодорова | J18: Управител | K18: 400% | L18: 1433.6 | M18: 5,734.00 | N18: 0.00 | P18: =IF(H19="","",CheckEGN(H19)) -> 
A19: ='0'!$A$4 -> 000770111 | B19: ='0'!$A$2 -> 2020-09-30 | C19: Т11 | D19: 7 | E19: 000770111 | F19: =IF(E19="","",VLOOKUP(E19,'0'!$A$11:$B$16,2,0)) -> СБПФЗПЛР "Цар Фердинанд 1" ЕООД - с. Искрец | G19: 23 | H19: 5212236920 | I19: Иван Георгиев Арнаудов | J19: Контрольор | K19: 200% | L19: 1434% | M19: 2,440.00 | N19: 0.00 | P19: =IF(H20="","",CheckEGN(H20)) -> 
A20: ='0'!$A$4 -> 000770111 | B20: ='0'!$A$2 -> 2020-09-30 | C20: Т11 | D20: 8 | E20: 000770111 | F20: =IF(E20="","",VLOOKUP(E20,'0'!$A$11:$B$16,2,0)) -> СБПФЗПЛР "Цар Фердинанд 1" ЕООД - с. Искрец | G20: 21 | H20: 6103177355 | I20: Людмила Йовчева Тодорова | J20: Управител | K20: 400% | L20: 1494% | M20: 5,908.00 | N20: 0.00 | P20: =IF(H21="","",CheckEGN(H21)) -> 
A21: ='0'!$A$4 -> 000770111 | B21: ='0'!$A$2 -> 2020-09-30 | C21: Т11 | D21: 8 | E21: 000770111 | F21: =IF(E21="","",VLOOKUP(E21,'0'!$A$11:$B$16,2,0)) -> СБПФЗПЛР "Цар Фердинанд 1" ЕООД - с. Искрец | G21: 21 | H21: 5212236920 | I21: Иван Георгиев Арнаудов | J21: Контрольор | K21: 200% | L21: 1494% | M21: 2,440.00 | N21: 0.00 | P21: =IF(H22="","",CheckEGN(H22)) -> 
A22: ='0'!$A$4 -> 000770111 | B22: ='0'!$A$2 -> 2020-09-30 | C22: Т11 | D22: 9 | E22: 000770111 | F22: =IF(E22="","",VLOOKUP(E22,'0'!$A$11:$B$16,2,0)) -> СБПФЗПЛР "Цар Фердинанд 1" ЕООД - с. Искрец | G22: 20 | H22: 6103177355 | I22: Людмила Йовчева Тодорова | J22: Управител | K22: 400% | L22: 1613.04 | M22: 6,120.00 | N22: 0.00 | P22: =IF(H23="","",CheckEGN(H23)) -> 
A23: ='0'!$A$4 -> 000770111 | B23: ='0'!$A$2 -> 2020-09-30 | C23: Т11 | D23: 9 | E23: 000770111 | F23: =IF(E23="","",VLOOKUP(E23,'0'!$A$11:$B$16,2,0)) -> СБПФЗПЛР "Цар Фердинанд 1" ЕООД - с. Искрец | G23: 20 | H23: 5212236920 | I23: Иван Георгиев Арнаудов | J23: Контрольор | K23: 200% | L23: 1613.04 | M23: 2,440.00 | N23: 0.00 | P23: =IF(#REF!="","",CheckEGN(#REF!)) -> 
A24: ='0'!$A$4 -> 000770111 | B24: ='0'!$A$2 -> 2020-09-30 | C24: Т11 | F24: =IF(E24="","",VLOOKUP(E24,'0'!$A$11:$B$16,2,0)) -> 
A25: ='0'!$A$4 -> 000770111 | B25: ='0'!$A$2 -> 2020-09-30 | C25: Т11 | F25: =IF(E25="","",VLOOKUP(E25,'0'!$A$11:$B$16,2,0)) -> 
A26: ='0'!$A$4 -> 000770111 | B26: ='0'!$A$2 -> 2020-09-30 | C26: Т11 | F26: =IF(E26="","",VLOOKUP(E26,'0'!$A$11:$B$16,2,0)) -> 
A27: ='0'!$A$4 -> 000770111 | B27: ='0'!$A$2 -> 2020-09-30 | C27: Т11 | F27: =IF(E27="","",VLOOKUP(E27,'0'!$A$11:$B$16,2,0)) -> 
A28: ='0'!$A$4 -> 000770111 | B28: ='0'!$A$2 -> 2020-09-30 | C28: Т11 | F28: =IF(E28="","",VLOOKUP(E28,'0'!$A$11:$B$16,2,0)) -> 
A29: ='0'!$A$4 -> 000770111 | B29: ='0'!$A$2 -> 2020-09-30 | C29: Т11 | F29: =IF(E29="","",VLOOKUP(E29,'0'!$A$11:$B$16,2,0)) -> 
A30: ='0'!$A$4 -> 000770111 | B30: ='0'!$A$2 -> 2020-09-30 | C30: Т11 | F30: =IF(E30="","",VLOOKUP(E30,'0'!$A$11:$B$16,2,0)) -> 
A31: ='0'!$A$4 -> 000770111 | B31: ='0'!$A$2 -> 2020-09-30 | C31: Т11 | F31: =IF(E31="","",VLOOKUP(E31,'0'!$A$11:$B$16,2,0)) -> 
A32: ='0'!$A$4 -> 000770111 | B32: ='0'!$A$2 -> 2020-09-30 | C32: Т11 | F32: =IF(E32="","",VLOOKUP(E32,'0'!$A$11:$B$16,2,0)) -> 
A33: ='0'!$A$4 -> 000770111 | B33: ='0'!$A$2 -> 2020-09-30 | C33: Т11 | F33: =IF(E33="","",VLOOKUP(E33,'0'!$A$11:$B$16,2,0)) -> 
A34: ='0'!$A$4 -> 000770111 | B34: ='0'!$A$2 -> 2020-09-30 | C34: Т11 | F34: =IF(E34="","",VLOOKUP(E34,'0'!$A$11:$B$16,2,0)) -> 
A35: ='0'!$A$4 -> 000770111 | B35: ='0'!$A$2 -> 2020-09-30 | C35: Т11 | F35: =IF(E35="","",VLOOKUP(E35,'0'!$A$11:$B$16,2,0)) -> 
A36: ='0'!$A$4 -> 000770111 | B36: ='0'!$A$2 -> 2020-09-30 | C36: Т11 | F36: =IF(E36="","",VLOOKUP(E36,'0'!$A$11:$B$16,2,0)) -> 
A37: ='0'!$A$4 -> 000770111 | B37: ='0'!$A$2 -> 2020-09-30 | C37: Т11 | F37: =IF(E37="","",VLOOKUP(E37,'0'!$A$11:$B$16,2,0)) -> 
A38: ='0'!$A$4 -> 000770111 | B38: ='0'!$A$2 -> 2020-09-30 | C38: Т11 | F38: =IF(E38="","",VLOOKUP(E38,'0'!$A$11:$B$16,2,0)) -> 
A39: ='0'!$A$4 -> 000770111 | B39: ='0'!$A$2 -> 2020-09-30 | C39: Т11 | F39: =IF(E39="","",VLOOKUP(E39,'0'!$A$11:$B$16,2,0)) -> 
A40: ='0'!$A$4 -> 000770111 | B40: ='0'!$A$2 -> 2020-09-30 | C40: Т11 | F40: =IF(E40="","",VLOOKUP(E40,'0'!$A$11:$B$16,2,0)) -> 
A41: ='0'!$A$4 -> 000770111 | B41: ='0'!$A$2 -> 2020-09-30 | C41: Т11 | F41: =IF(E41="","",VLOOKUP(E41,'0'!$A$11:$B$16,2,0)) -> 
A42: ='0'!$A$4 -> 000770111 | B42: ='0'!$A$2 -> 2020-09-30 | C42: Т11 | F42: =IF(E42="","",VLOOKUP(E42,'0'!$A$11:$B$16,2,0)) -> 
A43: ='0'!$A$4 -> 000770111 | B43: ='0'!$A$2 -> 2020-09-30 | C43: Т11 | F43: =IF(E43="","",VLOOKUP(E43,'0'!$A$11:$B$16,2,0)) -> 
A44: ='0'!$A$4 -> 000770111 | B44: ='0'!$A$2 -> 2020-09-30 | C44: Т11 | F44: =IF(E44="","",VLOOKUP(E44,'0'!$A$11:$B$16,2,0)) -> 
A45: ='0'!$A$4 -> 000770111 | B45: ='0'!$A$2 -> 2020-09-30 | C45: Т11 | F45: =IF(E45="","",VLOOKUP(E45,'0'!$A$11:$B$16,2,0)) -> 
A46: ='0'!$A$4 -> 000770111 | B46: ='0'!$A$2 -> 2020-09-30 | C46: Т11 | F46: =IF(E46="","",VLOOKUP(E46,'0'!$A$11:$B$16,2,0)) -> 
A47: ='0'!$A$4 -> 000770111 | B47: ='0'!$A$2 -> 2020-09-30 | C47: Т11 | F47: =IF(E47="","",VLOOKUP(E47,'0'!$A$11:$B$16,2,0)) -> 
A48: ='0'!$A$4 -> 000770111 | B48: ='0'!$A$2 -> 2020-09-30 | C48: Т11 | F48: =IF(E48="","",VLOOKUP(E48,'0'!$A$11:$B$16,2,0)) -> 
A49: ='0'!$A$4 -> 000770111 | B49: ='0'!$A$2 -> 2020-09-30 | C49: Т11 | F49: =IF(E49="","",VLOOKUP(E49,'0'!$A$11:$B$16,2,0)) -> 
A50: ='0'!$A$4 -> 000770111 | B50: ='0'!$A$2 -> 2020-09-30 | C50: Т11 | F50: =IF(E50="","",VLOOKUP(E50,'0'!$A$11:$B$16,2,0)) -> 
A51: ='0'!$A$4 -> 000770111 | B51: ='0'!$A$2 -> 2020-09-30 | C51: Т11 | F51: =IF(E51="","",VLOOKUP(E51,'0'!$A$11:$B$16,2,0)) -> 
A52: ='0'!$A$4 -> 000770111 | B52: ='0'!$A$2 -> 2020-09-30 | C52: Т11 | F52: =IF(E52="","",VLOOKUP(E52,'0'!$A$11:$B$16,2,0)) -> 
A53: ='0'!$A$4 -> 000770111 | B53: ='0'!$A$2 -> 2020-09-30 | C53: Т11 | F53: =IF(E53="","",VLOOKUP(E53,'0'!$A$11:$B$16,2,0)) -> 
A54: ='0'!$A$4 -> 000770111 | B54: ='0'!$A$2 -> 2020-09-30 | C54: Т11 | F54: =IF(E54="","",VLOOKUP(E54,'0'!$A$11:$B$16,2,0)) -> 
A55: ='0'!$A$4 -> 000770111 | B55: ='0'!$A$2 -> 2020-09-30 | C55: Т11 | F55: =IF(E55="","",VLOOKUP(E55,'0'!$A$11:$B$16,2,0)) -> 
A56: ='0'!$A$4 -> 000770111 | B56: ='0'!$A$2 -> 2020-09-30 | C56: Т11 | F56: =IF(E56="","",VLOOKUP(E56,'0'!$A$11:$B$16,2,0)) -> 
A57: ='0'!$A$4 -> 000770111 | B57: ='0'!$A$2 -> 2020-09-30 | C57: Т11 | F57: =IF(E57="","",VLOOKUP(E57,'0'!$A$11:$B$16,2,0)) -> 
A58: ='0'!$A$4 -> 000770111 | B58: ='0'!$A$2 -> 2020-09-30 | C58: Т11 | F58: =IF(E58="","",VLOOKUP(E58,'0'!$A$11:$B$16,2,0)) -> 
A59: ='0'!$A$4 -> 000770111 | B59: ='0'!$A$2 -> 2020-09-30 | C59: Т11 | F59: =IF(E59="","",VLOOKUP(E59,'0'!$A$11:$B$16,2,0)) -> 
A60: ='0'!$A$4 -> 000770111 | B60: ='0'!$A$2 -> 2020-09-30 | C60: Т11 | F60: =IF(E60="","",VLOOKUP(E60,'0'!$A$11:$B$16,2,0)) -> 
A61: ='0'!$A$4 -> 000770111 | B61: ='0'!$A$2 -> 2020-09-30 | C61: Т11 | F61: =IF(E61="","",VLOOKUP(E61,'0'!$A$11:$B$16,2,0)) -> 
A62: ='0'!$A$4 -> 000770111 | B62: ='0'!$A$2 -> 2020-09-30 | C62: Т11 | F62: =IF(E62="","",VLOOKUP(E62,'0'!$A$11:$B$16,2,0)) -> 
A63: ='0'!$A$4 -> 000770111 | B63: ='0'!$A$2 -> 2020-09-30 | C63: Т11 | F63: =IF(E63="","",VLOOKUP(E63,'0'!$A$11:$B$16,2,0)) -> 
A64: ='0'!$A$4 -> 000770111 | B64: ='0'!$A$2 -> 2020-09-30 | C64: Т11 | F64: =IF(E64="","",VLOOKUP(E64,'0'!$A$11:$B$16,2,0)) -> 
A65: ='0'!$A$4 -> 000770111 | B65: ='0'!$A$2 -> 2020-09-30 | C65: Т11 | F65: =IF(E65="","",VLOOKUP(E65,'0'!$A$11:$B$16,2,0)) -> 
A66: ='0'!$A$4 -> 000770111 | B66: ='0'!$A$2 -> 2020-09-30 | C66: Т11 | F66: =IF(E66="","",VLOOKUP(E66,'0'!$A$11:$B$16,2,0)) -> 
A67: ='0'!$A$4 -> 000770111 | B67: ='0'!$A$2 -> 2020-09-30 | C67: Т11 | F67: =IF(E67="","",VLOOKUP(E67,'0'!$A$11:$B$16,2,0)) -> 
A68: ='0'!$A$4 -> 000770111 | B68: ='0'!$A$2 -> 2020-09-30 | C68: Т11 | F68: =IF(E68="","",VLOOKUP(E68,'0'!$A$11:$B$16,2,0)) -> 
A69: ='0'!$A$4 -> 000770111 | B69: ='0'!$A$2 -> 2020-09-30 | C69: Т11 | F69: =IF(E69="","",VLOOKUP(E69,'0'!$A$11:$B$16,2,0)) ->  | P69: =IF(#REF!="","",CheckEGN(#REF!)) -> 
A70: ='0'!$A$4 -> 000770111 | B70: ='0'!$A$2 -> 2020-09-30 | C70: Т11 | F70: =IF(E70="","",VLOOKUP(E70,'0'!$A$11:$B$16,2,0)) ->  | P70: =IF(#REF!="","",CheckEGN(#REF!)) -> 
A71: ='0'!$A$4 -> 000770111 | B71: ='0'!$A$2 -> 2020-09-30 | C71: Т11 | F71: =IF(E71="","",VLOOKUP(E71,'0'!$A$11:$B$16,2,0)) ->  | P71: =IF(#REF!="","",CheckEGN(#REF!)) -> 
A72: ='0'!$A$4 -> 000770111 | B72: ='0'!$A$2 -> 2020-09-30 | C72: Т11 | F72: =IF(E72="","",VLOOKUP(E72,'0'!$A$11:$B$16,2,0)) ->  | P72: =IF(#REF!="","",CheckEGN(#REF!)) -> 
A73: ='0'!$A$4 -> 000770111 | B73: ='0'!$A$2 -> 2020-09-30 | C73: Т11 | F73: =IF(E73="","",VLOOKUP(E73,'0'!$A$11:$B$16,2,0)) ->  | P73: =IF(#REF!="","",CheckEGN(#REF!)) -> 
A74: ='0'!$A$4 -> 000770111 | B74: ='0'!$A$2 -> 2020-09-30 | C74: Т11 | F74: =IF(E74="","",VLOOKUP(E74,'0'!$A$11:$B$16,2,0)) ->  | P74: =IF(#REF!="","",CheckEGN(#REF!)) -> 
A75: ='0'!$A$4 -> 000770111 | B75: ='0'!$A$2 -> 2020-09-30 | C75: Т11 | F75: =IF(E75="","",VLOOKUP(E75,'0'!$A$11:$B$16,2,0)) ->  | P75: =IF(H75="","",CheckEGN(H75)) -> 
A76: ='0'!$A$4 -> 000770111 | B76: ='0'!$A$2 -> 2020-09-30 | C76: Т11 | F76: =IF(E76="","",VLOOKUP(E76,'0'!$A$11:$B$16,2,0)) -> 
A77: ='0'!$A$4 -> 000770111 | B77: ='0'!$A$2 -> 2020-09-30 | C77: Т11 | F77: =IF(E77="","",VLOOKUP(E77,'0'!$A$11:$B$16,2,0)) -> 
A78: ='0'!$A$4 -> 000770111 | B78: ='0'!$A$2 -> 2020-09-30 | C78: Т11 | F78: =IF(E78="","",VLOOKUP(E78,'0'!$A$11:$B$16,2,0)) -> 
A79: ='0'!$A$4 -> 000770111 | B79: ='0'!$A$2 -> 2020-09-30 | C79: Т11 | F79: =IF(E79="","",VLOOKUP(E79,'0'!$A$11:$B$16,2,0)) -> 
A80: ='0'!$A$4 -> 000770111 | B80: ='0'!$A$2 -> 2020-09-30 | C80: Т11 | F80: =IF(E80="","",VLOOKUP(E80,'0'!$A$11:$B$16,2,0)) -> 
A81: ='0'!$A$4 -> 000770111 | B81: ='0'!$A$2 -> 2020-09-30 | C81: Т11 | F81: =IF(E81="","",VLOOKUP(E81,'0'!$A$11:$B$16,2,0)) -> 
A82: ='0'!$A$4 -> 000770111 | B82: ='0'!$A$2 -> 2020-09-30 | C82: Т11 | F82: =IF(E82="","",VLOOKUP(E82,'0'!$A$11:$B$16,2,0)) -> 
A83: ='0'!$A$4 -> 000770111 | B83: ='0'!$A$2 -> 2020-09-30 | C83: Т11 | F83: =IF(E83="","",VLOOKUP(E83,'0'!$A$11:$B$16,2,0)) -> 
A84: ='0'!$A$4 -> 000770111 | B84: ='0'!$A$2 -> 2020-09-30 | C84: Т11 | F84: =IF(E84="","",VLOOKUP(E84,'0'!$A$11:$B$16,2,0)) -> 
A85: ='0'!$A$4 -> 000770111 | B85: ='0'!$A$2 -> 2020-09-30 | C85: Т11 | F85: =IF(E85="","",VLOOKUP(E85,'0'!$A$11:$B$16,2,0)) -> 
A86: ='0'!$A$4 -> 000770111 | B86: ='0'!$A$2 -> 2020-09-30 | C86: Т11 | F86: =IF(E86="","",VLOOKUP(E86,'0'!$A$11:$B$16,2,0)) -> 
A87: ='0'!$A$4 -> 000770111 | B87: ='0'!$A$2 -> 2020-09-30 | C87: Т11 | F87: =IF(E87="","",VLOOKUP(E87,'0'!$A$11:$B$16,2,0)) -> 
A88: ='0'!$A$4 -> 000770111 | B88: ='0'!$A$2 -> 2020-09-30 | C88: Т11 | F88: =IF(E88="","",VLOOKUP(E88,'0'!$A$11:$B$16,2,0)) -> 
A89: ='0'!$A$4 -> 000770111 | B89: ='0'!$A$2 -> 2020-09-30 | C89: Т11 | F89: =IF(E89="","",VLOOKUP(E89,'0'!$A$11:$B$16,2,0)) -> 
A90: ='0'!$A$4 -> 000770111 | B90: ='0'!$A$2 -> 2020-09-30 | C90: Т11 | F90: =IF(E90="","",VLOOKUP(E90,'0'!$A$11:$B$16,2,0)) -> 
A91: ='0'!$A$4 -> 000770111 | B91: ='0'!$A$2 -> 2020-09-30 | C91: Т11 | F91: =IF(E91="","",VLOOKUP(E91,'0'!$A$11:$B$16,2,0)) -> 
A92: ='0'!$A$4 -> 000770111 | B92: ='0'!$A$2 -> 2020-09-30 | C92: Т11 | F92: =IF(E92="","",VLOOKUP(E92,'0'!$A$11:$B$16,2,0)) -> 
A93: ='0'!$A$4 -> 000770111 | B93: ='0'!$A$2 -> 2020-09-30 | C93: Т11 | F93: =IF(E93="","",VLOOKUP(E93,'0'!$A$11:$B$16,2,0)) -> 
A94: ='0'!$A$4 -> 000770111 | B94: ='0'!$A$2 -> 2020-09-30 | C94: Т11 | F94: =IF(E94="","",VLOOKUP(E94,'0'!$A$11:$B$16,2,0)) -> 
A95: ='0'!$A$4 -> 000770111 | B95: ='0'!$A$2 -> 2020-09-30 | C95: Т11 | F95: =IF(E95="","",VLOOKUP(E95,'0'!$A$11:$B$16,2,0)) -> 
A96: ='0'!$A$4 -> 000770111 | B96: ='0'!$A$2 -> 2020-09-30 | C96: Т11 | F96: =IF(E96="","",VLOOKUP(E96,'0'!$A$11:$B$16,2,0)) -> 
A97: ='0'!$A$4 -> 000770111 | B97: ='0'!$A$2 -> 2020-09-30 | C97: Т11 | F97: =IF(E97="","",VLOOKUP(E97,'0'!$A$11:$B$16,2,0)) -> 
A98: ='0'!$A$4 -> 000770111 | B98: ='0'!$A$2 -> 2020-09-30 | C98: Т11 | F98: =IF(E98="","",VLOOKUP(E98,'0'!$A$11:$B$16,2,0)) -> 
A99: ='0'!$A$4 -> 000770111 | B99: ='0'!$A$2 -> 2020-09-30 | C99: Т11 | F99: =IF(E99="","",VLOOKUP(E99,'0'!$A$11:$B$16,2,0)) -> 
A100: ='0'!$A$4 -> 000770111 | B100: ='0'!$A$2 -> 2020-09-30 | C100: Т11 | F100: =IF(E100="","",VLOOKUP(E100,'0'!$A$11:$B$16,2,0)) -> 
A101: ='0'!$A$4 -> 000770111 | B101: ='0'!$A$2 -> 2020-09-30 | C101: Т11 | F101: =IF(E101="","",VLOOKUP(E101,'0'!$A$11:$B$16,2,0)) -> 
A102: ='0'!$A$4 -> 000770111 | B102: ='0'!$A$2 -> 2020-09-30 | C102: Т11 | F102: =IF(E102="","",VLOOKUP(E102,'0'!$A$11:$B$16,2,0)) -> 

Sheet 12
D1: ="Т12 СПРАВКА НА "&'0'!$A$6&", ПО ОБОРОТИ И САЛДА КЪМ КРАЙНАТА ДАТА НА ОТЧЕТА, ЗА ДОГОВОРИТЕ ПО КОНТРАГЕНТИ ЗА ПЕРИОДА ОТ "&TEXT(DATE(YEAR(B8),1,1),"DD-MM-YYYY")&" ДО "&TEXT(B8,"DD-MM-YYYY") -> Т12 СПРАВКА НА СБПФЗПЛР "Цар Фердинанд 1" ЕООД - с. Искрец , ПО ОБОРОТИ И САЛДА КЪМ КРАЙНАТА ДАТА НА ОТЧЕТА, ЗА ДОГОВОРИТЕ ПО КОНТРАГЕНТИ ЗА ПЕРИОДА ОТ 01-01-2020 ДО 30-09-2020
N4: Начално салдо | P4: Начислени задължения | R4: Погасени задължения | T4: Салда
A5: EIK | B5: data | D5: ЕИК/фиктивен 999999999 | E5: Наименование | F5: Елемент в отчета за доходите или финансовия отчет | G5: Предмет на договора (пояснение) | H5: N на договора | I5: Дата на сключване | J5: Дата на валидност | K5: Обща стойност на договора с вкл ДДС | L5: Пояснение | M5: Усвоена част от договора през предходни години | N5: Общо | O5: от тях неустойки, законова лихва и други с характер на санкции | P5: Общо | Q5: от тях неустойки, законова лихва и други с характер на санкции | R5: Общо | S5: от тях неустойки, законова лихва и други с характер на санкции | T5: Общо | U5: от тях неустойки, законова лихва и други с характер на санкции | V5: Просрочия от общо | W5: Остатък по договорите с обща стойност | Y5: Проверка ЕИК | Z5: Общата сума на просрочията следва да отговаря на редове 110111, 110112, 110121, 110122, 110131, 110132, 110141, 110142, 110201, 110202, 110301, 110302 от Т02 - Всички просрочи без, данъчни, осигурителни и тези за персонала. Респективно колона "Салдо общо" на текущите задълженията ред 110000 в баланса без тези на редове 110400, 110500, 110600, 110700, 110800. Обороти без договор и/или ОП и извън прага на същественост (5000) могат да се посочат и на сборен ред, диференцирано по елементи, като за ЕИК се ползва 999999999(9*9). Макетът проверява ЕИК за коректност. Не се допускат некоректни ЕИК. Данните следва да отговарят на оборотната ведомост. Когато по един договор има текуща и нетекуща част се посочва цялата стойност по договора и само текущата му част, като обороти и салда.
T6: =IF(ROUND('02'!I74-'02'!I100-'02'!I107-'02'!I112-'02'!I116-'02'!I121-T7,0)=0,"OK","Разлика с отчета") -> OK | U6: =IF(ROUND('02'!I78+'02'!I82+'02'!I86+'02'!I90+'02'!I94+'02'!I98+'02'!I124-U7,0)=0,"OK","Разлика с отчета") -> OK | V6: =IF(ROUND('02'!I77+'02'!I81+'02'!I85+'02'!I89+'02'!I93+'02'!I97+'02'!I123-V7,0)=0,"OK","Разлика с отчета") -> OK
K7: =SUM(K8:K5002) -> 0.00 | M7: =SUM(M8:M5002) -> 0.00 | N7: =SUM(N8:N5002) -> 166.00 | O7: =SUM(O8:O5002) -> 0.00 | P7: =SUM(P8:P5002) -> 801,654.53 | Q7: =SUM(Q8:Q5002) -> 0.00 | R7: 797,295.53 | S7: 0.00 | T7: 4,525 | U7: 0.00 | V7: 0.00 | W7: 0 | Y7: =IF(AND(COUNTIFS(Y8:Y5002,"")=4995,COUNTIFS(T6:V6,"OK")=3),"✓","Грешка") -> ✓
A8: ='0'!$A$4 -> 000770111 | B8: ='0'!$A$2 -> 2020-09-30 | C8: Т12 | D8: 201749289 | E8: Адапт БГ ЕООД | F8: Придобиване на имоти, машини и оборудване | N8: 0.00 | O8: 0.00 | P8: 2,110.00 | Q8: 0.00 | R8: 2,110.00 | S8: 0.00 | T8: =N8+P8-R8 -> 0 | U8: =O8+Q8-S8 -> 0 | W8: =IF(K8="","",K8-M8-(P8-Q8)) ->  | X8: =IF(ROUND(T8-V8,2)>=0,"OK","Просрочието не може да надхвърля задължението") -> OK | Y8: =IF(COUNTBLANK(D8:W8)=18,"",IF(D8="999999999","",CheckEIK(D8))) -> 
A9: ='0'!$A$4 -> 000770111 | B9: ='0'!$A$2 -> 2020-09-30 | C9: Т12 | D9: 999999999 | E9: Drontzas Andreas | F9: Медицински принадлежности | N9: 0.00 | O9: 0.00 | P9: 419.00 | Q9: 0.00 | R9: 419.00 | S9: 0.00 | T9: =N9+P9-R9 -> 0 | U9: =O9+Q9-S9 -> 0 | W9: =IF(K9="","",K9-M9-(P9-Q9)) ->  | X9: =IF(ROUND(T9-V9,2)>=0,"OK","Просрочието не може да надхвърля задължението") -> OK | Y9: =IF(COUNTBLANK(D9:W9)=18,"",IF(D9="999999999","",CheckEIK(D9))) -> 
A10: ='0'!$A$4 -> 000770111 | B10: ='0'!$A$2 -> 2020-09-30 | C10: Т12 | D10: 121185119 | E10: Ареа МН ЕООД | F10: Поддръжка на оборудване и софтуер | N10: 0.00 | O10: 0.00 | P10: 5,220.00 | Q10: 0.00 | R10: 5,220.00 | S10: 0.00 | T10: 0 | U10: 0 | X10: OK | Y10: =IF(COUNTBLANK(D10:W10)=18,"",IF(D10="999999999","",CheckEIK(D10))) -> 
A11: ='0'!$A$4 -> 000770111 | B11: ='0'!$A$2 -> 2020-09-30 | C11: Т12 | D11: 131126788 | E11: Аркаим ЕООД | F11: Канцеларски материали | N11: 0.00 | O11: 0.00 | P11: 3,607.00 | Q11: 0.00 | R11: 3,607.00 | S11: 0.00 | T11: 0 | U11: 0 | X11: OK | Y11: =IF(COUNTBLANK(D11:W11)=18,"",IF(D11="999999999","",CheckEIK(D11))) -> 
A12: ='0'!$A$4 -> 000770111 | B12: ='0'!$A$2 -> 2020-09-30 | C12: Т12 | D12: 175175819 | E12: Аутоомега ООД | F12: Други материали | N12: 0.00 | O12: 0.00 | P12: 74.00 | Q12: 0.00 | R12: 74.00 | S12: 0.00 | T12: 0 | U12: 0 | X12: OK | Y12: =IF(COUNTBLANK(D12:W12)=18,"",IF(D12="999999999","",CheckEIK(D12))) -> 
A13: ='0'!$A$4 -> 000770111 | B13: ='0'!$A$2 -> 2020-09-30 | C13: Т12 | D13: 201750619 | E13: Адиси ЕООД | F13: Хигиенни материали | N13: 0.00 | O13: 0.00 | P13: 0.00 | Q13: 0.00 | R13: 0.00 | S13: 0.00 | T13: 0 | U13: 0 | X13: OK | Y13: =IF(COUNTBLANK(D13:W13)=18,"",IF(D13="999999999","",CheckEIK(D13))) -> 
A14: ='0'!$A$4 -> 000770111 | B14: ='0'!$A$2 -> 2020-09-30 | C14: Т12 | D14: 175014157 | E14: Алверс комерс ООД | F14: Придобиване на имоти, машини и оборудване | N14: 0.00 | O14: 0.00 | P14: 0.00 | Q14: 0.00 | R14: 0.00 | S14: 0.00 | T14: 0 | U14: 0 | X14: OK | Y14: =IF(COUNTBLANK(D14:W14)=18,"",IF(D14="999999999","",CheckEIK(D14))) -> 
A15: ='0'!$A$4 -> 000770111 | B15: ='0'!$A$2 -> 2020-09-30 | C15: Т12 | D15: 200940477 | E15: Ауто уош ЕООД | F15: Други външни услуги | N15: 0.00 | O15: 0.00 | P15: 10,000.00 | Q15: 0.00 | R15: 10,000.00 | S15: 0.00 | T15: 0 | U15: 0 | X15: OK | Y15: =IF(COUNTBLANK(D15:W15)=18,"",IF(D15="999999999","",CheckEIK(D15))) -> 
A16: ='0'!$A$4 -> 000770111 | B16: ='0'!$A$2 -> 2020-09-30 | C16: Т12 | D16: 131208146 | E16: Аверс и ко ООД | F16: Други материали | N16: 0.00 | O16: 0.00 | P16: 27.00 | Q16: 0.00 | R16: 27.00 | S16: 0.00 | T16: 0 | U16: 0 | X16: OK | Y16: =IF(COUNTBLANK(D16:W16)=18,"",IF(D16="999999999","",CheckEIK(D16))) -> 
A17: ='0'!$A$4 -> 000770111 | B17: ='0'!$A$2 -> 2020-09-30 | C17: Т12 | D17: 000697567 | E17: АЯР | F17: Други външни услуги | N17: 0.00 | O17: 0.00 | P17: 0.00 | Q17: 0.00 | R17: 0.00 | S17: 0.00 | T17: 0 | U17: 0 | X17: OK | Y17: =IF(COUNTBLANK(D17:W17)=18,"",IF(D17="999999999","",CheckEIK(D17))) -> 
A18: ='0'!$A$4 -> 000770111 | B18: ='0'!$A$2 -> 2020-09-30 | C18: Т12 | D18: 175014157 | E18: Алверс комерс ООД | F18: Други материали | N18: 0.00 | O18: 0.00 | P18: 0.00 | Q18: 0.00 | R18: 0.00 | S18: 0.00 | T18: 0 | U18: 0 | X18: OK | Y18: =IF(COUNTBLANK(D18:W18)=18,"",IF(D18="999999999","",CheckEIK(D18))) -> 
A19: ='0'!$A$4 -> 000770111 | B19: ='0'!$A$2 -> 2020-09-30 | C19: Т12 | D19: 105568755 | E19: Аванти 777 ЕООД | F19: Представителни разходи | N19: 0.00 | O19: 0.00 | P19: 0.00 | Q19: 0.00 | R19: 0.00 | S19: 0.00 | T19: 0 | U19: 0 | X19: OK | Y19: =IF(COUNTBLANK(D19:W19)=18,"",IF(D19="999999999","",CheckEIK(D19))) -> 
A20: ='0'!$A$4 -> 000770111 | B20: ='0'!$A$2 -> 2020-09-30 | C20: Т12 | D20: 201495403 | E20: Алекс - КП ООД | F20: Други материали | N20: 0.00 | O20: 0.00 | P20: 0.00 | Q20: 0.00 | R20: 0.00 | S20: 0.00 | T20: 0 | U20: 0 | X20: OK | Y20: =IF(COUNTBLANK(D20:W20)=18,"",IF(D20="999999999","",CheckEIK(D20))) -> 
A21: ='0'!$A$4 -> 000770111 | B21: ='0'!$A$2 -> 2020-09-30 | C21: Т12 | D21: 175034074 | E21: Алко Джи ЕООД | F21: Представителни разходи | N21: 0.00 | O21: 0.00 | P21: 0.00 | Q21: 0.00 | R21: 0.00 | S21: 0.00 | T21: 0 | U21: 0 | X21: OK | Y21: =IF(COUNTBLANK(D21:W21)=18,"",IF(D21="999999999","",CheckEIK(D21))) -> 
A22: ='0'!$A$4 -> 000770111 | B22: ='0'!$A$2 -> 2020-09-30 | C22: Т12 | D22: 103857070 | E22: Ардес ИТ ЕООД | F22: Други материали | N22: 0.00 | O22: 0.00 | P22: 169.00 | Q22: 0.00 | R22: 169.00 | S22: 0.00 | T22: 0 | U22: 0 | X22: OK | Y22: =IF(COUNTBLANK(D22:W22)=18,"",IF(D22="999999999","",CheckEIK(D22))) -> 
A23: ='0'!$A$4 -> 000770111 | B23: ='0'!$A$2 -> 2020-09-30 | C23: Т12 | D23: 203851093 | E23: Брезент индъстри ЕООД | F23: Медицински изделия | N23: 0.00 | O23: 0.00 | P23: 72.00 | Q23: 0.00 | R23: 72.00 | S23: 0.00 | T23: 0 | U23: 0 | X23: OK | Y23: =IF(COUNTBLANK(D23:W23)=18,"",IF(D23="999999999","",CheckEIK(D23))) -> 
A24: ='0'!$A$4 -> 000770111 | B24: ='0'!$A$2 -> 2020-09-30 | C24: Т12 | D24: 106628130 | E24: Бизнес софтуер съпорт ЕООД | F24: Поддръжка на оборудване и софтуер | N24: 0.00 | O24: 0.00 | P24: 176.00 | Q24: 0.00 | R24: 176.00 | S24: 0.00 | T24: 0 | U24: 0 | X24: OK | Y24: =IF(COUNTBLANK(D24:W24)=18,"",IF(D24="999999999","",CheckEIK(D24))) -> 
A25: ='0'!$A$4 -> 000770111 | B25: ='0'!$A$2 -> 2020-09-30 | C25: Т12 | D25: 130007884 | E25: Билла България ЕООД | F25: Представителни разходи | N25: 0.00 | O25: 0.00 | P25: 1,508.00 | Q25: 0.00 | R25: 1,508.00 | S25: 0.00 | T25: 0 | U25: 0 | X25: OK | Y25: =IF(COUNTBLANK(D25:W25)=18,"",IF(D25="999999999","",CheckEIK(D25))) -> 
A26: ='0'!$A$4 -> 000770111 | B26: ='0'!$A$2 -> 2020-09-30 | C26: Т12 | D26: 831642181 | E26: БТК АД | F26: Телефон, интернет, пощенски и куриерски услуги | N26: 0.00 | O26: 0.00 | P26: 10,529.00 | Q26: 0.00 | R26: 10,529.00 | S26: 0.00 | T26: 0 | U26: 0 | X26: OK | Y26: =IF(COUNTBLANK(D26:W26)=18,"",IF(D26="999999999","",CheckEIK(D26))) -> 
A27: ='0'!$A$4 -> 000770111 | B27: ='0'!$A$2 -> 2020-09-30 | C27: Т12 | D27: 121396123 | E27: Български пощи ТП | F27: Телефон, интернет, пощенски и куриерски услуги | N27: 0.00 | O27: 0.00 | P27: 8.00 | Q27: 0.00 | R27: 8.00 | S27: 0.00 | T27: 0 | U27: 0 | X27: OK | Y27: =IF(COUNTBLANK(D27:W27)=18,"",IF(D27="999999999","",CheckEIK(D27))) -> 
A28: ='0'!$A$4 -> 000770111 | B28: ='0'!$A$2 -> 2020-09-30 | C28: Т12 | D28: 131340233 | E28: Бюро за охрана и сигурност - ИТ ЕООД | F28: Други външни услуги | N28: 0.00 | O28: 0.00 | P28: 47,808.00 | Q28: 0.00 | R28: 47,808.00 | S28: 0.00 | T28: 0 | U28: 0 | X28: OK | Y28: =IF(COUNTBLANK(D28:W28)=18,"",IF(D28="999999999","",CheckEIK(D28))) -> 
A29: ='0'!$A$4 -> 000770111 | B29: ='0'!$A$2 -> 2020-09-30 | C29: Т12 | D29: 200652606 | E29: Бизнес едюкейшън клуб ООД | F29: Други външни услуги | N29: 0.00 | O29: 0.00 | P29: 0.00 | Q29: 0.00 | R29: 0.00 | S29: 0.00 | T29: 0 | U29: 0 | X29: OK | Y29: =IF(COUNTBLANK(D29:W29)=18,"",IF(D29="999999999","",CheckEIK(D29))) -> 
A30: ='0'!$A$4 -> 000770111 | B30: ='0'!$A$2 -> 2020-09-30 | C30: Т12 | D30: 200487072 | E30: Билд инженеринг 77 ЕООД | F30: Други външни услуги | N30: 0.00 | O30: 0.00 | P30: 0.00 | Q30: 0.00 | R30: 0.00 | S30: 0.00 | T30: 0 | U30: 0 | X30: OK | Y30: =IF(COUNTBLANK(D30:W30)=18,"",IF(D30="999999999","",CheckEIK(D30))) -> 
A31: ='0'!$A$4 -> 000770111 | B31: ='0'!$A$2 -> 2020-09-30 | C31: Т12 | D31: 130428132 | E31: Бул Био НЦЗПБ ЕООД | F31: Медицински изделия | N31: 0.00 | O31: 0.00 | P31: 1,211.00 | Q31: 0.00 | R31: 1,211.00 | S31: 0.00 | T31: 0 | U31: 0 | X31: OK | Y31: =IF(COUNTBLANK(D31:W31)=18,"",IF(D31="999999999","",CheckEIK(D31))) -> 
A32: ='0'!$A$4 -> 000770111 | B32: ='0'!$A$2 -> 2020-09-30 | C32: Т12 | D32: 130408101 | E32: Булсатком ЕАД | F32: Телефон, интернет, пощенски и куриерски услуги | N32: 0.00 | O32: 0.00 | P32: 556.00 | Q32: 0.00 | R32: 556.00 | S32: 0.00 | T32: 0 | U32: 0 | X32: OK | Y32: =IF(COUNTBLANK(D32:W32)=18,"",IF(D32="999999999","",CheckEIK(D32))) -> 
A33: ='0'!$A$4 -> 000770111 | B33: ='0'!$A$2 -> 2020-09-30 | C33: Т12 | D33: 200440658 | E33: Вани комерс ЕООД | F33: Други външни услуги | N33: 0.00 | O33: 0.00 | P33: 1,080.00 | Q33: 0.00 | R33: 1,080.00 | S33: 0.00 | T33: 0 | U33: 0 | X33: OK | Y33: =IF(COUNTBLANK(D33:W33)=18,"",IF(D33="999999999","",CheckEIK(D33))) -> 
A34: ='0'!$A$4 -> 000770111 | B34: ='0'!$A$2 -> 2020-09-30 | C34: Т12 | D34: 203807684 | E34: Веж ауто партс ЕООД | F34: Други материали | N34: 0.00 | O34: 0.00 | P34: 70.80 | Q34: 0.00 | R34: 70.80 | S34: 0.00 | T34: 0 | U34: 0 | X34: OK | Y34: =IF(COUNTBLANK(D34:W34)=18,"",IF(D34="999999999","",CheckEIK(D34))) -> 
A35: ='0'!$A$4 -> 000770111 | B35: ='0'!$A$2 -> 2020-09-30 | C35: Т12 | D35: 831050781 | E35: Ван холдинг ЕООД | F35: Представителни разходи | N35: 0.00 | O35: 0.00 | P35: 117.46 | Q35: 0.00 | R35: 117.46 | S35: 0.00 | T35: 0 | U35: 0 | X35: OK | Y35: =IF(COUNTBLANK(D35:W35)=18,"",IF(D35="999999999","",CheckEIK(D35))) -> 
A36: ='0'!$A$4 -> 000770111 | B36: ='0'!$A$2 -> 2020-09-30 | C36: Т12 | D36: 126101908 | E36: Вертекс ООД | F36: Други материали | N36: 0.00 | O36: 0.00 | P36: 59.00 | Q36: 0.00 | R36: 59.00 | S36: 0.00 | T36: 0 | U36: 0 | X36: OK | Y36: =IF(COUNTBLANK(D36:W36)=18,"",IF(D36="999999999","",CheckEIK(D36))) -> 
A37: ='0'!$A$4 -> 000770111 | B37: ='0'!$A$2 -> 2020-09-30 | C37: Т12 | D37: 832046330 | E37: ВиК ЕООД | F37: Вода, горива, ел. енергия, топлинна енергия | N37: 0.00 | O37: 0.00 | P37: 17,110.00 | Q37: 0.00 | R37: 17,110.00 | S37: 0.00 | T37: 0 | U37: 0 | X37: OK | Y37: =IF(COUNTBLANK(D37:W37)=18,"",IF(D37="999999999","",CheckEIK(D37))) -> 
A38: ='0'!$A$4 -> 000770111 | B38: ='0'!$A$2 -> 2020-09-30 | C38: Т12 | D38: 201832429 | E38: Веко поуър България ООД | F38: Медицински принадлежности | N38: 0.00 | O38: 0.00 | P38: 389.00 | Q38: 0.00 | R38: 389.00 | S38: 0.00 | T38: 0 | U38: 0 | X38: OK | Y38: =IF(COUNTBLANK(D38:W38)=18,"",IF(D38="999999999","",CheckEIK(D38))) -> 
A39: ='0'!$A$4 -> 000770111 | B39: ='0'!$A$2 -> 2020-09-30 | C39: Т12 | D39: 130780386 | E39: Ди пи ес България ЕООД | F39: Други материали | N39: 0.00 | O39: 0.00 | P39: 190.00 | Q39: 0.00 | R39: 190.00 | S39: 0.00 | T39: 0 | U39: 0 | X39: OK | Y39: =IF(COUNTBLANK(D39:W39)=18,"",IF(D39="999999999","",CheckEIK(D39))) -> 
A40: ='0'!$A$4 -> 000770111 | B40: ='0'!$A$2 -> 2020-09-30 | C40: Т12 | D40: 121562456 | E40: Гама консулт - Калинкин, Прокопов и сие СД | F40: Поддръжка на оборудване и софтуер | N40: 0.00 | O40: 0.00 | P40: 5,743.00 | Q40: 0.00 | R40: 5,743.00 | S40: 0.00 | T40: 0 | U40: 0 | X40: OK | Y40: =IF(COUNTBLANK(D40:W40)=18,"",IF(D40="999999999","",CheckEIK(D40))) -> 
A41: ='0'!$A$4 -> 000770111 | B41: ='0'!$A$2 -> 2020-09-30 | C41: Т12 | D41: 203783945 | E41: Дума прес ЕООД | F41: Други външни услуги | N41: 0.00 | O41: 0.00 | P41: 1,669.00 | Q41: 0.00 | R41: 1,669.00 | S41: 0.00 | T41: 0 | U41: 0 | X41: OK | Y41: =IF(COUNTBLANK(D41:W41)=18,"",IF(D41="999999999","",CheckEIK(D41))) -> 
A42: ='0'!$A$4 -> 000770111 | B42: ='0'!$A$2 -> 2020-09-30 | C42: Т12 | D42: 175098575 | E42: Гига байт ООД | F42: Канцеларски материали | N42: 0.00 | O42: 0.00 | P42: 1,866.00 | Q42: 0.00 | R42: 1,866.00 | S42: 0.00 | T42: 0 | U42: 0 | X42: OK | Y42: =IF(COUNTBLANK(D42:W42)=18,"",IF(D42="999999999","",CheckEIK(D42))) -> 
A43: ='0'!$A$4 -> 000770111 | B43: ='0'!$A$2 -> 2020-09-30 | C43: Т12 | D43: 202940938 | E43: Гаго 59 ЕООД | F43: Представителни разходи | N43: 0.00 | O43: 0.00 | P43: 85.00 | Q43: 0.00 | R43: 85.00 | S43: 0.00 | T43: 0 | U43: 0 | X43: OK | Y43: =IF(COUNTBLANK(D43:W43)=18,"",IF(D43="999999999","",CheckEIK(D43))) -> 
A44: ='0'!$A$4 -> 000770111 | B44: ='0'!$A$2 -> 2020-09-30 | C44: Т12 | D44: 200869710 | E44: Голд фиш 2009 ООД | F44: Храна на болни | N44: 0.00 | O44: 0.00 | P44: 735.00 | Q44: 0.00 | R44: 735.00 | S44: 0.00 | T44: 0 | U44: 0 | X44: OK | Y44: =IF(COUNTBLANK(D44:W44)=18,"",IF(D44="999999999","",CheckEIK(D44))) -> 
A45: ='0'!$A$4 -> 000770111 | B45: ='0'!$A$2 -> 2020-09-30 | C45: Т12 | D45: 201816087 | E45: Дийлс 2012 ООД | F45: Медицински изделия | N45: 0.00 | O45: 0.00 | P45: 1,070.00 | Q45: 0.00 | R45: 1,070.00 | S45: 0.00 | T45: 0 | U45: 0 | X45: OK | Y45: =IF(COUNTBLANK(D45:W45)=18,"",IF(D45="999999999","",CheckEIK(D45))) -> 
A46: ='0'!$A$4 -> 000770111 | B46: ='0'!$A$2 -> 2020-09-30 | C46: Т12 | D46: 205553708 | E46: Графен груп ООД | F46: Медицински принадлежности | N46: 0.00 | O46: 0.00 | P46: 1,800.00 | Q46: 0.00 | R46: 1,800.00 | S46: 0.00 | T46: 0 | U46: 0 | X46: OK | Y46: =IF(COUNTBLANK(D46:W46)=18,"",IF(D46="999999999","",CheckEIK(D46))) -> 
A47: ='0'!$A$4 -> 000770111 | B47: ='0'!$A$2 -> 2020-09-30 | C47: Т12 | D47: 201426898 | E47: Джи картон ЕООД | F47: Други материали | N47: 0.00 | O47: 0.00 | P47: 682.00 | Q47: 0.00 | R47: 682.00 | S47: 0.00 | T47: 0 | U47: 0 | X47: OK | Y47: =IF(COUNTBLANK(D47:W47)=18,"",IF(D47="999999999","",CheckEIK(D47))) -> 
A48: ='0'!$A$4 -> 000770111 | B48: ='0'!$A$2 -> 2020-09-30 | C48: Т12 | D48: 200027031 | E48: ДБ консултинг сървисез ЕООД | F48: Други материали | N48: 0.00 | O48: 0.00 | P48: 716.38 | Q48: 0.00 | R48: 716.38 | S48: 0.00 | T48: 0 | U48: 0 | X48: OK | Y48: =IF(COUNTBLANK(D48:W48)=18,"",IF(D48="999999999","",CheckEIK(D48))) -> 
A49: ='0'!$A$4 -> 000770111 | B49: ='0'!$A$2 -> 2020-09-30 | C49: Т12 | D49: 203382333 | E49: Ди си стайл 2015 ЕООД | F49: Други материали | N49: 0.00 | O49: 0.00 | P49: 0.00 | Q49: 0.00 | R49: 0.00 | S49: 0.00 | T49: 0 | U49: 0 | X49: OK | Y49: =IF(COUNTBLANK(D49:W49)=18,"",IF(D49="999999999","",CheckEIK(D49))) -> 
A50: ='0'!$A$4 -> 000770111 | B50: ='0'!$A$2 -> 2020-09-30 | C50: Т12 | D50: 114618488 | E50: Дикар консулт ООД | F50: Придобиване на имоти, машини и оборудване | N50: 0.00 | O50: 0.00 | P50: 0.00 | Q50: 0.00 | R50: 0.00 | S50: 0.00 | T50: 0 | U50: 0 | X50: OK | Y50: =IF(COUNTBLANK(D50:W50)=18,"",IF(D50="999999999","",CheckEIK(D50))) -> 
A51: ='0'!$A$4 -> 000770111 | B51: ='0'!$A$2 -> 2020-09-30 | C51: Т12 | D51: 201416377 | E51: Джъмп БГ ЕООД | F51: Телефон, интернет, пощенски и куриерски услуги | N51: 0.00 | O51: 0.00 | P51: 100.67 | Q51: 0.00 | R51: 100.67 | S51: 0.00 | T51: 0 | U51: 0 | X51: OK | Y51: =IF(COUNTBLANK(D51:W51)=18,"",IF(D51="999999999","",CheckEIK(D51))) -> 
A52: ='0'!$A$4 -> 000770111 | B52: ='0'!$A$2 -> 2020-09-30 | C52: Т12 | D52: 205198709 | E52: Дани строй 17 ЕООД | F52: Други външни услуги | N52: 0.00 | O52: 0.00 | P52: 49,686.00 | Q52: 0.00 | R52: 49,686.00 | S52: 0.00 | T52: 0 | U52: 0 | X52: OK | Y52: =IF(COUNTBLANK(D52:W52)=18,"",IF(D52="999999999","",CheckEIK(D52))) -> 
A53: ='0'!$A$4 -> 000770111 | B53: ='0'!$A$2 -> 2020-09-30 | C53: Т12 | D53: 201640770 | E53: ДКЦ Софиямед ЕООД | F53: Други (други) | N53: 0.00 | O53: 0.00 | P53: 40.00 | Q53: 0.00 | R53: 40.00 | S53: 0.00 | T53: 0 | U53: 0 | X53: OK | Y53: =IF(COUNTBLANK(D53:W53)=18,"",IF(D53="999999999","",CheckEIK(D53))) -> 
A54: ='0'!$A$4 -> 000770111 | B54: ='0'!$A$2 -> 2020-09-30 | C54: Т12 | D54: 175307726 | E54: Евро пест ЕООД | F54: Медицински принадлежности | N54: 0.00 | O54: 0.00 | P54: 570.00 | Q54: 0.00 | R54: 570.00 | S54: 0.00 | T54: 0 | U54: 0 | X54: OK | Y54: =IF(COUNTBLANK(D54:W54)=18,"",IF(D54="999999999","",CheckEIK(D54))) -> 
A55: ='0'!$A$4 -> 000770111 | B55: ='0'!$A$2 -> 2020-09-30 | C55: Т12 | D55: 130948987 | E55: Еко - елда България ЕАД | F55: Други материали | N55: 0.00 | O55: 0.00 | P55: 0.00 | Q55: 0.00 | R55: 0.00 | S55: 0.00 | T55: 0 | U55: 0 | X55: OK | Y55: =IF(COUNTBLANK(D55:W55)=18,"",IF(D55="999999999","",CheckEIK(D55))) -> 
A56: ='0'!$A$4 -> 000770111 | B56: ='0'!$A$2 -> 2020-09-30 | C56: Т12 | D56: 106581264 | E56: Екометан - Враца ЕООД | F56: Вода, горива, ел. енергия, топлинна енергия | N56: 167.00 | O56: 0.00 | P56: 48,084.00 | Q56: 0.00 | R56: 48,226.00 | S56: 0.00 | T56: 25 | U56: 0 | X56: OK | Y56: =IF(COUNTBLANK(D56:W56)=18,"",IF(D56="999999999","",CheckEIK(D56))) -> 
A57: ='0'!$A$4 -> 000770111 | B57: ='0'!$A$2 -> 2020-09-30 | C57: Т12 | D57: 117047646 | E57: Еконт експрес ООД | F57: Телефон, интернет, пощенски и куриерски услуги | N57: 0.00 | O57: 0.00 | P57: 148.00 | Q57: 0.00 | R57: 148.00 | S57: 0.00 | T57: 0 | U57: 0 | X57: OK | Y57: =IF(COUNTBLANK(D57:W57)=18,"",IF(D57="999999999","",CheckEIK(D57))) ->  | Z57: 100901
A58: ='0'!$A$4 -> 000770111 | B58: ='0'!$A$2 -> 2020-09-30 | C58: Т12 | D58: 201260378 | E58: Елика консулт ООД | F58: Други външни услуги | N58: 0.00 | O58: 0.00 | P58: 18,360.00 | Q58: 0.00 | R58: 18,360.00 | S58: 0.00 | T58: 0 | U58: 0 | X58: OK | Y58: =IF(COUNTBLANK(D58:W58)=18,"",IF(D58="999999999","",CheckEIK(D58))) ->  | Z58: 100902
A59: ='0'!$A$4 -> 000770111 | B59: ='0'!$A$2 -> 2020-09-30 | C59: Т12 | D59: 103506445 | E59: Елпак трейдинг ЕООД | F59: Медицински принадлежности | N59: 0.00 | O59: 0.00 | P59: 0.00 | Q59: 0.00 | R59: 0.00 | S59: 0.00 | T59: 0 | U59: 0 | X59: OK | Y59: =IF(COUNTBLANK(D59:W59)=18,"",IF(D59="999999999","",CheckEIK(D59))) -> 
A60: ='0'!$A$4 -> 000770111 | B60: ='0'!$A$2 -> 2020-09-30 | C60: Т12 | D60: 103506445 | E60: Елпак лизинг ЕООД | F60: Медицински принадлежности | N60: 0.00 | O60: 0.00 | P60: 350.00 | Q60: 0.00 | R60: 350.00 | S60: 0.00 | T60: 0 | U60: 0 | X60: OK | Y60: =IF(COUNTBLANK(D60:W60)=18,"",IF(D60="999999999","",CheckEIK(D60))) -> 
A61: ='0'!$A$4 -> 000770111 | B61: ='0'!$A$2 -> 2020-09-30 | C61: Т12 | D61: 130433439 | E61: Евро 07 АД | F61: Други материали | N61: 0.00 | O61: 0.00 | P61: 906.00 | Q61: 0.00 | R61: 906.00 | S61: 0.00 | T61: 0 | U61: 0 | X61: OK | Y61: =IF(COUNTBLANK(D61:W61)=18,"",IF(D61="999999999","",CheckEIK(D61))) -> 
A62: ='0'!$A$4 -> 000770111 | B62: ='0'!$A$2 -> 2020-09-30 | C62: Т12 | T62: 0 | U62: 0 | X62: OK | Y62: =IF(COUNTBLANK(D62:W62)=18,"",IF(D62="999999999","",CheckEIK(D62))) -> 
A63: ='0'!$A$4 -> 000770111 | B63: ='0'!$A$2 -> 2020-09-30 | C63: Т12 | D63: 200824689 | E63: Емпласт 2009 ЕООД | F63: Други външни услуги | N63: 0.00 | O63: 0.00 | P63: 154,353.00 | Q63: 0.00 | R63: 154,353.00 | S63: 0.00 | T63: 0 | U63: 0 | X63: OK | Y63: =IF(COUNTBLANK(D63:W63)=18,"",IF(D63="999999999","",CheckEIK(D63))) -> 
A64: ='0'!$A$4 -> 000770111 | B64: ='0'!$A$2 -> 2020-09-30 | C64: Т12 | D64: 204281447 | E64: Еко сълюшънс ЕООД | F64: Други външни услуги | N64: 0.00 | O64: 0.00 | P64: 420.00 | Q64: 0.00 | R64: 420.00 | S64: 0.00 | T64: 0 | U64: 0 | X64: OK | Y64: =IF(COUNTBLANK(D64:W64)=18,"",IF(D64="999999999","",CheckEIK(D64))) -> 
A65: ='0'!$A$4 -> 000770111 | B65: ='0'!$A$2 -> 2020-09-30 | C65: Т12 | D65: 131417151 | E65: ЕТ Вив - Валери Русинов | F65: Представителни разходи | N65: 0.00 | O65: 0.00 | P65: 0.00 | Q65: 0.00 | R65: 0.00 | S65: 0.00 | T65: 0 | U65: 0 | X65: OK | Y65: =IF(COUNTBLANK(D65:W65)=18,"",IF(D65="999999999","",CheckEIK(D65))) -> 
A66: ='0'!$A$4 -> 000770111 | B66: ='0'!$A$2 -> 2020-09-30 | C66: Т12 | D66: 832018007 | E66: ЕТ Виктория - Божурка Соколова | F66: Лекарствени продукти | N66: 0.00 | O66: 0.00 | P66: 3,633.00 | Q66: 0.00 | R66: 3,633.00 | S66: 0.00 | T66: 0 | U66: 0 | X66: OK | Y66: =IF(COUNTBLANK(D66:W66)=18,"",IF(D66="999999999","",CheckEIK(D66))) -> 
A67: ='0'!$A$4 -> 000770111 | B67: ='0'!$A$2 -> 2020-09-30 | C67: Т12 | D67: 122063716 | E67: ЕТ Дар 98 - Божидар Занков | F67: Поддръжка на оборудване и софтуер | N67: 0.00 | O67: 0.00 | P67: 0.00 | Q67: 0.00 | R67: 0.00 | S67: 0.00 | T67: 0 | U67: 0 | X67: OK | Y67: =IF(COUNTBLANK(D67:W67)=18,"",IF(D67="999999999","",CheckEIK(D67))) -> 
A68: ='0'!$A$4 -> 000770111 | B68: ='0'!$A$2 -> 2020-09-30 | C68: Т12 | D68: 201793093 | E68: ЕТ Жак 13 - Анита Цветкова | F68: Други материали | N68: 0.00 | O68: 0.00 | P68: 2,737.00 | Q68: 0.00 | R68: 2,737.00 | S68: 0.00 | T68: 0 | U68: 0 | X68: OK | Y68: =IF(COUNTBLANK(D68:W68)=18,"",IF(D68="999999999","",CheckEIK(D68))) -> 
A69: ='0'!$A$4 -> 000770111 | B69: ='0'!$A$2 -> 2020-09-30 | C69: Т12 | D69: 121814430 | E69: ЕТ Соколово око - Десислава Димитрова | F69: Други материали | N69: 0.00 | O69: 0.00 | P69: 0.00 | Q69: 0.00 | R69: 0.00 | S69: 0.00 | T69: 0 | U69: 0 | X69: OK | Y69: =IF(COUNTBLANK(D69:W69)=18,"",IF(D69="999999999","",CheckEIK(D69))) -> 
A70: ='0'!$A$4 -> 000770111 | B70: ='0'!$A$2 -> 2020-09-30 | C70: Т12 | D70: 106053320 | E70: ЕТ Цветослав Минковски | F70: Поддръжка на оборудване и софтуер | N70: 0.00 | O70: 0.00 | P70: 4,880.00 | Q70: 0.00 | R70: 4,880.00 | S70: 0.00 | T70: 0 | U70: 0 | X70: OK | Y70: =IF(COUNTBLANK(D70:W70)=18,"",IF(D70="999999999","",CheckEIK(D70))) -> 
A71: ='0'!$A$4 -> 000770111 | B71: ='0'!$A$2 -> 2020-09-30 | C71: Т12 | D71: 122035581 | E71: ЕТ Божидар Стефанов | F71: Други материали | N71: 0.00 | O71: 0.00 | P71: 440.00 | Q71: 0.00 | R71: 440.00 | S71: 0.00 | T71: 0 | U71: 0 | X71: OK | Y71: =IF(COUNTBLANK(D71:W71)=18,"",IF(D71="999999999","",CheckEIK(D71))) -> 
A72: ='0'!$A$4 -> 000770111 | B72: ='0'!$A$2 -> 2020-09-30 | C72: Т12 | D72: 831216045 | E72: ЕТ Трета възраст | F72: Други външни услуги | N72: 0.00 | O72: 0.00 | P72: 1,464.00 | Q72: 0.00 | R72: 1,464.00 | S72: 0.00 | T72: 0 | U72: 0 | X72: OK | Y72: =IF(COUNTBLANK(D72:W72)=18,"",IF(D72="999999999","",CheckEIK(D72))) -> 
A73: ='0'!$A$4 -> 000770111 | B73: ='0'!$A$2 -> 2020-09-30 | C73: Т12 | D73: 121078996 | E73: ЕИ контрол инженеринг ЕООД | F73: Поддръжка на оборудване и софтуер | N73: 0.00 | O73: 0.00 | P73: 390.00 | Q73: 0.00 | R73: 390.00 | S73: 0.00 | T73: =N73+P73-R73 -> 0 | U73: =O73+Q73-S73 -> 0 | W73: =IF(K73="","",K73-M73-(P73-Q73)) ->  | X73: =IF(ROUND(T73-V73,2)>=0,"OK","Просрочието не може да надхвърля задължението") -> OK | Y73: =IF(COUNTBLANK(D73:W73)=18,"",IF(D73="999999999","",CheckEIK(D73))) -> 
A74: ='0'!$A$4 -> 000770111 | B74: ='0'!$A$2 -> 2020-09-30 | C74: Т12 | D74: 121296767 | E74: ЕТ Геофот - Моймир Гюрковски | F74: Други външни услуги | N74: 0.00 | O74: 0.00 | P74: 0.00 | Q74: 0.00 | R74: 0.00 | S74: 0.00 | T74: 0 | U74: 0 | X74: OK | Y74: =IF(COUNTBLANK(D74:W74)=18,"",IF(D74="999999999","",CheckEIK(D74))) -> 
A75: ='0'!$A$4 -> 000770111 | B75: ='0'!$A$2 -> 2020-09-30 | C75: Т12 | D75: 203036384 | E75: Ен би пи ООД | F75: Медицински принадлежности | N75: 0.00 | O75: 0.00 | P75: 651.00 | Q75: 0.00 | R75: 651.00 | S75: 0.00 | T75: 0 | U75: 0 | X75: OK | Y75: =IF(COUNTBLANK(D75:W75)=18,"",IF(D75="999999999","",CheckEIK(D75))) -> 
A76: ='0'!$A$4 -> 000770111 | B76: ='0'!$A$2 -> 2020-09-30 | C76: Т12 | D76: 122083836 | E76: ЕТ Радостина Таскова | F76: Работно облекло и постелен инвентар | N76: 0.00 | O76: 0.00 | P76: 70.00 | Q76: 0.00 | R76: 70.00 | S76: 0.00 | T76: 0 | U76: 0 | X76: OK | Y76: =IF(COUNTBLANK(D76:W76)=18,"",IF(D76="999999999","",CheckEIK(D76))) -> 
A77: ='0'!$A$4 -> 000770111 | B77: ='0'!$A$2 -> 2020-09-30 | C77: Т12 | D77: 122038517 | E77: ЕТ Теменужка Съботинова | F77: Други материали | N77: 0.00 | O77: 0.00 | P77: 94.00 | Q77: 0.00 | R77: 94.00 | S77: 0.00 | T77: 0 | U77: 0 | X77: OK | Y77: =IF(COUNTBLANK(D77:W77)=18,"",IF(D77="999999999","",CheckEIK(D77))) -> 
A78: ='0'!$A$4 -> 000770111 | B78: ='0'!$A$2 -> 2020-09-30 | C78: Т12 | D78: 121814487 | E78: ЕТ Силвия Иванова Симакс | F78: Хигиенни материали | N78: 0.00 | O78: 0.00 | P78: 1,104.00 | Q78: 0.00 | R78: 1,104.00 | S78: 0.00 | T78: 0 | U78: 0 | X78: OK | Y78: =IF(COUNTBLANK(D78:W78)=18,"",IF(D78="999999999","",CheckEIK(D78))) -> 
A79: ='0'!$A$4 -> 000770111 | B79: ='0'!$A$2 -> 2020-09-30 | C79: Т12 | D79: 101007486 | E79: ЕТ Тогала - Тошо Тошев | F79: Други материали | N79: 0.00 | O79: 0.00 | P79: 0.00 | Q79: 0.00 | R79: 0.00 | S79: 0.00 | T79: 0 | U79: 0 | X79: OK | Y79: =IF(COUNTBLANK(D79:W79)=18,"",IF(D79="999999999","",CheckEIK(D79))) -> 
A80: ='0'!$A$4 -> 000770111 | B80: ='0'!$A$2 -> 2020-09-30 | C80: Т12 | D80: 202937251 | E80: Екологистик БГ ООД | F80: Други външни услуги | N80: 0.00 | O80: 0.00 | P80: 108.00 | Q80: 0.00 | R80: 108.00 | S80: 0.00 | T80: 0 | U80: 0 | X80: OK | Y80: =IF(COUNTBLANK(D80:W80)=18,"",IF(D80="999999999","",CheckEIK(D80))) -> 
A81: ='0'!$A$4 -> 000770111 | B81: ='0'!$A$2 -> 2020-09-30 | C81: Т12 | D81: 204858233 | E81: Етно бул дизайн 2 ЕООД | F81: Медицински принадлежности | N81: 0.00 | O81: 0.00 | P81: 600.00 | Q81: 0.00 | R81: 600.00 | S81: 0.00 | T81: 0 | U81: 0 | X81: OK | Y81: =IF(COUNTBLANK(D81:W81)=18,"",IF(D81="999999999","",CheckEIK(D81))) -> 
A82: ='0'!$A$4 -> 000770111 | B82: ='0'!$A$2 -> 2020-09-30 | C82: Т12 | D82: 204289796 | E82: Знаме БГ ЕООД | F82: Медицински принадлежности | N82: 0.00 | O82: 0.00 | P82: 140.00 | Q82: 0.00 | R82: 140.00 | S82: 0.00 | T82: 0 | U82: 0 | X82: OK | Y82: =IF(COUNTBLANK(D82:W82)=18,"",IF(D82="999999999","",CheckEIK(D82))) -> 
A83: ='0'!$A$4 -> 000770111 | B83: ='0'!$A$2 -> 2020-09-30 | C83: Т12 | D83: 121706020 | E83: ЕТ Сирма - В - Мария Сирищнишка | F83: Други (други) | N83: 0.00 | O83: 0.00 | P83: 1,465.00 | Q83: 0.00 | R83: 1,465.00 | S83: 0.00 | T83: 0 | U83: 0 | X83: OK | Y83: =IF(COUNTBLANK(D83:W83)=18,"",IF(D83="999999999","",CheckEIK(D83))) -> 
A84: ='0'!$A$4 -> 000770111 | B84: ='0'!$A$2 -> 2020-09-30 | C84: Т12 | D84: 175017228 | E84: Иваси 29 ЕООД | F84: Хигиенни материали | N84: 0.00 | O84: 0.00 | P84: 27,261.00 | Q84: 0.00 | R84: 27,261.00 | S84: 0.00 | T84: 0 | U84: 0 | X84: OK | Y84: =IF(COUNTBLANK(D84:W84)=18,"",IF(D84="999999999","",CheckEIK(D84))) -> 
A85: ='0'!$A$4 -> 000770111 | B85: ='0'!$A$2 -> 2020-09-30 | C85: Т12 | D85: 175256317 | E85: Интеграл А.Г. ООД | F85: Поддръжка на оборудване и софтуер | N85: 0.00 | O85: 0.00 | P85: 337.00 | Q85: 0.00 | R85: 337.00 | S85: 0.00 | T85: 0 | U85: 0 | X85: OK | Y85: =IF(COUNTBLANK(D85:W85)=18,"",IF(D85="999999999","",CheckEIK(D85))) -> 
A86: ='0'!$A$4 -> 000770111 | B86: ='0'!$A$2 -> 2020-09-30 | C86: Т12 | D86: 131276827 | E86: Инфонотари ЕАД | F86: Други външни услуги | N86: 0.00 | O86: 0.00 | P86: 266.00 | Q86: 0.00 | R86: 266.00 | S86: 0.00 | T86: 0 | U86: 0 | X86: OK | Y86: =IF(COUNTBLANK(D86:W86)=18,"",IF(D86="999999999","",CheckEIK(D86))) -> 
A87: ='0'!$A$4 -> 000770111 | B87: ='0'!$A$2 -> 2020-09-30 | C87: Т12 | D87: 131404038 | E87: Искър 2005 ЕООД | F87: Други външни услуги | N87: 0.00 | O87: 0.00 | P87: 85.00 | Q87: 0.00 | R87: 85.00 | S87: 0.00 | T87: 0 | U87: 0 | X87: OK | Y87: =IF(COUNTBLANK(D87:W87)=18,"",IF(D87="999999999","",CheckEIK(D87))) -> 
A88: ='0'!$A$4 -> 000770111 | B88: ='0'!$A$2 -> 2020-09-30 | C88: Т12 | D88: 115573932 | E88: Истлинк България ООД | F88: Лекарствени продукти | N88: 0.00 | O88: 0.00 | P88: 751.00 | Q88: 0.00 | R88: 751.00 | S88: 0.00 | T88: 0 | U88: 0 | X88: OK | Y88: =IF(COUNTBLANK(D88:W88)=18,"",IF(D88="999999999","",CheckEIK(D88))) -> 
A89: ='0'!$A$4 -> 000770111 | B89: ='0'!$A$2 -> 2020-09-30 | C89: Т12 | D89: 115573932 | E89: Истлинк България ООД | F89: Медицински изделия | N89: 0.00 | O89: 0.00 | P89: 2,419.00 | Q89: 0.00 | R89: 2,419.00 | S89: 0.00 | T89: 0 | U89: 0 | X89: OK | Y89: =IF(COUNTBLANK(D89:W89)=18,"",IF(D89="999999999","",CheckEIK(D89))) -> 
A90: ='0'!$A$4 -> 000770111 | B90: ='0'!$A$2 -> 2020-09-30 | C90: Т12 | D90: 115573932 | E90: Истлинк България ООД | F90: Канцеларски материали | N90: 0.00 | O90: 0.00 | P90: 303.00 | Q90: 0.00 | R90: 303.00 | S90: 0.00 | T90: 0 | U90: 0 | X90: OK | Y90: =IF(COUNTBLANK(D90:W90)=18,"",IF(D90="999999999","",CheckEIK(D90))) -> 
A91: ='0'!$A$4 -> 000770111 | B91: ='0'!$A$2 -> 2020-09-30 | C91: Т12 | D91: 203530778 | E91: Йоди - 1 ООД | F91: Други външни услуги | N91: 0.00 | O91: 0.00 | P91: 240.00 | Q91: 0.00 | R91: 240.00 | S91: 0.00 | T91: 0 | U91: 0 | X91: OK | Y91: =IF(COUNTBLANK(D91:W91)=18,"",IF(D91="999999999","",CheckEIK(D91))) -> 
A92: ='0'!$A$4 -> 000770111 | B92: ='0'!$A$2 -> 2020-09-30 | C92: Т12 | D92: 121094705 | E92: Ин тайм ООД | F92: Телефон, интернет, пощенски и куриерски услуги | N92: 0.00 | O92: 0.00 | P92: 38.00 | Q92: 0.00 | R92: 38.00 | S92: 0.00 | T92: 0 | U92: 0 | X92: OK | Y92: =IF(COUNTBLANK(D92:W92)=18,"",IF(D92="999999999","",CheckEIK(D92))) -> 
A93: ='0'!$A$4 -> 000770111 | B93: ='0'!$A$2 -> 2020-09-30 | C93: Т12 | D93: 204134080 | E93: Йоем - 16 ЕООД | F93: Други външни услуги | N93: 0.00 | O93: 0.00 | P93: 99,986.00 | Q93: 0.00 | R93: 99,986.00 | S93: 0.00 | T93: 0 | U93: 0 | X93: OK | Y93: =IF(COUNTBLANK(D93:W93)=18,"",IF(D93="999999999","",CheckEIK(D93))) -> 
A94: ='0'!$A$4 -> 000770111 | B94: ='0'!$A$2 -> 2020-09-30 | C94: Т12 | D94: 175270007 | E94: Криси - 2007 ЕООД | F94: Храна на болни | N94: 0.00 | O94: 0.00 | P94: 50,803.00 | Q94: 0.00 | R94: 50,803.00 | S94: 0.00 | T94: 0 | U94: 0 | X94: OK | Y94: =IF(COUNTBLANK(D94:W94)=18,"",IF(D94="999999999","",CheckEIK(D94))) -> 
A95: ='0'!$A$4 -> 000770111 | B95: ='0'!$A$2 -> 2020-09-30 | C95: Т12 | D95: 130527721 | E95: КДЛ | F95: Други външни услуги | N95: 0.00 | O95: 0.00 | P95: 814.00 | Q95: 0.00 | R95: 814.00 | S95: 0.00 | T95: 0 | U95: 0 | X95: OK | Y95: =IF(COUNTBLANK(D95:W95)=18,"",IF(D95="999999999","",CheckEIK(D95))) -> 
A96: ='0'!$A$4 -> 000770111 | B96: ='0'!$A$2 -> 2020-09-30 | C96: Т12 | D96: 130313048 | E96: Ким 2000 ООД | F96: Канцеларски материали | N96: 0.00 | O96: 0.00 | P96: 28.00 | Q96: 0.00 | R96: 28.00 | S96: 0.00 | T96: 0 | U96: 0 | X96: OK | Y96: =IF(COUNTBLANK(D96:W96)=18,"",IF(D96="999999999","",CheckEIK(D96))) -> 
A97: ='0'!$A$4 -> 000770111 | B97: ='0'!$A$2 -> 2020-09-30 | C97: Т12 | D97: 831805643 | E97: Контролтест ООД | F97: Други външни услуги | N97: 0.00 | O97: 0.00 | P97: 168.00 | Q97: 0.00 | R97: 168.00 | S97: 0.00 | T97: 0 | U97: 0 | X97: OK | Y97: =IF(COUNTBLANK(D97:W97)=18,"",IF(D97="999999999","",CheckEIK(D97))) -> 
A98: ='0'!$A$4 -> 000770111 | B98: ='0'!$A$2 -> 2020-09-30 | C98: Т12 | D98: 205578501 | E98: Кабел електрик хБГ ООД | F98: Други материали | N98: 0.00 | O98: 0.00 | P98: 0.00 | Q98: 0.00 | R98: 0.00 | S98: 0.00 | T98: 0 | U98: 0 | X98: OK | Y98: =IF(COUNTBLANK(D98:W98)=18,"",IF(D98="999999999","",CheckEIK(D98))) -> 
A99: ='0'!$A$4 -> 000770111 | B99: ='0'!$A$2 -> 2020-09-30 | C99: Т12 | D99: 130241549 | E99: Лидекс - 2000 ООД | F99: Поддръжка на оборудване и софтуер | N99: 0.00 | O99: 0.00 | P99: 3,834.00 | Q99: 0.00 | R99: 3,834.00 | S99: 0.00 | T99: 0 | U99: 0 | X99: OK | Y99: =IF(COUNTBLANK(D99:W99)=18,"",IF(D99="999999999","",CheckEIK(D99))) -> 
A100: ='0'!$A$4 -> 000770111 | B100: ='0'!$A$2 -> 2020-09-30 | C100: Т12 | D100: 204937809 | E100: Любострой 2018 ЕООД | F100: Текущ ремонт на сграден фонд | N100: 0.00 | O100: 0.00 | P100: 0.00 | Q100: 0.00 | R100: 0.00 | S100: 0.00 | T100: 0 | U100: 0 | X100: OK | Y100: =IF(COUNTBLANK(D100:W100)=18,"",IF(D100="999999999","",CheckEIK(D100))) -> 
A101: ='0'!$A$4 -> 000770111 | B101: ='0'!$A$2 -> 2020-09-30 | C101: Т12 | D101: 121699202 | E101: Лукойл България ЕООД | F101: Вода, горива, ел. енергия, топлинна енергия | N101: 0.00 | O101: 0.00 | P101: 478.00 | Q101: 0.00 | R101: 478.00 | S101: 0.00 | T101: 0 | U101: 0 | X101: OK | Y101: =IF(COUNTBLANK(D101:W101)=18,"",IF(D101="999999999","",CheckEIK(D101))) -> 
A102: ='0'!$A$4 -> 000770111 | B102: ='0'!$A$2 -> 2020-09-30 | C102: Т12 | D102: 121644736 | E102: Метро кеш енд кери България ЕООД | F102: Представителни разходи | N102: 0.00 | O102: 0.00 | P102: 533.00 | Q102: 0.00 | R102: 533.00 | S102: 0.00 | T102: 0 | U102: 0 | X102: OK | Y102: =IF(COUNTBLANK(D102:W102)=18,"",IF(D102="999999999","",CheckEIK(D102))) -> 
A103: ='0'!$A$4 -> 000770111 | B103: ='0'!$A$2 -> 2020-09-30 | C103: Т12 | D103: 831237044 | E103: Медикал депо рик ООД | F103: Медицински изделия | N103: 0.00 | O103: 0.00 | P103: 285.00 | Q103: 0.00 | R103: 285.00 | S103: 0.00 | T103: 0 | U103: 0 | X103: OK | Y103: =IF(COUNTBLANK(D103:W103)=18,"",IF(D103="999999999","",CheckEIK(D103))) -> 
A104: ='0'!$A$4 -> 000770111 | B104: ='0'!$A$2 -> 2020-09-30 | C104: Т12 | D104: 112106418 | E104: МЛ България АД | F104: Други външни услуги | N104: 0.00 | O104: 0.00 | P104: 95.00 | Q104: 0.00 | R104: 95.00 | S104: 0.00 | T104: 0 | U104: 0 | X104: OK | Y104: =IF(COUNTBLANK(D104:W104)=18,"",IF(D104="999999999","",CheckEIK(D104))) -> 
A105: ='0'!$A$4 -> 000770111 | B105: ='0'!$A$2 -> 2020-09-30 | C105: Т12 | D105: 201905090 | E105: Медап консулт ООД | F105: Медицински принадлежности | N105: 0.00 | O105: 0.00 | P105: 23,226.00 | Q105: 0.00 | R105: 23,226.00 | S105: 0.00 | T105: 0 | U105: 0 | X105: OK | Y105: =IF(COUNTBLANK(D105:W105)=18,"",IF(D105="999999999","",CheckEIK(D105))) -> 
A106: ='0'!$A$4 -> 000770111 | B106: ='0'!$A$2 -> 2020-09-30 | C106: Т12 | D106: 115804474 | E106: Медика трейдинг ЕООД | F106: Медицински принадлежности | N106: 0.00 | O106: 0.00 | P106: 1,200.00 | Q106: 0.00 | R106: 1,200.00 | S106: 0.00 | T106: 0 | U106: 0 | X106: OK | Y106: =IF(COUNTBLANK(D106:W106)=18,"",IF(D106="999999999","",CheckEIK(D106))) -> 
A107: ='0'!$A$4 -> 000770111 | B107: ='0'!$A$2 -> 2020-09-30 | C107: Т12 | D107: 201247330 | E107: Меган 95 ЕООД | F107: Други външни услуги | N107: 0.00 | O107: 0.00 | P107: 0.00 | Q107: 0.00 | R107: 0.00 | S107: 0.00 | T107: 0 | U107: 0 | X107: OK | Y107: =IF(COUNTBLANK(D107:W107)=18,"",IF(D107="999999999","",CheckEIK(D107))) -> 
A108: ='0'!$A$4 -> 000770111 | B108: ='0'!$A$2 -> 2020-09-30 | C108: Т12 | D108: 203665893 | E108: Медин 98 ЕООД | F108: Поддръжка на оборудване и софтуер | N108: 0.00 | O108: 0.00 | P108: 1,244.00 | Q108: 0.00 | R108: 1,244.00 | S108: 0.00 | T108: 0 | U108: 0 | X108: OK | Y108: =IF(COUNTBLANK(D108:W108)=18,"",IF(D108="999999999","",CheckEIK(D108))) -> 
A109: ='0'!$A$4 -> 000770111 | B109: ='0'!$A$2 -> 2020-09-30 | C109: Т12 | D109: 201325372 | E109: Мост енерджи АД | F109: Вода, горива, ел. енергия, топлинна енергия | N109: 0.00 | O109: 0.00 | P109: 39,570.00 | Q109: 0.00 | R109: 39,570.00 | S109: 0.00 | T109: 0 | U109: 0 | X109: OK | Y109: =IF(COUNTBLANK(D109:W109)=18,"",IF(D109="999999999","",CheckEIK(D109))) -> 
A110: ='0'!$A$4 -> 000770111 | B110: ='0'!$A$2 -> 2020-09-30 | C110: Т12 | D110: 202850501 | E110: Микрагаз ЕООД | F110: Други външни услуги | N110: 0.00 | O110: 0.00 | P110: 120.00 | Q110: 0.00 | R110: 120.00 | S110: 0.00 | T110: 0 | U110: 0 | X110: OK | Y110: =IF(COUNTBLANK(D110:W110)=18,"",IF(D110="999999999","",CheckEIK(D110))) -> 
A111: ='0'!$A$4 -> 000770111 | B111: ='0'!$A$2 -> 2020-09-30 | C111: Т12 | D111: 204461872 | E111: М и М сервис ООД | F111: Други външни услуги | N111: 0.00 | O111: 0.00 | P111: 0.00 | Q111: 0.00 | R111: 0.00 | S111: 0.00 | T111: 0 | U111: 0 | X111: OK | Y111: =IF(COUNTBLANK(D111:W111)=18,"",IF(D111="999999999","",CheckEIK(D111))) -> 
A112: ='0'!$A$4 -> 000770111 | B112: ='0'!$A$2 -> 2020-09-30 | C112: Т12 | D112: 131324923 | E112: Максима България ЕООД | F112: Представителни разходи | N112: 0.00 | O112: 0.00 | P112: 0.00 | Q112: 0.00 | R112: 0.00 | S112: 0.00 | T112: 0 | U112: 0 | X112: OK | Y112: =IF(COUNTBLANK(D112:W112)=18,"",IF(D112="999999999","",CheckEIK(D112))) -> 
A113: ='0'!$A$4 -> 000770111 | B113: ='0'!$A$2 -> 2020-09-30 | C113: Т12 | D113: 103642947 | E113: Медилинк 2001 ЕООД | F113: Медицински изделия | N113: 0.00 | O113: 0.00 | P113: 1,000.00 | Q113: 0.00 | R113: 1,000.00 | S113: 0.00 | T113: 0 | U113: 0 | X113: OK | Y113: =IF(COUNTBLANK(D113:W113)=18,"",IF(D113="999999999","",CheckEIK(D113))) -> 
A114: ='0'!$A$4 -> 000770111 | B114: ='0'!$A$2 -> 2020-09-30 | C114: Т12 | D114: 000662801 | E114: НЦРРЗ | F114: Други външни услуги | N114: 0.00 | O114: 0.00 | P114: 156.00 | Q114: 0.00 | R114: 156.00 | S114: 0.00 | T114: 0 | U114: 0 | X114: OK | Y114: =IF(COUNTBLANK(D114:W114)=18,"",IF(D114="999999999","",CheckEIK(D114))) -> 
A115: ='0'!$A$4 -> 000770111 | B115: ='0'!$A$2 -> 2020-09-30 | C115: Т12 | D115: 000662721 | E115: НЦЗПБ | F115: Други външни услуги | N115: 0.00 | O115: 0.00 | P115: 400.00 | Q115: 0.00 | R115: 400.00 | S115: 0.00 | T115: 0 | U115: 0 | X115: OK | Y115: =IF(COUNTBLANK(D115:W115)=18,"",IF(D115="999999999","",CheckEIK(D115))) -> 
A116: ='0'!$A$4 -> 000770111 | B116: ='0'!$A$2 -> 2020-09-30 | C116: Т12 | D116: 204074605 | E116: Нако Павлов 1938 ЕООД | F116: Вода, горива, ел. енергия, топлинна енергия | N116: 0.00 | O116: 0.00 | P116: 0.00 | Q116: 0.00 | R116: 0.00 | S116: 0.00 | T116: 0 | U116: 0 | X116: OK | Y116: =IF(COUNTBLANK(D116:W116)=18,"",IF(D116="999999999","",CheckEIK(D116))) -> 
A117: ='0'!$A$4 -> 000770111 | B117: ='0'!$A$2 -> 2020-09-30 | C117: Т12 | D117: 130273696 | E117: Неовижън ООД | F117: Други външни услуги | N117: 0.00 | O117: 0.00 | P117: 0.00 | Q117: 0.00 | R117: 0.00 | S117: 0.00 | T117: 0 | U117: 0 | X117: OK | Y117: =IF(COUNTBLANK(D117:W117)=18,"",IF(D117="999999999","",CheckEIK(D117))) -> 
A118: ='0'!$A$4 -> 000770111 | B118: ='0'!$A$2 -> 2020-09-30 | C118: Т12 | D118: 115013855 | E118: Омникар ауто ООД | F118: Поддръжка на оборудване и софтуер | N118: 0.00 | O118: 0.00 | P118: 0.00 | Q118: 0.00 | R118: 0.00 | S118: 0.00 | T118: 0 | U118: 0 | X118: OK | Y118: =IF(COUNTBLANK(D118:W118)=18,"",IF(D118="999999999","",CheckEIK(D118))) -> 
A119: ='0'!$A$4 -> 000770111 | B119: ='0'!$A$2 -> 2020-09-30 | C119: Т12 | D119: 201898062 | E119: Онекс - БА ЕООД | F119: Други материали | N119: 0.00 | O119: 0.00 | P119: 0.00 | Q119: 0.00 | R119: 0.00 | S119: 0.00 | T119: 0 | U119: 0 | X119: OK | Y119: =IF(COUNTBLANK(D119:W119)=18,"",IF(D119="999999999","",CheckEIK(D119))) -> 
A120: ='0'!$A$4 -> 000770111 | B120: ='0'!$A$2 -> 2020-09-30 | C120: Т12 | D120: 176986290 | E120: ОДБХ София област | F120: Други външни услуги | N120: 0.00 | O120: 0.00 | P120: 0.00 | Q120: 0.00 | R120: 0.00 | S120: 0.00 | T120: 0 | U120: 0 | X120: OK | Y120: =IF(COUNTBLANK(D120:W120)=18,"",IF(D120="999999999","",CheckEIK(D120))) -> 
A121: ='0'!$A$4 -> 000770111 | B121: ='0'!$A$2 -> 2020-09-30 | C121: Т12 | D121: 121759222 | E121: ОМВ България ООД | F121: Вода, горива, ел. енергия, топлинна енергия | N121: 0.00 | O121: 0.00 | P121: 0.00 | Q121: 0.00 | R121: 0.00 | S121: 0.00 | T121: 0 | U121: 0 | X121: OK | Y121: =IF(COUNTBLANK(D121:W121)=18,"",IF(D121="999999999","",CheckEIK(D121))) -> 
A122: ='0'!$A$4 -> 000770111 | B122: ='0'!$A$2 -> 2020-09-30 | C122: Т12 | D122: 833101609 | E122: Перфект медика ООД | F122: Медицински изделия | N122: 0.00 | O122: 0.00 | P122: 9,897.24 | Q122: 0.00 | R122: 9,897.24 | S122: 0.00 | T122: 0 | U122: 0 | X122: OK | Y122: =IF(COUNTBLANK(D122:W122)=18,"",IF(D122="999999999","",CheckEIK(D122))) -> 
A123: ='0'!$A$4 -> 000770111 | B123: ='0'!$A$2 -> 2020-09-30 | C123: Т12 | D123: 833101609 | E123: Перфект медика ООД | F123: Поддръжка на оборудване и софтуер | N123: 0.00 | O123: 0.00 | P123: 6,899.00 | Q123: 0.00 | R123: 6,899.00 | S123: 0.00 | T123: 0 | U123: 0 | X123: OK | Y123: =IF(COUNTBLANK(D123:W123)=18,"",IF(D123="999999999","",CheckEIK(D123))) -> 
A124: ='0'!$A$4 -> 000770111 | B124: ='0'!$A$2 -> 2020-09-30 | C124: Т12 | D124: 130921812 | E124: Петър електрик ЕООД | F124: Други материали | N124: 0.00 | O124: 0.00 | P124: 7,379.00 | Q124: 0.00 | R124: 7,379.00 | S124: 0.00 | T124: 0 | U124: 0 | X124: OK | Y124: =IF(COUNTBLANK(D124:W124)=18,"",IF(D124="999999999","",CheckEIK(D124))) -> 
A125: ='0'!$A$4 -> 000770111 | B125: ='0'!$A$2 -> 2020-09-30 | C125: Т12 | D125: 131343667 | E125: Прима консулт - С ЕООД | F125: Други външни услуги | N125: 0.00 | O125: 0.00 | P125: 288.00 | Q125: 0.00 | R125: 288.00 | S125: 0.00 | T125: 0 | U125: 0 | X125: OK | Y125: =IF(COUNTBLANK(D125:W125)=18,"",IF(D125="999999999","",CheckEIK(D125))) -> 
A126: ='0'!$A$4 -> 000770111 | B126: ='0'!$A$2 -> 2020-09-30 | C126: Т12 | D126: 202292306 | E126: Пожарна защита ООД | F126: Поддръжка на оборудване и софтуер | N126: 0.00 | O126: 0.00 | P126: 2,110.00 | Q126: 0.00 | R126: 2,110.00 | S126: 0.00 | T126: 0 | U126: 0 | X126: OK | Y126: =IF(COUNTBLANK(D126:W126)=18,"",IF(D126="999999999","",CheckEIK(D126))) -> 
A127: ='0'!$A$4 -> 000770111 | B127: ='0'!$A$2 -> 2020-09-30 | C127: Т12 | D127: 131507508 | E127: Парфюмери дъглас България ООД | F127: Представителни разходи | N127: 0.00 | O127: 0.00 | P127: 252.00 | Q127: 0.00 | R127: 252.00 | S127: 0.00 | T127: 0 | U127: 0 | X127: OK | Y127: =IF(COUNTBLANK(D127:W127)=18,"",IF(D127="999999999","",CheckEIK(D127))) -> 
A128: ='0'!$A$4 -> 000770111 | B128: ='0'!$A$2 -> 2020-09-30 | C128: Т12 | D128: 130293236 | E128: Пест контрол сървисиз ЕООД | F128: Хигиенни материали | N128: 0.00 | O128: 0.00 | P128: 546.12 | Q128: 0.00 | R128: 546.12 | S128: 0.00 | T128: 0 | U128: 0 | X128: OK | Y128: =IF(COUNTBLANK(D128:W128)=18,"",IF(D128="999999999","",CheckEIK(D128))) -> 
A129: ='0'!$A$4 -> 000770111 | B129: ='0'!$A$2 -> 2020-09-30 | C129: Т12 | D129: 148019777 | E129: Пласико компютърс ЕООД | F129: Други материали | N129: 0.00 | O129: 0.00 | P129: 0.00 | Q129: 0.00 | R129: 0.00 | S129: 0.00 | T129: 0 | U129: 0 | X129: OK | Y129: =IF(COUNTBLANK(D129:W129)=18,"",IF(D129="999999999","",CheckEIK(D129))) -> 
A130: ='0'!$A$4 -> 000770111 | B130: ='0'!$A$2 -> 2020-09-30 | C130: Т12 | D130: 131262158 | E130: Плесио компютърс ЕАД | F130: Други материали | N130: 0.00 | O130: 0.00 | P130: 0.00 | Q130: 0.00 | R130: 0.00 | S130: 0.00 | T130: 0 | U130: 0 | X130: OK | Y130: =IF(COUNTBLANK(D130:W130)=18,"",IF(D130="999999999","",CheckEIK(D130))) -> 
A131: ='0'!$A$4 -> 000770111 | B131: ='0'!$A$2 -> 2020-09-30 | C131: Т12 | D131: 203299392 | E131: Пап тех ЕООД | F131: Представителни разходи | N131: 0.00 | O131: 0.00 | P131: 0.00 | Q131: 0.00 | R131: 0.00 | S131: 0.00 | T131: 0 | U131: 0 | X131: OK | Y131: =IF(COUNTBLANK(D131:W131)=18,"",IF(D131="999999999","",CheckEIK(D131))) -> 
A132: ='0'!$A$4 -> 000770111 | B132: ='0'!$A$2 -> 2020-09-30 | C132: Т12 | D132: 123603909 | E132: Парагон трейдинг ООД | F132: Медицински принадлежности | N132: 0.00 | O132: 0.00 | P132: 351.00 | Q132: 0.00 | R132: 351.00 | S132: 0.00 | T132: 0 | U132: 0 | X132: OK | Y132: =IF(COUNTBLANK(D132:W132)=18,"",IF(D132="999999999","",CheckEIK(D132))) -> 
A133: ='0'!$A$4 -> 000770111 | B133: ='0'!$A$2 -> 2020-09-30 | C133: Т12 | D133: 200525782 | E133: Практикер ритейл ЕООД | F133: Други материали | N133: 0.00 | O133: 0.00 | P133: 528.00 | Q133: 0.00 | R133: 528.00 | S133: 0.00 | T133: 0 | U133: 0 | X133: OK | Y133: =IF(COUNTBLANK(D133:W133)=18,"",IF(D133="999999999","",CheckEIK(D133))) -> 
A134: ='0'!$A$4 -> 000770111 | B134: ='0'!$A$2 -> 2020-09-30 | C134: Т12 | D134: 200234197 | E134: Рапидо експрес енд лоджистикс ООД | F134: Телефон, интернет, пощенски и куриерски услуги | N134: 0.00 | O134: 0.00 | P134: 0.00 | Q134: 0.00 | R134: 0.00 | S134: 0.00 | T134: 0 | U134: 0 | X134: OK | Y134: =IF(COUNTBLANK(D134:W134)=18,"",IF(D134="999999999","",CheckEIK(D134))) -> 
A135: ='0'!$A$4 -> 000770111 | B135: ='0'!$A$2 -> 2020-09-30 | C135: Т12 | D135: 175040885 | E135: Ридаком ЕООД | F135: Медицински изделия | N135: 0.00 | O135: 0.00 | P135: 417.00 | Q135: 0.00 | R135: 417.00 | S135: 0.00 | T135: 0 | U135: 0 | X135: OK | Y135: =IF(COUNTBLANK(D135:W135)=18,"",IF(D135="999999999","",CheckEIK(D135))) -> 
A136: ='0'!$A$4 -> 000770111 | B136: ='0'!$A$2 -> 2020-09-30 | C136: Т12 | D136: 175241468 | E136: Рикос ЕООД | F136: Храна на болни | N136: 0.00 | O136: 0.00 | P136: 116.00 | Q136: 0.00 | R136: 116.00 | S136: 0.00 | T136: 0 | U136: 0 | X136: OK | Y136: =IF(COUNTBLANK(D136:W136)=18,"",IF(D136="999999999","",CheckEIK(D136))) -> 
A137: ='0'!$A$4 -> 000770111 | B137: ='0'!$A$2 -> 2020-09-30 | C137: Т12 | D137: 131041576 | E137: Резон България ООД | F137: Канцеларски материали | N137: 0.00 | O137: 0.00 | P137: 58.00 | Q137: 0.00 | R137: 58.00 | S137: 0.00 | T137: =N137+P137-R137 -> 0 | U137: =O137+Q137-S137 -> 0 | W137: =IF(K137="","",K137-M137-(P137-Q137)) ->  | X137: =IF(ROUND(T137-V137,2)>=0,"OK","Просрочието не може да надхвърля задължението") -> OK | Y137: =IF(COUNTBLANK(D137:W137)=18,"",IF(D137="999999999","",CheckEIK(D137))) -> 
A138: ='0'!$A$4 -> 000770111 | B138: ='0'!$A$2 -> 2020-09-30 | C138: Т12 | D138: 201595108 | E138: Ресол България ЕООД | F138: Медицински принадлежности | N138: 0.00 | O138: 0.00 | P138: 40.00 | Q138: 0.00 | R138: 40.00 | S138: 0.00 | T138: 0 | U138: 0 | X138: OK | Y138: =IF(COUNTBLANK(D138:W138)=18,"",IF(D138="999999999","",CheckEIK(D138))) -> 
A139: ='0'!$A$4 -> 000770111 | B139: ='0'!$A$2 -> 2020-09-30 | C139: Т12 | D139: 202152208 | E139: Росхим И ЕООД | F139: Други външни услуги | N139: 0.00 | O139: 0.00 | P139: 0.00 | Q139: 0.00 | R139: 0.00 | S139: 0.00 | T139: 0 | U139: 0 | X139: OK | Y139: =IF(COUNTBLANK(D139:W139)=18,"",IF(D139="999999999","",CheckEIK(D139))) -> 
A140: ='0'!$A$4 -> 000770111 | B140: ='0'!$A$2 -> 2020-09-30 | C140: Т12 | D140: 203300364 | E140: Си Бриколаш ЕООД | F140: Други материали | N140: 0.00 | O140: 0.00 | P140: 52.00 | Q140: 0.00 | R140: 52.00 | S140: 0.00 | T140: 0 | U140: 0 | X140: OK | Y140: =IF(COUNTBLANK(D140:W140)=18,"",IF(D140="999999999","",CheckEIK(D140))) -> 
A141: ='0'!$A$4 -> 000770111 | B141: ='0'!$A$2 -> 2020-09-30 | C141: Т12 | D141: 175110255 | E141: Симид София ООД | F141: Храна на болни | N141: 0.00 | O141: 0.00 | P141: 15,060.00 | Q141: 0.00 | R141: 15,060.00 | S141: 0.00 | T141: 0 | U141: 0 | X141: OK | Y141: =IF(COUNTBLANK(D141:W141)=18,"",IF(D141="999999999","",CheckEIK(D141))) -> 
A142: ='0'!$A$4 -> 000770111 | B142: ='0'!$A$2 -> 2020-09-30 | C142: Т12 | D142: 121604510 | E142: Стантек ЕООД | F142: Придобиване на имоти, машини и оборудване | N142: 0.00 | O142: 0.00 | P142: 0.00 | Q142: 0.00 | R142: 0.00 | S142: 0.00 | T142: 0 | U142: 0 | X142: OK | Y142: =IF(COUNTBLANK(D142:W142)=18,"",IF(D142="999999999","",CheckEIK(D142))) -> 
A143: ='0'!$A$4 -> 000770111 | B143: ='0'!$A$2 -> 2020-09-30 | C143: Т12 | D143: 130977519 | E143: Стакс ООД | F143: Канцеларски материали | N143: 0.00 | O143: 0.00 | P143: 21.94 | Q143: 0.00 | R143: 21.94 | S143: 0.00 | T143: 0 | U143: 0 | X143: OK | Y143: =IF(COUNTBLANK(D143:W143)=18,"",IF(D143="999999999","",CheckEIK(D143))) -> 
A144: ='0'!$A$4 -> 000770111 | B144: ='0'!$A$2 -> 2020-09-30 | C144: Т12 | D144: 121307270 | E144: С инд И Манолов ООД | F144: Придобиване на имоти, машини и оборудване | N144: 0.00 | O144: 0.00 | P144: 10,500.00 | Q144: 0.00 | R144: 6,000.00 | S144: 0.00 | T144: 4,500 | U144: 0 | X144: OK | Y144: =IF(COUNTBLANK(D144:W144)=18,"",IF(D144="999999999","",CheckEIK(D144))) -> 
A145: ='0'!$A$4 -> 000770111 | B145: ='0'!$A$2 -> 2020-09-30 | C145: Т12 | D145: 103267194 | E145: Софарма трейдинг АД | F145: Лекарствени продукти | N145: 0.00 | O145: 0.00 | P145: 53,810.00 | Q145: 0.00 | R145: 53,810.00 | S145: 0.00 | T145: 0 | U145: 0 | X145: OK | Y145: =IF(COUNTBLANK(D145:W145)=18,"",IF(D145="999999999","",CheckEIK(D145))) -> 
A146: ='0'!$A$4 -> 000770111 | B146: ='0'!$A$2 -> 2020-09-30 | C146: Т12 | D146: 121803715 | E146: Сол България ЕАД | F146: Медицински изделия | N146: 0.00 | O146: 0.00 | P146: 38.34 | Q146: 0.00 | R146: 38.34 | S146: 0.00 | T146: 0 | U146: 0 | X146: OK | Y146: =IF(COUNTBLANK(D146:W146)=18,"",IF(D146="999999999","",CheckEIK(D146))) -> 
A147: ='0'!$A$4 -> 000770111 | B147: ='0'!$A$2 -> 2020-09-30 | C147: Т12 | D147: 131371780 | E147: Спиди АД | F147: Телефон, интернет, пощенски и куриерски услуги | N147: 0.00 | O147: 0.00 | P147: 438.00 | Q147: 0.00 | R147: 438.00 | S147: 0.00 | T147: 0 | U147: 0 | X147: OK | Y147: =IF(COUNTBLANK(D147:W147)=18,"",IF(D147="999999999","",CheckEIK(D147))) -> 
A148: ='0'!$A$4 -> 000770111 | B148: ='0'!$A$2 -> 2020-09-30 | C148: Т12 | D148: 176034554 | E148: СРЗИ | F148: Други външни услуги | N148: 0.00 | O148: 0.00 | P148: 143.00 | Q148: 0.00 | R148: 143.00 | S148: 0.00 | T148: 0 | U148: 0 | X148: OK | Y148: =IF(COUNTBLANK(D148:W148)=18,"",IF(D148="999999999","",CheckEIK(D148))) -> 
A149: ='0'!$A$4 -> 000770111 | B149: ='0'!$A$2 -> 2020-09-30 | C149: Т12 | D149: 200490378 | E149: Сием 905 ЕООД | F149: Текущ ремонт на сграден фонд | N149: 0.00 | O149: 0.00 | P149: 0.00 | Q149: 0.00 | R149: 0.00 | S149: 0.00 | T149: 0 | U149: 0 | X149: OK | Y149: =IF(COUNTBLANK(D149:W149)=18,"",IF(D149="999999999","",CheckEIK(D149))) -> 
A150: ='0'!$A$4 -> 000770111 | B150: ='0'!$A$2 -> 2020-09-30 | C150: Т12 | D150: 030276307 | E150: Търговска лига АД | F150: Събиране, транспортиране и обезвреждане на отпадъци | N150: 0.00 | O150: 0.00 | P150: 609.70 | Q150: 0.00 | R150: 609.70 | S150: 0.00 | T150: 0 | U150: 0 | X150: OK | Y150: =IF(COUNTBLANK(D150:W150)=18,"",IF(D150="999999999","",CheckEIK(D150))) -> 
A151: ='0'!$A$4 -> 000770111 | B151: ='0'!$A$2 -> 2020-09-30 | C151: Т12 | D151: 203928270 | E151: Топливо дренов ЕООД | F151: Други материали | N151: 0.00 | O151: 0.00 | P151: 213.00 | Q151: 0.00 | R151: 213.00 | S151: 0.00 | T151: 0 | U151: 0 | X151: OK | Y151: =IF(COUNTBLANK(D151:W151)=18,"",IF(D151="999999999","",CheckEIK(D151))) -> 
A152: ='0'!$A$4 -> 000770111 | B152: ='0'!$A$2 -> 2020-09-30 | C152: Т12 | D152: 130858590 | E152: Технополис България ЕАД | F152: Придобиване на имоти, машини и оборудване | N152: 0.00 | O152: 0.00 | P152: 474.00 | Q152: 0.00 | R152: 474.00 | S152: 0.00 | T152: 0 | U152: 0 | X152: OK | Y152: =IF(COUNTBLANK(D152:W152)=18,"",IF(D152="999999999","",CheckEIK(D152))) -> 
A153: ='0'!$A$4 -> 000770111 | B153: ='0'!$A$2 -> 2020-09-30 | C153: Т12 | D153: 204647818 | E153: Тас одит ЕООД | F153: Други външни услуги | N153: 0.00 | O153: 0.00 | P153: 2,200.00 | Q153: 0.00 | R153: 2,200.00 | S153: 0.00 | T153: 0 | U153: 0 | X153: OK | Y153: =IF(COUNTBLANK(D153:W153)=18,"",IF(D153="999999999","",CheckEIK(D153))) -> 
A154: ='0'!$A$4 -> 000770111 | B154: ='0'!$A$2 -> 2020-09-30 | C154: Т12 | D154: 131550114 | E154: Ултрамед ЕООД | F154: Придобиване на имоти, машини и оборудване | N154: 0.00 | O154: 0.00 | P154: 1,278.00 | Q154: 0.00 | R154: 1,278.00 | S154: 0.00 | T154: 0 | U154: 0 | X154: OK | Y154: =IF(COUNTBLANK(D154:W154)=18,"",IF(D154="999999999","",CheckEIK(D154))) -> 
A155: ='0'!$A$4 -> 000770111 | B155: ='0'!$A$2 -> 2020-09-30 | C155: Т12 | D155: 175070169 | E155: Уинстар ЕООД | F155: Други материали | N155: 0.00 | O155: 0.00 | P155: 534.00 | Q155: 0.00 | R155: 534.00 | S155: 0.00 | T155: 0 | U155: 0 | X155: OK | Y155: =IF(COUNTBLANK(D155:W155)=18,"",IF(D155="999999999","",CheckEIK(D155))) -> 
A156: ='0'!$A$4 -> 000770111 | B156: ='0'!$A$2 -> 2020-09-30 | C156: Т12 | D156: 175070169 | E156: Уинстар ЕООД | F156: Медицински изделия | N156: 0.00 | O156: 0.00 | P156: 544.00 | Q156: 0.00 | R156: 544.00 | S156: 0.00 | T156: 0 | U156: 0 | X156: OK | Y156: =IF(COUNTBLANK(D156:W156)=18,"",IF(D156="999999999","",CheckEIK(D156))) -> 
A157: ='0'!$A$4 -> 000770111 | B157: ='0'!$A$2 -> 2020-09-30 | C157: Т12 | D157: 204537964 | E157: Фреш маркет 2016 ООД | F157: Представителни разходи | N157: 0.00 | O157: 0.00 | P157: 248.00 | Q157: 0.00 | R157: 248.00 | S157: 0.00 | T157: 0 | U157: 0 | X157: OK | Y157: =IF(COUNTBLANK(D157:W157)=18,"",IF(D157="999999999","",CheckEIK(D157))) -> 
A158: ='0'!$A$4 -> 000770111 | B158: ='0'!$A$2 -> 2020-09-30 | C158: Т12 | D158: 200796243 | E158: Фотон логистик ЕООД | F158: Медицински принадлежности | N158: 0.00 | O158: 0.00 | P158: 41.00 | Q158: 0.00 | R158: 41.00 | S158: 0.00 | T158: 0 | U158: 0 | X158: OK | Y158: =IF(COUNTBLANK(D158:W158)=18,"",IF(D158="999999999","",CheckEIK(D158))) -> 
A159: ='0'!$A$4 -> 000770111 | B159: ='0'!$A$2 -> 2020-09-30 | C159: Т12 | D159: 175070169 | E159: Уинстар ЕООД | F159: Придобиване на имоти, машини и оборудване | N159: 0.00 | O159: 0.00 | P159: 2,760.00 | Q159: 0.00 | R159: 2,760.00 | S159: 0.00 | T159: 0 | U159: 0 | X159: OK | Y159: =IF(COUNTBLANK(D159:W159)=18,"",IF(D159="999999999","",CheckEIK(D159))) -> 
A160: ='0'!$A$4 -> 000770111 | B160: ='0'!$A$2 -> 2020-09-30 | C160: Т12 | D160: 175133827 | E160: ЧЕЗ Електро България АД | F160: Вода, горива, ел. енергия, топлинна енергия | N160: 0.00 | O160: 0.00 | P160: 784.00 | Q160: 0.00 | R160: 784.00 | S160: 0.00 | T160: 0 | U160: 0 | X160: OK | Y160: =IF(COUNTBLANK(D160:W160)=18,"",IF(D160="999999999","",CheckEIK(D160))) -> 
A161: ='0'!$A$4 -> 000770111 | B161: ='0'!$A$2 -> 2020-09-30 | C161: Т12 | D161: 204807153 | E161: Хаймс ЕООД | F161: Придобиване на имоти, машини и оборудване | N161: 0.00 | O161: 0.00 | P161: 1,301.00 | Q161: 0.00 | R161: 1,301.00 | S161: 0.00 | T161: 0 | U161: 0 | X161: OK | Y161: =IF(COUNTBLANK(D161:W161)=18,"",IF(D161="999999999","",CheckEIK(D161))) -> 
A162: ='0'!$A$4 -> 000770111 | B162: ='0'!$A$2 -> 2020-09-30 | C162: Т12 | D162: 130277958 | E162: Чез разпределение България АД | F162: Вода, горива, ел. енергия, топлинна енергия | N162: -1.00 | O162: 0.00 | P162: 14,441.00 | Q162: 0.00 | R162: 14,440.00 | S162: 0.00 | T162: 0 | U162: 0 | X162: OK | Y162: =IF(COUNTBLANK(D162:W162)=18,"",IF(D162="999999999","",CheckEIK(D162))) -> 
A163: ='0'!$A$4 -> 000770111 | B163: ='0'!$A$2 -> 2020-09-30 | C163: Т12 | D163: 831915840 | E163: Шел България АД | F163: Вода, горива, ел. енергия, топлинна енергия | N163: 0.00 | O163: 0.00 | P163: 70.38 | Q163: 0.00 | R163: 70.38 | S163: 0.00 | T163: 0 | U163: 0 | X163: OK | Y163: =IF(COUNTBLANK(D163:W163)=18,"",IF(D163="999999999","",CheckEIK(D163))) -> 
A164: ='0'!$A$4 -> 000770111 | B164: ='0'!$A$2 -> 2020-09-30 | C164: Т12 | D164: 204142846 | E164: ХМИ трейд ООД | F164: Хигиенни материали | N164: 0.00 | O164: 0.00 | P164: 982.00 | Q164: 0.00 | R164: 982.00 | S164: 0.00 | T164: 0 | U164: 0 | X164: OK | Y164: =IF(COUNTBLANK(D164:W164)=18,"",IF(D164="999999999","",CheckEIK(D164))) -> 
A165: ='0'!$A$4 -> 000770111 | B165: ='0'!$A$2 -> 2020-09-30 | C165: Т12 | D165: 203187055 | E165: Емаг интернешънъл ООД | F165: Други материали | N165: 0.00 | O165: 0.00 | P165: 167.00 | Q165: 0.00 | R165: 167.00 | S165: 0.00 | T165: 0 | U165: 0 | X165: OK | Y165: =IF(COUNTBLANK(D165:W165)=18,"",IF(D165="999999999","",CheckEIK(D165))) -> 
A166: ='0'!$A$4 -> 000770111 | B166: ='0'!$A$2 -> 2020-09-30 | C166: Т12 | D166: 204029880 | E166: Чизги медикъл 2016 ЕООД | F166: Работно облекло и постелен инвентар | N166: 0.00 | O166: 0.00 | P166: 68.00 | Q166: 0.00 | R166: 68.00 | S166: 0.00 | T166: 0 | U166: 0 | X166: OK | Y166: =IF(COUNTBLANK(D166:W166)=18,"",IF(D166="999999999","",CheckEIK(D166))) -> 
A167: ='0'!$A$4 -> 000770111 | B167: ='0'!$A$2 -> 2020-09-30 | C167: Т12 | D167: 201697248 | E167: Шууз груп ООД | F167: Медицински изделия | N167: 0.00 | O167: 0.00 | P167: 720.00 | Q167: 0.00 | R167: 720.00 | S167: 0.00 | T167: 0 | U167: 0 | X167: OK | Y167: =IF(COUNTBLANK(D167:W167)=18,"",IF(D167="999999999","",CheckEIK(D167))) -> 
A168: ='0'!$A$4 -> 000770111 | B168: ='0'!$A$2 -> 2020-09-30 | C168: Т12 | D168: 160094119 | E168: Димитров ЕООД | F168: Други материали | N168: 0.00 | O168: 0.00 | P168: 117.50 | Q168: 0.00 | R168: 117.50 | S168: 0.00 | T168: 0 | U168: 0 | X168: OK | Y168: =IF(COUNTBLANK(D168:W168)=18,"",IF(D168="999999999","",CheckEIK(D168))) -> 
A169: ='0'!$A$4 -> 000770111 | B169: ='0'!$A$2 -> 2020-09-30 | C169: Т12 | D169: 130006992 | E169: Доверие - Брико АД | F169: Други материали | N169: 0.00 | O169: 0.00 | P169: 0.00 | Q169: 0.00 | R169: 0.00 | S169: 0.00 | T169: 0 | U169: 0 | X169: OK | Y169: =IF(COUNTBLANK(D169:W169)=18,"",IF(D169="999999999","",CheckEIK(D169))) -> 
A170: ='0'!$A$4 -> 000770111 | B170: ='0'!$A$2 -> 2020-09-30 | C170: Т12 | D170: 130077982 | E170: ЕТ Борис Тасков 42 | F170: Други материали | N170: 0.00 | O170: 0.00 | P170: 346.00 | Q170: 0.00 | R170: 346.00 | S170: 0.00 | T170: 0 | U170: 0 | X170: OK | Y170: =IF(COUNTBLANK(D170:W170)=18,"",IF(D170="999999999","",CheckEIK(D170))) -> 
A171: ='0'!$A$4 -> 000770111 | B171: ='0'!$A$2 -> 2020-09-30 | C171: Т12 | D171: 122065902 | E171: ЕТ Крис - Алек - Р. Колев | F171: Други външни услуги | N171: 0.00 | O171: 0.00 | P171: 10.00 | Q171: 0.00 | R171: 10.00 | S171: 0.00 | T171: 0 | U171: 0 | X171: OK | Y171: =IF(COUNTBLANK(D171:W171)=18,"",IF(D171="999999999","",CheckEIK(D171))) -> 
A172: ='0'!$A$4 -> 000770111 | B172: ='0'!$A$2 -> 2020-09-30 | C172: Т12 | D172: 121126551 | E172: Комерс финанс АД | F172: Поддръжка на оборудване и софтуер | N172: 0.00 | O172: 0.00 | P172: 0.00 | Q172: 0.00 | R172: 0.00 | S172: 0.00 | T172: 0 | U172: 0 | X172: OK | Y172: =IF(COUNTBLANK(D172:W172)=18,"",IF(D172="999999999","",CheckEIK(D172))) -> 
A173: ='0'!$A$4 -> 000770111 | B173: ='0'!$A$2 -> 2020-09-30 | C173: Т12 | D173: 121147034 | E173: Красан ООД | F173: Резервни части и доокомплектовка на апаратура | N173: 0.00 | O173: 0.00 | P173: 156.00 | Q173: 0.00 | R173: 156.00 | S173: 0.00 | T173: 0 | U173: 0 | X173: OK | Y173: =IF(COUNTBLANK(D173:W173)=18,"",IF(D173="999999999","",CheckEIK(D173))) -> 
A174: ='0'!$A$4 -> 000770111 | B174: ='0'!$A$2 -> 2020-09-30 | C174: Т12 | D174: 201126947 | E174: Торго 90 ООД | F174: Придобиване на имоти, машини и оборудване | N174: 0.00 | O174: 0.00 | P174: 864.00 | Q174: 0.00 | R174: 864.00 | S174: 0.00 | T174: 0 | U174: 0 | X174: OK | Y174: =IF(COUNTBLANK(D174:W174)=18,"",IF(D174="999999999","",CheckEIK(D174))) -> 
A175: ='0'!$A$4 -> 000770111 | B175: ='0'!$A$2 -> 2020-09-30 | C175: Т12 | D175: 131466844 | E175: Илипра ЕООД | F175: Представителни разходи | N175: 0.00 | O175: 0.00 | P175: 185.00 | Q175: 0.00 | R175: 185.00 | S175: 0.00 | T175: 0 | U175: 0 | X175: OK | Y175: =IF(COUNTBLANK(D175:W175)=18,"",IF(D175="999999999","",CheckEIK(D175))) -> 
A176: ='0'!$A$4 -> 000770111 | B176: ='0'!$A$2 -> 2020-09-30 | C176: Т12 | D176: 175203040 | E176: Логолайт инженеринг ООД | F176: Други материали | N176: 0.00 | O176: 0.00 | P176: 286.00 | Q176: 0.00 | R176: 286.00 | S176: 0.00 | T176: 0 | U176: 0 | X176: OK | Y176: =IF(COUNTBLANK(D176:W176)=18,"",IF(D176="999999999","",CheckEIK(D176))) -> 
A177: ='0'!$A$4 -> 000770111 | B177: ='0'!$A$2 -> 2020-09-30 | C177: Т12 | T177: 0 | U177: 0 | X177: OK | Y177: =IF(COUNTBLANK(D177:W177)=18,"",IF(D177="999999999","",CheckEIK(D177))) -> 
A178: ='0'!$A$4 -> 000770111 | B178: ='0'!$A$2 -> 2020-09-30 | C178: Т12 | T178: 0 | U178: 0 | X178: OK | Y178: =IF(COUNTBLANK(D178:W178)=18,"",IF(D178="999999999","",CheckEIK(D178))) -> 
A179: ='0'!$A$4 -> 000770111 | B179: ='0'!$A$2 -> 2020-09-30 | C179: Т12 | T179: 0 | U179: 0 | X179: OK | Y179: =IF(COUNTBLANK(D179:W179)=18,"",IF(D179="999999999","",CheckEIK(D179))) -> 
A180: ='0'!$A$4 -> 000770111 | B180: ='0'!$A$2 -> 2020-09-30 | C180: Т12 | T180: 0 | U180: 0 | X180: OK | Y180: =IF(COUNTBLANK(D180:W180)=18,"",IF(D180="999999999","",CheckEIK(D180))) -> 
A181: ='0'!$A$4 -> 000770111 | B181: ='0'!$A$2 -> 2020-09-30 | C181: Т12 | T181: 0 | U181: 0 | X181: OK | Y181: =IF(COUNTBLANK(D181:W181)=18,"",IF(D181="999999999","",CheckEIK(D181))) -> 
A182: ='0'!$A$4 -> 000770111 | B182: ='0'!$A$2 -> 2020-09-30 | C182: Т12 | T182: 0 | U182: 0 | X182: OK | Y182: =IF(COUNTBLANK(D182:W182)=18,"",IF(D182="999999999","",CheckEIK(D182))) -> 
A183: ='0'!$A$4 -> 000770111 | B183: ='0'!$A$2 -> 2020-09-30 | C183: Т12 | T183: 0 | U183: 0 | X183: OK | Y183: =IF(COUNTBLANK(D183:W183)=18,"",IF(D183="999999999","",CheckEIK(D183))) -> 
A184: ='0'!$A$4 -> 000770111 | B184: ='0'!$A$2 -> 2020-09-30 | C184: Т12 | T184: 0 | U184: 0 | X184: OK | Y184: =IF(COUNTBLANK(D184:W184)=18,"",IF(D184="999999999","",CheckEIK(D184))) -> 
A185: ='0'!$A$4 -> 000770111 | B185: ='0'!$A$2 -> 2020-09-30 | C185: Т12 | T185: 0 | U185: 0 | X185: OK | Y185: =IF(COUNTBLANK(D185:W185)=18,"",IF(D185="999999999","",CheckEIK(D185))) -> 
A186: ='0'!$A$4 -> 000770111 | B186: ='0'!$A$2 -> 2020-09-30 | C186: Т12 | T186: 0 | U186: 0 | X186: OK | Y186: =IF(COUNTBLANK(D186:W186)=18,"",IF(D186="999999999","",CheckEIK(D186))) -> 
A187: ='0'!$A$4 -> 000770111 | B187: ='0'!$A$2 -> 2020-09-30 | C187: Т12 | T187: 0 | U187: 0 | X187: OK | Y187: =IF(COUNTBLANK(D187:W187)=18,"",IF(D187="999999999","",CheckEIK(D187))) -> 
A188: ='0'!$A$4 -> 000770111 | B188: ='0'!$A$2 -> 2020-09-30 | C188: Т12 | T188: 0 | U188: 0 | X188: OK | Y188: =IF(COUNTBLANK(D188:W188)=18,"",IF(D188="999999999","",CheckEIK(D188))) -> 
A189: ='0'!$A$4 -> 000770111 | B189: ='0'!$A$2 -> 2020-09-30 | C189: Т12 | T189: 0 | U189: 0 | X189: OK | Y189: =IF(COUNTBLANK(D189:W189)=18,"",IF(D189="999999999","",CheckEIK(D189))) -> 
A190: ='0'!$A$4 -> 000770111 | B190: ='0'!$A$2 -> 2020-09-30 | C190: Т12 | T190: 0 | U190: 0 | X190: OK | Y190: =IF(COUNTBLANK(D190:W190)=18,"",IF(D190="999999999","",CheckEIK(D190))) -> 
A191: ='0'!$A$4 -> 000770111 | B191: ='0'!$A$2 -> 2020-09-30 | C191: Т12 | T191: 0 | U191: 0 | X191: OK | Y191: =IF(COUNTBLANK(D191:W191)=18,"",IF(D191="999999999","",CheckEIK(D191))) -> 
A192: ='0'!$A$4 -> 000770111 | B192: ='0'!$A$2 -> 2020-09-30 | C192: Т12 | T192: 0 | U192: 0 | X192: OK | Y192: =IF(COUNTBLANK(D192:W192)=18,"",IF(D192="999999999","",CheckEIK(D192))) -> 
A193: ='0'!$A$4 -> 000770111 | B193: ='0'!$A$2 -> 2020-09-30 | C193: Т12 | T193: 0 | U193: 0 | X193: OK | Y193: =IF(COUNTBLANK(D193:W193)=18,"",IF(D193="999999999","",CheckEIK(D193))) -> 
A194: ='0'!$A$4 -> 000770111 | B194: ='0'!$A$2 -> 2020-09-30 | C194: Т12 | T194: 0 | U194: 0 | X194: OK | Y194: =IF(COUNTBLANK(D194:W194)=18,"",IF(D194="999999999","",CheckEIK(D194))) -> 
A195: ='0'!$A$4 -> 000770111 | B195: ='0'!$A$2 -> 2020-09-30 | C195: Т12 | T195: 0 | U195: 0 | X195: OK | Y195: =IF(COUNTBLANK(D195:W195)=18,"",IF(D195="999999999","",CheckEIK(D195))) -> 
A196: ='0'!$A$4 -> 000770111 | B196: ='0'!$A$2 -> 2020-09-30 | C196: Т12 | T196: 0 | U196: 0 | X196: OK | Y196: =IF(COUNTBLANK(D196:W196)=18,"",IF(D196="999999999","",CheckEIK(D196))) -> 
A197: ='0'!$A$4 -> 000770111 | B197: ='0'!$A$2 -> 2020-09-30 | C197: Т12 | T197: 0 | U197: 0 | X197: OK | Y197: =IF(COUNTBLANK(D197:W197)=18,"",IF(D197="999999999","",CheckEIK(D197))) -> 
A198: ='0'!$A$4 -> 000770111 | B198: ='0'!$A$2 -> 2020-09-30 | C198: Т12 | T198: 0 | U198: 0 | X198: OK | Y198: =IF(COUNTBLANK(D198:W198)=18,"",IF(D198="999999999","",CheckEIK(D198))) -> 
A199: ='0'!$A$4 -> 000770111 | B199: ='0'!$A$2 -> 2020-09-30 | C199: Т12 | T199: 0 | U199: 0 | X199: OK | Y199: =IF(COUNTBLANK(D199:W199)=18,"",IF(D199="999999999","",CheckEIK(D199))) -> 
A200: ='0'!$A$4 -> 000770111 | B200: ='0'!$A$2 -> 2020-09-30 | C200: Т12 | T200: 0 | U200: 0 | X200: OK | Y200: =IF(COUNTBLANK(D200:W200)=18,"",IF(D200="999999999","",CheckEIK(D200))) -> 
A201: ='0'!$A$4 -> 000770111 | B201: ='0'!$A$2 -> 2020-09-30 | C201: Т12 | T201: =N201+P201-R201 -> 0 | U201: =O201+Q201-S201 -> 0 | W201: =IF(K201="","",K201-M201-(P201-Q201)) ->  | X201: =IF(ROUND(T201-V201,2)>=0,"OK","Просрочието не може да надхвърля задължението") -> OK | Y201: =IF(COUNTBLANK(D201:W201)=18,"",IF(D201="999999999","",CheckEIK(D201))) -> 
A202: ='0'!$A$4 -> 000770111 | B202: ='0'!$A$2 -> 2020-09-30 | C202: Т12 | T202: 0 | U202: 0 | X202: OK | Y202: =IF(COUNTBLANK(D202:W202)=18,"",IF(D202="999999999","",CheckEIK(D202))) -> 
... 4800 more rows

Sheet 13
D1: ="Т13 ОТЧЕТ ЗА РАЗМЕРА НА НЕТНАТА ЕКСПОЗИЦИЯ НА "&'0'!A6&" КЪМ "&TEXT(B7,"DD-MM-YYYY") -> Т13 ОТЧЕТ ЗА РАЗМЕРА НА НЕТНАТА ЕКСПОЗИЦИЯ НА СБПФЗПЛР "Цар Фердинанд 1" ЕООД - с. Искрец КЪМ 30-09-2020 | V1: контрола с баланса
D4: Данни за дружеството | F4: Показатели - банка, каса, еквиваленти | G4: Парични средства (ПС) | L4: Непогасен размер на заемите | P4: Банкови гаранции | T4: Нетна експозиция | V4: Индивидуален | W4: Консолидиран
A5: EIK | B5: data | D5: ЕИК | E5: Дружество | G5: Общо в лева | H5: % | I5: BGN | J5: EUR | K5: USD | L5: Общо в лева | M5: BGN | N5: EUR | O5: USD | P5: Общо в лева | Q5: BGN | R5: EUR | S5: USD | T5: Лева | U5: % | V5: =IF(SUM(V7:V52)>0,"Грешка",IF(ROUND(SUMIFS($G$7:$G$52,$D$7:$D$52,$A7)+SUMIFS($L$7:$L$52,$D$7:$D$52,$A7)-'02'!I37-'02'!I64-'02'!I97-'02'!I99,2)=0,"OK","Грешка")) -> OK | W5: =IF(COUNTBLANK('0'!A12:A16)=5,"OK",IF(ROUND($G$6 + $L$6 -'02'!J37-'02'!J64-'02'!J97-'02'!J99,2)=0,"OK","Грешка")) -> OK
F6: Общо | G6: =SUM(G7:G53) -> 1440153 | L6: =SUM(L7:L53) -> 0 | P6: =SUM(P7:P53) -> 0 | T6: =SUM(T7:T53) -> 1440153 | Y6: =SUM(Y7:Y53) -> 1431608
A7: ='0'!$A$4 -> 000770111 | B7: ='0'!$A$2 -> 2020-09-30 | C7: Т13 | D7: 000770111 | E7: =IF(D7="","",VLOOKUP(D7,'0'!$A$11:$B$16,2,0)) -> СБПФЗПЛР "Цар Фердинанд 1" ЕООД - с. Искрец | F7: Парични средства в каса | G7: 8,545 | H7: =IF(SUMIFS($G$7:$G$53,$D$7:$D$53,D7)=0,"",G7/SUMIFS($G$7:$G$53,$D$7:$D$53,D7)) -> 0.6% | I7: 8,545 | J7: 0 | K7: 0 | L7: 0 | M7: 0 | N7: 0 | O7: 0 | P7: 0 | Q7: 0 | R7: 0 | S7: 0 | T7: =IF(F7="",0,G7-L7-P7) -> 8,545 | U7: =IF(SUMIFS($T$6:$T$52,$D$6:$D$52,D7)=0,"",T7/SUMIFS($T$6:$T$52,$D$6:$D$52,D7)) -> 0.6% | V7: =IF(T7=0,"",COUNTBLANK(D7:T7)) -> 0 | W7: От падащото меню се избира ЕИК на дружеството - майка или дъщерно. Попълва се на всеки ред със стойности. В кол. "Показатели - банка, каса, еквиваленти" от падащото меню се избира показател - парични средства в каса, парични еквиваленти. Изброени са всички лицензирани от БНБ банки и чуждестранни клонове. | Y7: =IF(OR(D7<>A7, F7="Парични средства в каса", F7="Парични еквиваленти", F7 =""),0,G7-L7-P7) -> 0 | Z7: =(Y7/$G$6) -> 0.00%
A8: ='0'!$A$4 -> 000770111 | B8: ='0'!$A$2 -> 2020-09-30 | C8: Т13 | D8: 000770111 | E8: =IF(D8="","",VLOOKUP(D8,'0'!$A$11:$B$16,2,0)) -> СБПФЗПЛР "Цар Фердинанд 1" ЕООД - с. Искрец | F8: Общинска банка АД | G8: 1,431,608 | H8: 99.4% | I8: 1,431,608 | J8: 0 | K8: 0 | L8: 0 | M8: 0 | N8: 0 | O8: 0 | P8: 0 | Q8: 0 | R8: 0 | S8: 0 | T8: =IF(F8="",0,G8-L8-P8) -> 1,431,608 | U8: =IF(SUMIFS($T$6:$T$52,$D$6:$D$52,D8)=0,"",T8/SUMIFS($T$6:$T$52,$D$6:$D$52,D8)) -> 99.4% | V8: =IF(T8=0,"",COUNTBLANK(D8:T8)) -> 0 | Y8: =IF(OR(D8<>A8, F8="Парични средства в каса", F8="Парични еквиваленти", F8 =""),0,G8-L8-P8) -> 1431608 | Z8: =(Y8/$G$6) -> 99.41%
A9: ='0'!$A$4 -> 000770111 | B9: ='0'!$A$2 -> 2020-09-30 | C9: Т13 | E9: =IF(D9="","",VLOOKUP(D9,'0'!$A$11:$B$16,2,0)) ->  | G9: 0 | I9: 0 | J9: 0 | K9: 0 | L9: 0 | M9: 0 | N9: 0 | O9: 0 | P9: 0 | Q9: 0 | R9: 0 | S9: 0 | T9: =IF(F9="",0,G9-L9-P9) -> 0 | U9: =IF(SUMIFS($T$7:$T$53,$D$7:$D$53,D9)=0,"",T9/SUMIFS($T$7:$T$53,$D$7:$D$53,D9)) ->  | Y9: 0 | Z9: 0.00%
A10: ='0'!$A$4 -> 000770111 | B10: ='0'!$A$2 -> 2020-09-30 | C10: Т13 | E10: =IF(D10="","",VLOOKUP(D10,'0'!$A$11:$B$16,2,0)) ->  | G10: 0 | I10: 0 | J10: 0 | K10: 0 | L10: 0 | M10: 0 | N10: 0 | O10: 0 | P10: 0 | Q10: 0 | R10: 0 | S10: 0 | T10: 0 | Y10: 0 | Z10: 0.00%
A11: ='0'!$A$4 -> 000770111 | B11: ='0'!$A$2 -> 2020-09-30 | C11: Т13 | E11: =IF(D11="","",VLOOKUP(D11,'0'!$A$11:$B$16,2,0)) ->  | G11: 0 | I11: 0 | J11: 0 | K11: 0 | L11: 0 | M11: 0 | N11: 0 | O11: 0 | P11: 0 | Q11: 0 | R11: 0 | S11: 0 | T11: 0 | Y11: 0 | Z11: 0.00%
A12: ='0'!$A$4 -> 000770111 | B12: ='0'!$A$2 -> 2020-09-30 | C12: Т13 | E12: =IF(D12="","",VLOOKUP(D12,'0'!$A$11:$B$16,2,0)) ->  | G12: 0 | I12: 0 | J12: 0 | K12: 0 | L12: 0 | M12: 0 | N12: 0 | O12: 0 | P12: 0 | Q12: 0 | R12: 0 | S12: 0 | T12: 0 | Y12: 0 | Z12: 0.00%
A13: ='0'!$A$4 -> 000770111 | B13: ='0'!$A$2 -> 2020-09-30 | C13: Т13 | E13: =IF(D13="","",VLOOKUP(D13,'0'!$A$11:$B$16,2,0)) ->  | G13: 0 | I13: 0 | J13: 0 | K13: 0 | L13: 0 | M13: 0 | N13: 0 | O13: 0 | P13: 0 | Q13: 0 | R13: 0 | S13: 0 | T13: 0 | Y13: 0 | Z13: 0.00%
A14: ='0'!$A$4 -> 000770111 | B14: ='0'!$A$2 -> 2020-09-30 | C14: Т13 | E14: =IF(D14="","",VLOOKUP(D14,'0'!$A$11:$B$16,2,0)) ->  | G14: 0 | I14: 0 | J14: 0 | K14: 0 | L14: 0 | M14: 0 | N14: 0 | O14: 0 | P14: 0 | Q14: 0 | R14: 0 | S14: 0 | T14: 0 | Y14: 0 | Z14: 0.00%
A15: ='0'!$A$4 -> 000770111 | B15: ='0'!$A$2 -> 2020-09-30 | C15: Т13 | E15: =IF(D15="","",VLOOKUP(D15,'0'!$A$11:$B$16,2,0)) ->  | G15: 0 | I15: 0 | J15: 0 | K15: 0 | L15: 0 | M15: 0 | N15: 0 | O15: 0 | P15: 0 | Q15: 0 | R15: 0 | S15: 0 | T15: 0 | Y15: 0 | Z15: 0.00%
A16: ='0'!$A$4 -> 000770111 | B16: ='0'!$A$2 -> 2020-09-30 | C16: Т13 | E16: =IF(D16="","",VLOOKUP(D16,'0'!$A$11:$B$16,2,0)) ->  | G16: 0 | I16: 0 | J16: 0 | K16: 0 | L16: 0 | M16: 0 | N16: 0 | O16: 0 | P16: 0 | Q16: 0 | R16: 0 | S16: 0 | T16: 0 | Y16: 0 | Z16: 0.00%
A17: ='0'!$A$4 -> 000770111 | B17: ='0'!$A$2 -> 2020-09-30 | C17: Т13 | E17: =IF(D17="","",VLOOKUP(D17,'0'!$A$11:$B$16,2,0)) ->  | G17: 0 | H17: =IF(SUMIFS($G$7:$G$53,$D$7:$D$53,D17)=0,"",G17/SUMIFS($G$7:$G$53,$D$7:$D$53,D17)) ->  | I17: 0 | J17: 0 | K17: 0 | L17: 0 | M17: 0 | N17: 0 | O17: 0 | P17: 0 | Q17: 0 | R17: 0 | S17: 0 | T17: 0 | Y17: 0 | Z17: 0.00%
A18: ='0'!$A$4 -> 000770111 | B18: ='0'!$A$2 -> 2020-09-30 | C18: Т13 | E18: =IF(D18="","",VLOOKUP(D18,'0'!$A$11:$B$16,2,0)) ->  | G18: 0 | I18: 0 | J18: 0 | K18: 0 | L18: 0 | M18: 0 | N18: 0 | O18: 0 | P18: 0 | Q18: 0 | R18: 0 | S18: 0 | T18: 0 | Y18: 0 | Z18: 0.00%
A19: ='0'!$A$4 -> 000770111 | B19: ='0'!$A$2 -> 2020-09-30 | C19: Т13 | E19: =IF(D19="","",VLOOKUP(D19,'0'!$A$11:$B$16,2,0)) ->  | G19: 0 | I19: 0 | J19: 0 | K19: 0 | L19: 0 | M19: 0 | N19: 0 | O19: 0 | P19: 0 | Q19: 0 | R19: 0 | S19: 0 | T19: 0 | Y19: 0 | Z19: 0.00%
A20: ='0'!$A$4 -> 000770111 | B20: ='0'!$A$2 -> 2020-09-30 | C20: Т13 | E20: =IF(D20="","",VLOOKUP(D20,'0'!$A$11:$B$16,2,0)) ->  | G20: 0 | I20: 0 | J20: 0 | K20: 0 | L20: 0 | M20: 0 | N20: 0 | O20: 0 | P20: 0 | Q20: 0 | R20: 0 | S20: 0 | T20: 0 | Y20: 0 | Z20: 0.00%
A21: ='0'!$A$4 -> 000770111 | B21: ='0'!$A$2 -> 2020-09-30 | C21: Т13 | E21: =IF(D21="","",VLOOKUP(D21,'0'!$A$11:$B$16,2,0)) ->  | G21: 0 | I21: 0 | J21: 0 | K21: 0 | L21: 0 | M21: 0 | N21: 0 | O21: 0 | P21: 0 | Q21: 0 | R21: 0 | S21: 0 | T21: 0 | Y21: 0 | Z21: 0.00%
A22: ='0'!$A$4 -> 000770111 | B22: ='0'!$A$2 -> 2020-09-30 | C22: Т13 | E22: =IF(D22="","",VLOOKUP(D22,'0'!$A$11:$B$16,2,0)) ->  | G22: 0 | I22: 0 | J22: 0 | K22: 0 | L22: 0 | M22: 0 | N22: 0 | O22: 0 | P22: 0 | Q22: 0 | R22: 0 | S22: 0 | T22: 0 | Y22: 0 | Z22: 0.00%
A23: ='0'!$A$4 -> 000770111 | B23: ='0'!$A$2 -> 2020-09-30 | C23: Т13 | E23: =IF(D23="","",VLOOKUP(D23,'0'!$A$11:$B$16,2,0)) ->  | G23: 0 | I23: 0 | J23: 0 | K23: 0 | L23: 0 | M23: 0 | N23: 0 | O23: 0 | P23: 0 | Q23: 0 | R23: 0 | S23: 0 | T23: 0 | Y23: 0 | Z23: 0.00%
A24: ='0'!$A$4 -> 000770111 | B24: ='0'!$A$2 -> 2020-09-30 | C24: Т13 | E24: =IF(D24="","",VLOOKUP(D24,'0'!$A$11:$B$16,2,0)) ->  | G24: 0 | I24: 0 | J24: 0 | K24: 0 | L24: 0 | M24: 0 | N24: 0 | O24: 0 | P24: 0 | Q24: 0 | R24: 0 | S24: 0 | T24: 0 | Y24: 0 | Z24: 0.00%
A25: ='0'!$A$4 -> 000770111 | B25: ='0'!$A$2 -> 2020-09-30 | C25: Т13 | E25: =IF(D25="","",VLOOKUP(D25,'0'!$A$11:$B$16,2,0)) ->  | G25: 0 | I25: 0 | J25: 0 | K25: 0 | L25: 0 | M25: 0 | N25: 0 | O25: 0 | P25: 0 | Q25: 0 | R25: 0 | S25: 0 | T25: 0 | Y25: 0 | Z25: 0.00%
A26: ='0'!$A$4 -> 000770111 | B26: ='0'!$A$2 -> 2020-09-30 | C26: Т13 | E26: =IF(D26="","",VLOOKUP(D26,'0'!$A$11:$B$16,2,0)) ->  | G26: 0 | I26: 0 | J26: 0 | K26: 0 | L26: 0 | M26: 0 | N26: 0 | O26: 0 | P26: 0 | Q26: 0 | R26: 0 | S26: 0 | T26: 0 | Y26: 0 | Z26: 0.00%
A27: ='0'!$A$4 -> 000770111 | B27: ='0'!$A$2 -> 2020-09-30 | C27: Т13 | E27: =IF(D27="","",VLOOKUP(D27,'0'!$A$11:$B$16,2,0)) ->  | G27: 0 | I27: 0 | J27: 0 | K27: 0 | L27: 0 | M27: 0 | N27: 0 | O27: 0 | P27: 0 | Q27: 0 | R27: 0 | S27: 0 | T27: 0 | Y27: 0 | Z27: 0.00%
A28: ='0'!$A$4 -> 000770111 | B28: ='0'!$A$2 -> 2020-09-30 | C28: Т13 | E28: =IF(D28="","",VLOOKUP(D28,'0'!$A$11:$B$16,2,0)) ->  | G28: 0 | I28: 0 | J28: 0 | K28: 0 | L28: 0 | M28: 0 | N28: 0 | O28: 0 | P28: 0 | Q28: 0 | R28: 0 | S28: 0 | T28: 0 | Y28: 0 | Z28: 0.00%
A29: ='0'!$A$4 -> 000770111 | B29: ='0'!$A$2 -> 2020-09-30 | C29: Т13 | E29: =IF(D29="","",VLOOKUP(D29,'0'!$A$11:$B$16,2,0)) ->  | G29: 0 | I29: 0 | J29: 0 | K29: 0 | L29: 0 | M29: 0 | N29: 0 | O29: 0 | P29: 0 | Q29: 0 | R29: 0 | S29: 0 | T29: 0 | Y29: 0 | Z29: 0.00%
A30: ='0'!$A$4 -> 000770111 | B30: ='0'!$A$2 -> 2020-09-30 | C30: Т13 | E30: =IF(D30="","",VLOOKUP(D30,'0'!$A$11:$B$16,2,0)) ->  | G30: 0 | I30: 0 | J30: 0 | K30: 0 | L30: 0 | M30: 0 | N30: 0 | O30: 0 | P30: 0 | Q30: 0 | R30: 0 | S30: 0 | T30: 0 | Y30: 0 | Z30: 0.00%
A31: ='0'!$A$4 -> 000770111 | B31: ='0'!$A$2 -> 2020-09-30 | C31: Т13 | E31: =IF(D31="","",VLOOKUP(D31,'0'!$A$11:$B$16,2,0)) ->  | G31: 0 | I31: 0 | J31: 0 | K31: 0 | L31: 0 | M31: 0 | N31: 0 | O31: 0 | P31: 0 | Q31: 0 | R31: 0 | S31: 0 | T31: 0 | Y31: 0 | Z31: 0.00%
A32: ='0'!$A$4 -> 000770111 | B32: ='0'!$A$2 -> 2020-09-30 | C32: Т13 | E32: =IF(D32="","",VLOOKUP(D32,'0'!$A$11:$B$16,2,0)) ->  | G32: 0 | I32: 0 | J32: 0 | K32: 0 | L32: 0 | M32: 0 | N32: 0 | O32: 0 | P32: 0 | Q32: 0 | R32: 0 | S32: 0 | T32: 0 | Y32: 0 | Z32: 0.00%
A33: ='0'!$A$4 -> 000770111 | B33: ='0'!$A$2 -> 2020-09-30 | C33: Т13 | E33: =IF(D33="","",VLOOKUP(D33,'0'!$A$11:$B$16,2,0)) ->  | G33: 0 | I33: 0 | J33: 0 | K33: 0 | L33: 0 | M33: 0 | N33: 0 | O33: 0 | P33: 0 | Q33: 0 | R33: 0 | S33: 0 | T33: 0 | Y33: 0 | Z33: 0.00%
A34: ='0'!$A$4 -> 000770111 | B34: ='0'!$A$2 -> 2020-09-30 | C34: Т13 | E34: =IF(D34="","",VLOOKUP(D34,'0'!$A$11:$B$16,2,0)) ->  | G34: 0 | I34: 0 | J34: 0 | K34: 0 | L34: 0 | M34: 0 | N34: 0 | O34: 0 | P34: 0 | Q34: 0 | R34: 0 | S34: 0 | T34: 0 | Y34: 0 | Z34: 0.00%
A35: ='0'!$A$4 -> 000770111 | B35: ='0'!$A$2 -> 2020-09-30 | C35: Т13 | E35: =IF(D35="","",VLOOKUP(D35,'0'!$A$11:$B$16,2,0)) ->  | G35: 0 | I35: 0 | J35: 0 | K35: 0 | L35: 0 | M35: 0 | N35: 0 | O35: 0 | P35: 0 | Q35: 0 | R35: 0 | S35: 0 | T35: 0 | Y35: 0 | Z35: 0.00%
A36: ='0'!$A$4 -> 000770111 | B36: ='0'!$A$2 -> 2020-09-30 | C36: Т13 | E36: =IF(D36="","",VLOOKUP(D36,'0'!$A$11:$B$16,2,0)) ->  | G36: 0 | I36: 0 | J36: 0 | K36: 0 | L36: 0 | M36: 0 | N36: 0 | O36: 0 | P36: 0 | Q36: 0 | R36: 0 | S36: 0 | T36: 0 | Y36: 0 | Z36: 0.00%
A37: ='0'!$A$4 -> 000770111 | B37: ='0'!$A$2 -> 2020-09-30 | C37: Т13 | E37: =IF(D37="","",VLOOKUP(D37,'0'!$A$11:$B$16,2,0)) ->  | G37: 0 | I37: 0 | J37: 0 | K37: 0 | L37: 0 | M37: 0 | N37: 0 | O37: 0 | P37: 0 | Q37: 0 | R37: 0 | S37: 0 | T37: 0 | Y37: 0 | Z37: 0.00%
A38: ='0'!$A$4 -> 000770111 | B38: ='0'!$A$2 -> 2020-09-30 | C38: Т13 | E38: =IF(D38="","",VLOOKUP(D38,'0'!$A$11:$B$16,2,0)) ->  | G38: 0 | I38: 0 | J38: 0 | K38: 0 | L38: 0 | M38: 0 | N38: 0 | O38: 0 | P38: 0 | Q38: 0 | R38: 0 | S38: 0 | T38: 0 | Y38: 0 | Z38: 0.00%
A39: ='0'!$A$4 -> 000770111 | B39: ='0'!$A$2 -> 2020-09-30 | C39: Т13 | E39: =IF(D39="","",VLOOKUP(D39,'0'!$A$11:$B$16,2,0)) ->  | G39: 0 | I39: 0 | J39: 0 | K39: 0 | L39: 0 | M39: 0 | N39: 0 | O39: 0 | P39: 0 | Q39: 0 | R39: 0 | S39: 0 | T39: 0 | Y39: 0 | Z39: 0.00%
A40: ='0'!$A$4 -> 000770111 | B40: ='0'!$A$2 -> 2020-09-30 | C40: Т13 | E40: =IF(D40="","",VLOOKUP(D40,'0'!$A$11:$B$16,2,0)) ->  | G40: 0 | I40: 0 | J40: 0 | K40: 0 | L40: 0 | M40: 0 | N40: 0 | O40: 0 | P40: 0 | Q40: 0 | R40: 0 | S40: 0 | T40: 0 | Y40: 0 | Z40: 0.00%
A41: ='0'!$A$4 -> 000770111 | B41: ='0'!$A$2 -> 2020-09-30 | C41: Т13 | E41: =IF(D41="","",VLOOKUP(D41,'0'!$A$11:$B$16,2,0)) ->  | G41: 0 | I41: 0 | J41: 0 | K41: 0 | L41: 0 | M41: 0 | N41: 0 | O41: 0 | P41: 0 | Q41: 0 | R41: 0 | S41: 0 | T41: 0 | Y41: 0 | Z41: 0.00%
A42: ='0'!$A$4 -> 000770111 | B42: ='0'!$A$2 -> 2020-09-30 | C42: Т13 | E42: =IF(D42="","",VLOOKUP(D42,'0'!$A$11:$B$16,2,0)) ->  | G42: 0 | I42: 0 | J42: 0 | K42: 0 | L42: 0 | M42: 0 | N42: 0 | O42: 0 | P42: 0 | Q42: 0 | R42: 0 | S42: 0 | T42: 0 | Y42: 0 | Z42: 0.00%
A43: ='0'!$A$4 -> 000770111 | B43: ='0'!$A$2 -> 2020-09-30 | C43: Т13 | E43: =IF(D43="","",VLOOKUP(D43,'0'!$A$11:$B$16,2,0)) ->  | G43: 0 | I43: 0 | J43: 0 | K43: 0 | L43: 0 | M43: 0 | N43: 0 | O43: 0 | P43: 0 | Q43: 0 | R43: 0 | S43: 0 | T43: 0 | Y43: 0 | Z43: 0.00%
A44: ='0'!$A$4 -> 000770111 | B44: ='0'!$A$2 -> 2020-09-30 | C44: Т13 | E44: =IF(D44="","",VLOOKUP(D44,'0'!$A$11:$B$16,2,0)) ->  | G44: 0 | I44: 0 | J44: 0 | K44: 0 | L44: 0 | M44: 0 | N44: 0 | O44: 0 | P44: 0 | Q44: 0 | R44: 0 | S44: 0 | T44: 0 | Y44: 0 | Z44: 0.00%
A45: ='0'!$A$4 -> 000770111 | B45: ='0'!$A$2 -> 2020-09-30 | C45: Т13 | E45: =IF(D45="","",VLOOKUP(D45,'0'!$A$11:$B$16,2,0)) ->  | G45: 0 | I45: 0 | J45: 0 | K45: 0 | L45: 0 | M45: 0 | N45: 0 | O45: 0 | P45: 0 | Q45: 0 | R45: 0 | S45: 0 | T45: 0 | Y45: 0 | Z45: 0.00%
A46: ='0'!$A$4 -> 000770111 | B46: ='0'!$A$2 -> 2020-09-30 | C46: Т13 | E46: =IF(D46="","",VLOOKUP(D46,'0'!$A$11:$B$16,2,0)) ->  | G46: 0 | I46: 0 | J46: 0 | K46: 0 | L46: 0 | M46: 0 | N46: 0 | O46: 0 | P46: 0 | Q46: 0 | R46: 0 | S46: 0 | T46: 0 | Y46: 0 | Z46: 0.00%
A47: ='0'!$A$4 -> 000770111 | B47: ='0'!$A$2 -> 2020-09-30 | C47: Т13 | E47: =IF(D47="","",VLOOKUP(D47,'0'!$A$11:$B$16,2,0)) ->  | G47: 0 | I47: 0 | J47: 0 | K47: 0 | L47: 0 | M47: 0 | N47: 0 | O47: 0 | P47: 0 | Q47: 0 | R47: 0 | S47: 0 | T47: 0 | Y47: 0 | Z47: 0.00%
A48: ='0'!$A$4 -> 000770111 | B48: ='0'!$A$2 -> 2020-09-30 | C48: Т13 | E48: =IF(D48="","",VLOOKUP(D48,'0'!$A$11:$B$16,2,0)) ->  | G48: 0 | I48: 0 | J48: 0 | K48: 0 | L48: 0 | M48: 0 | N48: 0 | O48: 0 | P48: 0 | Q48: 0 | R48: 0 | S48: 0 | T48: 0 | Y48: 0 | Z48: 0.00%
A49: ='0'!$A$4 -> 000770111 | B49: ='0'!$A$2 -> 2020-09-30 | C49: Т13 | E49: =IF(D49="","",VLOOKUP(D49,'0'!$A$11:$B$16,2,0)) ->  | G49: 0 | I49: 0 | J49: 0 | K49: 0 | L49: 0 | M49: 0 | N49: 0 | O49: 0 | P49: 0 | Q49: 0 | R49: 0 | S49: 0 | T49: 0 | Y49: 0 | Z49: 0.00%
A50: ='0'!$A$4 -> 000770111 | B50: ='0'!$A$2 -> 2020-09-30 | C50: Т13 | E50: =IF(D50="","",VLOOKUP(D50,'0'!$A$11:$B$16,2,0)) ->  | G50: 0 | I50: 0 | J50: 0 | K50: 0 | L50: 0 | M50: 0 | N50: 0 | O50: 0 | P50: 0 | Q50: 0 | R50: 0 | S50: 0 | T50: 0 | Y50: 0 | Z50: 0.00%
A51: ='0'!$A$4 -> 000770111 | B51: ='0'!$A$2 -> 2020-09-30 | C51: Т13 | E51: =IF(D51="","",VLOOKUP(D51,'0'!$A$11:$B$16,2,0)) ->  | G51: 0 | I51: 0 | J51: 0 | K51: 0 | L51: 0 | M51: 0 | N51: 0 | O51: 0 | P51: 0 | Q51: 0 | R51: 0 | S51: 0 | T51: 0 | Y51: 0 | Z51: 0.00%
A52: ='0'!$A$4 -> 000770111 | B52: ='0'!$A$2 -> 2020-09-30 | C52: Т13 | E52: =IF(D52="","",VLOOKUP(D52,'0'!$A$11:$B$16,2,0)) ->  | G52: 0 | I52: 0 | J52: 0 | K52: 0 | L52: 0 | M52: 0 | N52: 0 | O52: 0 | P52: 0 | Q52: 0 | R52: 0 | S52: 0 | T52: 0 | Y52: 0 | Z52: 0.00%
A53: ='0'!$A$4 -> 000770111 | B53: ='0'!$A$2 -> 2020-09-30 | C53: Т13 | E53: =IF(D53="","",VLOOKUP(D53,'0'!$A$11:$B$16,2,0)) ->  | G53: 0 | I53: 0 | J53: 0 | K53: 0 | L53: 0 | M53: 0 | N53: 0 | O53: 0 | P53: 0 | Q53: 0 | R53: 0 | S53: 0 | T53: 0 | Y53: 0 | Z53: 0.00%

Sheet 14
E1: ="Т14 ДЕЙНОСТ С НАТУРАЛНИ И СТОЙНОСТНИ ПОКАЗАТЕЛИ ПО БОЛНИЧНИ ЗВЕНА НА "&'0'!A6&" ОТ "&TEXT(DATE(YEAR(B10),1,1),"DD-MM-YYYY")&" ДО "&TEXT(B10,"DD-MM-YYYY") -> Т14 ДЕЙНОСТ С НАТУРАЛНИ И СТОЙНОСТНИ ПОКАЗАТЕЛИ ПО БОЛНИЧНИ ЗВЕНА НА СБПФЗПЛР "Цар Фердинанд 1" ЕООД - с. Искрец ОТ 01-01-2020 ДО 30-09-2020
D4: Данни за структурното звено, по правилник за вътрешния ред, с диференциация по кодове в счетоводната система | O4: За отделенията с легла в стационара - натурални показатели | Y4: Отделения без легла, лаборатории, ДКБ - натурални показатели | AD4: Отчет за клиничните изпитвания. Комисия по етика | AG4: Медицински персонал, натурални и стойностни показатели Трудови договори | BA4: Преки разходи в лева | BK4: Приходи в лева
O5: Към датата на отчета | Q5: Средномесечен брой | S5: Брой | Y5: Показател | Z5: Пояснение | AA5: Брой дейности | AB5: от тях на хоспитализирани | AC5: Брой пациентски места | AD5: Брой активни през периода изпитвания | AE5: Брой завършили приз периода изпитвания | AF5: Брой преминали пациенти | AG5: Обезпеченост с медицински персонал към края на периода, заети щатни бройки | AK5: Средносписъчен брой | AO5: Реално отработени часове от медицинския персонал преди преобразуването на нощния в дневен | AS5: от тях часове извънреден труд (текущ и изравнителен) | AW5: Разходи за възнаграждения | BA5: Разходи за материали | BB5: в. т.ч. | BF5: Разходи за външни услуги | BG5: Разходи за персонала | BH5: в. т.ч. | BI5: Разходи за амортизация | BJ5: Други разходи | BK5: Приходи от НЗОК | BQ5: Други приходи от медицинска дейност | BX5: Други приходи от дейността | BY5: Приходи от финансиране | BZ5: Изменение на нал. от незавършено производство и готова продукция
A6: EIK | B6: data | D6: Код в счет. с-ма | E6: Вид структурно по Наредба 49 | F6: Название и принадлежност, според правилника | G6: Спец. 1 | H6: Ниво | I6: Спец. 2 | J6: Ниво | K6: Спец. 3 | L6: Ниво | M6: Спец. 4 | N6: Ниво | O6: Брой легла | P6: от тях инт. | Q6: Брой легла | R6: от тях инт. | S6: Проведени леглодни | T6: Преминали болни | U6: от тях с коронавирус | V6: Изписани | W6: Преминали в друго отделение | X6: Умрели | AG6: лекари със специалност | AH6: лекари без специалност | AI6: лекари специализанти | AJ6: специалисти по здравни грижи | AK6: лекари със специалност | AL6: лекари без специалност | AM6: лекари специализанти | AN6: специалисти по здравни грижи | AO6: лекари със специалност | AP6: лекари без специалност | AQ6: лекари специализанти | AR6: специалисти по здравни грижи | AS6: лекари със специалност | AT6: лекари без специалност | AU6: лекари специализанти | AV6: специалисти по здравни грижи | AW6: лекари със специалност | AX6: лекари без специалност | AY6: лекари специализанти | AZ6: специалисти по здравни грижи | BB6: Лекарствени продукти | BC6: от тя за домашно лечение (за онко болни) | BD6: Медицински изделия | BE6: Храна за болни | BH6: Начислено ДМС наперсонала (всички доплащания извън нормативно установените) | BK6: КП | BL6: КПр | BM6: АПр | BN6: МИ | BO6: ЛП | BP6: Извънболнична помощ | BQ6: Медицински, потребителски и др. такси | BR6: Медицински услуги по ценоразпис (на граждани) | BS6: Медицински услуги по договор с контрагенти | BT6: Доплащане от пациенти за медицински изделия и лекарства | BU6: Клинични изпитвания | BV6: Практическо обучение | BW6: Избор на лекар/екип | CB6: Задължително се попълват всички колони от 1 до 5 вкл. Стойността в кол. 1 е уникална! Когато към един счетоводен код се осчетоводяват приходи и разходи на различни звена от правилника за вътрешния ред и натуралните показатели се сумират, като се описват включените звена.
D7: 1 | E7: 2 | F7: 3 | G7: 4 | H7: 5 | I7: 6 | J7: 7 | K7: 8 | L7: 9 | M7: 10 | N7: 11 | O7: 12 | P7: 13 | Q7: 14 | R7: 15 | S7: 16 | T7: 17 | U7: 18 | V7: 19 | W7: 20 | X7: 21 | Y7: 22 | Z7: 23 | AA7: 24 | AB7: 25 | AC7: 26 | AD7: 27 | AE7: 28 | AF7: 29 | AG7: 30 | AH7: 31 | AI7: 32 | AJ7: 33 | AK7: 34 | AL7: 35 | AM7: 36 | AN7: 37 | AO7: 38 | AP7: 39 | AQ7: 40 | AR7: 41 | AS7: 42 | AT7: 43 | AU7: 44 | AV7: 45 | AW7: 46 | AX7: 47 | AY7: 48 | AZ7: 49 | BA7: 50 | BB7: 51 | BC7: 52 | BD7: 53 | BE7: 54 | BF7: 55 | BG7: 56 | BH7: 57 | BI7: 58 | BJ7: 59 | BK7: 60 | BL7: 61 | BM7: 62 | BN7: 63 | BO7: 64 | BP7: 65 | BQ7: 66 | BR7: 67 | BS7: 68 | BT7: 69 | BU7: 70 | BV7: 71 | BW7: 72 | BX7: 73 | BY7: 74 | BZ7: 75
A8: ='0'!$A$4 -> 000770111 | B8: ='0'!$A$2 -> 2020-09-30 | C8: Т14 | T8: =IF(AND(D10<>"",T9=0),"Моля въведете общ брой преминали болни.","") ->  | BA8: =IF(ROUND('01'!I53+BA9,2)=0,"OK","Разлика с отчета") -> OK | BB8: =IF(ROUND('01'!I54+BB9,2)=0,"OK","Разлика с отчета") -> OK | BD8: =IF(ROUND('01'!I60+BD9,2)=0,"OK","Разлика с отчета") -> OK | BE8: =IF(ROUND('01'!I68+BE9,2)=0,"OK","Разлика с отчета") -> OK | BF8: =IF(ROUND('01'!I77+BF9,2)=0,"OK","Разлика с отчета") -> OK | BG8: =IF(ROUND('01'!I93+BG9,2)=0,"OK","Разлика с отчета") -> OK | BJ8: =IF(ROUND('01'!I101+BJ9,2)=0,"OK","Разлика с отчета") -> OK | BK8: =IF(ROUND('01'!I6-BK9,2)=0,"OK","Не са въведени звена") -> OK | BL8: =IF(ROUND('01'!I7-BL9,2)=0,"OK","Не са въведени звена") -> OK | BM8: =IF(ROUND('01'!I8-BM9,2)=0,"OK","Не са въведени звена") -> OK | BN8: =IF(ROUND('01'!I9-BN9,2)=0,"OK","Не са въведени звена") -> OK | BO8: =IF(ROUND('01'!I10-BO9,2)=0,"OK","Не са въведени звена") -> OK | BX8: =IF(ROUND('01'!I21-BX9,2)=0,"OK","Разлика с отчета") -> OK | BY8: =IF(ROUND('01'!I29-BY9,2)=0,"OK","Разлика с отчета") -> OK
A9: ='0'!$A$4 -> 000770111 | B9: ='0'!$A$2 -> 2020-09-30 | C9: Т14 | O9: =SUM(O10:O302) -> 170 | P9: 0 | Q9: 170 | R9: 0 | S9: 43,321 | T9: 2,326 | U9: 0 | V9: 2,172 | W9: 0 | X9: 2 | AA9: =SUM(AA10:AA302) -> 0 | AB9: 0 | AC9: 0 | AD9: 0 | AE9: 0 | AF9: 0 | AG9: 9 | AH9: 2 | AI9: 0 | AJ9: 21 | AK9: 9 | AL9: 2 | AM9: 0 | AN9: 21 | AO9: 9,123 | AP9: 2,118 | AQ9: 0 | AR9: 23,200 | AS9: 0 | AT9: 0 | AU9: 0 | AV9: 0 | AW9: 187,869 | AX9: 34,858 | AY9: 0 | AZ9: 283,307 | BA9: 293,560.00 | BB9: 52,766.00 | BC9: 0.00 | BD9: 6,273.00 | BE9: 64,744.00 | BF9: 380,330.00 | BG9: 1,113,616.00 | BH9: 0.00 | BI9: 77,758.00 | BJ9: 17,077.00 | BK9: 955,470.40 | BL9: 0.00 | BM9: 0.00 | BN9: 0.00 | BO9: 0.00 | BP9: 0.00 | BQ9: 1,205.00 | BR9: 0.00 | BS9: 0.00 | BT9: 0.00 | BU9: 0.00 | BV9: 0.00 | BW9: 0.00 | BX9: 156,739.00 | BY9: 1,136,556.00 | BZ9: =SUM(BZ10:BZ302) -> 0.00 | CA9: =COUNTIFS(CA10:CA302,"<>0") -> 0
A10: ='0'!$A$4 -> 000770111 | B10: ='0'!$A$2 -> 2020-09-30 | C10: Т14 | D10: 1 | E10: КДБ/регистратура | F10: КДБ/регистратура | G10: Пневмология и фтизиатрия | H10: I | I10: Пневмология и фтизиатрия | J10: I | K10: Пневмология и фтизиатрия | L10: I | M10: Пневмология и фтизиатрия | N10: I | O10: 0 | P10: 0 | Q10: 0 | R10: 0 | S10: 0 | T10: 0 | U10: 0 | V10: 0 | W10: 0 | X10: 0 | Z10: 0 | AA10: 0 | AB10: 0 | AC10: 0 | AD10: 0 | AE10: 0 | AF10: 0 | AG10: 0 | AH10: 0 | AI10: 0 | AJ10: 1 | AK10: 0 | AL10: 0 | AM10: 0 | AN10: 1 | AO10: 0 | AP10: 0 | AQ10: 0 | AR10: 1,360 | AS10: 0 | AT10: 0 | AU10: 0 | AV10: 0 | AW10: 0 | AX10: 0 | AY10: 0 | AZ10: 12,792 | BA10: 2,936 | BB10: 0 | BC10: 0 | BD10: 0 | BE10: 0 | BF10: 3,803 | BG10: 15,090 | BH10: 0 | BI10: 778 | BJ10: 171 | BK10: =SUMIFS('15'!$F:$F,'15'!$N:$N,'14'!BK$6,'15'!$M:$M,'14'!$D10) -> 0 | BL10: =SUMIFS('15'!$F:$F,'15'!$N:$N,'14'!BL$6,'15'!$M:$M,'14'!$D10) -> 0 | BM10: =SUMIFS('15'!$F:$F,'15'!$N:$N,'14'!BM$6,'15'!$M:$M,'14'!$D10) -> 0 | BN10: =SUMIFS('15'!$J:$J,'15'!$M:$M,'14'!$D10) -> 0 | BO10: =SUMIFS('15'!$K:$K,'15'!$M:$M,'14'!$D10) -> 0 | BP10: 0 | BQ10: 1,205 | BR10: 0 | BS10: 0 | BT10: 0 | BU10: 0 | BV10: 0 | BW10: 0 | BX10: 0 | BY10: 0 | BZ10: 0 | CA10: =IF(OR(COUNTBLANK(D10:H10)=5,COUNTBLANK(D10:H10)=0),0,1)+IF(D10<>"",COUNTIFS($D$10:$D$302,D10)-1,0) -> 0
A11: ='0'!$A$4 -> 000770111 | B11: ='0'!$A$2 -> 2020-09-30 | C11: Т14 | D11: 2 | E11: КДБ/консултативни кабинети | F11: КДБ/консултативни кабинети | G11: Пневмология и фтизиатрия | H11: I | I11: Пневмология и фтизиатрия | J11: I | K11: Пневмология и фтизиатрия | L11: I | M11: Пневмология и фтизиатрия | N11: I | O11: 0 | P11: 0 | Q11: 0 | R11: 0 | S11: 0 | T11: 0 | U11: 0 | V11: 0 | W11: 0 | X11: 0 | Z11: 0 | AA11: 0 | AB11: 0 | AC11: 0 | AD11: 0 | AE11: 0 | AF11: 0 | AG11: 0 | AH11: 0 | AI11: 0 | AJ11: 1 | AK11: 0 | AL11: 0 | AM11: 0 | AN11: 1 | AO11: 0 | AP11: 0 | AQ11: 0 | AR11: 860 | AS11: 0 | AT11: 0 | AU11: 0 | AV11: 0 | AW11: 0 | AX11: 0 | AY11: 0 | AZ11: 13,182 | BA11: 8,807 | BB11: 0 | BC11: 0 | BD11: 188 | BE11: 0 | BF11: 11,410 | BG11: 15,550 | BH11: 0 | BI11: 2,333 | BJ11: 512 | BK11: =SUMIFS('15'!$F:$F,'15'!$N:$N,'14'!BK$6,'15'!$M:$M,'14'!$D11) -> 0 | BL11: =SUMIFS('15'!$F:$F,'15'!$N:$N,'14'!BL$6,'15'!$M:$M,'14'!$D11) -> 0 | BM11: =SUMIFS('15'!$F:$F,'15'!$N:$N,'14'!BM$6,'15'!$M:$M,'14'!$D11) -> 0 | BN11: =SUMIFS('15'!$J:$J,'15'!$M:$M,'14'!$D11) -> 0 | BO11: =SUMIFS('15'!$K:$K,'15'!$M:$M,'14'!$D11) -> 0 | BP11: 0 | BQ11: 0 | BR11: 0 | BS11: 0 | BT11: 0 | BU11: 0 | BV11: 0 | BW11: 0 | BX11: 0 | BY11: 0 | BZ11: 0 | CA11: 0
A12: ='0'!$A$4 -> 000770111 | B12: ='0'!$A$2 -> 2020-09-30 | C12: Т14 | D12: 3 | E12: КДБ/лаборатории | F12: КДБ/лаборатории | G12: Пневмология и фтизиатрия | H12: I | I12: Пневмология и фтизиатрия | J12: I | K12: Пневмология и фтизиатрия | L12: I | M12: Пневмология и фтизиатрия | N12: I | O12: 0 | P12: 0 | Q12: 0 | R12: 0 | S12: 0 | T12: 0 | U12: 0 | V12: 0 | W12: 0 | X12: 0 | Z12: 0 | AA12: 0 | AB12: 0 | AC12: 0 | AD12: 0 | AE12: 0 | AF12: 0 | AG12: 2 | AH12: 0 | AI12: 0 | AJ12: 2 | AK12: 2 | AL12: 0 | AM12: 0 | AN12: 2 | AO12: 2,618 | AP12: 0 | AQ12: 0 | AR12: 2,114 | AS12: 0 | AT12: 0 | AU12: 0 | AV12: 0 | AW12: 31,889 | AX12: 0 | AY12: 0 | AZ12: 25,503 | BA12: 14,678 | BB12: 0 | BC12: 0 | BD12: 314 | BE12: 0 | BF12: 19,017 | BG12: 78,291 | BH12: 0 | BI12: 3,888 | BJ12: 854 | BK12: =SUMIFS('15'!$F:$F,'15'!$N:$N,'14'!BK$6,'15'!$M:$M,'14'!$D12) -> 0 | BL12: =SUMIFS('15'!$F:$F,'15'!$N:$N,'14'!BL$6,'15'!$M:$M,'14'!$D12) -> 0 | BM12: =SUMIFS('15'!$F:$F,'15'!$N:$N,'14'!BM$6,'15'!$M:$M,'14'!$D12) -> 0 | BN12: =SUMIFS('15'!$J:$J,'15'!$M:$M,'14'!$D12) -> 0 | BO12: =SUMIFS('15'!$K:$K,'15'!$M:$M,'14'!$D12) -> 0 | BP12: 0 | BQ12: 0 | BR12: 0 | BS12: 0 | BT12: 0 | BU12: 0 | BV12: 0 | BW12: 0 | BX12: 0 | BY12: 0 | BZ12: 0 | CA12: 0
A13: ='0'!$A$4 -> 000770111 | B13: ='0'!$A$2 -> 2020-09-30 | C13: Т14 | D13: 4 | E13: КДБ/отделения без легла | F13: КДБ/отделения без легла | G13: Пневмология и фтизиатрия | H13: I | I13: Пневмология и фтизиатрия | J13: I | K13: Пневмология и фтизиатрия | L13: I | M13: Пневмология и фтизиатрия | N13: I | O13: 0 | P13: 0 | Q13: 0 | R13: 0 | S13: 0 | T13: 0 | U13: 0 | V13: 0 | W13: 0 | X13: 0 | Z13: 0 | AA13: 0 | AB13: 0 | AC13: 0 | AD13: 0 | AE13: 0 | AF13: 0 | AG13: 1 | AH13: 0 | AI13: 0 | AJ13: 1 | AK13: 1 | AL13: 0 | AM13: 0 | AN13: 1 | AO13: 1,001 | AP13: 0 | AQ13: 0 | AR13: 1,106 | AS13: 0 | AT13: 0 | AU13: 0 | AV13: 0 | AW13: 18,709 | AX13: 0 | AY13: 0 | AZ13: 13,426 | BA13: 8,807 | BB13: 0 | BC13: 0 | BD13: 188 | BE13: 0 | BF13: 11,410 | BG13: 37,907 | BH13: 0 | BI13: 2,333 | BJ13: 512 | BK13: =SUMIFS('15'!$F:$F,'15'!$N:$N,'14'!BK$6,'15'!$M:$M,'14'!$D13) -> 0 | BL13: =SUMIFS('15'!$F:$F,'15'!$N:$N,'14'!BL$6,'15'!$M:$M,'14'!$D13) -> 0 | BM13: =SUMIFS('15'!$F:$F,'15'!$N:$N,'14'!BM$6,'15'!$M:$M,'14'!$D13) -> 0 | BN13: =SUMIFS('15'!$J:$J,'15'!$M:$M,'14'!$D13) -> 0 | BO13: =SUMIFS('15'!$K:$K,'15'!$M:$M,'14'!$D13) -> 0 | BP13: 0 | BQ13: 0 | BR13: 0 | BS13: 0 | BT13: 0 | BU13: 0 | BV13: 0 | BW13: 0 | BX13: 0 | BY13: 0 | BZ13: 0 | CA13: 0
A14: ='0'!$A$4 -> 000770111 | B14: ='0'!$A$2 -> 2020-09-30 | C14: Т14 | D14: 5 | E14: Стационар/отделение с легла | F14: Стационар/отделение с легла | G14: Пневмология и фтизиатрия | H14: I | I14: Пневмология и фтизиатрия | J14: I | K14: Пневмология и фтизиатрия | L14: I | M14: Пневмология и фтизиатрия | N14: I | O14: 80 | P14: 0 | Q14: 80 | R14: 0 | S14: 23,432 | T14: 705 | U14: 0 | V14: 616 | W14: 0 | X14: 1 | Z14: 0 | AA14: 0 | AB14: 0 | AC14: 0 | AD14: 0 | AE14: 0 | AF14: 0 | AG14: 2 | AH14: 1 | AI14: 0 | AJ14: 7 | AK14: 2 | AL14: 1 | AM14: 0 | AN14: 7 | AO14: 1,848 | AP14: 1,022 | AQ14: 0 | AR14: 6,909 | AS14: 0 | AT14: 0 | AU14: 0 | AV14: 0 | AW14: 50,700 | AX14: 18,012 | AY14: 0 | AZ14: 98,634 | BA14: 88,068 | BB14: 22,689 | BC14: 0 | BD14: 2,446 | BE14: 27,840 | BF14: 114,099 | BG14: 228,669 | BH14: 0 | BI14: 23,327 | BJ14: 5,123 | BK14: =SUMIFS('15'!$F:$F,'15'!$N:$N,'14'!BK$6,'15'!$M:$M,'14'!$D14) -> 0 | BL14: =SUMIFS('15'!$F:$F,'15'!$N:$N,'14'!BL$6,'15'!$M:$M,'14'!$D14) -> 0 | BM14: =SUMIFS('15'!$F:$F,'15'!$N:$N,'14'!BM$6,'15'!$M:$M,'14'!$D14) -> 0 | BN14: =SUMIFS('15'!$J:$J,'15'!$M:$M,'14'!$D14) -> 0 | BO14: =SUMIFS('15'!$K:$K,'15'!$M:$M,'14'!$D14) -> 0 | BP14: 0 | BQ14: 0 | BR14: 0 | BS14: 0 | BT14: 0 | BU14: 0 | BV14: 0 | BW14: 0 | BX14: 0 | BY14: 1,136,556 | BZ14: 0 | CA14: 0
A15: ='0'!$A$4 -> 000770111 | B15: ='0'!$A$2 -> 2020-09-30 | C15: Т14 | D15: 6 | E15: Стационар/отделение с легла | F15: Стационар/отделение с легла | G15: Пневмология и фтизиатрия | H15: I | I15: Пневмология и фтизиатрия | J15: I | K15: Пневмология и фтизиатрия | L15: I | M15: Пневмология и фтизиатрия | N15: I | O15: 90 | P15: 0 | Q15: 90 | R15: 0 | S15: 19,889 | T15: 1,621 | U15: 0 | V15: 1,556 | W15: 0 | X15: 1 | Z15: 0 | AA15: 0 | AB15: 0 | AC15: 0 | AD15: 0 | AE15: 0 | AF15: 0 | AG15: 4 | AH15: 1 | AI15: 0 | AJ15: 9 | AK15: 4 | AL15: 1 | AM15: 0 | AN15: 9 | AO15: 3,656 | AP15: 1,096 | AQ15: 0 | AR15: 10,851 | AS15: 0 | AT15: 0 | AU15: 0 | AV15: 0 | AW15: 86,571 | AX15: 16,846 | AY15: 0 | AZ15: 119,770 | BA15: 117,424 | BB15: 30,077 | BC15: 0 | BD15: 3,137 | BE15: 36,904 | BF15: 152,132 | BG15: 299,078 | BH15: 0 | BI15: 31,103 | BJ15: 6,831 | BK15: =SUMIFS('15'!$F:$F,'15'!$N:$N,'14'!BK$6,'15'!$M:$M,'14'!$D15) -> 955,470 | BL15: =SUMIFS('15'!$F:$F,'15'!$N:$N,'14'!BL$6,'15'!$M:$M,'14'!$D15) -> 0 | BM15: =SUMIFS('15'!$F:$F,'15'!$N:$N,'14'!BM$6,'15'!$M:$M,'14'!$D15) -> 0 | BN15: =SUMIFS('15'!$J:$J,'15'!$M:$M,'14'!$D15) -> 0 | BO15: =SUMIFS('15'!$K:$K,'15'!$M:$M,'14'!$D15) -> 0 | BP15: 0 | BQ15: 0 | BR15: 0 | BS15: 0 | BT15: 0 | BU15: 0 | BV15: 0 | BW15: 0 | BX15: 0 | BY15: 0 | BZ15: 0 | CA15: 0
A16: ='0'!$A$4 -> 000770111 | B16: ='0'!$A$2 -> 2020-09-30 | C16: Т14 | D16: 7 | E16: АСБ/административни звена | F16: АСБ/административни звена | G16: Пневмология и фтизиатрия | H16: I | I16: Пневмология и фтизиатрия | J16: I | K16: Пневмология и фтизиатрия | L16: I | M16: Пневмология и фтизиатрия | N16: I | O16: 0 | P16: 0 | Q16: 0 | R16: 0 | S16: 0 | T16: 0 | U16: 0 | V16: 0 | W16: 0 | X16: 0 | Z16: 0 | AA16: 0 | AB16: 0 | AC16: 0 | AD16: 0 | AE16: 0 | AF16: 0 | AG16: 0 | AH16: 0 | AI16: 0 | AJ16: 0 | AK16: 0 | AL16: 0 | AM16: 0 | AN16: 0 | AO16: 0 | AP16: 0 | AQ16: 0 | AR16: 0 | AS16: 0 | AT16: 0 | AU16: 0 | AV16: 0 | AW16: 0 | AX16: 0 | AY16: 0 | AZ16: 0 | BA16: 20,549 | BB16: 0 | BC16: 0 | BD16: 0 | BE16: 0 | BF16: 26,623 | BG16: 199,716 | BH16: 0 | BI16: 5,443 | BJ16: 1,195 | BK16: =SUMIFS('15'!$F:$F,'15'!$N:$N,'14'!BK$6,'15'!$M:$M,'14'!$D16) -> 0 | BL16: =SUMIFS('15'!$F:$F,'15'!$N:$N,'14'!BL$6,'15'!$M:$M,'14'!$D16) -> 0 | BM16: =SUMIFS('15'!$F:$F,'15'!$N:$N,'14'!BM$6,'15'!$M:$M,'14'!$D16) -> 0 | BN16: =SUMIFS('15'!$J:$J,'15'!$M:$M,'14'!$D16) -> 0 | BO16: =SUMIFS('15'!$K:$K,'15'!$M:$M,'14'!$D16) -> 0 | BP16: 0 | BQ16: 0 | BR16: 0 | BS16: 0 | BT16: 0 | BU16: 0 | BV16: 0 | BW16: 0 | BX16: 0 | BY16: 0 | BZ16: 0 | CA16: 0
A17: ='0'!$A$4 -> 000770111 | B17: ='0'!$A$2 -> 2020-09-30 | C17: Т14 | D17: 8 | E17: АСБ/стопански звена | F17: АСБ/стопански звена | G17: Пневмология и фтизиатрия | H17: I | I17: Пневмология и фтизиатрия | J17: I | K17: Пневмология и фтизиатрия | L17: I | M17: Пневмология и фтизиатрия | N17: I | O17: 0 | P17: 0 | Q17: 0 | R17: 0 | S17: 0 | T17: 0 | U17: 0 | V17: 0 | W17: 0 | X17: 0 | Z17: 0 | AA17: 0 | AB17: 0 | AC17: 0 | AD17: 0 | AE17: 0 | AF17: 0 | AG17: 0 | AH17: 0 | AI17: 0 | AJ17: 0 | AK17: 0 | AL17: 0 | AM17: 0 | AN17: 0 | AO17: 0 | AP17: 0 | AQ17: 0 | AR17: 0 | AS17: 0 | AT17: 0 | AU17: 0 | AV17: 0 | AW17: 0 | AX17: 0 | AY17: 0 | AZ17: 0 | BA17: 29,356 | BB17: 0 | BC17: 0 | BD17: 0 | BE17: 0 | BF17: 38,033 | BG17: 214,362 | BH17: 0 | BI17: 7,776 | BJ17: 1,708 | BK17: =SUMIFS('15'!$F:$F,'15'!$N:$N,'14'!BK$6,'15'!$M:$M,'14'!$D17) -> 0 | BL17: =SUMIFS('15'!$F:$F,'15'!$N:$N,'14'!BL$6,'15'!$M:$M,'14'!$D17) -> 0 | BM17: =SUMIFS('15'!$F:$F,'15'!$N:$N,'14'!BM$6,'15'!$M:$M,'14'!$D17) -> 0 | BN17: =SUMIFS('15'!$J:$J,'15'!$M:$M,'14'!$D17) -> 0 | BO17: =SUMIFS('15'!$K:$K,'15'!$M:$M,'14'!$D17) -> 0 | BP17: 0 | BQ17: 0 | BR17: 0 | BS17: 0 | BT17: 0 | BU17: 0 | BV17: 0 | BW17: 0 | BX17: 0 | BY17: 0 | BZ17: 0 | CA17: 0
A18: ='0'!$A$4 -> 000770111 | B18: ='0'!$A$2 -> 2020-09-30 | C18: Т14 | D18: 9 | E18: АСБ/обслужващи звена | F18: АСБ/обслужващи звена | G18: Пневмология и фтизиатрия | H18: I | I18: Пневмология и фтизиатрия | J18: I | K18: Пневмология и фтизиатрия | L18: I | M18: Пневмология и фтизиатрия | N18: I | O18: 0 | P18: 0 | Q18: 0 | R18: 0 | S18: 0 | T18: 0 | U18: 0 | V18: 0 | W18: 0 | X18: 0 | Z18: 0 | AA18: 0 | AB18: 0 | AC18: 0 | AD18: 0 | AE18: 0 | AF18: 0 | AG18: 0 | AH18: 0 | AI18: 0 | AJ18: 0 | AK18: 0 | AL18: 0 | AM18: 0 | AN18: 0 | AO18: 0 | AP18: 0 | AQ18: 0 | AR18: 0 | AS18: 0 | AT18: 0 | AU18: 0 | AV18: 0 | AW18: 0 | AX18: 0 | AY18: 0 | AZ18: 0 | BA18: 2,935 | BB18: 0 | BC18: 0 | BD18: 0 | BE18: 0 | BF18: 3,803 | BG18: 24,953 | BH18: 0 | BI18: 777 | BJ18: 171 | BK18: =SUMIFS('15'!$F:$F,'15'!$N:$N,'14'!BK$6,'15'!$M:$M,'14'!$D18) -> 0 | BL18: =SUMIFS('15'!$F:$F,'15'!$N:$N,'14'!BL$6,'15'!$M:$M,'14'!$D18) -> 0 | BM18: =SUMIFS('15'!$F:$F,'15'!$N:$N,'14'!BM$6,'15'!$M:$M,'14'!$D18) -> 0 | BN18: =SUMIFS('15'!$J:$J,'15'!$M:$M,'14'!$D18) -> 0 | BO18: =SUMIFS('15'!$K:$K,'15'!$M:$M,'14'!$D18) -> 0 | BP18: 0 | BQ18: 0 | BR18: 0 | BS18: 0 | BT18: 0 | BU18: 0 | BV18: 0 | BW18: 0 | BX18: 156,739 | BY18: 0 | BZ18: 0 | CA18: 0
A19: ='0'!$A$4 -> 000770111 | B19: ='0'!$A$2 -> 2020-09-30 | C19: Т14 | BK19: =SUMIFS('15'!$F:$F,'15'!$N:$N,'14'!BK$6,'15'!$M:$M,'14'!$D19) -> 0 | BL19: =SUMIFS('15'!$F:$F,'15'!$N:$N,'14'!BL$6,'15'!$M:$M,'14'!$D19) -> 0 | BM19: =SUMIFS('15'!$F:$F,'15'!$N:$N,'14'!BM$6,'15'!$M:$M,'14'!$D19) -> 0 | BN19: =SUMIFS('15'!$J:$J,'15'!$M:$M,'14'!$D19) -> 0 | BO19: =SUMIFS('15'!$K:$K,'15'!$M:$M,'14'!$D19) -> 0 | CA19: 0
A20: ='0'!$A$4 -> 000770111 | B20: ='0'!$A$2 -> 2020-09-30 | C20: Т14 | BK20: =SUMIFS('15'!$F:$F,'15'!$N:$N,'14'!BK$6,'15'!$M:$M,'14'!$D20) -> 0 | BL20: =SUMIFS('15'!$F:$F,'15'!$N:$N,'14'!BL$6,'15'!$M:$M,'14'!$D20) -> 0 | BM20: =SUMIFS('15'!$F:$F,'15'!$N:$N,'14'!BM$6,'15'!$M:$M,'14'!$D20) -> 0 | BN20: =SUMIFS('15'!$J:$J,'15'!$M:$M,'14'!$D20) -> 0 | BO20: =SUMIFS('15'!$K:$K,'15'!$M:$M,'14'!$D20) -> 0 | CA20: 0
A21: ='0'!$A$4 -> 000770111 | B21: ='0'!$A$2 -> 2020-09-30 | C21: Т14 | BK21: =SUMIFS('15'!$F:$F,'15'!$N:$N,'14'!BK$6,'15'!$M:$M,'14'!$D21) -> 0 | BL21: =SUMIFS('15'!$F:$F,'15'!$N:$N,'14'!BL$6,'15'!$M:$M,'14'!$D21) -> 0 | BM21: =SUMIFS('15'!$F:$F,'15'!$N:$N,'14'!BM$6,'15'!$M:$M,'14'!$D21) -> 0 | BN21: =SUMIFS('15'!$J:$J,'15'!$M:$M,'14'!$D21) -> 0 | BO21: =SUMIFS('15'!$K:$K,'15'!$M:$M,'14'!$D21) -> 0 | CA21: 0
A22: ='0'!$A$4 -> 000770111 | B22: ='0'!$A$2 -> 2020-09-30 | C22: Т14 | BK22: =SUMIFS('15'!$F:$F,'15'!$N:$N,'14'!BK$6,'15'!$M:$M,'14'!$D22) -> 0 | BL22: =SUMIFS('15'!$F:$F,'15'!$N:$N,'14'!BL$6,'15'!$M:$M,'14'!$D22) -> 0 | BM22: =SUMIFS('15'!$F:$F,'15'!$N:$N,'14'!BM$6,'15'!$M:$M,'14'!$D22) -> 0 | BN22: =SUMIFS('15'!$J:$J,'15'!$M:$M,'14'!$D22) -> 0 | BO22: =SUMIFS('15'!$K:$K,'15'!$M:$M,'14'!$D22) -> 0 | CA22: 0
A23: ='0'!$A$4 -> 000770111 | B23: ='0'!$A$2 -> 2020-09-30 | C23: Т14 | BK23: =SUMIFS('15'!$F:$F,'15'!$N:$N,'14'!BK$6,'15'!$M:$M,'14'!$D23) -> 0 | BL23: =SUMIFS('15'!$F:$F,'15'!$N:$N,'14'!BL$6,'15'!$M:$M,'14'!$D23) -> 0 | BM23: =SUMIFS('15'!$F:$F,'15'!$N:$N,'14'!BM$6,'15'!$M:$M,'14'!$D23) -> 0 | BN23: =SUMIFS('15'!$J:$J,'15'!$M:$M,'14'!$D23) -> 0 | BO23: =SUMIFS('15'!$K:$K,'15'!$M:$M,'14'!$D23) -> 0 | CA23: 0
A24: ='0'!$A$4 -> 000770111 | B24: ='0'!$A$2 -> 2020-09-30 | C24: Т14 | BK24: =SUMIFS('15'!$F:$F,'15'!$N:$N,'14'!BK$6,'15'!$M:$M,'14'!$D24) -> 0 | BL24: =SUMIFS('15'!$F:$F,'15'!$N:$N,'14'!BL$6,'15'!$M:$M,'14'!$D24) -> 0 | BM24: =SUMIFS('15'!$F:$F,'15'!$N:$N,'14'!BM$6,'15'!$M:$M,'14'!$D24) -> 0 | BN24: =SUMIFS('15'!$J:$J,'15'!$M:$M,'14'!$D24) -> 0 | BO24: =SUMIFS('15'!$K:$K,'15'!$M:$M,'14'!$D24) -> 0 | CA24: 0
A25: ='0'!$A$4 -> 000770111 | B25: ='0'!$A$2 -> 2020-09-30 | C25: Т14 | BK25: =SUMIFS('15'!$F:$F,'15'!$N:$N,'14'!BK$6,'15'!$M:$M,'14'!$D25) -> 0 | BL25: =SUMIFS('15'!$F:$F,'15'!$N:$N,'14'!BL$6,'15'!$M:$M,'14'!$D25) -> 0 | BM25: =SUMIFS('15'!$F:$F,'15'!$N:$N,'14'!BM$6,'15'!$M:$M,'14'!$D25) -> 0 | BN25: =SUMIFS('15'!$J:$J,'15'!$M:$M,'14'!$D25) -> 0 | BO25: =SUMIFS('15'!$K:$K,'15'!$M:$M,'14'!$D25) -> 0 | CA25: 0
A26: ='0'!$A$4 -> 000770111 | B26: ='0'!$A$2 -> 2020-09-30 | C26: Т14 | BK26: =SUMIFS('15'!$F:$F,'15'!$N:$N,'14'!BK$6,'15'!$M:$M,'14'!$D26) -> 0 | BL26: =SUMIFS('15'!$F:$F,'15'!$N:$N,'14'!BL$6,'15'!$M:$M,'14'!$D26) -> 0 | BM26: =SUMIFS('15'!$F:$F,'15'!$N:$N,'14'!BM$6,'15'!$M:$M,'14'!$D26) -> 0 | BN26: =SUMIFS('15'!$J:$J,'15'!$M:$M,'14'!$D26) -> 0 | BO26: =SUMIFS('15'!$K:$K,'15'!$M:$M,'14'!$D26) -> 0 | CA26: 0
A27: ='0'!$A$4 -> 000770111 | B27: ='0'!$A$2 -> 2020-09-30 | C27: Т14 | BK27: =SUMIFS('15'!$F:$F,'15'!$N:$N,'14'!BK$6,'15'!$M:$M,'14'!$D27) -> 0 | BL27: =SUMIFS('15'!$F:$F,'15'!$N:$N,'14'!BL$6,'15'!$M:$M,'14'!$D27) -> 0 | BM27: =SUMIFS('15'!$F:$F,'15'!$N:$N,'14'!BM$6,'15'!$M:$M,'14'!$D27) -> 0 | BN27: =SUMIFS('15'!$J:$J,'15'!$M:$M,'14'!$D27) -> 0 | BO27: =SUMIFS('15'!$K:$K,'15'!$M:$M,'14'!$D27) -> 0 | CA27: 0
A28: ='0'!$A$4 -> 000770111 | B28: ='0'!$A$2 -> 2020-09-30 | C28: Т14 | BK28: =SUMIFS('15'!$F:$F,'15'!$N:$N,'14'!BK$6,'15'!$M:$M,'14'!$D28) -> 0 | BL28: =SUMIFS('15'!$F:$F,'15'!$N:$N,'14'!BL$6,'15'!$M:$M,'14'!$D28) -> 0 | BM28: =SUMIFS('15'!$F:$F,'15'!$N:$N,'14'!BM$6,'15'!$M:$M,'14'!$D28) -> 0 | BN28: =SUMIFS('15'!$J:$J,'15'!$M:$M,'14'!$D28) -> 0 | BO28: =SUMIFS('15'!$K:$K,'15'!$M:$M,'14'!$D28) -> 0 | CA28: 0
A29: ='0'!$A$4 -> 000770111 | B29: ='0'!$A$2 -> 2020-09-30 | C29: Т14 | BK29: =SUMIFS('15'!$F:$F,'15'!$N:$N,'14'!BK$6,'15'!$M:$M,'14'!$D29) -> 0 | BL29: =SUMIFS('15'!$F:$F,'15'!$N:$N,'14'!BL$6,'15'!$M:$M,'14'!$D29) -> 0 | BM29: =SUMIFS('15'!$F:$F,'15'!$N:$N,'14'!BM$6,'15'!$M:$M,'14'!$D29) -> 0 | BN29: =SUMIFS('15'!$J:$J,'15'!$M:$M,'14'!$D29) -> 0 | BO29: =SUMIFS('15'!$K:$K,'15'!$M:$M,'14'!$D29) -> 0 | CA29: 0
A30: ='0'!$A$4 -> 000770111 | B30: ='0'!$A$2 -> 2020-09-30 | C30: Т14 | BK30: =SUMIFS('15'!$F:$F,'15'!$N:$N,'14'!BK$6,'15'!$M:$M,'14'!$D30) -> 0 | BL30: =SUMIFS('15'!$F:$F,'15'!$N:$N,'14'!BL$6,'15'!$M:$M,'14'!$D30) -> 0 | BM30: =SUMIFS('15'!$F:$F,'15'!$N:$N,'14'!BM$6,'15'!$M:$M,'14'!$D30) -> 0 | BN30: =SUMIFS('15'!$J:$J,'15'!$M:$M,'14'!$D30) -> 0 | BO30: =SUMIFS('15'!$K:$K,'15'!$M:$M,'14'!$D30) -> 0 | CA30: 0
A31: ='0'!$A$4 -> 000770111 | B31: ='0'!$A$2 -> 2020-09-30 | C31: Т14 | BK31: =SUMIFS('15'!$F:$F,'15'!$N:$N,'14'!BK$6,'15'!$M:$M,'14'!$D31) -> 0 | BL31: =SUMIFS('15'!$F:$F,'15'!$N:$N,'14'!BL$6,'15'!$M:$M,'14'!$D31) -> 0 | BM31: =SUMIFS('15'!$F:$F,'15'!$N:$N,'14'!BM$6,'15'!$M:$M,'14'!$D31) -> 0 | BN31: =SUMIFS('15'!$J:$J,'15'!$M:$M,'14'!$D31) -> 0 | BO31: =SUMIFS('15'!$K:$K,'15'!$M:$M,'14'!$D31) -> 0 | CA31: 0
A32: ='0'!$A$4 -> 000770111 | B32: ='0'!$A$2 -> 2020-09-30 | C32: Т14 | BK32: =SUMIFS('15'!$F:$F,'15'!$N:$N,'14'!BK$6,'15'!$M:$M,'14'!$D32) -> 0 | BL32: =SUMIFS('15'!$F:$F,'15'!$N:$N,'14'!BL$6,'15'!$M:$M,'14'!$D32) -> 0 | BM32: =SUMIFS('15'!$F:$F,'15'!$N:$N,'14'!BM$6,'15'!$M:$M,'14'!$D32) -> 0 | BN32: =SUMIFS('15'!$J:$J,'15'!$M:$M,'14'!$D32) -> 0 | BO32: =SUMIFS('15'!$K:$K,'15'!$M:$M,'14'!$D32) -> 0 | CA32: 0
A33: ='0'!$A$4 -> 000770111 | B33: ='0'!$A$2 -> 2020-09-30 | C33: Т14 | BK33: =SUMIFS('15'!$F:$F,'15'!$N:$N,'14'!BK$6,'15'!$M:$M,'14'!$D33) -> 0 | BL33: =SUMIFS('15'!$F:$F,'15'!$N:$N,'14'!BL$6,'15'!$M:$M,'14'!$D33) -> 0 | BM33: =SUMIFS('15'!$F:$F,'15'!$N:$N,'14'!BM$6,'15'!$M:$M,'14'!$D33) -> 0 | BN33: =SUMIFS('15'!$J:$J,'15'!$M:$M,'14'!$D33) -> 0 | BO33: =SUMIFS('15'!$K:$K,'15'!$M:$M,'14'!$D33) -> 0 | CA33: 0
A34: ='0'!$A$4 -> 000770111 | B34: ='0'!$A$2 -> 2020-09-30 | C34: Т14 | BK34: =SUMIFS('15'!$F:$F,'15'!$N:$N,'14'!BK$6,'15'!$M:$M,'14'!$D34) -> 0 | BL34: =SUMIFS('15'!$F:$F,'15'!$N:$N,'14'!BL$6,'15'!$M:$M,'14'!$D34) -> 0 | BM34: =SUMIFS('15'!$F:$F,'15'!$N:$N,'14'!BM$6,'15'!$M:$M,'14'!$D34) -> 0 | BN34: =SUMIFS('15'!$J:$J,'15'!$M:$M,'14'!$D34) -> 0 | BO34: =SUMIFS('15'!$K:$K,'15'!$M:$M,'14'!$D34) -> 0 | CA34: 0
A35: ='0'!$A$4 -> 000770111 | B35: ='0'!$A$2 -> 2020-09-30 | C35: Т14 | BK35: =SUMIFS('15'!$F:$F,'15'!$N:$N,'14'!BK$6,'15'!$M:$M,'14'!$D35) -> 0 | BL35: =SUMIFS('15'!$F:$F,'15'!$N:$N,'14'!BL$6,'15'!$M:$M,'14'!$D35) -> 0 | BM35: =SUMIFS('15'!$F:$F,'15'!$N:$N,'14'!BM$6,'15'!$M:$M,'14'!$D35) -> 0 | BN35: =SUMIFS('15'!$J:$J,'15'!$M:$M,'14'!$D35) -> 0 | BO35: =SUMIFS('15'!$K:$K,'15'!$M:$M,'14'!$D35) -> 0 | CA35: 0
A36: ='0'!$A$4 -> 000770111 | B36: ='0'!$A$2 -> 2020-09-30 | C36: Т14 | BK36: =SUMIFS('15'!$F:$F,'15'!$N:$N,'14'!BK$6,'15'!$M:$M,'14'!$D36) -> 0 | BL36: =SUMIFS('15'!$F:$F,'15'!$N:$N,'14'!BL$6,'15'!$M:$M,'14'!$D36) -> 0 | BM36: =SUMIFS('15'!$F:$F,'15'!$N:$N,'14'!BM$6,'15'!$M:$M,'14'!$D36) -> 0 | BN36: =SUMIFS('15'!$J:$J,'15'!$M:$M,'14'!$D36) -> 0 | BO36: =SUMIFS('15'!$K:$K,'15'!$M:$M,'14'!$D36) -> 0 | CA36: 0
A37: ='0'!$A$4 -> 000770111 | B37: ='0'!$A$2 -> 2020-09-30 | C37: Т14 | BK37: =SUMIFS('15'!$F:$F,'15'!$N:$N,'14'!BK$6,'15'!$M:$M,'14'!$D37) -> 0 | BL37: =SUMIFS('15'!$F:$F,'15'!$N:$N,'14'!BL$6,'15'!$M:$M,'14'!$D37) -> 0 | BM37: =SUMIFS('15'!$F:$F,'15'!$N:$N,'14'!BM$6,'15'!$M:$M,'14'!$D37) -> 0 | BN37: =SUMIFS('15'!$J:$J,'15'!$M:$M,'14'!$D37) -> 0 | BO37: =SUMIFS('15'!$K:$K,'15'!$M:$M,'14'!$D37) -> 0 | CA37: 0
A38: ='0'!$A$4 -> 000770111 | B38: ='0'!$A$2 -> 2020-09-30 | C38: Т14 | BK38: =SUMIFS('15'!$F:$F,'15'!$N:$N,'14'!BK$6,'15'!$M:$M,'14'!$D38) -> 0 | BL38: =SUMIFS('15'!$F:$F,'15'!$N:$N,'14'!BL$6,'15'!$M:$M,'14'!$D38) -> 0 | BM38: =SUMIFS('15'!$F:$F,'15'!$N:$N,'14'!BM$6,'15'!$M:$M,'14'!$D38) -> 0 | BN38: =SUMIFS('15'!$J:$J,'15'!$M:$M,'14'!$D38) -> 0 | BO38: =SUMIFS('15'!$K:$K,'15'!$M:$M,'14'!$D38) -> 0 | CA38: 0
A39: ='0'!$A$4 -> 000770111 | B39: ='0'!$A$2 -> 2020-09-30 | C39: Т14 | BK39: =SUMIFS('15'!$F:$F,'15'!$N:$N,'14'!BK$6,'15'!$M:$M,'14'!$D39) -> 0 | BL39: =SUMIFS('15'!$F:$F,'15'!$N:$N,'14'!BL$6,'15'!$M:$M,'14'!$D39) -> 0 | BM39: =SUMIFS('15'!$F:$F,'15'!$N:$N,'14'!BM$6,'15'!$M:$M,'14'!$D39) -> 0 | BN39: =SUMIFS('15'!$J:$J,'15'!$M:$M,'14'!$D39) -> 0 | BO39: =SUMIFS('15'!$K:$K,'15'!$M:$M,'14'!$D39) -> 0 | CA39: 0
A40: ='0'!$A$4 -> 000770111 | B40: ='0'!$A$2 -> 2020-09-30 | C40: Т14 | BK40: =SUMIFS('15'!$F:$F,'15'!$N:$N,'14'!BK$6,'15'!$M:$M,'14'!$D40) -> 0 | BL40: =SUMIFS('15'!$F:$F,'15'!$N:$N,'14'!BL$6,'15'!$M:$M,'14'!$D40) -> 0 | BM40: =SUMIFS('15'!$F:$F,'15'!$N:$N,'14'!BM$6,'15'!$M:$M,'14'!$D40) -> 0 | BN40: =SUMIFS('15'!$J:$J,'15'!$M:$M,'14'!$D40) -> 0 | BO40: =SUMIFS('15'!$K:$K,'15'!$M:$M,'14'!$D40) -> 0 | CA40: 0
A41: ='0'!$A$4 -> 000770111 | B41: ='0'!$A$2 -> 2020-09-30 | C41: Т14 | BK41: =SUMIFS('15'!$F:$F,'15'!$N:$N,'14'!BK$6,'15'!$M:$M,'14'!$D41) -> 0 | BL41: =SUMIFS('15'!$F:$F,'15'!$N:$N,'14'!BL$6,'15'!$M:$M,'14'!$D41) -> 0 | BM41: =SUMIFS('15'!$F:$F,'15'!$N:$N,'14'!BM$6,'15'!$M:$M,'14'!$D41) -> 0 | BN41: =SUMIFS('15'!$J:$J,'15'!$M:$M,'14'!$D41) -> 0 | BO41: =SUMIFS('15'!$K:$K,'15'!$M:$M,'14'!$D41) -> 0 | CA41: 0
A42: ='0'!$A$4 -> 000770111 | B42: ='0'!$A$2 -> 2020-09-30 | C42: Т14 | BK42: =SUMIFS('15'!$F:$F,'15'!$N:$N,'14'!BK$6,'15'!$M:$M,'14'!$D42) -> 0 | BL42: =SUMIFS('15'!$F:$F,'15'!$N:$N,'14'!BL$6,'15'!$M:$M,'14'!$D42) -> 0 | BM42: =SUMIFS('15'!$F:$F,'15'!$N:$N,'14'!BM$6,'15'!$M:$M,'14'!$D42) -> 0 | BN42: =SUMIFS('15'!$J:$J,'15'!$M:$M,'14'!$D42) -> 0 | BO42: =SUMIFS('15'!$K:$K,'15'!$M:$M,'14'!$D42) -> 0 | CA42: =IF(OR(COUNTBLANK(D42:H42)=5,COUNTBLANK(D42:H42)=0),0,1)+IF(D42<>"",COUNTIFS($D$10:$D$302,D42)-1,0) -> 0
A43: ='0'!$A$4 -> 000770111 | B43: ='0'!$A$2 -> 2020-09-30 | C43: Т14 | BK43: =SUMIFS('15'!$F:$F,'15'!$N:$N,'14'!BK$6,'15'!$M:$M,'14'!$D43) -> 0 | BL43: =SUMIFS('15'!$F:$F,'15'!$N:$N,'14'!BL$6,'15'!$M:$M,'14'!$D43) -> 0 | BM43: =SUMIFS('15'!$F:$F,'15'!$N:$N,'14'!BM$6,'15'!$M:$M,'14'!$D43) -> 0 | BN43: =SUMIFS('15'!$J:$J,'15'!$M:$M,'14'!$D43) -> 0 | BO43: =SUMIFS('15'!$K:$K,'15'!$M:$M,'14'!$D43) -> 0 | CA43: 0
A44: ='0'!$A$4 -> 000770111 | B44: ='0'!$A$2 -> 2020-09-30 | C44: Т14 | BK44: =SUMIFS('15'!$F:$F,'15'!$N:$N,'14'!BK$6,'15'!$M:$M,'14'!$D44) -> 0 | BL44: =SUMIFS('15'!$F:$F,'15'!$N:$N,'14'!BL$6,'15'!$M:$M,'14'!$D44) -> 0 | BM44: =SUMIFS('15'!$F:$F,'15'!$N:$N,'14'!BM$6,'15'!$M:$M,'14'!$D44) -> 0 | BN44: =SUMIFS('15'!$J:$J,'15'!$M:$M,'14'!$D44) -> 0 | BO44: =SUMIFS('15'!$K:$K,'15'!$M:$M,'14'!$D44) -> 0 | CA44: 0
A45: ='0'!$A$4 -> 000770111 | B45: ='0'!$A$2 -> 2020-09-30 | C45: Т14 | BK45: =SUMIFS('15'!$F:$F,'15'!$N:$N,'14'!BK$6,'15'!$M:$M,'14'!$D45) -> 0 | BL45: =SUMIFS('15'!$F:$F,'15'!$N:$N,'14'!BL$6,'15'!$M:$M,'14'!$D45) -> 0 | BM45: =SUMIFS('15'!$F:$F,'15'!$N:$N,'14'!BM$6,'15'!$M:$M,'14'!$D45) -> 0 | BN45: =SUMIFS('15'!$J:$J,'15'!$M:$M,'14'!$D45) -> 0 | BO45: =SUMIFS('15'!$K:$K,'15'!$M:$M,'14'!$D45) -> 0 | CA45: 0
A46: ='0'!$A$4 -> 000770111 | B46: ='0'!$A$2 -> 2020-09-30 | C46: Т14 | BK46: =SUMIFS('15'!$F:$F,'15'!$N:$N,'14'!BK$6,'15'!$M:$M,'14'!$D46) -> 0 | BL46: =SUMIFS('15'!$F:$F,'15'!$N:$N,'14'!BL$6,'15'!$M:$M,'14'!$D46) -> 0 | BM46: =SUMIFS('15'!$F:$F,'15'!$N:$N,'14'!BM$6,'15'!$M:$M,'14'!$D46) -> 0 | BN46: =SUMIFS('15'!$J:$J,'15'!$M:$M,'14'!$D46) -> 0 | BO46: =SUMIFS('15'!$K:$K,'15'!$M:$M,'14'!$D46) -> 0 | CA46: 0
A47: ='0'!$A$4 -> 000770111 | B47: ='0'!$A$2 -> 2020-09-30 | C47: Т14 | BK47: =SUMIFS('15'!$F:$F,'15'!$N:$N,'14'!BK$6,'15'!$M:$M,'14'!$D47) -> 0 | BL47: =SUMIFS('15'!$F:$F,'15'!$N:$N,'14'!BL$6,'15'!$M:$M,'14'!$D47) -> 0 | BM47: =SUMIFS('15'!$F:$F,'15'!$N:$N,'14'!BM$6,'15'!$M:$M,'14'!$D47) -> 0 | BN47: =SUMIFS('15'!$J:$J,'15'!$M:$M,'14'!$D47) -> 0 | BO47: =SUMIFS('15'!$K:$K,'15'!$M:$M,'14'!$D47) -> 0 | CA47: 0
A48: ='0'!$A$4 -> 000770111 | B48: ='0'!$A$2 -> 2020-09-30 | C48: Т14 | BK48: =SUMIFS('15'!$F:$F,'15'!$N:$N,'14'!BK$6,'15'!$M:$M,'14'!$D48) -> 0 | BL48: =SUMIFS('15'!$F:$F,'15'!$N:$N,'14'!BL$6,'15'!$M:$M,'14'!$D48) -> 0 | BM48: =SUMIFS('15'!$F:$F,'15'!$N:$N,'14'!BM$6,'15'!$M:$M,'14'!$D48) -> 0 | BN48: =SUMIFS('15'!$J:$J,'15'!$M:$M,'14'!$D48) -> 0 | BO48: =SUMIFS('15'!$K:$K,'15'!$M:$M,'14'!$D48) -> 0 | CA48: 0
A49: ='0'!$A$4 -> 000770111 | B49: ='0'!$A$2 -> 2020-09-30 | C49: Т14 | BK49: =SUMIFS('15'!$F:$F,'15'!$N:$N,'14'!BK$6,'15'!$M:$M,'14'!$D49) -> 0 | BL49: =SUMIFS('15'!$F:$F,'15'!$N:$N,'14'!BL$6,'15'!$M:$M,'14'!$D49) -> 0 | BM49: =SUMIFS('15'!$F:$F,'15'!$N:$N,'14'!BM$6,'15'!$M:$M,'14'!$D49) -> 0 | BN49: =SUMIFS('15'!$J:$J,'15'!$M:$M,'14'!$D49) -> 0 | BO49: =SUMIFS('15'!$K:$K,'15'!$M:$M,'14'!$D49) -> 0 | CA49: 0
A50: ='0'!$A$4 -> 000770111 | B50: ='0'!$A$2 -> 2020-09-30 | C50: Т14 | BK50: =SUMIFS('15'!$F:$F,'15'!$N:$N,'14'!BK$6,'15'!$M:$M,'14'!$D50) -> 0 | BL50: =SUMIFS('15'!$F:$F,'15'!$N:$N,'14'!BL$6,'15'!$M:$M,'14'!$D50) -> 0 | BM50: =SUMIFS('15'!$F:$F,'15'!$N:$N,'14'!BM$6,'15'!$M:$M,'14'!$D50) -> 0 | BN50: =SUMIFS('15'!$J:$J,'15'!$M:$M,'14'!$D50) -> 0 | BO50: =SUMIFS('15'!$K:$K,'15'!$M:$M,'14'!$D50) -> 0 | CA50: 0
A51: ='0'!$A$4 -> 000770111 | B51: ='0'!$A$2 -> 2020-09-30 | C51: Т14 | BK51: =SUMIFS('15'!$F:$F,'15'!$N:$N,'14'!BK$6,'15'!$M:$M,'14'!$D51) -> 0 | BL51: =SUMIFS('15'!$F:$F,'15'!$N:$N,'14'!BL$6,'15'!$M:$M,'14'!$D51) -> 0 | BM51: =SUMIFS('15'!$F:$F,'15'!$N:$N,'14'!BM$6,'15'!$M:$M,'14'!$D51) -> 0 | BN51: =SUMIFS('15'!$J:$J,'15'!$M:$M,'14'!$D51) -> 0 | BO51: =SUMIFS('15'!$K:$K,'15'!$M:$M,'14'!$D51) -> 0 | CA51: 0
A52: ='0'!$A$4 -> 000770111 | B52: ='0'!$A$2 -> 2020-09-30 | C52: Т14 | BK52: =SUMIFS('15'!$F:$F,'15'!$N:$N,'14'!BK$6,'15'!$M:$M,'14'!$D52) -> 0 | BL52: =SUMIFS('15'!$F:$F,'15'!$N:$N,'14'!BL$6,'15'!$M:$M,'14'!$D52) -> 0 | BM52: =SUMIFS('15'!$F:$F,'15'!$N:$N,'14'!BM$6,'15'!$M:$M,'14'!$D52) -> 0 | BN52: =SUMIFS('15'!$J:$J,'15'!$M:$M,'14'!$D52) -> 0 | BO52: =SUMIFS('15'!$K:$K,'15'!$M:$M,'14'!$D52) -> 0 | CA52: 0
A53: ='0'!$A$4 -> 000770111 | B53: ='0'!$A$2 -> 2020-09-30 | C53: Т14 | BK53: =SUMIFS('15'!$F:$F,'15'!$N:$N,'14'!BK$6,'15'!$M:$M,'14'!$D53) -> 0 | BL53: =SUMIFS('15'!$F:$F,'15'!$N:$N,'14'!BL$6,'15'!$M:$M,'14'!$D53) -> 0 | BM53: =SUMIFS('15'!$F:$F,'15'!$N:$N,'14'!BM$6,'15'!$M:$M,'14'!$D53) -> 0 | BN53: =SUMIFS('15'!$J:$J,'15'!$M:$M,'14'!$D53) -> 0 | BO53: =SUMIFS('15'!$K:$K,'15'!$M:$M,'14'!$D53) -> 0 | CA53: 0
A54: ='0'!$A$4 -> 000770111 | B54: ='0'!$A$2 -> 2020-09-30 | C54: Т14 | BK54: =SUMIFS('15'!$F:$F,'15'!$N:$N,'14'!BK$6,'15'!$M:$M,'14'!$D54) -> 0 | BL54: =SUMIFS('15'!$F:$F,'15'!$N:$N,'14'!BL$6,'15'!$M:$M,'14'!$D54) -> 0 | BM54: =SUMIFS('15'!$F:$F,'15'!$N:$N,'14'!BM$6,'15'!$M:$M,'14'!$D54) -> 0 | BN54: =SUMIFS('15'!$J:$J,'15'!$M:$M,'14'!$D54) -> 0 | BO54: =SUMIFS('15'!$K:$K,'15'!$M:$M,'14'!$D54) -> 0 | CA54: 0
A55: ='0'!$A$4 -> 000770111 | B55: ='0'!$A$2 -> 2020-09-30 | C55: Т14 | BK55: =SUMIFS('15'!$F:$F,'15'!$N:$N,'14'!BK$6,'15'!$M:$M,'14'!$D55) -> 0 | BL55: =SUMIFS('15'!$F:$F,'15'!$N:$N,'14'!BL$6,'15'!$M:$M,'14'!$D55) -> 0 | BM55: =SUMIFS('15'!$F:$F,'15'!$N:$N,'14'!BM$6,'15'!$M:$M,'14'!$D55) -> 0 | BN55: =SUMIFS('15'!$J:$J,'15'!$M:$M,'14'!$D55) -> 0 | BO55: =SUMIFS('15'!$K:$K,'15'!$M:$M,'14'!$D55) -> 0 | CA55: 0
A56: ='0'!$A$4 -> 000770111 | B56: ='0'!$A$2 -> 2020-09-30 | C56: Т14 | BK56: =SUMIFS('15'!$F:$F,'15'!$N:$N,'14'!BK$6,'15'!$M:$M,'14'!$D56) -> 0 | BL56: =SUMIFS('15'!$F:$F,'15'!$N:$N,'14'!BL$6,'15'!$M:$M,'14'!$D56) -> 0 | BM56: =SUMIFS('15'!$F:$F,'15'!$N:$N,'14'!BM$6,'15'!$M:$M,'14'!$D56) -> 0 | BN56: =SUMIFS('15'!$J:$J,'15'!$M:$M,'14'!$D56) -> 0 | BO56: =SUMIFS('15'!$K:$K,'15'!$M:$M,'14'!$D56) -> 0 | CA56: 0
A57: ='0'!$A$4 -> 000770111 | B57: ='0'!$A$2 -> 2020-09-30 | C57: Т14 | BK57: =SUMIFS('15'!$F:$F,'15'!$N:$N,'14'!BK$6,'15'!$M:$M,'14'!$D57) -> 0 | BL57: =SUMIFS('15'!$F:$F,'15'!$N:$N,'14'!BL$6,'15'!$M:$M,'14'!$D57) -> 0 | BM57: =SUMIFS('15'!$F:$F,'15'!$N:$N,'14'!BM$6,'15'!$M:$M,'14'!$D57) -> 0 | BN57: =SUMIFS('15'!$J:$J,'15'!$M:$M,'14'!$D57) -> 0 | BO57: =SUMIFS('15'!$K:$K,'15'!$M:$M,'14'!$D57) -> 0 | CA57: 0
A58: ='0'!$A$4 -> 000770111 | B58: ='0'!$A$2 -> 2020-09-30 | C58: Т14 | BK58: =SUMIFS('15'!$F:$F,'15'!$N:$N,'14'!BK$6,'15'!$M:$M,'14'!$D58) -> 0 | BL58: =SUMIFS('15'!$F:$F,'15'!$N:$N,'14'!BL$6,'15'!$M:$M,'14'!$D58) -> 0 | BM58: =SUMIFS('15'!$F:$F,'15'!$N:$N,'14'!BM$6,'15'!$M:$M,'14'!$D58) -> 0 | BN58: =SUMIFS('15'!$J:$J,'15'!$M:$M,'14'!$D58) -> 0 | BO58: =SUMIFS('15'!$K:$K,'15'!$M:$M,'14'!$D58) -> 0 | CA58: 0
A59: ='0'!$A$4 -> 000770111 | B59: ='0'!$A$2 -> 2020-09-30 | C59: Т14 | BK59: =SUMIFS('15'!$F:$F,'15'!$N:$N,'14'!BK$6,'15'!$M:$M,'14'!$D59) -> 0 | BL59: =SUMIFS('15'!$F:$F,'15'!$N:$N,'14'!BL$6,'15'!$M:$M,'14'!$D59) -> 0 | BM59: =SUMIFS('15'!$F:$F,'15'!$N:$N,'14'!BM$6,'15'!$M:$M,'14'!$D59) -> 0 | BN59: =SUMIFS('15'!$J:$J,'15'!$M:$M,'14'!$D59) -> 0 | BO59: =SUMIFS('15'!$K:$K,'15'!$M:$M,'14'!$D59) -> 0 | CA59: 0
A60: ='0'!$A$4 -> 000770111 | B60: ='0'!$A$2 -> 2020-09-30 | C60: Т14 | BK60: =SUMIFS('15'!$F:$F,'15'!$N:$N,'14'!BK$6,'15'!$M:$M,'14'!$D60) -> 0 | BL60: =SUMIFS('15'!$F:$F,'15'!$N:$N,'14'!BL$6,'15'!$M:$M,'14'!$D60) -> 0 | BM60: =SUMIFS('15'!$F:$F,'15'!$N:$N,'14'!BM$6,'15'!$M:$M,'14'!$D60) -> 0 | BN60: =SUMIFS('15'!$J:$J,'15'!$M:$M,'14'!$D60) -> 0 | BO60: =SUMIFS('15'!$K:$K,'15'!$M:$M,'14'!$D60) -> 0 | CA60: 0
A61: ='0'!$A$4 -> 000770111 | B61: ='0'!$A$2 -> 2020-09-30 | C61: Т14 | BK61: =SUMIFS('15'!$F:$F,'15'!$N:$N,'14'!BK$6,'15'!$M:$M,'14'!$D61) -> 0 | BL61: =SUMIFS('15'!$F:$F,'15'!$N:$N,'14'!BL$6,'15'!$M:$M,'14'!$D61) -> 0 | BM61: =SUMIFS('15'!$F:$F,'15'!$N:$N,'14'!BM$6,'15'!$M:$M,'14'!$D61) -> 0 | BN61: =SUMIFS('15'!$J:$J,'15'!$M:$M,'14'!$D61) -> 0 | BO61: =SUMIFS('15'!$K:$K,'15'!$M:$M,'14'!$D61) -> 0 | CA61: 0
A62: ='0'!$A$4 -> 000770111 | B62: ='0'!$A$2 -> 2020-09-30 | C62: Т14 | BK62: =SUMIFS('15'!$F:$F,'15'!$N:$N,'14'!BK$6,'15'!$M:$M,'14'!$D62) -> 0 | BL62: =SUMIFS('15'!$F:$F,'15'!$N:$N,'14'!BL$6,'15'!$M:$M,'14'!$D62) -> 0 | BM62: =SUMIFS('15'!$F:$F,'15'!$N:$N,'14'!BM$6,'15'!$M:$M,'14'!$D62) -> 0 | BN62: =SUMIFS('15'!$J:$J,'15'!$M:$M,'14'!$D62) -> 0 | BO62: =SUMIFS('15'!$K:$K,'15'!$M:$M,'14'!$D62) -> 0 | CA62: 0
A63: ='0'!$A$4 -> 000770111 | B63: ='0'!$A$2 -> 2020-09-30 | C63: Т14 | BK63: =SUMIFS('15'!$F:$F,'15'!$N:$N,'14'!BK$6,'15'!$M:$M,'14'!$D63) -> 0 | BL63: =SUMIFS('15'!$F:$F,'15'!$N:$N,'14'!BL$6,'15'!$M:$M,'14'!$D63) -> 0 | BM63: =SUMIFS('15'!$F:$F,'15'!$N:$N,'14'!BM$6,'15'!$M:$M,'14'!$D63) -> 0 | BN63: =SUMIFS('15'!$J:$J,'15'!$M:$M,'14'!$D63) -> 0 | BO63: =SUMIFS('15'!$K:$K,'15'!$M:$M,'14'!$D63) -> 0 | CA63: 0
A64: ='0'!$A$4 -> 000770111 | B64: ='0'!$A$2 -> 2020-09-30 | C64: Т14 | BK64: =SUMIFS('15'!$F:$F,'15'!$N:$N,'14'!BK$6,'15'!$M:$M,'14'!$D64) -> 0 | BL64: =SUMIFS('15'!$F:$F,'15'!$N:$N,'14'!BL$6,'15'!$M:$M,'14'!$D64) -> 0 | BM64: =SUMIFS('15'!$F:$F,'15'!$N:$N,'14'!BM$6,'15'!$M:$M,'14'!$D64) -> 0 | BN64: =SUMIFS('15'!$J:$J,'15'!$M:$M,'14'!$D64) -> 0 | BO64: =SUMIFS('15'!$K:$K,'15'!$M:$M,'14'!$D64) -> 0 | CA64: 0
A65: ='0'!$A$4 -> 000770111 | B65: ='0'!$A$2 -> 2020-09-30 | C65: Т14 | BK65: =SUMIFS('15'!$F:$F,'15'!$N:$N,'14'!BK$6,'15'!$M:$M,'14'!$D65) -> 0 | BL65: =SUMIFS('15'!$F:$F,'15'!$N:$N,'14'!BL$6,'15'!$M:$M,'14'!$D65) -> 0 | BM65: =SUMIFS('15'!$F:$F,'15'!$N:$N,'14'!BM$6,'15'!$M:$M,'14'!$D65) -> 0 | BN65: =SUMIFS('15'!$J:$J,'15'!$M:$M,'14'!$D65) -> 0 | BO65: =SUMIFS('15'!$K:$K,'15'!$M:$M,'14'!$D65) -> 0 | CA65: 0
A66: ='0'!$A$4 -> 000770111 | B66: ='0'!$A$2 -> 2020-09-30 | C66: Т14 | BK66: =SUMIFS('15'!$F:$F,'15'!$N:$N,'14'!BK$6,'15'!$M:$M,'14'!$D66) -> 0 | BL66: =SUMIFS('15'!$F:$F,'15'!$N:$N,'14'!BL$6,'15'!$M:$M,'14'!$D66) -> 0 | BM66: =SUMIFS('15'!$F:$F,'15'!$N:$N,'14'!BM$6,'15'!$M:$M,'14'!$D66) -> 0 | BN66: =SUMIFS('15'!$J:$J,'15'!$M:$M,'14'!$D66) -> 0 | BO66: =SUMIFS('15'!$K:$K,'15'!$M:$M,'14'!$D66) -> 0 | CA66: 0
A67: ='0'!$A$4 -> 000770111 | B67: ='0'!$A$2 -> 2020-09-30 | C67: Т14 | BK67: =SUMIFS('15'!$F:$F,'15'!$N:$N,'14'!BK$6,'15'!$M:$M,'14'!$D67) -> 0 | BL67: =SUMIFS('15'!$F:$F,'15'!$N:$N,'14'!BL$6,'15'!$M:$M,'14'!$D67) -> 0 | BM67: =SUMIFS('15'!$F:$F,'15'!$N:$N,'14'!BM$6,'15'!$M:$M,'14'!$D67) -> 0 | BN67: =SUMIFS('15'!$J:$J,'15'!$M:$M,'14'!$D67) -> 0 | BO67: =SUMIFS('15'!$K:$K,'15'!$M:$M,'14'!$D67) -> 0 | CA67: 0
A68: ='0'!$A$4 -> 000770111 | B68: ='0'!$A$2 -> 2020-09-30 | C68: Т14 | BK68: =SUMIFS('15'!$F:$F,'15'!$N:$N,'14'!BK$6,'15'!$M:$M,'14'!$D68) -> 0 | BL68: =SUMIFS('15'!$F:$F,'15'!$N:$N,'14'!BL$6,'15'!$M:$M,'14'!$D68) -> 0 | BM68: =SUMIFS('15'!$F:$F,'15'!$N:$N,'14'!BM$6,'15'!$M:$M,'14'!$D68) -> 0 | BN68: =SUMIFS('15'!$J:$J,'15'!$M:$M,'14'!$D68) -> 0 | BO68: =SUMIFS('15'!$K:$K,'15'!$M:$M,'14'!$D68) -> 0 | CA68: 0
A69: ='0'!$A$4 -> 000770111 | B69: ='0'!$A$2 -> 2020-09-30 | C69: Т14 | BK69: =SUMIFS('15'!$F:$F,'15'!$N:$N,'14'!BK$6,'15'!$M:$M,'14'!$D69) -> 0 | BL69: =SUMIFS('15'!$F:$F,'15'!$N:$N,'14'!BL$6,'15'!$M:$M,'14'!$D69) -> 0 | BM69: =SUMIFS('15'!$F:$F,'15'!$N:$N,'14'!BM$6,'15'!$M:$M,'14'!$D69) -> 0 | BN69: =SUMIFS('15'!$J:$J,'15'!$M:$M,'14'!$D69) -> 0 | BO69: =SUMIFS('15'!$K:$K,'15'!$M:$M,'14'!$D69) -> 0 | CA69: 0
A70: ='0'!$A$4 -> 000770111 | B70: ='0'!$A$2 -> 2020-09-30 | C70: Т14 | BK70: =SUMIFS('15'!$F:$F,'15'!$N:$N,'14'!BK$6,'15'!$M:$M,'14'!$D70) -> 0 | BL70: =SUMIFS('15'!$F:$F,'15'!$N:$N,'14'!BL$6,'15'!$M:$M,'14'!$D70) -> 0 | BM70: =SUMIFS('15'!$F:$F,'15'!$N:$N,'14'!BM$6,'15'!$M:$M,'14'!$D70) -> 0 | BN70: =SUMIFS('15'!$J:$J,'15'!$M:$M,'14'!$D70) -> 0 | BO70: =SUMIFS('15'!$K:$K,'15'!$M:$M,'14'!$D70) -> 0 | CA70: 0
A71: ='0'!$A$4 -> 000770111 | B71: ='0'!$A$2 -> 2020-09-30 | C71: Т14 | BK71: =SUMIFS('15'!$F:$F,'15'!$N:$N,'14'!BK$6,'15'!$M:$M,'14'!$D71) -> 0 | BL71: =SUMIFS('15'!$F:$F,'15'!$N:$N,'14'!BL$6,'15'!$M:$M,'14'!$D71) -> 0 | BM71: =SUMIFS('15'!$F:$F,'15'!$N:$N,'14'!BM$6,'15'!$M:$M,'14'!$D71) -> 0 | BN71: =SUMIFS('15'!$J:$J,'15'!$M:$M,'14'!$D71) -> 0 | BO71: =SUMIFS('15'!$K:$K,'15'!$M:$M,'14'!$D71) -> 0 | CA71: 0
A72: ='0'!$A$4 -> 000770111 | B72: ='0'!$A$2 -> 2020-09-30 | C72: Т14 | BK72: =SUMIFS('15'!$F:$F,'15'!$N:$N,'14'!BK$6,'15'!$M:$M,'14'!$D72) -> 0 | BL72: =SUMIFS('15'!$F:$F,'15'!$N:$N,'14'!BL$6,'15'!$M:$M,'14'!$D72) -> 0 | BM72: =SUMIFS('15'!$F:$F,'15'!$N:$N,'14'!BM$6,'15'!$M:$M,'14'!$D72) -> 0 | BN72: =SUMIFS('15'!$J:$J,'15'!$M:$M,'14'!$D72) -> 0 | BO72: =SUMIFS('15'!$K:$K,'15'!$M:$M,'14'!$D72) -> 0 | CA72: 0
A73: ='0'!$A$4 -> 000770111 | B73: ='0'!$A$2 -> 2020-09-30 | C73: Т14 | BK73: =SUMIFS('15'!$F:$F,'15'!$N:$N,'14'!BK$6,'15'!$M:$M,'14'!$D73) -> 0 | BL73: =SUMIFS('15'!$F:$F,'15'!$N:$N,'14'!BL$6,'15'!$M:$M,'14'!$D73) -> 0 | BM73: =SUMIFS('15'!$F:$F,'15'!$N:$N,'14'!BM$6,'15'!$M:$M,'14'!$D73) -> 0 | BN73: =SUMIFS('15'!$J:$J,'15'!$M:$M,'14'!$D73) -> 0 | BO73: =SUMIFS('15'!$K:$K,'15'!$M:$M,'14'!$D73) -> 0 | CA73: 0
A74: ='0'!$A$4 -> 000770111 | B74: ='0'!$A$2 -> 2020-09-30 | C74: Т14 | BK74: =SUMIFS('15'!$F:$F,'15'!$N:$N,'14'!BK$6,'15'!$M:$M,'14'!$D74) -> 0 | BL74: =SUMIFS('15'!$F:$F,'15'!$N:$N,'14'!BL$6,'15'!$M:$M,'14'!$D74) -> 0 | BM74: =SUMIFS('15'!$F:$F,'15'!$N:$N,'14'!BM$6,'15'!$M:$M,'14'!$D74) -> 0 | BN74: =SUMIFS('15'!$J:$J,'15'!$M:$M,'14'!$D74) -> 0 | BO74: =SUMIFS('15'!$K:$K,'15'!$M:$M,'14'!$D74) -> 0 | CA74: 0
A75: ='0'!$A$4 -> 000770111 | B75: ='0'!$A$2 -> 2020-09-30 | C75: Т14 | BK75: =SUMIFS('15'!$F:$F,'15'!$N:$N,'14'!BK$6,'15'!$M:$M,'14'!$D75) -> 0 | BL75: =SUMIFS('15'!$F:$F,'15'!$N:$N,'14'!BL$6,'15'!$M:$M,'14'!$D75) -> 0 | BM75: =SUMIFS('15'!$F:$F,'15'!$N:$N,'14'!BM$6,'15'!$M:$M,'14'!$D75) -> 0 | BN75: =SUMIFS('15'!$J:$J,'15'!$M:$M,'14'!$D75) -> 0 | BO75: =SUMIFS('15'!$K:$K,'15'!$M:$M,'14'!$D75) -> 0 | CA75: =IF(OR(COUNTBLANK(D75:H75)=5,COUNTBLANK(D75:H75)=0),0,1)+IF(D75<>"",COUNTIFS($D$10:$D$302,D75)-1,0) -> 0
A76: ='0'!$A$4 -> 000770111 | B76: ='0'!$A$2 -> 2020-09-30 | C76: Т14 | BK76: =SUMIFS('15'!$F:$F,'15'!$N:$N,'14'!BK$6,'15'!$M:$M,'14'!$D76) -> 0 | BL76: =SUMIFS('15'!$F:$F,'15'!$N:$N,'14'!BL$6,'15'!$M:$M,'14'!$D76) -> 0 | BM76: =SUMIFS('15'!$F:$F,'15'!$N:$N,'14'!BM$6,'15'!$M:$M,'14'!$D76) -> 0 | BN76: =SUMIFS('15'!$J:$J,'15'!$M:$M,'14'!$D76) -> 0 | BO76: =SUMIFS('15'!$K:$K,'15'!$M:$M,'14'!$D76) -> 0 | CA76: 0
A77: ='0'!$A$4 -> 000770111 | B77: ='0'!$A$2 -> 2020-09-30 | C77: Т14 | BK77: =SUMIFS('15'!$F:$F,'15'!$N:$N,'14'!BK$6,'15'!$M:$M,'14'!$D77) -> 0 | BL77: =SUMIFS('15'!$F:$F,'15'!$N:$N,'14'!BL$6,'15'!$M:$M,'14'!$D77) -> 0 | BM77: =SUMIFS('15'!$F:$F,'15'!$N:$N,'14'!BM$6,'15'!$M:$M,'14'!$D77) -> 0 | BN77: =SUMIFS('15'!$J:$J,'15'!$M:$M,'14'!$D77) -> 0 | BO77: =SUMIFS('15'!$K:$K,'15'!$M:$M,'14'!$D77) -> 0 | CA77: 0
A78: ='0'!$A$4 -> 000770111 | B78: ='0'!$A$2 -> 2020-09-30 | C78: Т14 | BK78: =SUMIFS('15'!$F:$F,'15'!$N:$N,'14'!BK$6,'15'!$M:$M,'14'!$D78) -> 0 | BL78: =SUMIFS('15'!$F:$F,'15'!$N:$N,'14'!BL$6,'15'!$M:$M,'14'!$D78) -> 0 | BM78: =SUMIFS('15'!$F:$F,'15'!$N:$N,'14'!BM$6,'15'!$M:$M,'14'!$D78) -> 0 | BN78: =SUMIFS('15'!$J:$J,'15'!$M:$M,'14'!$D78) -> 0 | BO78: =SUMIFS('15'!$K:$K,'15'!$M:$M,'14'!$D78) -> 0 | CA78: 0
A79: ='0'!$A$4 -> 000770111 | B79: ='0'!$A$2 -> 2020-09-30 | C79: Т14 | BK79: =SUMIFS('15'!$F:$F,'15'!$N:$N,'14'!BK$6,'15'!$M:$M,'14'!$D79) -> 0 | BL79: =SUMIFS('15'!$F:$F,'15'!$N:$N,'14'!BL$6,'15'!$M:$M,'14'!$D79) -> 0 | BM79: =SUMIFS('15'!$F:$F,'15'!$N:$N,'14'!BM$6,'15'!$M:$M,'14'!$D79) -> 0 | BN79: =SUMIFS('15'!$J:$J,'15'!$M:$M,'14'!$D79) -> 0 | BO79: =SUMIFS('15'!$K:$K,'15'!$M:$M,'14'!$D79) -> 0 | CA79: 0
A80: ='0'!$A$4 -> 000770111 | B80: ='0'!$A$2 -> 2020-09-30 | C80: Т14 | BK80: =SUMIFS('15'!$F:$F,'15'!$N:$N,'14'!BK$6,'15'!$M:$M,'14'!$D80) -> 0 | BL80: =SUMIFS('15'!$F:$F,'15'!$N:$N,'14'!BL$6,'15'!$M:$M,'14'!$D80) -> 0 | BM80: =SUMIFS('15'!$F:$F,'15'!$N:$N,'14'!BM$6,'15'!$M:$M,'14'!$D80) -> 0 | BN80: =SUMIFS('15'!$J:$J,'15'!$M:$M,'14'!$D80) -> 0 | BO80: =SUMIFS('15'!$K:$K,'15'!$M:$M,'14'!$D80) -> 0 | CA80: 0
A81: ='0'!$A$4 -> 000770111 | B81: ='0'!$A$2 -> 2020-09-30 | C81: Т14 | BK81: =SUMIFS('15'!$F:$F,'15'!$N:$N,'14'!BK$6,'15'!$M:$M,'14'!$D81) -> 0 | BL81: =SUMIFS('15'!$F:$F,'15'!$N:$N,'14'!BL$6,'15'!$M:$M,'14'!$D81) -> 0 | BM81: =SUMIFS('15'!$F:$F,'15'!$N:$N,'14'!BM$6,'15'!$M:$M,'14'!$D81) -> 0 | BN81: =SUMIFS('15'!$J:$J,'15'!$M:$M,'14'!$D81) -> 0 | BO81: =SUMIFS('15'!$K:$K,'15'!$M:$M,'14'!$D81) -> 0 | CA81: 0
A82: ='0'!$A$4 -> 000770111 | B82: ='0'!$A$2 -> 2020-09-30 | C82: Т14 | BK82: =SUMIFS('15'!$F:$F,'15'!$N:$N,'14'!BK$6,'15'!$M:$M,'14'!$D82) -> 0 | BL82: =SUMIFS('15'!$F:$F,'15'!$N:$N,'14'!BL$6,'15'!$M:$M,'14'!$D82) -> 0 | BM82: =SUMIFS('15'!$F:$F,'15'!$N:$N,'14'!BM$6,'15'!$M:$M,'14'!$D82) -> 0 | BN82: =SUMIFS('15'!$J:$J,'15'!$M:$M,'14'!$D82) -> 0 | BO82: =SUMIFS('15'!$K:$K,'15'!$M:$M,'14'!$D82) -> 0 | CA82: 0
A83: ='0'!$A$4 -> 000770111 | B83: ='0'!$A$2 -> 2020-09-30 | C83: Т14 | BK83: =SUMIFS('15'!$F:$F,'15'!$N:$N,'14'!BK$6,'15'!$M:$M,'14'!$D83) -> 0 | BL83: =SUMIFS('15'!$F:$F,'15'!$N:$N,'14'!BL$6,'15'!$M:$M,'14'!$D83) -> 0 | BM83: =SUMIFS('15'!$F:$F,'15'!$N:$N,'14'!BM$6,'15'!$M:$M,'14'!$D83) -> 0 | BN83: =SUMIFS('15'!$J:$J,'15'!$M:$M,'14'!$D83) -> 0 | BO83: =SUMIFS('15'!$K:$K,'15'!$M:$M,'14'!$D83) -> 0 | CA83: 0
A84: ='0'!$A$4 -> 000770111 | B84: ='0'!$A$2 -> 2020-09-30 | C84: Т14 | BK84: =SUMIFS('15'!$F:$F,'15'!$N:$N,'14'!BK$6,'15'!$M:$M,'14'!$D84) -> 0 | BL84: =SUMIFS('15'!$F:$F,'15'!$N:$N,'14'!BL$6,'15'!$M:$M,'14'!$D84) -> 0 | BM84: =SUMIFS('15'!$F:$F,'15'!$N:$N,'14'!BM$6,'15'!$M:$M,'14'!$D84) -> 0 | BN84: =SUMIFS('15'!$J:$J,'15'!$M:$M,'14'!$D84) -> 0 | BO84: =SUMIFS('15'!$K:$K,'15'!$M:$M,'14'!$D84) -> 0 | CA84: 0
A85: ='0'!$A$4 -> 000770111 | B85: ='0'!$A$2 -> 2020-09-30 | C85: Т14 | BK85: =SUMIFS('15'!$F:$F,'15'!$N:$N,'14'!BK$6,'15'!$M:$M,'14'!$D85) -> 0 | BL85: =SUMIFS('15'!$F:$F,'15'!$N:$N,'14'!BL$6,'15'!$M:$M,'14'!$D85) -> 0 | BM85: =SUMIFS('15'!$F:$F,'15'!$N:$N,'14'!BM$6,'15'!$M:$M,'14'!$D85) -> 0 | BN85: =SUMIFS('15'!$J:$J,'15'!$M:$M,'14'!$D85) -> 0 | BO85: =SUMIFS('15'!$K:$K,'15'!$M:$M,'14'!$D85) -> 0 | CA85: 0
A86: ='0'!$A$4 -> 000770111 | B86: ='0'!$A$2 -> 2020-09-30 | C86: Т14 | BK86: =SUMIFS('15'!$F:$F,'15'!$N:$N,'14'!BK$6,'15'!$M:$M,'14'!$D86) -> 0 | BL86: =SUMIFS('15'!$F:$F,'15'!$N:$N,'14'!BL$6,'15'!$M:$M,'14'!$D86) -> 0 | BM86: =SUMIFS('15'!$F:$F,'15'!$N:$N,'14'!BM$6,'15'!$M:$M,'14'!$D86) -> 0 | BN86: =SUMIFS('15'!$J:$J,'15'!$M:$M,'14'!$D86) -> 0 | BO86: =SUMIFS('15'!$K:$K,'15'!$M:$M,'14'!$D86) -> 0 | CA86: 0
A87: ='0'!$A$4 -> 000770111 | B87: ='0'!$A$2 -> 2020-09-30 | C87: Т14 | BK87: =SUMIFS('15'!$F:$F,'15'!$N:$N,'14'!BK$6,'15'!$M:$M,'14'!$D87) -> 0 | BL87: =SUMIFS('15'!$F:$F,'15'!$N:$N,'14'!BL$6,'15'!$M:$M,'14'!$D87) -> 0 | BM87: =SUMIFS('15'!$F:$F,'15'!$N:$N,'14'!BM$6,'15'!$M:$M,'14'!$D87) -> 0 | BN87: =SUMIFS('15'!$J:$J,'15'!$M:$M,'14'!$D87) -> 0 | BO87: =SUMIFS('15'!$K:$K,'15'!$M:$M,'14'!$D87) -> 0 | CA87: 0
A88: ='0'!$A$4 -> 000770111 | B88: ='0'!$A$2 -> 2020-09-30 | C88: Т14 | BK88: =SUMIFS('15'!$F:$F,'15'!$N:$N,'14'!BK$6,'15'!$M:$M,'14'!$D88) -> 0 | BL88: =SUMIFS('15'!$F:$F,'15'!$N:$N,'14'!BL$6,'15'!$M:$M,'14'!$D88) -> 0 | BM88: =SUMIFS('15'!$F:$F,'15'!$N:$N,'14'!BM$6,'15'!$M:$M,'14'!$D88) -> 0 | BN88: =SUMIFS('15'!$J:$J,'15'!$M:$M,'14'!$D88) -> 0 | BO88: =SUMIFS('15'!$K:$K,'15'!$M:$M,'14'!$D88) -> 0 | CA88: 0
A89: ='0'!$A$4 -> 000770111 | B89: ='0'!$A$2 -> 2020-09-30 | C89: Т14 | BK89: =SUMIFS('15'!$F:$F,'15'!$N:$N,'14'!BK$6,'15'!$M:$M,'14'!$D89) -> 0 | BL89: =SUMIFS('15'!$F:$F,'15'!$N:$N,'14'!BL$6,'15'!$M:$M,'14'!$D89) -> 0 | BM89: =SUMIFS('15'!$F:$F,'15'!$N:$N,'14'!BM$6,'15'!$M:$M,'14'!$D89) -> 0 | BN89: =SUMIFS('15'!$J:$J,'15'!$M:$M,'14'!$D89) -> 0 | BO89: =SUMIFS('15'!$K:$K,'15'!$M:$M,'14'!$D89) -> 0 | CA89: 0
A90: ='0'!$A$4 -> 000770111 | B90: ='0'!$A$2 -> 2020-09-30 | C90: Т14 | BK90: =SUMIFS('15'!$F:$F,'15'!$N:$N,'14'!BK$6,'15'!$M:$M,'14'!$D90) -> 0 | BL90: =SUMIFS('15'!$F:$F,'15'!$N:$N,'14'!BL$6,'15'!$M:$M,'14'!$D90) -> 0 | BM90: =SUMIFS('15'!$F:$F,'15'!$N:$N,'14'!BM$6,'15'!$M:$M,'14'!$D90) -> 0 | BN90: =SUMIFS('15'!$J:$J,'15'!$M:$M,'14'!$D90) -> 0 | BO90: =SUMIFS('15'!$K:$K,'15'!$M:$M,'14'!$D90) -> 0 | CA90: 0
A91: ='0'!$A$4 -> 000770111 | B91: ='0'!$A$2 -> 2020-09-30 | C91: Т14 | BK91: =SUMIFS('15'!$F:$F,'15'!$N:$N,'14'!BK$6,'15'!$M:$M,'14'!$D91) -> 0 | BL91: =SUMIFS('15'!$F:$F,'15'!$N:$N,'14'!BL$6,'15'!$M:$M,'14'!$D91) -> 0 | BM91: =SUMIFS('15'!$F:$F,'15'!$N:$N,'14'!BM$6,'15'!$M:$M,'14'!$D91) -> 0 | BN91: =SUMIFS('15'!$J:$J,'15'!$M:$M,'14'!$D91) -> 0 | BO91: =SUMIFS('15'!$K:$K,'15'!$M:$M,'14'!$D91) -> 0 | CA91: 0
A92: ='0'!$A$4 -> 000770111 | B92: ='0'!$A$2 -> 2020-09-30 | C92: Т14 | BK92: =SUMIFS('15'!$F:$F,'15'!$N:$N,'14'!BK$6,'15'!$M:$M,'14'!$D92) -> 0 | BL92: =SUMIFS('15'!$F:$F,'15'!$N:$N,'14'!BL$6,'15'!$M:$M,'14'!$D92) -> 0 | BM92: =SUMIFS('15'!$F:$F,'15'!$N:$N,'14'!BM$6,'15'!$M:$M,'14'!$D92) -> 0 | BN92: =SUMIFS('15'!$J:$J,'15'!$M:$M,'14'!$D92) -> 0 | BO92: =SUMIFS('15'!$K:$K,'15'!$M:$M,'14'!$D92) -> 0 | CA92: 0
A93: ='0'!$A$4 -> 000770111 | B93: ='0'!$A$2 -> 2020-09-30 | C93: Т14 | BK93: =SUMIFS('15'!$F:$F,'15'!$N:$N,'14'!BK$6,'15'!$M:$M,'14'!$D93) -> 0 | BL93: =SUMIFS('15'!$F:$F,'15'!$N:$N,'14'!BL$6,'15'!$M:$M,'14'!$D93) -> 0 | BM93: =SUMIFS('15'!$F:$F,'15'!$N:$N,'14'!BM$6,'15'!$M:$M,'14'!$D93) -> 0 | BN93: =SUMIFS('15'!$J:$J,'15'!$M:$M,'14'!$D93) -> 0 | BO93: =SUMIFS('15'!$K:$K,'15'!$M:$M,'14'!$D93) -> 0 | CA93: 0
A94: ='0'!$A$4 -> 000770111 | B94: ='0'!$A$2 -> 2020-09-30 | C94: Т14 | BK94: =SUMIFS('15'!$F:$F,'15'!$N:$N,'14'!BK$6,'15'!$M:$M,'14'!$D94) -> 0 | BL94: =SUMIFS('15'!$F:$F,'15'!$N:$N,'14'!BL$6,'15'!$M:$M,'14'!$D94) -> 0 | BM94: =SUMIFS('15'!$F:$F,'15'!$N:$N,'14'!BM$6,'15'!$M:$M,'14'!$D94) -> 0 | BN94: =SUMIFS('15'!$J:$J,'15'!$M:$M,'14'!$D94) -> 0 | BO94: =SUMIFS('15'!$K:$K,'15'!$M:$M,'14'!$D94) -> 0 | CA94: 0
A95: ='0'!$A$4 -> 000770111 | B95: ='0'!$A$2 -> 2020-09-30 | C95: Т14 | BK95: =SUMIFS('15'!$F:$F,'15'!$N:$N,'14'!BK$6,'15'!$M:$M,'14'!$D95) -> 0 | BL95: =SUMIFS('15'!$F:$F,'15'!$N:$N,'14'!BL$6,'15'!$M:$M,'14'!$D95) -> 0 | BM95: =SUMIFS('15'!$F:$F,'15'!$N:$N,'14'!BM$6,'15'!$M:$M,'14'!$D95) -> 0 | BN95: =SUMIFS('15'!$J:$J,'15'!$M:$M,'14'!$D95) -> 0 | BO95: =SUMIFS('15'!$K:$K,'15'!$M:$M,'14'!$D95) -> 0 | CA95: 0
A96: ='0'!$A$4 -> 000770111 | B96: ='0'!$A$2 -> 2020-09-30 | C96: Т14 | BK96: =SUMIFS('15'!$F:$F,'15'!$N:$N,'14'!BK$6,'15'!$M:$M,'14'!$D96) -> 0 | BL96: =SUMIFS('15'!$F:$F,'15'!$N:$N,'14'!BL$6,'15'!$M:$M,'14'!$D96) -> 0 | BM96: =SUMIFS('15'!$F:$F,'15'!$N:$N,'14'!BM$6,'15'!$M:$M,'14'!$D96) -> 0 | BN96: =SUMIFS('15'!$J:$J,'15'!$M:$M,'14'!$D96) -> 0 | BO96: =SUMIFS('15'!$K:$K,'15'!$M:$M,'14'!$D96) -> 0 | CA96: 0
A97: ='0'!$A$4 -> 000770111 | B97: ='0'!$A$2 -> 2020-09-30 | C97: Т14 | BK97: =SUMIFS('15'!$F:$F,'15'!$N:$N,'14'!BK$6,'15'!$M:$M,'14'!$D97) -> 0 | BL97: =SUMIFS('15'!$F:$F,'15'!$N:$N,'14'!BL$6,'15'!$M:$M,'14'!$D97) -> 0 | BM97: =SUMIFS('15'!$F:$F,'15'!$N:$N,'14'!BM$6,'15'!$M:$M,'14'!$D97) -> 0 | BN97: =SUMIFS('15'!$J:$J,'15'!$M:$M,'14'!$D97) -> 0 | BO97: =SUMIFS('15'!$K:$K,'15'!$M:$M,'14'!$D97) -> 0 | CA97: 0
A98: ='0'!$A$4 -> 000770111 | B98: ='0'!$A$2 -> 2020-09-30 | C98: Т14 | BK98: =SUMIFS('15'!$F:$F,'15'!$N:$N,'14'!BK$6,'15'!$M:$M,'14'!$D98) -> 0 | BL98: =SUMIFS('15'!$F:$F,'15'!$N:$N,'14'!BL$6,'15'!$M:$M,'14'!$D98) -> 0 | BM98: =SUMIFS('15'!$F:$F,'15'!$N:$N,'14'!BM$6,'15'!$M:$M,'14'!$D98) -> 0 | BN98: =SUMIFS('15'!$J:$J,'15'!$M:$M,'14'!$D98) -> 0 | BO98: =SUMIFS('15'!$K:$K,'15'!$M:$M,'14'!$D98) -> 0 | CA98: 0
A99: ='0'!$A$4 -> 000770111 | B99: ='0'!$A$2 -> 2020-09-30 | C99: Т14 | BK99: =SUMIFS('15'!$F:$F,'15'!$N:$N,'14'!BK$6,'15'!$M:$M,'14'!$D99) -> 0 | BL99: =SUMIFS('15'!$F:$F,'15'!$N:$N,'14'!BL$6,'15'!$M:$M,'14'!$D99) -> 0 | BM99: =SUMIFS('15'!$F:$F,'15'!$N:$N,'14'!BM$6,'15'!$M:$M,'14'!$D99) -> 0 | BN99: =SUMIFS('15'!$J:$J,'15'!$M:$M,'14'!$D99) -> 0 | BO99: =SUMIFS('15'!$K:$K,'15'!$M:$M,'14'!$D99) -> 0 | CA99: 0
A100: ='0'!$A$4 -> 000770111 | B100: ='0'!$A$2 -> 2020-09-30 | C100: Т14 | BK100: =SUMIFS('15'!$F:$F,'15'!$N:$N,'14'!BK$6,'15'!$M:$M,'14'!$D100) -> 0 | BL100: =SUMIFS('15'!$F:$F,'15'!$N:$N,'14'!BL$6,'15'!$M:$M,'14'!$D100) -> 0 | BM100: =SUMIFS('15'!$F:$F,'15'!$N:$N,'14'!BM$6,'15'!$M:$M,'14'!$D100) -> 0 | BN100: =SUMIFS('15'!$J:$J,'15'!$M:$M,'14'!$D100) -> 0 | BO100: =SUMIFS('15'!$K:$K,'15'!$M:$M,'14'!$D100) -> 0 | CA100: 0
A101: ='0'!$A$4 -> 000770111 | B101: ='0'!$A$2 -> 2020-09-30 | C101: Т14 | BK101: =SUMIFS('15'!$F:$F,'15'!$N:$N,'14'!BK$6,'15'!$M:$M,'14'!$D101) -> 0 | BL101: =SUMIFS('15'!$F:$F,'15'!$N:$N,'14'!BL$6,'15'!$M:$M,'14'!$D101) -> 0 | BM101: =SUMIFS('15'!$F:$F,'15'!$N:$N,'14'!BM$6,'15'!$M:$M,'14'!$D101) -> 0 | BN101: =SUMIFS('15'!$J:$J,'15'!$M:$M,'14'!$D101) -> 0 | BO101: =SUMIFS('15'!$K:$K,'15'!$M:$M,'14'!$D101) -> 0 | CA101: 0
A102: ='0'!$A$4 -> 000770111 | B102: ='0'!$A$2 -> 2020-09-30 | C102: Т14 | BK102: =SUMIFS('15'!$F:$F,'15'!$N:$N,'14'!BK$6,'15'!$M:$M,'14'!$D102) -> 0 | BL102: =SUMIFS('15'!$F:$F,'15'!$N:$N,'14'!BL$6,'15'!$M:$M,'14'!$D102) -> 0 | BM102: =SUMIFS('15'!$F:$F,'15'!$N:$N,'14'!BM$6,'15'!$M:$M,'14'!$D102) -> 0 | BN102: =SUMIFS('15'!$J:$J,'15'!$M:$M,'14'!$D102) -> 0 | BO102: =SUMIFS('15'!$K:$K,'15'!$M:$M,'14'!$D102) -> 0 | CA102: 0
A103: ='0'!$A$4 -> 000770111 | B103: ='0'!$A$2 -> 2020-09-30 | C103: Т14 | BK103: =SUMIFS('15'!$F:$F,'15'!$N:$N,'14'!BK$6,'15'!$M:$M,'14'!$D103) -> 0 | BL103: =SUMIFS('15'!$F:$F,'15'!$N:$N,'14'!BL$6,'15'!$M:$M,'14'!$D103) -> 0 | BM103: =SUMIFS('15'!$F:$F,'15'!$N:$N,'14'!BM$6,'15'!$M:$M,'14'!$D103) -> 0 | BN103: =SUMIFS('15'!$J:$J,'15'!$M:$M,'14'!$D103) -> 0 | BO103: =SUMIFS('15'!$K:$K,'15'!$M:$M,'14'!$D103) -> 0 | CA103: 0
A104: ='0'!$A$4 -> 000770111 | B104: ='0'!$A$2 -> 2020-09-30 | C104: Т14 | BK104: =SUMIFS('15'!$F:$F,'15'!$N:$N,'14'!BK$6,'15'!$M:$M,'14'!$D104) -> 0 | BL104: =SUMIFS('15'!$F:$F,'15'!$N:$N,'14'!BL$6,'15'!$M:$M,'14'!$D104) -> 0 | BM104: =SUMIFS('15'!$F:$F,'15'!$N:$N,'14'!BM$6,'15'!$M:$M,'14'!$D104) -> 0 | BN104: =SUMIFS('15'!$J:$J,'15'!$M:$M,'14'!$D104) -> 0 | BO104: =SUMIFS('15'!$K:$K,'15'!$M:$M,'14'!$D104) -> 0 | CA104: 0
A105: ='0'!$A$4 -> 000770111 | B105: ='0'!$A$2 -> 2020-09-30 | C105: Т14 | BK105: =SUMIFS('15'!$F:$F,'15'!$N:$N,'14'!BK$6,'15'!$M:$M,'14'!$D105) -> 0 | BL105: =SUMIFS('15'!$F:$F,'15'!$N:$N,'14'!BL$6,'15'!$M:$M,'14'!$D105) -> 0 | BM105: =SUMIFS('15'!$F:$F,'15'!$N:$N,'14'!BM$6,'15'!$M:$M,'14'!$D105) -> 0 | BN105: =SUMIFS('15'!$J:$J,'15'!$M:$M,'14'!$D105) -> 0 | BO105: =SUMIFS('15'!$K:$K,'15'!$M:$M,'14'!$D105) -> 0 | CA105: 0
A106: ='0'!$A$4 -> 000770111 | B106: ='0'!$A$2 -> 2020-09-30 | C106: Т14 | BK106: =SUMIFS('15'!$F:$F,'15'!$N:$N,'14'!BK$6,'15'!$M:$M,'14'!$D106) -> 0 | BL106: =SUMIFS('15'!$F:$F,'15'!$N:$N,'14'!BL$6,'15'!$M:$M,'14'!$D106) -> 0 | BM106: =SUMIFS('15'!$F:$F,'15'!$N:$N,'14'!BM$6,'15'!$M:$M,'14'!$D106) -> 0 | BN106: =SUMIFS('15'!$J:$J,'15'!$M:$M,'14'!$D106) -> 0 | BO106: =SUMIFS('15'!$K:$K,'15'!$M:$M,'14'!$D106) -> 0 | CA106: 0
A107: ='0'!$A$4 -> 000770111 | B107: ='0'!$A$2 -> 2020-09-30 | C107: Т14 | BK107: =SUMIFS('15'!$F:$F,'15'!$N:$N,'14'!BK$6,'15'!$M:$M,'14'!$D107) -> 0 | BL107: =SUMIFS('15'!$F:$F,'15'!$N:$N,'14'!BL$6,'15'!$M:$M,'14'!$D107) -> 0 | BM107: =SUMIFS('15'!$F:$F,'15'!$N:$N,'14'!BM$6,'15'!$M:$M,'14'!$D107) -> 0 | BN107: =SUMIFS('15'!$J:$J,'15'!$M:$M,'14'!$D107) -> 0 | BO107: =SUMIFS('15'!$K:$K,'15'!$M:$M,'14'!$D107) -> 0 | CA107: 0
A108: ='0'!$A$4 -> 000770111 | B108: ='0'!$A$2 -> 2020-09-30 | C108: Т14 | BK108: =SUMIFS('15'!$F:$F,'15'!$N:$N,'14'!BK$6,'15'!$M:$M,'14'!$D108) -> 0 | BL108: =SUMIFS('15'!$F:$F,'15'!$N:$N,'14'!BL$6,'15'!$M:$M,'14'!$D108) -> 0 | BM108: =SUMIFS('15'!$F:$F,'15'!$N:$N,'14'!BM$6,'15'!$M:$M,'14'!$D108) -> 0 | BN108: =SUMIFS('15'!$J:$J,'15'!$M:$M,'14'!$D108) -> 0 | BO108: =SUMIFS('15'!$K:$K,'15'!$M:$M,'14'!$D108) -> 0 | CA108: 0
A109: ='0'!$A$4 -> 000770111 | B109: ='0'!$A$2 -> 2020-09-30 | C109: Т14 | BK109: =SUMIFS('15'!$F:$F,'15'!$N:$N,'14'!BK$6,'15'!$M:$M,'14'!$D109) -> 0 | BL109: =SUMIFS('15'!$F:$F,'15'!$N:$N,'14'!BL$6,'15'!$M:$M,'14'!$D109) -> 0 | BM109: =SUMIFS('15'!$F:$F,'15'!$N:$N,'14'!BM$6,'15'!$M:$M,'14'!$D109) -> 0 | BN109: =SUMIFS('15'!$J:$J,'15'!$M:$M,'14'!$D109) -> 0 | BO109: =SUMIFS('15'!$K:$K,'15'!$M:$M,'14'!$D109) -> 0 | CA109: 0
A110: ='0'!$A$4 -> 000770111 | B110: ='0'!$A$2 -> 2020-09-30 | C110: Т14 | BK110: =SUMIFS('15'!$F:$F,'15'!$N:$N,'14'!BK$6,'15'!$M:$M,'14'!$D110) -> 0 | BL110: =SUMIFS('15'!$F:$F,'15'!$N:$N,'14'!BL$6,'15'!$M:$M,'14'!$D110) -> 0 | BM110: =SUMIFS('15'!$F:$F,'15'!$N:$N,'14'!BM$6,'15'!$M:$M,'14'!$D110) -> 0 | BN110: =SUMIFS('15'!$J:$J,'15'!$M:$M,'14'!$D110) -> 0 | BO110: =SUMIFS('15'!$K:$K,'15'!$M:$M,'14'!$D110) -> 0 | CA110: 0
A111: ='0'!$A$4 -> 000770111 | B111: ='0'!$A$2 -> 2020-09-30 | C111: Т14 | BK111: =SUMIFS('15'!$F:$F,'15'!$N:$N,'14'!BK$6,'15'!$M:$M,'14'!$D111) -> 0 | BL111: =SUMIFS('15'!$F:$F,'15'!$N:$N,'14'!BL$6,'15'!$M:$M,'14'!$D111) -> 0 | BM111: =SUMIFS('15'!$F:$F,'15'!$N:$N,'14'!BM$6,'15'!$M:$M,'14'!$D111) -> 0 | BN111: =SUMIFS('15'!$J:$J,'15'!$M:$M,'14'!$D111) -> 0 | BO111: =SUMIFS('15'!$K:$K,'15'!$M:$M,'14'!$D111) -> 0 | CA111: 0
A112: ='0'!$A$4 -> 000770111 | B112: ='0'!$A$2 -> 2020-09-30 | C112: Т14 | BK112: =SUMIFS('15'!$F:$F,'15'!$N:$N,'14'!BK$6,'15'!$M:$M,'14'!$D112) -> 0 | BL112: =SUMIFS('15'!$F:$F,'15'!$N:$N,'14'!BL$6,'15'!$M:$M,'14'!$D112) -> 0 | BM112: =SUMIFS('15'!$F:$F,'15'!$N:$N,'14'!BM$6,'15'!$M:$M,'14'!$D112) -> 0 | BN112: =SUMIFS('15'!$J:$J,'15'!$M:$M,'14'!$D112) -> 0 | BO112: =SUMIFS('15'!$K:$K,'15'!$M:$M,'14'!$D112) -> 0 | CA112: 0
A113: ='0'!$A$4 -> 000770111 | B113: ='0'!$A$2 -> 2020-09-30 | C113: Т14 | BK113: =SUMIFS('15'!$F:$F,'15'!$N:$N,'14'!BK$6,'15'!$M:$M,'14'!$D113) -> 0 | BL113: =SUMIFS('15'!$F:$F,'15'!$N:$N,'14'!BL$6,'15'!$M:$M,'14'!$D113) -> 0 | BM113: =SUMIFS('15'!$F:$F,'15'!$N:$N,'14'!BM$6,'15'!$M:$M,'14'!$D113) -> 0 | BN113: =SUMIFS('15'!$J:$J,'15'!$M:$M,'14'!$D113) -> 0 | BO113: =SUMIFS('15'!$K:$K,'15'!$M:$M,'14'!$D113) -> 0 | CA113: 0
A114: ='0'!$A$4 -> 000770111 | B114: ='0'!$A$2 -> 2020-09-30 | C114: Т14 | BK114: =SUMIFS('15'!$F:$F,'15'!$N:$N,'14'!BK$6,'15'!$M:$M,'14'!$D114) -> 0 | BL114: =SUMIFS('15'!$F:$F,'15'!$N:$N,'14'!BL$6,'15'!$M:$M,'14'!$D114) -> 0 | BM114: =SUMIFS('15'!$F:$F,'15'!$N:$N,'14'!BM$6,'15'!$M:$M,'14'!$D114) -> 0 | BN114: =SUMIFS('15'!$J:$J,'15'!$M:$M,'14'!$D114) -> 0 | BO114: =SUMIFS('15'!$K:$K,'15'!$M:$M,'14'!$D114) -> 0 | CA114: 0
A115: ='0'!$A$4 -> 000770111 | B115: ='0'!$A$2 -> 2020-09-30 | C115: Т14 | BK115: =SUMIFS('15'!$F:$F,'15'!$N:$N,'14'!BK$6,'15'!$M:$M,'14'!$D115) -> 0 | BL115: =SUMIFS('15'!$F:$F,'15'!$N:$N,'14'!BL$6,'15'!$M:$M,'14'!$D115) -> 0 | BM115: =SUMIFS('15'!$F:$F,'15'!$N:$N,'14'!BM$6,'15'!$M:$M,'14'!$D115) -> 0 | BN115: =SUMIFS('15'!$J:$J,'15'!$M:$M,'14'!$D115) -> 0 | BO115: =SUMIFS('15'!$K:$K,'15'!$M:$M,'14'!$D115) -> 0 | CA115: 0
A116: ='0'!$A$4 -> 000770111 | B116: ='0'!$A$2 -> 2020-09-30 | C116: Т14 | BK116: =SUMIFS('15'!$F:$F,'15'!$N:$N,'14'!BK$6,'15'!$M:$M,'14'!$D116) -> 0 | BL116: =SUMIFS('15'!$F:$F,'15'!$N:$N,'14'!BL$6,'15'!$M:$M,'14'!$D116) -> 0 | BM116: =SUMIFS('15'!$F:$F,'15'!$N:$N,'14'!BM$6,'15'!$M:$M,'14'!$D116) -> 0 | BN116: =SUMIFS('15'!$J:$J,'15'!$M:$M,'14'!$D116) -> 0 | BO116: =SUMIFS('15'!$K:$K,'15'!$M:$M,'14'!$D116) -> 0 | CA116: 0
A117: ='0'!$A$4 -> 000770111 | B117: ='0'!$A$2 -> 2020-09-30 | C117: Т14 | BK117: =SUMIFS('15'!$F:$F,'15'!$N:$N,'14'!BK$6,'15'!$M:$M,'14'!$D117) -> 0 | BL117: =SUMIFS('15'!$F:$F,'15'!$N:$N,'14'!BL$6,'15'!$M:$M,'14'!$D117) -> 0 | BM117: =SUMIFS('15'!$F:$F,'15'!$N:$N,'14'!BM$6,'15'!$M:$M,'14'!$D117) -> 0 | BN117: =SUMIFS('15'!$J:$J,'15'!$M:$M,'14'!$D117) -> 0 | BO117: =SUMIFS('15'!$K:$K,'15'!$M:$M,'14'!$D117) -> 0 | CA117: 0
A118: ='0'!$A$4 -> 000770111 | B118: ='0'!$A$2 -> 2020-09-30 | C118: Т14 | BK118: =SUMIFS('15'!$F:$F,'15'!$N:$N,'14'!BK$6,'15'!$M:$M,'14'!$D118) -> 0 | BL118: =SUMIFS('15'!$F:$F,'15'!$N:$N,'14'!BL$6,'15'!$M:$M,'14'!$D118) -> 0 | BM118: =SUMIFS('15'!$F:$F,'15'!$N:$N,'14'!BM$6,'15'!$M:$M,'14'!$D118) -> 0 | BN118: =SUMIFS('15'!$J:$J,'15'!$M:$M,'14'!$D118) -> 0 | BO118: =SUMIFS('15'!$K:$K,'15'!$M:$M,'14'!$D118) -> 0 | CA118: 0
A119: ='0'!$A$4 -> 000770111 | B119: ='0'!$A$2 -> 2020-09-30 | C119: Т14 | BK119: =SUMIFS('15'!$F:$F,'15'!$N:$N,'14'!BK$6,'15'!$M:$M,'14'!$D119) -> 0 | BL119: =SUMIFS('15'!$F:$F,'15'!$N:$N,'14'!BL$6,'15'!$M:$M,'14'!$D119) -> 0 | BM119: =SUMIFS('15'!$F:$F,'15'!$N:$N,'14'!BM$6,'15'!$M:$M,'14'!$D119) -> 0 | BN119: =SUMIFS('15'!$J:$J,'15'!$M:$M,'14'!$D119) -> 0 | BO119: =SUMIFS('15'!$K:$K,'15'!$M:$M,'14'!$D119) -> 0 | CA119: 0
A120: ='0'!$A$4 -> 000770111 | B120: ='0'!$A$2 -> 2020-09-30 | C120: Т14 | BK120: =SUMIFS('15'!$F:$F,'15'!$N:$N,'14'!BK$6,'15'!$M:$M,'14'!$D120) -> 0 | BL120: =SUMIFS('15'!$F:$F,'15'!$N:$N,'14'!BL$6,'15'!$M:$M,'14'!$D120) -> 0 | BM120: =SUMIFS('15'!$F:$F,'15'!$N:$N,'14'!BM$6,'15'!$M:$M,'14'!$D120) -> 0 | BN120: =SUMIFS('15'!$J:$J,'15'!$M:$M,'14'!$D120) -> 0 | BO120: =SUMIFS('15'!$K:$K,'15'!$M:$M,'14'!$D120) -> 0 | CA120: 0
A121: ='0'!$A$4 -> 000770111 | B121: ='0'!$A$2 -> 2020-09-30 | C121: Т14 | BK121: =SUMIFS('15'!$F:$F,'15'!$N:$N,'14'!BK$6,'15'!$M:$M,'14'!$D121) -> 0 | BL121: =SUMIFS('15'!$F:$F,'15'!$N:$N,'14'!BL$6,'15'!$M:$M,'14'!$D121) -> 0 | BM121: =SUMIFS('15'!$F:$F,'15'!$N:$N,'14'!BM$6,'15'!$M:$M,'14'!$D121) -> 0 | BN121: =SUMIFS('15'!$J:$J,'15'!$M:$M,'14'!$D121) -> 0 | BO121: =SUMIFS('15'!$K:$K,'15'!$M:$M,'14'!$D121) -> 0 | CA121: 0
A122: ='0'!$A$4 -> 000770111 | B122: ='0'!$A$2 -> 2020-09-30 | C122: Т14 | BK122: =SUMIFS('15'!$F:$F,'15'!$N:$N,'14'!BK$6,'15'!$M:$M,'14'!$D122) -> 0 | BL122: =SUMIFS('15'!$F:$F,'15'!$N:$N,'14'!BL$6,'15'!$M:$M,'14'!$D122) -> 0 | BM122: =SUMIFS('15'!$F:$F,'15'!$N:$N,'14'!BM$6,'15'!$M:$M,'14'!$D122) -> 0 | BN122: =SUMIFS('15'!$J:$J,'15'!$M:$M,'14'!$D122) -> 0 | BO122: =SUMIFS('15'!$K:$K,'15'!$M:$M,'14'!$D122) -> 0 | CA122: 0
A123: ='0'!$A$4 -> 000770111 | B123: ='0'!$A$2 -> 2020-09-30 | C123: Т14 | BK123: =SUMIFS('15'!$F:$F,'15'!$N:$N,'14'!BK$6,'15'!$M:$M,'14'!$D123) -> 0 | BL123: =SUMIFS('15'!$F:$F,'15'!$N:$N,'14'!BL$6,'15'!$M:$M,'14'!$D123) -> 0 | BM123: =SUMIFS('15'!$F:$F,'15'!$N:$N,'14'!BM$6,'15'!$M:$M,'14'!$D123) -> 0 | BN123: =SUMIFS('15'!$J:$J,'15'!$M:$M,'14'!$D123) -> 0 | BO123: =SUMIFS('15'!$K:$K,'15'!$M:$M,'14'!$D123) -> 0 | CA123: 0
A124: ='0'!$A$4 -> 000770111 | B124: ='0'!$A$2 -> 2020-09-30 | C124: Т14 | BK124: =SUMIFS('15'!$F:$F,'15'!$N:$N,'14'!BK$6,'15'!$M:$M,'14'!$D124) -> 0 | BL124: =SUMIFS('15'!$F:$F,'15'!$N:$N,'14'!BL$6,'15'!$M:$M,'14'!$D124) -> 0 | BM124: =SUMIFS('15'!$F:$F,'15'!$N:$N,'14'!BM$6,'15'!$M:$M,'14'!$D124) -> 0 | BN124: =SUMIFS('15'!$J:$J,'15'!$M:$M,'14'!$D124) -> 0 | BO124: =SUMIFS('15'!$K:$K,'15'!$M:$M,'14'!$D124) -> 0 | CA124: 0
A125: ='0'!$A$4 -> 000770111 | B125: ='0'!$A$2 -> 2020-09-30 | C125: Т14 | BK125: =SUMIFS('15'!$F:$F,'15'!$N:$N,'14'!BK$6,'15'!$M:$M,'14'!$D125) -> 0 | BL125: =SUMIFS('15'!$F:$F,'15'!$N:$N,'14'!BL$6,'15'!$M:$M,'14'!$D125) -> 0 | BM125: =SUMIFS('15'!$F:$F,'15'!$N:$N,'14'!BM$6,'15'!$M:$M,'14'!$D125) -> 0 | BN125: =SUMIFS('15'!$J:$J,'15'!$M:$M,'14'!$D125) -> 0 | BO125: =SUMIFS('15'!$K:$K,'15'!$M:$M,'14'!$D125) -> 0 | CA125: 0
A126: ='0'!$A$4 -> 000770111 | B126: ='0'!$A$2 -> 2020-09-30 | C126: Т14 | BK126: =SUMIFS('15'!$F:$F,'15'!$N:$N,'14'!BK$6,'15'!$M:$M,'14'!$D126) -> 0 | BL126: =SUMIFS('15'!$F:$F,'15'!$N:$N,'14'!BL$6,'15'!$M:$M,'14'!$D126) -> 0 | BM126: =SUMIFS('15'!$F:$F,'15'!$N:$N,'14'!BM$6,'15'!$M:$M,'14'!$D126) -> 0 | BN126: =SUMIFS('15'!$J:$J,'15'!$M:$M,'14'!$D126) -> 0 | BO126: =SUMIFS('15'!$K:$K,'15'!$M:$M,'14'!$D126) -> 0 | CA126: 0
A127: ='0'!$A$4 -> 000770111 | B127: ='0'!$A$2 -> 2020-09-30 | C127: Т14 | BK127: =SUMIFS('15'!$F:$F,'15'!$N:$N,'14'!BK$6,'15'!$M:$M,'14'!$D127) -> 0 | BL127: =SUMIFS('15'!$F:$F,'15'!$N:$N,'14'!BL$6,'15'!$M:$M,'14'!$D127) -> 0 | BM127: =SUMIFS('15'!$F:$F,'15'!$N:$N,'14'!BM$6,'15'!$M:$M,'14'!$D127) -> 0 | BN127: =SUMIFS('15'!$J:$J,'15'!$M:$M,'14'!$D127) -> 0 | BO127: =SUMIFS('15'!$K:$K,'15'!$M:$M,'14'!$D127) -> 0 | CA127: 0
A128: ='0'!$A$4 -> 000770111 | B128: ='0'!$A$2 -> 2020-09-30 | C128: Т14 | BK128: =SUMIFS('15'!$F:$F,'15'!$N:$N,'14'!BK$6,'15'!$M:$M,'14'!$D128) -> 0 | BL128: =SUMIFS('15'!$F:$F,'15'!$N:$N,'14'!BL$6,'15'!$M:$M,'14'!$D128) -> 0 | BM128: =SUMIFS('15'!$F:$F,'15'!$N:$N,'14'!BM$6,'15'!$M:$M,'14'!$D128) -> 0 | BN128: =SUMIFS('15'!$J:$J,'15'!$M:$M,'14'!$D128) -> 0 | BO128: =SUMIFS('15'!$K:$K,'15'!$M:$M,'14'!$D128) -> 0 | CA128: 0
A129: ='0'!$A$4 -> 000770111 | B129: ='0'!$A$2 -> 2020-09-30 | C129: Т14 | BK129: =SUMIFS('15'!$F:$F,'15'!$N:$N,'14'!BK$6,'15'!$M:$M,'14'!$D129) -> 0 | BL129: =SUMIFS('15'!$F:$F,'15'!$N:$N,'14'!BL$6,'15'!$M:$M,'14'!$D129) -> 0 | BM129: =SUMIFS('15'!$F:$F,'15'!$N:$N,'14'!BM$6,'15'!$M:$M,'14'!$D129) -> 0 | BN129: =SUMIFS('15'!$J:$J,'15'!$M:$M,'14'!$D129) -> 0 | BO129: =SUMIFS('15'!$K:$K,'15'!$M:$M,'14'!$D129) -> 0 | CA129: 0
A130: ='0'!$A$4 -> 000770111 | B130: ='0'!$A$2 -> 2020-09-30 | C130: Т14 | BK130: =SUMIFS('15'!$F:$F,'15'!$N:$N,'14'!BK$6,'15'!$M:$M,'14'!$D130) -> 0 | BL130: =SUMIFS('15'!$F:$F,'15'!$N:$N,'14'!BL$6,'15'!$M:$M,'14'!$D130) -> 0 | BM130: =SUMIFS('15'!$F:$F,'15'!$N:$N,'14'!BM$6,'15'!$M:$M,'14'!$D130) -> 0 | BN130: =SUMIFS('15'!$J:$J,'15'!$M:$M,'14'!$D130) -> 0 | BO130: =SUMIFS('15'!$K:$K,'15'!$M:$M,'14'!$D130) -> 0 | CA130: 0
A131: ='0'!$A$4 -> 000770111 | B131: ='0'!$A$2 -> 2020-09-30 | C131: Т14 | BK131: =SUMIFS('15'!$F:$F,'15'!$N:$N,'14'!BK$6,'15'!$M:$M,'14'!$D131) -> 0 | BL131: =SUMIFS('15'!$F:$F,'15'!$N:$N,'14'!BL$6,'15'!$M:$M,'14'!$D131) -> 0 | BM131: =SUMIFS('15'!$F:$F,'15'!$N:$N,'14'!BM$6,'15'!$M:$M,'14'!$D131) -> 0 | BN131: =SUMIFS('15'!$J:$J,'15'!$M:$M,'14'!$D131) -> 0 | BO131: =SUMIFS('15'!$K:$K,'15'!$M:$M,'14'!$D131) -> 0 | CA131: 0
A132: ='0'!$A$4 -> 000770111 | B132: ='0'!$A$2 -> 2020-09-30 | C132: Т14 | BK132: =SUMIFS('15'!$F:$F,'15'!$N:$N,'14'!BK$6,'15'!$M:$M,'14'!$D132) -> 0 | BL132: =SUMIFS('15'!$F:$F,'15'!$N:$N,'14'!BL$6,'15'!$M:$M,'14'!$D132) -> 0 | BM132: =SUMIFS('15'!$F:$F,'15'!$N:$N,'14'!BM$6,'15'!$M:$M,'14'!$D132) -> 0 | BN132: =SUMIFS('15'!$J:$J,'15'!$M:$M,'14'!$D132) -> 0 | BO132: =SUMIFS('15'!$K:$K,'15'!$M:$M,'14'!$D132) -> 0 | CA132: 0
A133: ='0'!$A$4 -> 000770111 | B133: ='0'!$A$2 -> 2020-09-30 | C133: Т14 | BK133: =SUMIFS('15'!$F:$F,'15'!$N:$N,'14'!BK$6,'15'!$M:$M,'14'!$D133) -> 0 | BL133: =SUMIFS('15'!$F:$F,'15'!$N:$N,'14'!BL$6,'15'!$M:$M,'14'!$D133) -> 0 | BM133: =SUMIFS('15'!$F:$F,'15'!$N:$N,'14'!BM$6,'15'!$M:$M,'14'!$D133) -> 0 | BN133: =SUMIFS('15'!$J:$J,'15'!$M:$M,'14'!$D133) -> 0 | BO133: =SUMIFS('15'!$K:$K,'15'!$M:$M,'14'!$D133) -> 0 | CA133: 0
A134: ='0'!$A$4 -> 000770111 | B134: ='0'!$A$2 -> 2020-09-30 | C134: Т14 | BK134: =SUMIFS('15'!$F:$F,'15'!$N:$N,'14'!BK$6,'15'!$M:$M,'14'!$D134) -> 0 | BL134: =SUMIFS('15'!$F:$F,'15'!$N:$N,'14'!BL$6,'15'!$M:$M,'14'!$D134) -> 0 | BM134: =SUMIFS('15'!$F:$F,'15'!$N:$N,'14'!BM$6,'15'!$M:$M,'14'!$D134) -> 0 | BN134: =SUMIFS('15'!$J:$J,'15'!$M:$M,'14'!$D134) -> 0 | BO134: =SUMIFS('15'!$K:$K,'15'!$M:$M,'14'!$D134) -> 0 | CA134: 0
A135: ='0'!$A$4 -> 000770111 | B135: ='0'!$A$2 -> 2020-09-30 | C135: Т14 | BK135: =SUMIFS('15'!$F:$F,'15'!$N:$N,'14'!BK$6,'15'!$M:$M,'14'!$D135) -> 0 | BL135: =SUMIFS('15'!$F:$F,'15'!$N:$N,'14'!BL$6,'15'!$M:$M,'14'!$D135) -> 0 | BM135: =SUMIFS('15'!$F:$F,'15'!$N:$N,'14'!BM$6,'15'!$M:$M,'14'!$D135) -> 0 | BN135: =SUMIFS('15'!$J:$J,'15'!$M:$M,'14'!$D135) -> 0 | BO135: =SUMIFS('15'!$K:$K,'15'!$M:$M,'14'!$D135) -> 0 | CA135: 0
A136: ='0'!$A$4 -> 000770111 | B136: ='0'!$A$2 -> 2020-09-30 | C136: Т14 | BK136: =SUMIFS('15'!$F:$F,'15'!$N:$N,'14'!BK$6,'15'!$M:$M,'14'!$D136) -> 0 | BL136: =SUMIFS('15'!$F:$F,'15'!$N:$N,'14'!BL$6,'15'!$M:$M,'14'!$D136) -> 0 | BM136: =SUMIFS('15'!$F:$F,'15'!$N:$N,'14'!BM$6,'15'!$M:$M,'14'!$D136) -> 0 | BN136: =SUMIFS('15'!$J:$J,'15'!$M:$M,'14'!$D136) -> 0 | BO136: =SUMIFS('15'!$K:$K,'15'!$M:$M,'14'!$D136) -> 0 | CA136: 0
A137: ='0'!$A$4 -> 000770111 | B137: ='0'!$A$2 -> 2020-09-30 | C137: Т14 | BK137: =SUMIFS('15'!$F:$F,'15'!$N:$N,'14'!BK$6,'15'!$M:$M,'14'!$D137) -> 0 | BL137: =SUMIFS('15'!$F:$F,'15'!$N:$N,'14'!BL$6,'15'!$M:$M,'14'!$D137) -> 0 | BM137: =SUMIFS('15'!$F:$F,'15'!$N:$N,'14'!BM$6,'15'!$M:$M,'14'!$D137) -> 0 | BN137: =SUMIFS('15'!$J:$J,'15'!$M:$M,'14'!$D137) -> 0 | BO137: =SUMIFS('15'!$K:$K,'15'!$M:$M,'14'!$D137) -> 0 | CA137: 0
A138: ='0'!$A$4 -> 000770111 | B138: ='0'!$A$2 -> 2020-09-30 | C138: Т14 | BK138: =SUMIFS('15'!$F:$F,'15'!$N:$N,'14'!BK$6,'15'!$M:$M,'14'!$D138) -> 0 | BL138: =SUMIFS('15'!$F:$F,'15'!$N:$N,'14'!BL$6,'15'!$M:$M,'14'!$D138) -> 0 | BM138: =SUMIFS('15'!$F:$F,'15'!$N:$N,'14'!BM$6,'15'!$M:$M,'14'!$D138) -> 0 | BN138: =SUMIFS('15'!$J:$J,'15'!$M:$M,'14'!$D138) -> 0 | BO138: =SUMIFS('15'!$K:$K,'15'!$M:$M,'14'!$D138) -> 0 | CA138: 0
A139: ='0'!$A$4 -> 000770111 | B139: ='0'!$A$2 -> 2020-09-30 | C139: Т14 | BK139: =SUMIFS('15'!$F:$F,'15'!$N:$N,'14'!BK$6,'15'!$M:$M,'14'!$D139) -> 0 | BL139: =SUMIFS('15'!$F:$F,'15'!$N:$N,'14'!BL$6,'15'!$M:$M,'14'!$D139) -> 0 | BM139: =SUMIFS('15'!$F:$F,'15'!$N:$N,'14'!BM$6,'15'!$M:$M,'14'!$D139) -> 0 | BN139: =SUMIFS('15'!$J:$J,'15'!$M:$M,'14'!$D139) -> 0 | BO139: =SUMIFS('15'!$K:$K,'15'!$M:$M,'14'!$D139) -> 0 | CA139: =IF(OR(COUNTBLANK(D139:H139)=5,COUNTBLANK(D139:H139)=0),0,1)+IF(D139<>"",COUNTIFS($D$10:$D$302,D139)-1,0) -> 0
A140: ='0'!$A$4 -> 000770111 | B140: ='0'!$A$2 -> 2020-09-30 | C140: Т14 | BK140: =SUMIFS('15'!$F:$F,'15'!$N:$N,'14'!BK$6,'15'!$M:$M,'14'!$D140) -> 0 | BL140: =SUMIFS('15'!$F:$F,'15'!$N:$N,'14'!BL$6,'15'!$M:$M,'14'!$D140) -> 0 | BM140: =SUMIFS('15'!$F:$F,'15'!$N:$N,'14'!BM$6,'15'!$M:$M,'14'!$D140) -> 0 | BN140: =SUMIFS('15'!$J:$J,'15'!$M:$M,'14'!$D140) -> 0 | BO140: =SUMIFS('15'!$K:$K,'15'!$M:$M,'14'!$D140) -> 0 | CA140: 0
